{"text_format":"1","workbook":"xlsx","n_sheets":2,"sheets":["批量生成hm参数推广URL","批量生成utm参数推广URL"],"not_rendered":{"charts":0,"images":0,"macros":1,"external_links":0,"defined_names":0,"comments":0,"pivot_tables":0},"unopened":[],"bounds":{"document_bytes":16777216,"sheet_cells":100000,"rows_first":2000,"rows_last":500,"rows_between":2000,"halvings":0,"cell_chars":16384,"cell_head_chars":4096},"cells_cut":0,"cells_raw":0,"read":"whole","date_system":"1900"}

{"sheet":"批量生成hm参数推广URL","index":0,"n_rows":309,"n_cols":16,"rows_kept":309,"cut":false,"hidden":false,"merged":[[0,14,2,14],[0,13,303,13],[2,1,2,11],[0,0,2,0],[3,12,303,12],[0,1,1,12]]}
[null,"1、在左侧填写如下信息：准备推广页面的URL、广告所投放的媒体平台、投放的计划、单元、关键词和创意。右侧会自动生成一个带有参数的URL，其中目标URL与媒体平台必须填写。\n2、将生成的URL作为在其它媒体平台推广的落地URL，当访客访问该URL时，百度统计平台会根据URL中的参数进行整理与分析。",null,null,null,null,null,null,null,null,null,null,null,null,"前300行数据将会自动生成。若超出300行，请复制下方单元格的公式。"]
[]
[]
[null,"目标URL*",null,"媒体平台：hmsr*",null,"计划名称：hmpl",null,"单元名称：hmcu",null,"关键词：hmkw",null,"创意：hmci",null,null,"生成的URL"]
[1,"www.domain.com",null,"测试媒体平台名",null,"测试计划名称名",null,"测试单元名称",null,"测试关键词名",null,"测试创意名",null,null,{"$f":"IF(LEN(B5)*LEN(D5),IF(OR(MID(B5,1,7)=\"http://\",MID(B5,1,8)=\"https://\"),B5&IF(ISNUMBER(FIND(\"?\",B5)),\"&\",\"?\")&\"hmsr=\"&UrlEncode(D5)&\"&hmpl=\"&UrlEncode(F5)&\"&hmcu=\"&UrlEncode(H5)&\"&hmkw=\"&UrlEncode(J5)&\"&hmci=\"&UrlEncode(L5)&\"\",\"http://\"&B5&IF(ISNUMBER(FIND(\"?\",B5)),\"&\",\"?\")&\"hmsr=\"&UrlEncode(D5)&\"&hmpl=\"&UrlEncode(F5)&\"&hmcu=\"&UrlEncode(H5)&\"&hmkw=\"&UrlEncode(J5)&\"&hmci=\"&UrlEncode(L5)&\"\"),\"请填写目标URL与媒体平台\")","v":"http://www.domain.com?hmsr=%E6%B5%8B%E8%AF%95%E5%AA%92%E4%BD%93%E5%B9%B3%E5%8F%B0%E5%90%8D&hmpl=%E6%B5%8B%E8%AF%95%E8%AE%A1%E5%88%92%E5%90%8D%E7%A7%B0%E5%90%8D&hmcu=%E6%B5%8B%E8%AF%95%E5%8D%95%E5%85%83%E5%90%8D%E7%A7%B0&hmkw=%E6%B5%8B%E8%AF%95%E5%85%B3%E9%94%AE%E8%AF%8D%E5%90%8D&hmci=%E6%B5%8B%E8%AF%95%E5%88%9B%E6%84%8F%E5%90%8D"}]
[2,null,null,null,null,null,null,null,null,null,null,null,null,null,{"$f":"IF(LEN(B6)*LEN(D6),IF(OR(MID(B6,1,7)=\"http://\",MID(B6,1,8)=\"https://\"),B6&IF(ISNUMBER(FIND(\"?\",B6)),\"&\",\"?\")&\"hmsr=\"&UrlEncode(D6)&\"&hmpl=\"&UrlEncode(F6)&\"&hmcu=\"&UrlEncode(H6)&\"&hmkw=\"&UrlEncode(J6)&\"&hmci=\"&UrlEncode(L6)&\"\",\"http://\"&B6&IF(ISNUMBER(FIND(\"?\",B6)),\"&\",\"?\")&\"hmsr=\"&UrlEncode(D6)&\"&hmpl=\"&UrlEncode(F6)&\"&hmcu=\"&UrlEncode(H6)&\"&hmkw=\"&UrlEncode(J6)&\"&hmci=\"&UrlEncode(L6)&\"\"),\"请填写目标URL与媒体平台\")","v":"请填写目标URL与媒体平台"},{"$f":"IF(OR(MID(B6,1,7)=\"http://\",MID(B6,1,8)=\"https://\"),0,1)","v":1}]
[3,null,null,null,null,null,null,null,null,null,null,null,null,null,{"$f":"IF(LEN(B7)*LEN(D7),IF(OR(MID(B7,1,7)=\"http://\",MID(B7,1,8)=\"https://\"),B7&IF(ISNUMBER(FIND(\"?\",B7)),\"&\",\"?\")&\"hmsr=\"&UrlEncode(D7)&\"&hmpl=\"&UrlEncode(F7)&\"&hmcu=\"&UrlEncode(H7)&\"&hmkw=\"&UrlEncode(J7)&\"&hmci=\"&UrlEncode(L7)&\"\",\"http://\"&B7&IF(ISNUMBER(FIND(\"?\",B7)),\"&\",\"?\")&\"hmsr=\"&UrlEncode(D7)&\"&hmpl=\"&UrlEncode(F7)&\"&hmcu=\"&UrlEncode(H7)&\"&hmkw=\"&UrlEncode(J7)&\"&hmci=\"&UrlEncode(L7)&\"\"),\"请填写目标URL与媒体平台\")","v":"请填写目标URL与媒体平台"}]
[4,null,null,null,null,null,null,null,null,null,null,null,null,null,{"$f":"IF(LEN(B8)*LEN(D8),IF(OR(MID(B8,1,7)=\"http://\",MID(B8,1,8)=\"https://\"),B8&IF(ISNUMBER(FIND(\"?\",B8)),\"&\",\"?\")&\"hmsr=\"&UrlEncode(D8)&\"&hmpl=\"&UrlEncode(F8)&\"&hmcu=\"&UrlEncode(H8)&\"&hmkw=\"&UrlEncode(J8)&\"&hmci=\"&UrlEncode(L8)&\"\",\"http://\"&B8&IF(ISNUMBER(FIND(\"?\",B8)),\"&\",\"?\")&\"hmsr=\"&UrlEncode(D8)&\"&hmpl=\"&UrlEncode(F8)&\"&hmcu=\"&UrlEncode(H8)&\"&hmkw=\"&UrlEncode(J8)&\"&hmci=\"&UrlEncode(L8)&\"\"),\"请填写目标URL与媒体平台\")","v":"请填写目标URL与媒体平台"}]
[5,null,null,null,null,null,null,null,null,null,null,null,null,null,{"$f":"IF(LEN(B9)*LEN(D9),IF(OR(MID(B9,1,7)=\"http://\",MID(B9,1,8)=\"https://\"),B9&IF(ISNUMBER(FIND(\"?\",B9)),\"&\",\"?\")&\"hmsr=\"&UrlEncode(D9)&\"&hmpl=\"&UrlEncode(F9)&\"&hmcu=\"&UrlEncode(H9)&\"&hmkw=\"&UrlEncode(J9)&\"&hmci=\"&UrlEncode(L9)&\"\",\"http://\"&B9&IF(ISNUMBER(FIND(\"?\",B9)),\"&\",\"?\")&\"hmsr=\"&UrlEncode(D9)&\"&hmpl=\"&UrlEncode(F9)&\"&hmcu=\"&UrlEncode(H9)&\"&hmkw=\"&UrlEncode(J9)&\"&hmci=\"&UrlEncode(L9)&\"\"),\"请填写目标URL与媒体平台\")","v":"请填写目标URL与媒体平台"}]
[6,null,null,null,null,null,null,null,null,null,null,null,null,null,{"$f":"IF(LEN(B10)*LEN(D10),IF(OR(MID(B10,1,7)=\"http://\",MID(B10,1,8)=\"https://\"),B10&IF(ISNUMBER(FIND(\"?\",B10)),\"&\",\"?\")&\"hmsr=\"&UrlEncode(D10)&\"&hmpl=\"&UrlEncode(F10)&\"&hmcu=\"&UrlEncode(H10)&\"&hmkw=\"&UrlEncode(J10)&\"&hmci=\"&UrlEncode(L10)&\"\",\"http://\"&B10&IF(ISNUMBER(FIND(\"?\",B10)),\"&\",\"?\")&\"hmsr=\"&UrlEncode(D10)&\"&hmpl=\"&UrlEncode(F10)&\"&hmcu=\"&UrlEncode(H10)&\"&hmkw=\"&UrlEncode(J10)&\"&hmci=\"&UrlEncode(L10)&\"\"),\"请填写目标URL与媒体平台\")","v":"请填写目标URL与媒体平台"}]
[7,null,null,null,null,null,null,null,null,null,null,null,null,null,{"$f":"IF(LEN(B11)*LEN(D11),IF(OR(MID(B11,1,7)=\"http://\",MID(B11,1,8)=\"https://\"),B11&IF(ISNUMBER(FIND(\"?\",B11)),\"&\",\"?\")&\"hmsr=\"&UrlEncode(D11)&\"&hmpl=\"&UrlEncode(F11)&\"&hmcu=\"&UrlEncode(H11)&\"&hmkw=\"&UrlEncode(J11)&\"&hmci=\"&UrlEncode(L11)&\"\",\"http://\"&B11&IF(ISNUMBER(FIND(\"?\",B11)),\"&\",\"?\")&\"hmsr=\"&UrlEncode(D11)&\"&hmpl=\"&UrlEncode(F11)&\"&hmcu=\"&UrlEncode(H11)&\"&hmkw=\"&UrlEncode(J11)&\"&hmci=\"&UrlEncode(L11)&\"\"),\"请填写目标URL与媒体平台\")","v":"请填写目标URL与媒体平台"}]
[8,null,null,null,null,null,null,null,null,null,null,null,null,null,{"$f":"IF(LEN(B12)*LEN(D12),IF(OR(MID(B12,1,7)=\"http://\",MID(B12,1,8)=\"https://\"),B12&IF(ISNUMBER(FIND(\"?\",B12)),\"&\",\"?\")&\"hmsr=\"&UrlEncode(D12)&\"&hmpl=\"&UrlEncode(F12)&\"&hmcu=\"&UrlEncode(H12)&\"&hmkw=\"&UrlEncode(J12)&\"&hmci=\"&UrlEncode(L12)&\"\",\"http://\"&B12&IF(ISNUMBER(FIND(\"?\",B12)),\"&\",\"?\")&\"hmsr=\"&UrlEncode(D12)&\"&hmpl=\"&UrlEncode(F12)&\"&hmcu=\"&UrlEncode(H12)&\"&hmkw=\"&UrlEncode(J12)&\"&hmci=\"&UrlEncode(L12)&\"\"),\"请填写目标URL与媒体平台\")","v":"请填写目标URL与媒体平台"}]
[9,null,null,null,null,null,null,null,null,null,null,null,null,null,{"$f":"IF(LEN(B13)*LEN(D13),IF(OR(MID(B13,1,7)=\"http://\",MID(B13,1,8)=\"https://\"),B13&IF(ISNUMBER(FIND(\"?\",B13)),\"&\",\"?\")&\"hmsr=\"&UrlEncode(D13)&\"&hmpl=\"&UrlEncode(F13)&\"&hmcu=\"&UrlEncode(H13)&\"&hmkw=\"&UrlEncode(J13)&\"&hmci=\"&UrlEncode(L13)&\"\",\"http://\"&B13&IF(ISNUMBER(FIND(\"?\",B13)),\"&\",\"?\")&\"hmsr=\"&UrlEncode(D13)&\"&hmpl=\"&UrlEncode(F13)&\"&hmcu=\"&UrlEncode(H13)&\"&hmkw=\"&UrlEncode(J13)&\"&hmci=\"&UrlEncode(L13)&\"\"),\"请填写目标URL与媒体平台\")","v":"请填写目标URL与媒体平台"}]
[10,null,null,null,null,null,null,null,null,null,null,null,null,null,{"$f":"IF(LEN(B14)*LEN(D14),IF(OR(MID(B14,1,7)=\"http://\",MID(B14,1,8)=\"https://\"),B14&IF(ISNUMBER(FIND(\"?\",B14)),\"&\",\"?\")&\"hmsr=\"&UrlEncode(D14)&\"&hmpl=\"&UrlEncode(F14)&\"&hmcu=\"&UrlEncode(H14)&\"&hmkw=\"&UrlEncode(J14)&\"&hmci=\"&UrlEncode(L14)&\"\",\"http://\"&B14&IF(ISNUMBER(FIND(\"?\",B14)),\"&\",\"?\")&\"hmsr=\"&UrlEncode(D14)&\"&hmpl=\"&UrlEncode(F14)&\"&hmcu=\"&UrlEncode(H14)&\"&hmkw=\"&UrlEncode(J14)&\"&hmci=\"&UrlEncode(L14)&\"\"),\"请填写目标URL与媒体平台\")","v":"请填写目标URL与媒体平台"}]
[11,null,null,null,null,null,null,null,null,null,null,null,null,null,{"$f":"IF(LEN(B15)*LEN(D15),IF(OR(MID(B15,1,7)=\"http://\",MID(B15,1,8)=\"https://\"),B15&IF(ISNUMBER(FIND(\"?\",B15)),\"&\",\"?\")&\"hmsr=\"&UrlEncode(D15)&\"&hmpl=\"&UrlEncode(F15)&\"&hmcu=\"&UrlEncode(H15)&\"&hmkw=\"&UrlEncode(J15)&\"&hmci=\"&UrlEncode(L15)&\"\",\"http://\"&B15&IF(ISNUMBER(FIND(\"?\",B15)),\"&\",\"?\")&\"hmsr=\"&UrlEncode(D15)&\"&hmpl=\"&UrlEncode(F15)&\"&hmcu=\"&UrlEncode(H15)&\"&hmkw=\"&UrlEncode(J15)&\"&hmci=\"&UrlEncode(L15)&\"\"),\"请填写目标URL与媒体平台\")","v":"请填写目标URL与媒体平台"}]
[12,null,null,null,null,null,null,null,null,null,null,null,null,null,{"$f":"IF(LEN(B16)*LEN(D16),IF(OR(MID(B16,1,7)=\"http://\",MID(B16,1,8)=\"https://\"),B16&IF(ISNUMBER(FIND(\"?\",B16)),\"&\",\"?\")&\"hmsr=\"&UrlEncode(D16)&\"&hmpl=\"&UrlEncode(F16)&\"&hmcu=\"&UrlEncode(H16)&\"&hmkw=\"&UrlEncode(J16)&\"&hmci=\"&UrlEncode(L16)&\"\",\"http://\"&B16&IF(ISNUMBER(FIND(\"?\",B16)),\"&\",\"?\")&\"hmsr=\"&UrlEncode(D16)&\"&hmpl=\"&UrlEncode(F16)&\"&hmcu=\"&UrlEncode(H16)&\"&hmkw=\"&UrlEncode(J16)&\"&hmci=\"&UrlEncode(L16)&\"\"),\"请填写目标URL与媒体平台\")","v":"请填写目标URL与媒体平台"}]
[13,null,null,null,null,null,null,null,null,null,null,null,null,null,{"$f":"IF(LEN(B17)*LEN(D17),IF(OR(MID(B17,1,7)=\"http://\",MID(B17,1,8)=\"https://\"),B17&IF(ISNUMBER(FIND(\"?\",B17)),\"&\",\"?\")&\"hmsr=\"&UrlEncode(D17)&\"&hmpl=\"&UrlEncode(F17)&\"&hmcu=\"&UrlEncode(H17)&\"&hmkw=\"&UrlEncode(J17)&\"&hmci=\"&UrlEncode(L17)&\"\",\"http://\"&B17&IF(ISNUMBER(FIND(\"?\",B17)),\"&\",\"?\")&\"hmsr=\"&UrlEncode(D17)&\"&hmpl=\"&UrlEncode(F17)&\"&hmcu=\"&UrlEncode(H17)&\"&hmkw=\"&UrlEncode(J17)&\"&hmci=\"&UrlEncode(L17)&\"\"),\"请填写目标URL与媒体平台\")","v":"请填写目标URL与媒体平台"}]
[14,null,null,null,null,null,null,null,null,null,null,null,null,null,{"$f":"IF(LEN(B18)*LEN(D18),IF(OR(MID(B18,1,7)=\"http://\",MID(B18,1,8)=\"https://\"),B18&IF(ISNUMBER(FIND(\"?\",B18)),\"&\",\"?\")&\"hmsr=\"&UrlEncode(D18)&\"&hmpl=\"&UrlEncode(F18)&\"&hmcu=\"&UrlEncode(H18)&\"&hmkw=\"&UrlEncode(J18)&\"&hmci=\"&UrlEncode(L18)&\"\",\"http://\"&B18&IF(ISNUMBER(FIND(\"?\",B18)),\"&\",\"?\")&\"hmsr=\"&UrlEncode(D18)&\"&hmpl=\"&UrlEncode(F18)&\"&hmcu=\"&UrlEncode(H18)&\"&hmkw=\"&UrlEncode(J18)&\"&hmci=\"&UrlEncode(L18)&\"\"),\"请填写目标URL与媒体平台\")","v":"请填写目标URL与媒体平台"}]
[15,null,null,null,null,null,null,null,null,null,null,null,null,null,{"$f":"IF(LEN(B19)*LEN(D19),IF(OR(MID(B19,1,7)=\"http://\",MID(B19,1,8)=\"https://\"),B19&IF(ISNUMBER(FIND(\"?\",B19)),\"&\",\"?\")&\"hmsr=\"&UrlEncode(D19)&\"&hmpl=\"&UrlEncode(F19)&\"&hmcu=\"&UrlEncode(H19)&\"&hmkw=\"&UrlEncode(J19)&\"&hmci=\"&UrlEncode(L19)&\"\",\"http://\"&B19&IF(ISNUMBER(FIND(\"?\",B19)),\"&\",\"?\")&\"hmsr=\"&UrlEncode(D19)&\"&hmpl=\"&UrlEncode(F19)&\"&hmcu=\"&UrlEncode(H19)&\"&hmkw=\"&UrlEncode(J19)&\"&hmci=\"&UrlEncode(L19)&\"\"),\"请填写目标URL与媒体平台\")","v":"请填写目标URL与媒体平台"}]
[16,null,null,null,null,null,null,null,null,null,null,null,null,null,{"$f":"IF(LEN(B20)*LEN(D20),IF(OR(MID(B20,1,7)=\"http://\",MID(B20,1,8)=\"https://\"),B20&IF(ISNUMBER(FIND(\"?\",B20)),\"&\",\"?\")&\"hmsr=\"&UrlEncode(D20)&\"&hmpl=\"&UrlEncode(F20)&\"&hmcu=\"&UrlEncode(H20)&\"&hmkw=\"&UrlEncode(J20)&\"&hmci=\"&UrlEncode(L20)&\"\",\"http://\"&B20&IF(ISNUMBER(FIND(\"?\",B20)),\"&\",\"?\")&\"hmsr=\"&UrlEncode(D20)&\"&hmpl=\"&UrlEncode(F20)&\"&hmcu=\"&UrlEncode(H20)&\"&hmkw=\"&UrlEncode(J20)&\"&hmci=\"&UrlEncode(L20)&\"\"),\"请填写目标URL与媒体平台\")","v":"请填写目标URL与媒体平台"}]
[17,null,null,null,null,null,null,null,null,null,null,null,null,null,{"$f":"IF(LEN(B21)*LEN(D21),IF(OR(MID(B21,1,7)=\"http://\",MID(B21,1,8)=\"https://\"),B21&IF(ISNUMBER(FIND(\"?\",B21)),\"&\",\"?\")&\"hmsr=\"&UrlEncode(D21)&\"&hmpl=\"&UrlEncode(F21)&\"&hmcu=\"&UrlEncode(H21)&\"&hmkw=\"&UrlEncode(J21)&\"&hmci=\"&UrlEncode(L21)&\"\",\"http://\"&B21&IF(ISNUMBER(FIND(\"?\",B21)),\"&\",\"?\")&\"hmsr=\"&UrlEncode(D21)&\"&hmpl=\"&UrlEncode(F21)&\"&hmcu=\"&UrlEncode(H21)&\"&hmkw=\"&UrlEncode(J21)&\"&hmci=\"&UrlEncode(L21)&\"\"),\"请填写目标URL与媒体平台\")","v":"请填写目标URL与媒体平台"}]
[18,null,null,null,null,null,null,null,null,null,null,null,null,null,{"$f":"IF(LEN(B22)*LEN(D22),IF(OR(MID(B22,1,7)=\"http://\",MID(B22,1,8)=\"https://\"),B22&IF(ISNUMBER(FIND(\"?\",B22)),\"&\",\"?\")&\"hmsr=\"&UrlEncode(D22)&\"&hmpl=\"&UrlEncode(F22)&\"&hmcu=\"&UrlEncode(H22)&\"&hmkw=\"&UrlEncode(J22)&\"&hmci=\"&UrlEncode(L22)&\"\",\"http://\"&B22&IF(ISNUMBER(FIND(\"?\",B22)),\"&\",\"?\")&\"hmsr=\"&UrlEncode(D22)&\"&hmpl=\"&UrlEncode(F22)&\"&hmcu=\"&UrlEncode(H22)&\"&hmkw=\"&UrlEncode(J22)&\"&hmci=\"&UrlEncode(L22)&\"\"),\"请填写目标URL与媒体平台\")","v":"请填写目标URL与媒体平台"}]
[19,null,null,null,null,null,null,null,null,null,null,null,null,null,{"$f":"IF(LEN(B23)*LEN(D23),IF(OR(MID(B23,1,7)=\"http://\",MID(B23,1,8)=\"https://\"),B23&IF(ISNUMBER(FIND(\"?\",B23)),\"&\",\"?\")&\"hmsr=\"&UrlEncode(D23)&\"&hmpl=\"&UrlEncode(F23)&\"&hmcu=\"&UrlEncode(H23)&\"&hmkw=\"&UrlEncode(J23)&\"&hmci=\"&UrlEncode(L23)&\"\",\"http://\"&B23&IF(ISNUMBER(FIND(\"?\",B23)),\"&\",\"?\")&\"hmsr=\"&UrlEncode(D23)&\"&hmpl=\"&UrlEncode(F23)&\"&hmcu=\"&UrlEncode(H23)&\"&hmkw=\"&UrlEncode(J23)&\"&hmci=\"&UrlEncode(L23)&\"\"),\"请填写目标URL与媒体平台\")","v":"请填写目标URL与媒体平台"}]
[20,null,null,null,null,null,null,null,null,null,null,null,null,null,{"$f":"IF(LEN(B24)*LEN(D24),IF(OR(MID(B24,1,7)=\"http://\",MID(B24,1,8)=\"https://\"),B24&IF(ISNUMBER(FIND(\"?\",B24)),\"&\",\"?\")&\"hmsr=\"&UrlEncode(D24)&\"&hmpl=\"&UrlEncode(F24)&\"&hmcu=\"&UrlEncode(H24)&\"&hmkw=\"&UrlEncode(J24)&\"&hmci=\"&UrlEncode(L24)&\"\",\"http://\"&B24&IF(ISNUMBER(FIND(\"?\",B24)),\"&\",\"?\")&\"hmsr=\"&UrlEncode(D24)&\"&hmpl=\"&UrlEncode(F24)&\"&hmcu=\"&UrlEncode(H24)&\"&hmkw=\"&UrlEncode(J24)&\"&hmci=\"&UrlEncode(L24)&\"\"),\"请填写目标URL与媒体平台\")","v":"请填写目标URL与媒体平台"}]
[21,null,null,null,null,null,null,null,null,null,null,null,null,null,{"$f":"IF(LEN(B25)*LEN(D25),IF(OR(MID(B25,1,7)=\"http://\",MID(B25,1,8)=\"https://\"),B25&IF(ISNUMBER(FIND(\"?\",B25)),\"&\",\"?\")&\"hmsr=\"&UrlEncode(D25)&\"&hmpl=\"&UrlEncode(F25)&\"&hmcu=\"&UrlEncode(H25)&\"&hmkw=\"&UrlEncode(J25)&\"&hmci=\"&UrlEncode(L25)&\"\",\"http://\"&B25&IF(ISNUMBER(FIND(\"?\",B25)),\"&\",\"?\")&\"hmsr=\"&UrlEncode(D25)&\"&hmpl=\"&UrlEncode(F25)&\"&hmcu=\"&UrlEncode(H25)&\"&hmkw=\"&UrlEncode(J25)&\"&hmci=\"&UrlEncode(L25)&\"\"),\"请填写目标URL与媒体平台\")","v":"请填写目标URL与媒体平台"}]
[22,null,null,null,null,null,null,null,null,null,null,null,null,null,{"$f":"IF(LEN(B26)*LEN(D26),IF(OR(MID(B26,1,7)=\"http://\",MID(B26,1,8)=\"https://\"),B26&IF(ISNUMBER(FIND(\"?\",B26)),\"&\",\"?\")&\"hmsr=\"&UrlEncode(D26)&\"&hmpl=\"&UrlEncode(F26)&\"&hmcu=\"&UrlEncode(H26)&\"&hmkw=\"&UrlEncode(J26)&\"&hmci=\"&UrlEncode(L26)&\"\",\"http://\"&B26&IF(ISNUMBER(FIND(\"?\",B26)),\"&\",\"?\")&\"hmsr=\"&UrlEncode(D26)&\"&hmpl=\"&UrlEncode(F26)&\"&hmcu=\"&UrlEncode(H26)&\"&hmkw=\"&UrlEncode(J26)&\"&hmci=\"&UrlEncode(L26)&\"\"),\"请填写目标URL与媒体平台\")","v":"请填写目标URL与媒体平台"}]
[23,null,null,null,null,null,null,null,null,null,null,null,null,null,{"$f":"IF(LEN(B27)*LEN(D27),IF(OR(MID(B27,1,7)=\"http://\",MID(B27,1,8)=\"https://\"),B27&IF(ISNUMBER(FIND(\"?\",B27)),\"&\",\"?\")&\"hmsr=\"&UrlEncode(D27)&\"&hmpl=\"&UrlEncode(F27)&\"&hmcu=\"&UrlEncode(H27)&\"&hmkw=\"&UrlEncode(J27)&\"&hmci=\"&UrlEncode(L27)&\"\",\"http://\"&B27&IF(ISNUMBER(FIND(\"?\",B27)),\"&\",\"?\")&\"hmsr=\"&UrlEncode(D27)&\"&hmpl=\"&UrlEncode(F27)&\"&hmcu=\"&UrlEncode(H27)&\"&hmkw=\"&UrlEncode(J27)&\"&hmci=\"&UrlEncode(L27)&\"\"),\"请填写目标URL与媒体平台\")","v":"请填写目标URL与媒体平台"}]
[24,null,null,null,null,null,null,null,null,null,null,null,null,null,{"$f":"IF(LEN(B28)*LEN(D28),IF(OR(MID(B28,1,7)=\"http://\",MID(B28,1,8)=\"https://\"),B28&IF(ISNUMBER(FIND(\"?\",B28)),\"&\",\"?\")&\"hmsr=\"&UrlEncode(D28)&\"&hmpl=\"&UrlEncode(F28)&\"&hmcu=\"&UrlEncode(H28)&\"&hmkw=\"&UrlEncode(J28)&\"&hmci=\"&UrlEncode(L28)&\"\",\"http://\"&B28&IF(ISNUMBER(FIND(\"?\",B28)),\"&\",\"?\")&\"hmsr=\"&UrlEncode(D28)&\"&hmpl=\"&UrlEncode(F28)&\"&hmcu=\"&UrlEncode(H28)&\"&hmkw=\"&UrlEncode(J28)&\"&hmci=\"&UrlEncode(L28)&\"\"),\"请填写目标URL与媒体平台\")","v":"请填写目标URL与媒体平台"}]
[25,null,null,null,null,null,null,null,null,null,null,null,null,null,{"$f":"IF(LEN(B29)*LEN(D29),IF(OR(MID(B29,1,7)=\"http://\",MID(B29,1,8)=\"https://\"),B29&IF(ISNUMBER(FIND(\"?\",B29)),\"&\",\"?\")&\"hmsr=\"&UrlEncode(D29)&\"&hmpl=\"&UrlEncode(F29)&\"&hmcu=\"&UrlEncode(H29)&\"&hmkw=\"&UrlEncode(J29)&\"&hmci=\"&UrlEncode(L29)&\"\",\"http://\"&B29&IF(ISNUMBER(FIND(\"?\",B29)),\"&\",\"?\")&\"hmsr=\"&UrlEncode(D29)&\"&hmpl=\"&UrlEncode(F29)&\"&hmcu=\"&UrlEncode(H29)&\"&hmkw=\"&UrlEncode(J29)&\"&hmci=\"&UrlEncode(L29)&\"\"),\"请填写目标URL与媒体平台\")","v":"请填写目标URL与媒体平台"}]
[26,null,null,null,null,null,null,null,null,null,null,null,null,null,{"$f":"IF(LEN(B30)*LEN(D30),IF(OR(MID(B30,1,7)=\"http://\",MID(B30,1,8)=\"https://\"),B30&IF(ISNUMBER(FIND(\"?\",B30)),\"&\",\"?\")&\"hmsr=\"&UrlEncode(D30)&\"&hmpl=\"&UrlEncode(F30)&\"&hmcu=\"&UrlEncode(H30)&\"&hmkw=\"&UrlEncode(J30)&\"&hmci=\"&UrlEncode(L30)&\"\",\"http://\"&B30&IF(ISNUMBER(FIND(\"?\",B30)),\"&\",\"?\")&\"hmsr=\"&UrlEncode(D30)&\"&hmpl=\"&UrlEncode(F30)&\"&hmcu=\"&UrlEncode(H30)&\"&hmkw=\"&UrlEncode(J30)&\"&hmci=\"&UrlEncode(L30)&\"\"),\"请填写目标URL与媒体平台\")","v":"请填写目标URL与媒体平台"}]
[27,null,null,null,null,null,null,null,null,null,null,null,null,null,{"$f":"IF(LEN(B31)*LEN(D31),IF(OR(MID(B31,1,7)=\"http://\",MID(B31,1,8)=\"https://\"),B31&IF(ISNUMBER(FIND(\"?\",B31)),\"&\",\"?\")&\"hmsr=\"&UrlEncode(D31)&\"&hmpl=\"&UrlEncode(F31)&\"&hmcu=\"&UrlEncode(H31)&\"&hmkw=\"&UrlEncode(J31)&\"&hmci=\"&UrlEncode(L31)&\"\",\"http://\"&B31&IF(ISNUMBER(FIND(\"?\",B31)),\"&\",\"?\")&\"hmsr=\"&UrlEncode(D31)&\"&hmpl=\"&UrlEncode(F31)&\"&hmcu=\"&UrlEncode(H31)&\"&hmkw=\"&UrlEncode(J31)&\"&hmci=\"&UrlEncode(L31)&\"\"),\"请填写目标URL与媒体平台\")","v":"请填写目标URL与媒体平台"}]
[28,null,null,null,null,null,null,null,null,null,null,null,null,null,{"$f":"IF(LEN(B32)*LEN(D32),IF(OR(MID(B32,1,7)=\"http://\",MID(B32,1,8)=\"https://\"),B32&IF(ISNUMBER(FIND(\"?\",B32)),\"&\",\"?\")&\"hmsr=\"&UrlEncode(D32)&\"&hmpl=\"&UrlEncode(F32)&\"&hmcu=\"&UrlEncode(H32)&\"&hmkw=\"&UrlEncode(J32)&\"&hmci=\"&UrlEncode(L32)&\"\",\"http://\"&B32&IF(ISNUMBER(FIND(\"?\",B32)),\"&\",\"?\")&\"hmsr=\"&UrlEncode(D32)&\"&hmpl=\"&UrlEncode(F32)&\"&hmcu=\"&UrlEncode(H32)&\"&hmkw=\"&UrlEncode(J32)&\"&hmci=\"&UrlEncode(L32)&\"\"),\"请填写目标URL与媒体平台\")","v":"请填写目标URL与媒体平台"}]
[29,null,null,null,null,null,null,null,null,null,null,null,null,null,{"$f":"IF(LEN(B33)*LEN(D33),IF(OR(MID(B33,1,7)=\"http://\",MID(B33,1,8)=\"https://\"),B33&IF(ISNUMBER(FIND(\"?\",B33)),\"&\",\"?\")&\"hmsr=\"&UrlEncode(D33)&\"&hmpl=\"&UrlEncode(F33)&\"&hmcu=\"&UrlEncode(H33)&\"&hmkw=\"&UrlEncode(J33)&\"&hmci=\"&UrlEncode(L33)&\"\",\"http://\"&B33&IF(ISNUMBER(FIND(\"?\",B33)),\"&\",\"?\")&\"hmsr=\"&UrlEncode(D33)&\"&hmpl=\"&UrlEncode(F33)&\"&hmcu=\"&UrlEncode(H33)&\"&hmkw=\"&UrlEncode(J33)&\"&hmci=\"&UrlEncode(L33)&\"\"),\"请填写目标URL与媒体平台\")","v":"请填写目标URL与媒体平台"}]
[30,null,null,null,null,null,null,null,null,null,null,null,null,null,{"$f":"IF(LEN(B34)*LEN(D34),IF(OR(MID(B34,1,7)=\"http://\",MID(B34,1,8)=\"https://\"),B34&IF(ISNUMBER(FIND(\"?\",B34)),\"&\",\"?\")&\"hmsr=\"&UrlEncode(D34)&\"&hmpl=\"&UrlEncode(F34)&\"&hmcu=\"&UrlEncode(H34)&\"&hmkw=\"&UrlEncode(J34)&\"&hmci=\"&UrlEncode(L34)&\"\",\"http://\"&B34&IF(ISNUMBER(FIND(\"?\",B34)),\"&\",\"?\")&\"hmsr=\"&UrlEncode(D34)&\"&hmpl=\"&UrlEncode(F34)&\"&hmcu=\"&UrlEncode(H34)&\"&hmkw=\"&UrlEncode(J34)&\"&hmci=\"&UrlEncode(L34)&\"\"),\"请填写目标URL与媒体平台\")","v":"请填写目标URL与媒体平台"}]
[31,null,null,null,null,null,null,null,null,null,null,null,null,null,{"$f":"IF(LEN(B35)*LEN(D35),IF(OR(MID(B35,1,7)=\"http://\",MID(B35,1,8)=\"https://\"),B35&IF(ISNUMBER(FIND(\"?\",B35)),\"&\",\"?\")&\"hmsr=\"&UrlEncode(D35)&\"&hmpl=\"&UrlEncode(F35)&\"&hmcu=\"&UrlEncode(H35)&\"&hmkw=\"&UrlEncode(J35)&\"&hmci=\"&UrlEncode(L35)&\"\",\"http://\"&B35&IF(ISNUMBER(FIND(\"?\",B35)),\"&\",\"?\")&\"hmsr=\"&UrlEncode(D35)&\"&hmpl=\"&UrlEncode(F35)&\"&hmcu=\"&UrlEncode(H35)&\"&hmkw=\"&UrlEncode(J35)&\"&hmci=\"&UrlEncode(L35)&\"\"),\"请填写目标URL与媒体平台\")","v":"请填写目标URL与媒体平台"}]
[32,null,null,null,null,null,null,null,null,null,null,null,null,null,{"$f":"IF(LEN(B36)*LEN(D36),IF(OR(MID(B36,1,7)=\"http://\",MID(B36,1,8)=\"https://\"),B36&IF(ISNUMBER(FIND(\"?\",B36)),\"&\",\"?\")&\"hmsr=\"&UrlEncode(D36)&\"&hmpl=\"&UrlEncode(F36)&\"&hmcu=\"&UrlEncode(H36)&\"&hmkw=\"&UrlEncode(J36)&\"&hmci=\"&UrlEncode(L36)&\"\",\"http://\"&B36&IF(ISNUMBER(FIND(\"?\",B36)),\"&\",\"?\")&\"hmsr=\"&UrlEncode(D36)&\"&hmpl=\"&UrlEncode(F36)&\"&hmcu=\"&UrlEncode(H36)&\"&hmkw=\"&UrlEncode(J36)&\"&hmci=\"&UrlEncode(L36)&\"\"),\"请填写目标URL与媒体平台\")","v":"请填写目标URL与媒体平台"}]
[33,null,null,null,null,null,null,null,null,null,null,null,null,null,{"$f":"IF(LEN(B37)*LEN(D37),IF(OR(MID(B37,1,7)=\"http://\",MID(B37,1,8)=\"https://\"),B37&IF(ISNUMBER(FIND(\"?\",B37)),\"&\",\"?\")&\"hmsr=\"&UrlEncode(D37)&\"&hmpl=\"&UrlEncode(F37)&\"&hmcu=\"&UrlEncode(H37)&\"&hmkw=\"&UrlEncode(J37)&\"&hmci=\"&UrlEncode(L37)&\"\",\"http://\"&B37&IF(ISNUMBER(FIND(\"?\",B37)),\"&\",\"?\")&\"hmsr=\"&UrlEncode(D37)&\"&hmpl=\"&UrlEncode(F37)&\"&hmcu=\"&UrlEncode(H37)&\"&hmkw=\"&UrlEncode(J37)&\"&hmci=\"&UrlEncode(L37)&\"\"),\"请填写目标URL与媒体平台\")","v":"请填写目标URL与媒体平台"}]
[34,null,null,null,null,null,null,null,null,null,null,null,null,null,{"$f":"IF(LEN(B38)*LEN(D38),IF(OR(MID(B38,1,7)=\"http://\",MID(B38,1,8)=\"https://\"),B38&IF(ISNUMBER(FIND(\"?\",B38)),\"&\",\"?\")&\"hmsr=\"&UrlEncode(D38)&\"&hmpl=\"&UrlEncode(F38)&\"&hmcu=\"&UrlEncode(H38)&\"&hmkw=\"&UrlEncode(J38)&\"&hmci=\"&UrlEncode(L38)&\"\",\"http://\"&B38&IF(ISNUMBER(FIND(\"?\",B38)),\"&\",\"?\")&\"hmsr=\"&UrlEncode(D38)&\"&hmpl=\"&UrlEncode(F38)&\"&hmcu=\"&UrlEncode(H38)&\"&hmkw=\"&UrlEncode(J38)&\"&hmci=\"&UrlEncode(L38)&\"\"),\"请填写目标URL与媒体平台\")","v":"请填写目标URL与媒体平台"}]
[35,null,null,null,null,null,null,null,null,null,null,null,null,null,{"$f":"IF(LEN(B39)*LEN(D39),IF(OR(MID(B39,1,7)=\"http://\",MID(B39,1,8)=\"https://\"),B39&IF(ISNUMBER(FIND(\"?\",B39)),\"&\",\"?\")&\"hmsr=\"&UrlEncode(D39)&\"&hmpl=\"&UrlEncode(F39)&\"&hmcu=\"&UrlEncode(H39)&\"&hmkw=\"&UrlEncode(J39)&\"&hmci=\"&UrlEncode(L39)&\"\",\"http://\"&B39&IF(ISNUMBER(FIND(\"?\",B39)),\"&\",\"?\")&\"hmsr=\"&UrlEncode(D39)&\"&hmpl=\"&UrlEncode(F39)&\"&hmcu=\"&UrlEncode(H39)&\"&hmkw=\"&UrlEncode(J39)&\"&hmci=\"&UrlEncode(L39)&\"\"),\"请填写目标URL与媒体平台\")","v":"请填写目标URL与媒体平台"}]
[36,null,null,null,null,null,null,null,null,null,null,null,null,null,{"$f":"IF(LEN(B40)*LEN(D40),IF(OR(MID(B40,1,7)=\"http://\",MID(B40,1,8)=\"https://\"),B40&IF(ISNUMBER(FIND(\"?\",B40)),\"&\",\"?\")&\"hmsr=\"&UrlEncode(D40)&\"&hmpl=\"&UrlEncode(F40)&\"&hmcu=\"&UrlEncode(H40)&\"&hmkw=\"&UrlEncode(J40)&\"&hmci=\"&UrlEncode(L40)&\"\",\"http://\"&B40&IF(ISNUMBER(FIND(\"?\",B40)),\"&\",\"?\")&\"hmsr=\"&UrlEncode(D40)&\"&hmpl=\"&UrlEncode(F40)&\"&hmcu=\"&UrlEncode(H40)&\"&hmkw=\"&UrlEncode(J40)&\"&hmci=\"&UrlEncode(L40)&\"\"),\"请填写目标URL与媒体平台\")","v":"请填写目标URL与媒体平台"}]
[37,null,null,null,null,null,null,null,null,null,null,null,null,null,{"$f":"IF(LEN(B41)*LEN(D41),IF(OR(MID(B41,1,7)=\"http://\",MID(B41,1,8)=\"https://\"),B41&IF(ISNUMBER(FIND(\"?\",B41)),\"&\",\"?\")&\"hmsr=\"&UrlEncode(D41)&\"&hmpl=\"&UrlEncode(F41)&\"&hmcu=\"&UrlEncode(H41)&\"&hmkw=\"&UrlEncode(J41)&\"&hmci=\"&UrlEncode(L41)&\"\",\"http://\"&B41&IF(ISNUMBER(FIND(\"?\",B41)),\"&\",\"?\")&\"hmsr=\"&UrlEncode(D41)&\"&hmpl=\"&UrlEncode(F41)&\"&hmcu=\"&UrlEncode(H41)&\"&hmkw=\"&UrlEncode(J41)&\"&hmci=\"&UrlEncode(L41)&\"\"),\"请填写目标URL与媒体平台\")","v":"请填写目标URL与媒体平台"}]
[38,null,null,null,null,null,null,null,null,null,null,null,null,null,{"$f":"IF(LEN(B42)*LEN(D42),IF(OR(MID(B42,1,7)=\"http://\",MID(B42,1,8)=\"https://\"),B42&IF(ISNUMBER(FIND(\"?\",B42)),\"&\",\"?\")&\"hmsr=\"&UrlEncode(D42)&\"&hmpl=\"&UrlEncode(F42)&\"&hmcu=\"&UrlEncode(H42)&\"&hmkw=\"&UrlEncode(J42)&\"&hmci=\"&UrlEncode(L42)&\"\",\"http://\"&B42&IF(ISNUMBER(FIND(\"?\",B42)),\"&\",\"?\")&\"hmsr=\"&UrlEncode(D42)&\"&hmpl=\"&UrlEncode(F42)&\"&hmcu=\"&UrlEncode(H42)&\"&hmkw=\"&UrlEncode(J42)&\"&hmci=\"&UrlEncode(L42)&\"\"),\"请填写目标URL与媒体平台\")","v":"请填写目标URL与媒体平台"}]
[39,null,null,null,null,null,null,null,null,null,null,null,null,null,{"$f":"IF(LEN(B43)*LEN(D43),IF(OR(MID(B43,1,7)=\"http://\",MID(B43,1,8)=\"https://\"),B43&IF(ISNUMBER(FIND(\"?\",B43)),\"&\",\"?\")&\"hmsr=\"&UrlEncode(D43)&\"&hmpl=\"&UrlEncode(F43)&\"&hmcu=\"&UrlEncode(H43)&\"&hmkw=\"&UrlEncode(J43)&\"&hmci=\"&UrlEncode(L43)&\"\",\"http://\"&B43&IF(ISNUMBER(FIND(\"?\",B43)),\"&\",\"?\")&\"hmsr=\"&UrlEncode(D43)&\"&hmpl=\"&UrlEncode(F43)&\"&hmcu=\"&UrlEncode(H43)&\"&hmkw=\"&UrlEncode(J43)&\"&hmci=\"&UrlEncode(L43)&\"\"),\"请填写目标URL与媒体平台\")","v":"请填写目标URL与媒体平台"}]
[40,null,null,null,null,null,null,null,null,null,null,null,null,null,{"$f":"IF(LEN(B44)*LEN(D44),IF(OR(MID(B44,1,7)=\"http://\",MID(B44,1,8)=\"https://\"),B44&IF(ISNUMBER(FIND(\"?\",B44)),\"&\",\"?\")&\"hmsr=\"&UrlEncode(D44)&\"&hmpl=\"&UrlEncode(F44)&\"&hmcu=\"&UrlEncode(H44)&\"&hmkw=\"&UrlEncode(J44)&\"&hmci=\"&UrlEncode(L44)&\"\",\"http://\"&B44&IF(ISNUMBER(FIND(\"?\",B44)),\"&\",\"?\")&\"hmsr=\"&UrlEncode(D44)&\"&hmpl=\"&UrlEncode(F44)&\"&hmcu=\"&UrlEncode(H44)&\"&hmkw=\"&UrlEncode(J44)&\"&hmci=\"&UrlEncode(L44)&\"\"),\"请填写目标URL与媒体平台\")","v":"请填写目标URL与媒体平台"}]
[41,null,null,null,null,null,null,null,null,null,null,null,null,null,{"$f":"IF(LEN(B45)*LEN(D45),IF(OR(MID(B45,1,7)=\"http://\",MID(B45,1,8)=\"https://\"),B45&IF(ISNUMBER(FIND(\"?\",B45)),\"&\",\"?\")&\"hmsr=\"&UrlEncode(D45)&\"&hmpl=\"&UrlEncode(F45)&\"&hmcu=\"&UrlEncode(H45)&\"&hmkw=\"&UrlEncode(J45)&\"&hmci=\"&UrlEncode(L45)&\"\",\"http://\"&B45&IF(ISNUMBER(FIND(\"?\",B45)),\"&\",\"?\")&\"hmsr=\"&UrlEncode(D45)&\"&hmpl=\"&UrlEncode(F45)&\"&hmcu=\"&UrlEncode(H45)&\"&hmkw=\"&UrlEncode(J45)&\"&hmci=\"&UrlEncode(L45)&\"\"),\"请填写目标URL与媒体平台\")","v":"请填写目标URL与媒体平台"}]
[42,null,null,null,null,null,null,null,null,null,null,null,null,null,{"$f":"IF(LEN(B46)*LEN(D46),IF(OR(MID(B46,1,7)=\"http://\",MID(B46,1,8)=\"https://\"),B46&IF(ISNUMBER(FIND(\"?\",B46)),\"&\",\"?\")&\"hmsr=\"&UrlEncode(D46)&\"&hmpl=\"&UrlEncode(F46)&\"&hmcu=\"&UrlEncode(H46)&\"&hmkw=\"&UrlEncode(J46)&\"&hmci=\"&UrlEncode(L46)&\"\",\"http://\"&B46&IF(ISNUMBER(FIND(\"?\",B46)),\"&\",\"?\")&\"hmsr=\"&UrlEncode(D46)&\"&hmpl=\"&UrlEncode(F46)&\"&hmcu=\"&UrlEncode(H46)&\"&hmkw=\"&UrlEncode(J46)&\"&hmci=\"&UrlEncode(L46)&\"\"),\"请填写目标URL与媒体平台\")","v":"请填写目标URL与媒体平台"}]
[43,null,null,null,null,null,null,null,null,null,null,null,null,null,{"$f":"IF(LEN(B47)*LEN(D47),IF(OR(MID(B47,1,7)=\"http://\",MID(B47,1,8)=\"https://\"),B47&IF(ISNUMBER(FIND(\"?\",B47)),\"&\",\"?\")&\"hmsr=\"&UrlEncode(D47)&\"&hmpl=\"&UrlEncode(F47)&\"&hmcu=\"&UrlEncode(H47)&\"&hmkw=\"&UrlEncode(J47)&\"&hmci=\"&UrlEncode(L47)&\"\",\"http://\"&B47&IF(ISNUMBER(FIND(\"?\",B47)),\"&\",\"?\")&\"hmsr=\"&UrlEncode(D47)&\"&hmpl=\"&UrlEncode(F47)&\"&hmcu=\"&UrlEncode(H47)&\"&hmkw=\"&UrlEncode(J47)&\"&hmci=\"&UrlEncode(L47)&\"\"),\"请填写目标URL与媒体平台\")","v":"请填写目标URL与媒体平台"}]
[44,null,null,null,null,null,null,null,null,null,null,null,null,null,{"$f":"IF(LEN(B48)*LEN(D48),IF(OR(MID(B48,1,7)=\"http://\",MID(B48,1,8)=\"https://\"),B48&IF(ISNUMBER(FIND(\"?\",B48)),\"&\",\"?\")&\"hmsr=\"&UrlEncode(D48)&\"&hmpl=\"&UrlEncode(F48)&\"&hmcu=\"&UrlEncode(H48)&\"&hmkw=\"&UrlEncode(J48)&\"&hmci=\"&UrlEncode(L48)&\"\",\"http://\"&B48&IF(ISNUMBER(FIND(\"?\",B48)),\"&\",\"?\")&\"hmsr=\"&UrlEncode(D48)&\"&hmpl=\"&UrlEncode(F48)&\"&hmcu=\"&UrlEncode(H48)&\"&hmkw=\"&UrlEncode(J48)&\"&hmci=\"&UrlEncode(L48)&\"\"),\"请填写目标URL与媒体平台\")","v":"请填写目标URL与媒体平台"}]
[45,null,null,null,null,null,null,null,null,null,null,null,null,null,{"$f":"IF(LEN(B49)*LEN(D49),IF(OR(MID(B49,1,7)=\"http://\",MID(B49,1,8)=\"https://\"),B49&IF(ISNUMBER(FIND(\"?\",B49)),\"&\",\"?\")&\"hmsr=\"&UrlEncode(D49)&\"&hmpl=\"&UrlEncode(F49)&\"&hmcu=\"&UrlEncode(H49)&\"&hmkw=\"&UrlEncode(J49)&\"&hmci=\"&UrlEncode(L49)&\"\",\"http://\"&B49&IF(ISNUMBER(FIND(\"?\",B49)),\"&\",\"?\")&\"hmsr=\"&UrlEncode(D49)&\"&hmpl=\"&UrlEncode(F49)&\"&hmcu=\"&UrlEncode(H49)&\"&hmkw=\"&UrlEncode(J49)&\"&hmci=\"&UrlEncode(L49)&\"\"),\"请填写目标URL与媒体平台\")","v":"请填写目标URL与媒体平台"}]
[46,null,null,null,null,null,null,null,null,null,null,null,null,null,{"$f":"IF(LEN(B50)*LEN(D50),IF(OR(MID(B50,1,7)=\"http://\",MID(B50,1,8)=\"https://\"),B50&IF(ISNUMBER(FIND(\"?\",B50)),\"&\",\"?\")&\"hmsr=\"&UrlEncode(D50)&\"&hmpl=\"&UrlEncode(F50)&\"&hmcu=\"&UrlEncode(H50)&\"&hmkw=\"&UrlEncode(J50)&\"&hmci=\"&UrlEncode(L50)&\"\",\"http://\"&B50&IF(ISNUMBER(FIND(\"?\",B50)),\"&\",\"?\")&\"hmsr=\"&UrlEncode(D50)&\"&hmpl=\"&UrlEncode(F50)&\"&hmcu=\"&UrlEncode(H50)&\"&hmkw=\"&UrlEncode(J50)&\"&hmci=\"&UrlEncode(L50)&\"\"),\"请填写目标URL与媒体平台\")","v":"请填写目标URL与媒体平台"}]
[47,null,null,null,null,null,null,null,null,null,null,null,null,null,{"$f":"IF(LEN(B51)*LEN(D51),IF(OR(MID(B51,1,7)=\"http://\",MID(B51,1,8)=\"https://\"),B51&IF(ISNUMBER(FIND(\"?\",B51)),\"&\",\"?\")&\"hmsr=\"&UrlEncode(D51)&\"&hmpl=\"&UrlEncode(F51)&\"&hmcu=\"&UrlEncode(H51)&\"&hmkw=\"&UrlEncode(J51)&\"&hmci=\"&UrlEncode(L51)&\"\",\"http://\"&B51&IF(ISNUMBER(FIND(\"?\",B51)),\"&\",\"?\")&\"hmsr=\"&UrlEncode(D51)&\"&hmpl=\"&UrlEncode(F51)&\"&hmcu=\"&UrlEncode(H51)&\"&hmkw=\"&UrlEncode(J51)&\"&hmci=\"&UrlEncode(L51)&\"\"),\"请填写目标URL与媒体平台\")","v":"请填写目标URL与媒体平台"}]
[48,null,null,null,null,null,null,null,null,null,null,null,null,null,{"$f":"IF(LEN(B52)*LEN(D52),IF(OR(MID(B52,1,7)=\"http://\",MID(B52,1,8)=\"https://\"),B52&IF(ISNUMBER(FIND(\"?\",B52)),\"&\",\"?\")&\"hmsr=\"&UrlEncode(D52)&\"&hmpl=\"&UrlEncode(F52)&\"&hmcu=\"&UrlEncode(H52)&\"&hmkw=\"&UrlEncode(J52)&\"&hmci=\"&UrlEncode(L52)&\"\",\"http://\"&B52&IF(ISNUMBER(FIND(\"?\",B52)),\"&\",\"?\")&\"hmsr=\"&UrlEncode(D52)&\"&hmpl=\"&UrlEncode(F52)&\"&hmcu=\"&UrlEncode(H52)&\"&hmkw=\"&UrlEncode(J52)&\"&hmci=\"&UrlEncode(L52)&\"\"),\"请填写目标URL与媒体平台\")","v":"请填写目标URL与媒体平台"}]
[49,null,null,null,null,null,null,null,null,null,null,null,null,null,{"$f":"IF(LEN(B53)*LEN(D53),IF(OR(MID(B53,1,7)=\"http://\",MID(B53,1,8)=\"https://\"),B53&IF(ISNUMBER(FIND(\"?\",B53)),\"&\",\"?\")&\"hmsr=\"&UrlEncode(D53)&\"&hmpl=\"&UrlEncode(F53)&\"&hmcu=\"&UrlEncode(H53)&\"&hmkw=\"&UrlEncode(J53)&\"&hmci=\"&UrlEncode(L53)&\"\",\"http://\"&B53&IF(ISNUMBER(FIND(\"?\",B53)),\"&\",\"?\")&\"hmsr=\"&UrlEncode(D53)&\"&hmpl=\"&UrlEncode(F53)&\"&hmcu=\"&UrlEncode(H53)&\"&hmkw=\"&UrlEncode(J53)&\"&hmci=\"&UrlEncode(L53)&\"\"),\"请填写目标URL与媒体平台\")","v":"请填写目标URL与媒体平台"}]
[50,null,null,null,null,null,null,null,null,null,null,null,null,null,{"$f":"IF(LEN(B54)*LEN(D54),IF(OR(MID(B54,1,7)=\"http://\",MID(B54,1,8)=\"https://\"),B54&IF(ISNUMBER(FIND(\"?\",B54)),\"&\",\"?\")&\"hmsr=\"&UrlEncode(D54)&\"&hmpl=\"&UrlEncode(F54)&\"&hmcu=\"&UrlEncode(H54)&\"&hmkw=\"&UrlEncode(J54)&\"&hmci=\"&UrlEncode(L54)&\"\",\"http://\"&B54&IF(ISNUMBER(FIND(\"?\",B54)),\"&\",\"?\")&\"hmsr=\"&UrlEncode(D54)&\"&hmpl=\"&UrlEncode(F54)&\"&hmcu=\"&UrlEncode(H54)&\"&hmkw=\"&UrlEncode(J54)&\"&hmci=\"&UrlEncode(L54)&\"\"),\"请填写目标URL与媒体平台\")","v":"请填写目标URL与媒体平台"}]
[51,null,null,null,null,null,null,null,null,null,null,null,null,null,{"$f":"IF(LEN(B55)*LEN(D55),IF(OR(MID(B55,1,7)=\"http://\",MID(B55,1,8)=\"https://\"),B55&IF(ISNUMBER(FIND(\"?\",B55)),\"&\",\"?\")&\"hmsr=\"&UrlEncode(D55)&\"&hmpl=\"&UrlEncode(F55)&\"&hmcu=\"&UrlEncode(H55)&\"&hmkw=\"&UrlEncode(J55)&\"&hmci=\"&UrlEncode(L55)&\"\",\"http://\"&B55&IF(ISNUMBER(FIND(\"?\",B55)),\"&\",\"?\")&\"hmsr=\"&UrlEncode(D55)&\"&hmpl=\"&UrlEncode(F55)&\"&hmcu=\"&UrlEncode(H55)&\"&hmkw=\"&UrlEncode(J55)&\"&hmci=\"&UrlEncode(L55)&\"\"),\"请填写目标URL与媒体平台\")","v":"请填写目标URL与媒体平台"}]
[52,null,null,null,null,null,null,null,null,null,null,null,null,null,{"$f":"IF(LEN(B56)*LEN(D56),IF(OR(MID(B56,1,7)=\"http://\",MID(B56,1,8)=\"https://\"),B56&IF(ISNUMBER(FIND(\"?\",B56)),\"&\",\"?\")&\"hmsr=\"&UrlEncode(D56)&\"&hmpl=\"&UrlEncode(F56)&\"&hmcu=\"&UrlEncode(H56)&\"&hmkw=\"&UrlEncode(J56)&\"&hmci=\"&UrlEncode(L56)&\"\",\"http://\"&B56&IF(ISNUMBER(FIND(\"?\",B56)),\"&\",\"?\")&\"hmsr=\"&UrlEncode(D56)&\"&hmpl=\"&UrlEncode(F56)&\"&hmcu=\"&UrlEncode(H56)&\"&hmkw=\"&UrlEncode(J56)&\"&hmci=\"&UrlEncode(L56)&\"\"),\"请填写目标URL与媒体平台\")","v":"请填写目标URL与媒体平台"}]
[53,null,null,null,null,null,null,null,null,null,null,null,null,null,{"$f":"IF(LEN(B57)*LEN(D57),IF(OR(MID(B57,1,7)=\"http://\",MID(B57,1,8)=\"https://\"),B57&IF(ISNUMBER(FIND(\"?\",B57)),\"&\",\"?\")&\"hmsr=\"&UrlEncode(D57)&\"&hmpl=\"&UrlEncode(F57)&\"&hmcu=\"&UrlEncode(H57)&\"&hmkw=\"&UrlEncode(J57)&\"&hmci=\"&UrlEncode(L57)&\"\",\"http://\"&B57&IF(ISNUMBER(FIND(\"?\",B57)),\"&\",\"?\")&\"hmsr=\"&UrlEncode(D57)&\"&hmpl=\"&UrlEncode(F57)&\"&hmcu=\"&UrlEncode(H57)&\"&hmkw=\"&UrlEncode(J57)&\"&hmci=\"&UrlEncode(L57)&\"\"),\"请填写目标URL与媒体平台\")","v":"请填写目标URL与媒体平台"}]
[54,null,null,null,null,null,null,null,null,null,null,null,null,null,{"$f":"IF(LEN(B58)*LEN(D58),IF(OR(MID(B58,1,7)=\"http://\",MID(B58,1,8)=\"https://\"),B58&IF(ISNUMBER(FIND(\"?\",B58)),\"&\",\"?\")&\"hmsr=\"&UrlEncode(D58)&\"&hmpl=\"&UrlEncode(F58)&\"&hmcu=\"&UrlEncode(H58)&\"&hmkw=\"&UrlEncode(J58)&\"&hmci=\"&UrlEncode(L58)&\"\",\"http://\"&B58&IF(ISNUMBER(FIND(\"?\",B58)),\"&\",\"?\")&\"hmsr=\"&UrlEncode(D58)&\"&hmpl=\"&UrlEncode(F58)&\"&hmcu=\"&UrlEncode(H58)&\"&hmkw=\"&UrlEncode(J58)&\"&hmci=\"&UrlEncode(L58)&\"\"),\"请填写目标URL与媒体平台\")","v":"请填写目标URL与媒体平台"}]
[55,null,null,null,null,null,null,null,null,null,null,null,null,null,{"$f":"IF(LEN(B59)*LEN(D59),IF(OR(MID(B59,1,7)=\"http://\",MID(B59,1,8)=\"https://\"),B59&IF(ISNUMBER(FIND(\"?\",B59)),\"&\",\"?\")&\"hmsr=\"&UrlEncode(D59)&\"&hmpl=\"&UrlEncode(F59)&\"&hmcu=\"&UrlEncode(H59)&\"&hmkw=\"&UrlEncode(J59)&\"&hmci=\"&UrlEncode(L59)&\"\",\"http://\"&B59&IF(ISNUMBER(FIND(\"?\",B59)),\"&\",\"?\")&\"hmsr=\"&UrlEncode(D59)&\"&hmpl=\"&UrlEncode(F59)&\"&hmcu=\"&UrlEncode(H59)&\"&hmkw=\"&UrlEncode(J59)&\"&hmci=\"&UrlEncode(L59)&\"\"),\"请填写目标URL与媒体平台\")","v":"请填写目标URL与媒体平台"}]
[56,null,null,null,null,null,null,null,null,null,null,null,null,null,{"$f":"IF(LEN(B60)*LEN(D60),IF(OR(MID(B60,1,7)=\"http://\",MID(B60,1,8)=\"https://\"),B60&IF(ISNUMBER(FIND(\"?\",B60)),\"&\",\"?\")&\"hmsr=\"&UrlEncode(D60)&\"&hmpl=\"&UrlEncode(F60)&\"&hmcu=\"&UrlEncode(H60)&\"&hmkw=\"&UrlEncode(J60)&\"&hmci=\"&UrlEncode(L60)&\"\",\"http://\"&B60&IF(ISNUMBER(FIND(\"?\",B60)),\"&\",\"?\")&\"hmsr=\"&UrlEncode(D60)&\"&hmpl=\"&UrlEncode(F60)&\"&hmcu=\"&UrlEncode(H60)&\"&hmkw=\"&UrlEncode(J60)&\"&hmci=\"&UrlEncode(L60)&\"\"),\"请填写目标URL与媒体平台\")","v":"请填写目标URL与媒体平台"}]
[57,null,null,null,null,null,null,null,null,null,null,null,null,null,{"$f":"IF(LEN(B61)*LEN(D61),IF(OR(MID(B61,1,7)=\"http://\",MID(B61,1,8)=\"https://\"),B61&IF(ISNUMBER(FIND(\"?\",B61)),\"&\",\"?\")&\"hmsr=\"&UrlEncode(D61)&\"&hmpl=\"&UrlEncode(F61)&\"&hmcu=\"&UrlEncode(H61)&\"&hmkw=\"&UrlEncode(J61)&\"&hmci=\"&UrlEncode(L61)&\"\",\"http://\"&B61&IF(ISNUMBER(FIND(\"?\",B61)),\"&\",\"?\")&\"hmsr=\"&UrlEncode(D61)&\"&hmpl=\"&UrlEncode(F61)&\"&hmcu=\"&UrlEncode(H61)&\"&hmkw=\"&UrlEncode(J61)&\"&hmci=\"&UrlEncode(L61)&\"\"),\"请填写目标URL与媒体平台\")","v":"请填写目标URL与媒体平台"}]
[58,null,null,null,null,null,null,null,null,null,null,null,null,null,{"$f":"IF(LEN(B62)*LEN(D62),IF(OR(MID(B62,1,7)=\"http://\",MID(B62,1,8)=\"https://\"),B62&IF(ISNUMBER(FIND(\"?\",B62)),\"&\",\"?\")&\"hmsr=\"&UrlEncode(D62)&\"&hmpl=\"&UrlEncode(F62)&\"&hmcu=\"&UrlEncode(H62)&\"&hmkw=\"&UrlEncode(J62)&\"&hmci=\"&UrlEncode(L62)&\"\",\"http://\"&B62&IF(ISNUMBER(FIND(\"?\",B62)),\"&\",\"?\")&\"hmsr=\"&UrlEncode(D62)&\"&hmpl=\"&UrlEncode(F62)&\"&hmcu=\"&UrlEncode(H62)&\"&hmkw=\"&UrlEncode(J62)&\"&hmci=\"&UrlEncode(L62)&\"\"),\"请填写目标URL与媒体平台\")","v":"请填写目标URL与媒体平台"}]
[59,null,null,null,null,null,null,null,null,null,null,null,null,null,{"$f":"IF(LEN(B63)*LEN(D63),IF(OR(MID(B63,1,7)=\"http://\",MID(B63,1,8)=\"https://\"),B63&IF(ISNUMBER(FIND(\"?\",B63)),\"&\",\"?\")&\"hmsr=\"&UrlEncode(D63)&\"&hmpl=\"&UrlEncode(F63)&\"&hmcu=\"&UrlEncode(H63)&\"&hmkw=\"&UrlEncode(J63)&\"&hmci=\"&UrlEncode(L63)&\"\",\"http://\"&B63&IF(ISNUMBER(FIND(\"?\",B63)),\"&\",\"?\")&\"hmsr=\"&UrlEncode(D63)&\"&hmpl=\"&UrlEncode(F63)&\"&hmcu=\"&UrlEncode(H63)&\"&hmkw=\"&UrlEncode(J63)&\"&hmci=\"&UrlEncode(L63)&\"\"),\"请填写目标URL与媒体平台\")","v":"请填写目标URL与媒体平台"}]
[60,null,null,null,null,null,null,null,null,null,null,null,null,null,{"$f":"IF(LEN(B64)*LEN(D64),IF(OR(MID(B64,1,7)=\"http://\",MID(B64,1,8)=\"https://\"),B64&IF(ISNUMBER(FIND(\"?\",B64)),\"&\",\"?\")&\"hmsr=\"&UrlEncode(D64)&\"&hmpl=\"&UrlEncode(F64)&\"&hmcu=\"&UrlEncode(H64)&\"&hmkw=\"&UrlEncode(J64)&\"&hmci=\"&UrlEncode(L64)&\"\",\"http://\"&B64&IF(ISNUMBER(FIND(\"?\",B64)),\"&\",\"?\")&\"hmsr=\"&UrlEncode(D64)&\"&hmpl=\"&UrlEncode(F64)&\"&hmcu=\"&UrlEncode(H64)&\"&hmkw=\"&UrlEncode(J64)&\"&hmci=\"&UrlEncode(L64)&\"\"),\"请填写目标URL与媒体平台\")","v":"请填写目标URL与媒体平台"}]
[61,null,null,null,null,null,null,null,null,null,null,null,null,null,{"$f":"IF(LEN(B65)*LEN(D65),IF(OR(MID(B65,1,7)=\"http://\",MID(B65,1,8)=\"https://\"),B65&IF(ISNUMBER(FIND(\"?\",B65)),\"&\",\"?\")&\"hmsr=\"&UrlEncode(D65)&\"&hmpl=\"&UrlEncode(F65)&\"&hmcu=\"&UrlEncode(H65)&\"&hmkw=\"&UrlEncode(J65)&\"&hmci=\"&UrlEncode(L65)&\"\",\"http://\"&B65&IF(ISNUMBER(FIND(\"?\",B65)),\"&\",\"?\")&\"hmsr=\"&UrlEncode(D65)&\"&hmpl=\"&UrlEncode(F65)&\"&hmcu=\"&UrlEncode(H65)&\"&hmkw=\"&UrlEncode(J65)&\"&hmci=\"&UrlEncode(L65)&\"\"),\"请填写目标URL与媒体平台\")","v":"请填写目标URL与媒体平台"}]
[62,null,null,null,null,null,null,null,null,null,null,null,null,null,{"$f":"IF(LEN(B66)*LEN(D66),IF(OR(MID(B66,1,7)=\"http://\",MID(B66,1,8)=\"https://\"),B66&IF(ISNUMBER(FIND(\"?\",B66)),\"&\",\"?\")&\"hmsr=\"&UrlEncode(D66)&\"&hmpl=\"&UrlEncode(F66)&\"&hmcu=\"&UrlEncode(H66)&\"&hmkw=\"&UrlEncode(J66)&\"&hmci=\"&UrlEncode(L66)&\"\",\"http://\"&B66&IF(ISNUMBER(FIND(\"?\",B66)),\"&\",\"?\")&\"hmsr=\"&UrlEncode(D66)&\"&hmpl=\"&UrlEncode(F66)&\"&hmcu=\"&UrlEncode(H66)&\"&hmkw=\"&UrlEncode(J66)&\"&hmci=\"&UrlEncode(L66)&\"\"),\"请填写目标URL与媒体平台\")","v":"请填写目标URL与媒体平台"}]
[63,null,null,null,null,null,null,null,null,null,null,null,null,null,{"$f":"IF(LEN(B67)*LEN(D67),IF(OR(MID(B67,1,7)=\"http://\",MID(B67,1,8)=\"https://\"),B67&IF(ISNUMBER(FIND(\"?\",B67)),\"&\",\"?\")&\"hmsr=\"&UrlEncode(D67)&\"&hmpl=\"&UrlEncode(F67)&\"&hmcu=\"&UrlEncode(H67)&\"&hmkw=\"&UrlEncode(J67)&\"&hmci=\"&UrlEncode(L67)&\"\",\"http://\"&B67&IF(ISNUMBER(FIND(\"?\",B67)),\"&\",\"?\")&\"hmsr=\"&UrlEncode(D67)&\"&hmpl=\"&UrlEncode(F67)&\"&hmcu=\"&UrlEncode(H67)&\"&hmkw=\"&UrlEncode(J67)&\"&hmci=\"&UrlEncode(L67)&\"\"),\"请填写目标URL与媒体平台\")","v":"请填写目标URL与媒体平台"}]
[64,null,null,null,null,null,null,null,null,null,null,null,null,null,{"$f":"IF(LEN(B68)*LEN(D68),IF(OR(MID(B68,1,7)=\"http://\",MID(B68,1,8)=\"https://\"),B68&IF(ISNUMBER(FIND(\"?\",B68)),\"&\",\"?\")&\"hmsr=\"&UrlEncode(D68)&\"&hmpl=\"&UrlEncode(F68)&\"&hmcu=\"&UrlEncode(H68)&\"&hmkw=\"&UrlEncode(J68)&\"&hmci=\"&UrlEncode(L68)&\"\",\"http://\"&B68&IF(ISNUMBER(FIND(\"?\",B68)),\"&\",\"?\")&\"hmsr=\"&UrlEncode(D68)&\"&hmpl=\"&UrlEncode(F68)&\"&hmcu=\"&UrlEncode(H68)&\"&hmkw=\"&UrlEncode(J68)&\"&hmci=\"&UrlEncode(L68)&\"\"),\"请填写目标URL与媒体平台\")","v":"请填写目标URL与媒体平台"}]
[65,null,null,null,null,null,null,null,null,null,null,null,null,null,{"$f":"IF(LEN(B69)*LEN(D69),IF(OR(MID(B69,1,7)=\"http://\",MID(B69,1,8)=\"https://\"),B69&IF(ISNUMBER(FIND(\"?\",B69)),\"&\",\"?\")&\"hmsr=\"&UrlEncode(D69)&\"&hmpl=\"&UrlEncode(F69)&\"&hmcu=\"&UrlEncode(H69)&\"&hmkw=\"&UrlEncode(J69)&\"&hmci=\"&UrlEncode(L69)&\"\",\"http://\"&B69&IF(ISNUMBER(FIND(\"?\",B69)),\"&\",\"?\")&\"hmsr=\"&UrlEncode(D69)&\"&hmpl=\"&UrlEncode(F69)&\"&hmcu=\"&UrlEncode(H69)&\"&hmkw=\"&UrlEncode(J69)&\"&hmci=\"&UrlEncode(L69)&\"\"),\"请填写目标URL与媒体平台\")","v":"请填写目标URL与媒体平台"}]
[66,null,null,null,null,null,null,null,null,null,null,null,null,null,{"$f":"IF(LEN(B70)*LEN(D70),IF(OR(MID(B70,1,7)=\"http://\",MID(B70,1,8)=\"https://\"),B70&IF(ISNUMBER(FIND(\"?\",B70)),\"&\",\"?\")&\"hmsr=\"&UrlEncode(D70)&\"&hmpl=\"&UrlEncode(F70)&\"&hmcu=\"&UrlEncode(H70)&\"&hmkw=\"&UrlEncode(J70)&\"&hmci=\"&UrlEncode(L70)&\"\",\"http://\"&B70&IF(ISNUMBER(FIND(\"?\",B70)),\"&\",\"?\")&\"hmsr=\"&UrlEncode(D70)&\"&hmpl=\"&UrlEncode(F70)&\"&hmcu=\"&UrlEncode(H70)&\"&hmkw=\"&UrlEncode(J70)&\"&hmci=\"&UrlEncode(L70)&\"\"),\"请填写目标URL与媒体平台\")","v":"请填写目标URL与媒体平台"}]
[67,null,null,null,null,null,null,null,null,null,null,null,null,null,{"$f":"IF(LEN(B71)*LEN(D71),IF(OR(MID(B71,1,7)=\"http://\",MID(B71,1,8)=\"https://\"),B71&IF(ISNUMBER(FIND(\"?\",B71)),\"&\",\"?\")&\"hmsr=\"&UrlEncode(D71)&\"&hmpl=\"&UrlEncode(F71)&\"&hmcu=\"&UrlEncode(H71)&\"&hmkw=\"&UrlEncode(J71)&\"&hmci=\"&UrlEncode(L71)&\"\",\"http://\"&B71&IF(ISNUMBER(FIND(\"?\",B71)),\"&\",\"?\")&\"hmsr=\"&UrlEncode(D71)&\"&hmpl=\"&UrlEncode(F71)&\"&hmcu=\"&UrlEncode(H71)&\"&hmkw=\"&UrlEncode(J71)&\"&hmci=\"&UrlEncode(L71)&\"\"),\"请填写目标URL与媒体平台\")","v":"请填写目标URL与媒体平台"}]
[68,null,null,null,null,null,null,null,null,null,null,null,null,null,{"$f":"IF(LEN(B72)*LEN(D72),IF(OR(MID(B72,1,7)=\"http://\",MID(B72,1,8)=\"https://\"),B72&IF(ISNUMBER(FIND(\"?\",B72)),\"&\",\"?\")&\"hmsr=\"&UrlEncode(D72)&\"&hmpl=\"&UrlEncode(F72)&\"&hmcu=\"&UrlEncode(H72)&\"&hmkw=\"&UrlEncode(J72)&\"&hmci=\"&UrlEncode(L72)&\"\",\"http://\"&B72&IF(ISNUMBER(FIND(\"?\",B72)),\"&\",\"?\")&\"hmsr=\"&UrlEncode(D72)&\"&hmpl=\"&UrlEncode(F72)&\"&hmcu=\"&UrlEncode(H72)&\"&hmkw=\"&UrlEncode(J72)&\"&hmci=\"&UrlEncode(L72)&\"\"),\"请填写目标URL与媒体平台\")","v":"请填写目标URL与媒体平台"}]
[69,null,null,null,null,null,null,null,null,null,null,null,null,null,{"$f":"IF(LEN(B73)*LEN(D73),IF(OR(MID(B73,1,7)=\"http://\",MID(B73,1,8)=\"https://\"),B73&IF(ISNUMBER(FIND(\"?\",B73)),\"&\",\"?\")&\"hmsr=\"&UrlEncode(D73)&\"&hmpl=\"&UrlEncode(F73)&\"&hmcu=\"&UrlEncode(H73)&\"&hmkw=\"&UrlEncode(J73)&\"&hmci=\"&UrlEncode(L73)&\"\",\"http://\"&B73&IF(ISNUMBER(FIND(\"?\",B73)),\"&\",\"?\")&\"hmsr=\"&UrlEncode(D73)&\"&hmpl=\"&UrlEncode(F73)&\"&hmcu=\"&UrlEncode(H73)&\"&hmkw=\"&UrlEncode(J73)&\"&hmci=\"&UrlEncode(L73)&\"\"),\"请填写目标URL与媒体平台\")","v":"请填写目标URL与媒体平台"}]
[70,null,null,null,null,null,null,null,null,null,null,null,null,null,{"$f":"IF(LEN(B74)*LEN(D74),IF(OR(MID(B74,1,7)=\"http://\",MID(B74,1,8)=\"https://\"),B74&IF(ISNUMBER(FIND(\"?\",B74)),\"&\",\"?\")&\"hmsr=\"&UrlEncode(D74)&\"&hmpl=\"&UrlEncode(F74)&\"&hmcu=\"&UrlEncode(H74)&\"&hmkw=\"&UrlEncode(J74)&\"&hmci=\"&UrlEncode(L74)&\"\",\"http://\"&B74&IF(ISNUMBER(FIND(\"?\",B74)),\"&\",\"?\")&\"hmsr=\"&UrlEncode(D74)&\"&hmpl=\"&UrlEncode(F74)&\"&hmcu=\"&UrlEncode(H74)&\"&hmkw=\"&UrlEncode(J74)&\"&hmci=\"&UrlEncode(L74)&\"\"),\"请填写目标URL与媒体平台\")","v":"请填写目标URL与媒体平台"}]
[71,null,null,null,null,null,null,null,null,null,null,null,null,null,{"$f":"IF(LEN(B75)*LEN(D75),IF(OR(MID(B75,1,7)=\"http://\",MID(B75,1,8)=\"https://\"),B75&IF(ISNUMBER(FIND(\"?\",B75)),\"&\",\"?\")&\"hmsr=\"&UrlEncode(D75)&\"&hmpl=\"&UrlEncode(F75)&\"&hmcu=\"&UrlEncode(H75)&\"&hmkw=\"&UrlEncode(J75)&\"&hmci=\"&UrlEncode(L75)&\"\",\"http://\"&B75&IF(ISNUMBER(FIND(\"?\",B75)),\"&\",\"?\")&\"hmsr=\"&UrlEncode(D75)&\"&hmpl=\"&UrlEncode(F75)&\"&hmcu=\"&UrlEncode(H75)&\"&hmkw=\"&UrlEncode(J75)&\"&hmci=\"&UrlEncode(L75)&\"\"),\"请填写目标URL与媒体平台\")","v":"请填写目标URL与媒体平台"}]
[72,null,null,null,null,null,null,null,null,null,null,null,null,null,{"$f":"IF(LEN(B76)*LEN(D76),IF(OR(MID(B76,1,7)=\"http://\",MID(B76,1,8)=\"https://\"),B76&IF(ISNUMBER(FIND(\"?\",B76)),\"&\",\"?\")&\"hmsr=\"&UrlEncode(D76)&\"&hmpl=\"&UrlEncode(F76)&\"&hmcu=\"&UrlEncode(H76)&\"&hmkw=\"&UrlEncode(J76)&\"&hmci=\"&UrlEncode(L76)&\"\",\"http://\"&B76&IF(ISNUMBER(FIND(\"?\",B76)),\"&\",\"?\")&\"hmsr=\"&UrlEncode(D76)&\"&hmpl=\"&UrlEncode(F76)&\"&hmcu=\"&UrlEncode(H76)&\"&hmkw=\"&UrlEncode(J76)&\"&hmci=\"&UrlEncode(L76)&\"\"),\"请填写目标URL与媒体平台\")","v":"请填写目标URL与媒体平台"}]
[73,null,null,null,null,null,null,null,null,null,null,null,null,null,{"$f":"IF(LEN(B77)*LEN(D77),IF(OR(MID(B77,1,7)=\"http://\",MID(B77,1,8)=\"https://\"),B77&IF(ISNUMBER(FIND(\"?\",B77)),\"&\",\"?\")&\"hmsr=\"&UrlEncode(D77)&\"&hmpl=\"&UrlEncode(F77)&\"&hmcu=\"&UrlEncode(H77)&\"&hmkw=\"&UrlEncode(J77)&\"&hmci=\"&UrlEncode(L77)&\"\",\"http://\"&B77&IF(ISNUMBER(FIND(\"?\",B77)),\"&\",\"?\")&\"hmsr=\"&UrlEncode(D77)&\"&hmpl=\"&UrlEncode(F77)&\"&hmcu=\"&UrlEncode(H77)&\"&hmkw=\"&UrlEncode(J77)&\"&hmci=\"&UrlEncode(L77)&\"\"),\"请填写目标URL与媒体平台\")","v":"请填写目标URL与媒体平台"}]
[74,null,null,null,null,null,null,null,null,null,null,null,null,null,{"$f":"IF(LEN(B78)*LEN(D78),IF(OR(MID(B78,1,7)=\"http://\",MID(B78,1,8)=\"https://\"),B78&IF(ISNUMBER(FIND(\"?\",B78)),\"&\",\"?\")&\"hmsr=\"&UrlEncode(D78)&\"&hmpl=\"&UrlEncode(F78)&\"&hmcu=\"&UrlEncode(H78)&\"&hmkw=\"&UrlEncode(J78)&\"&hmci=\"&UrlEncode(L78)&\"\",\"http://\"&B78&IF(ISNUMBER(FIND(\"?\",B78)),\"&\",\"?\")&\"hmsr=\"&UrlEncode(D78)&\"&hmpl=\"&UrlEncode(F78)&\"&hmcu=\"&UrlEncode(H78)&\"&hmkw=\"&UrlEncode(J78)&\"&hmci=\"&UrlEncode(L78)&\"\"),\"请填写目标URL与媒体平台\")","v":"请填写目标URL与媒体平台"}]
[75,null,null,null,null,null,null,null,null,null,null,null,null,null,{"$f":"IF(LEN(B79)*LEN(D79),IF(OR(MID(B79,1,7)=\"http://\",MID(B79,1,8)=\"https://\"),B79&IF(ISNUMBER(FIND(\"?\",B79)),\"&\",\"?\")&\"hmsr=\"&UrlEncode(D79)&\"&hmpl=\"&UrlEncode(F79)&\"&hmcu=\"&UrlEncode(H79)&\"&hmkw=\"&UrlEncode(J79)&\"&hmci=\"&UrlEncode(L79)&\"\",\"http://\"&B79&IF(ISNUMBER(FIND(\"?\",B79)),\"&\",\"?\")&\"hmsr=\"&UrlEncode(D79)&\"&hmpl=\"&UrlEncode(F79)&\"&hmcu=\"&UrlEncode(H79)&\"&hmkw=\"&UrlEncode(J79)&\"&hmci=\"&UrlEncode(L79)&\"\"),\"请填写目标URL与媒体平台\")","v":"请填写目标URL与媒体平台"}]
[76,null,null,null,null,null,null,null,null,null,null,null,null,null,{"$f":"IF(LEN(B80)*LEN(D80),IF(OR(MID(B80,1,7)=\"http://\",MID(B80,1,8)=\"https://\"),B80&IF(ISNUMBER(FIND(\"?\",B80)),\"&\",\"?\")&\"hmsr=\"&UrlEncode(D80)&\"&hmpl=\"&UrlEncode(F80)&\"&hmcu=\"&UrlEncode(H80)&\"&hmkw=\"&UrlEncode(J80)&\"&hmci=\"&UrlEncode(L80)&\"\",\"http://\"&B80&IF(ISNUMBER(FIND(\"?\",B80)),\"&\",\"?\")&\"hmsr=\"&UrlEncode(D80)&\"&hmpl=\"&UrlEncode(F80)&\"&hmcu=\"&UrlEncode(H80)&\"&hmkw=\"&UrlEncode(J80)&\"&hmci=\"&UrlEncode(L80)&\"\"),\"请填写目标URL与媒体平台\")","v":"请填写目标URL与媒体平台"}]
[77,null,null,null,null,null,null,null,null,null,null,null,null,null,{"$f":"IF(LEN(B81)*LEN(D81),IF(OR(MID(B81,1,7)=\"http://\",MID(B81,1,8)=\"https://\"),B81&IF(ISNUMBER(FIND(\"?\",B81)),\"&\",\"?\")&\"hmsr=\"&UrlEncode(D81)&\"&hmpl=\"&UrlEncode(F81)&\"&hmcu=\"&UrlEncode(H81)&\"&hmkw=\"&UrlEncode(J81)&\"&hmci=\"&UrlEncode(L81)&\"\",\"http://\"&B81&IF(ISNUMBER(FIND(\"?\",B81)),\"&\",\"?\")&\"hmsr=\"&UrlEncode(D81)&\"&hmpl=\"&UrlEncode(F81)&\"&hmcu=\"&UrlEncode(H81)&\"&hmkw=\"&UrlEncode(J81)&\"&hmci=\"&UrlEncode(L81)&\"\"),\"请填写目标URL与媒体平台\")","v":"请填写目标URL与媒体平台"}]
[78,null,null,null,null,null,null,null,null,null,null,null,null,null,{"$f":"IF(LEN(B82)*LEN(D82),IF(OR(MID(B82,1,7)=\"http://\",MID(B82,1,8)=\"https://\"),B82&IF(ISNUMBER(FIND(\"?\",B82)),\"&\",\"?\")&\"hmsr=\"&UrlEncode(D82)&\"&hmpl=\"&UrlEncode(F82)&\"&hmcu=\"&UrlEncode(H82)&\"&hmkw=\"&UrlEncode(J82)&\"&hmci=\"&UrlEncode(L82)&\"\",\"http://\"&B82&IF(ISNUMBER(FIND(\"?\",B82)),\"&\",\"?\")&\"hmsr=\"&UrlEncode(D82)&\"&hmpl=\"&UrlEncode(F82)&\"&hmcu=\"&UrlEncode(H82)&\"&hmkw=\"&UrlEncode(J82)&\"&hmci=\"&UrlEncode(L82)&\"\"),\"请填写目标URL与媒体平台\")","v":"请填写目标URL与媒体平台"}]
[79,null,null,null,null,null,null,null,null,null,null,null,null,null,{"$f":"IF(LEN(B83)*LEN(D83),IF(OR(MID(B83,1,7)=\"http://\",MID(B83,1,8)=\"https://\"),B83&IF(ISNUMBER(FIND(\"?\",B83)),\"&\",\"?\")&\"hmsr=\"&UrlEncode(D83)&\"&hmpl=\"&UrlEncode(F83)&\"&hmcu=\"&UrlEncode(H83)&\"&hmkw=\"&UrlEncode(J83)&\"&hmci=\"&UrlEncode(L83)&\"\",\"http://\"&B83&IF(ISNUMBER(FIND(\"?\",B83)),\"&\",\"?\")&\"hmsr=\"&UrlEncode(D83)&\"&hmpl=\"&UrlEncode(F83)&\"&hmcu=\"&UrlEncode(H83)&\"&hmkw=\"&UrlEncode(J83)&\"&hmci=\"&UrlEncode(L83)&\"\"),\"请填写目标URL与媒体平台\")","v":"请填写目标URL与媒体平台"}]
[80,null,null,null,null,null,null,null,null,null,null,null,null,null,{"$f":"IF(LEN(B84)*LEN(D84),IF(OR(MID(B84,1,7)=\"http://\",MID(B84,1,8)=\"https://\"),B84&IF(ISNUMBER(FIND(\"?\",B84)),\"&\",\"?\")&\"hmsr=\"&UrlEncode(D84)&\"&hmpl=\"&UrlEncode(F84)&\"&hmcu=\"&UrlEncode(H84)&\"&hmkw=\"&UrlEncode(J84)&\"&hmci=\"&UrlEncode(L84)&\"\",\"http://\"&B84&IF(ISNUMBER(FIND(\"?\",B84)),\"&\",\"?\")&\"hmsr=\"&UrlEncode(D84)&\"&hmpl=\"&UrlEncode(F84)&\"&hmcu=\"&UrlEncode(H84)&\"&hmkw=\"&UrlEncode(J84)&\"&hmci=\"&UrlEncode(L84)&\"\"),\"请填写目标URL与媒体平台\")","v":"请填写目标URL与媒体平台"}]
[81,null,null,null,null,null,null,null,null,null,null,null,null,null,{"$f":"IF(LEN(B85)*LEN(D85),IF(OR(MID(B85,1,7)=\"http://\",MID(B85,1,8)=\"https://\"),B85&IF(ISNUMBER(FIND(\"?\",B85)),\"&\",\"?\")&\"hmsr=\"&UrlEncode(D85)&\"&hmpl=\"&UrlEncode(F85)&\"&hmcu=\"&UrlEncode(H85)&\"&hmkw=\"&UrlEncode(J85)&\"&hmci=\"&UrlEncode(L85)&\"\",\"http://\"&B85&IF(ISNUMBER(FIND(\"?\",B85)),\"&\",\"?\")&\"hmsr=\"&UrlEncode(D85)&\"&hmpl=\"&UrlEncode(F85)&\"&hmcu=\"&UrlEncode(H85)&\"&hmkw=\"&UrlEncode(J85)&\"&hmci=\"&UrlEncode(L85)&\"\"),\"请填写目标URL与媒体平台\")","v":"请填写目标URL与媒体平台"}]
[82,null,null,null,null,null,null,null,null,null,null,null,null,null,{"$f":"IF(LEN(B86)*LEN(D86),IF(OR(MID(B86,1,7)=\"http://\",MID(B86,1,8)=\"https://\"),B86&IF(ISNUMBER(FIND(\"?\",B86)),\"&\",\"?\")&\"hmsr=\"&UrlEncode(D86)&\"&hmpl=\"&UrlEncode(F86)&\"&hmcu=\"&UrlEncode(H86)&\"&hmkw=\"&UrlEncode(J86)&\"&hmci=\"&UrlEncode(L86)&\"\",\"http://\"&B86&IF(ISNUMBER(FIND(\"?\",B86)),\"&\",\"?\")&\"hmsr=\"&UrlEncode(D86)&\"&hmpl=\"&UrlEncode(F86)&\"&hmcu=\"&UrlEncode(H86)&\"&hmkw=\"&UrlEncode(J86)&\"&hmci=\"&UrlEncode(L86)&\"\"),\"请填写目标URL与媒体平台\")","v":"请填写目标URL与媒体平台"}]
[83,null,null,null,null,null,null,null,null,null,null,null,null,null,{"$f":"IF(LEN(B87)*LEN(D87),IF(OR(MID(B87,1,7)=\"http://\",MID(B87,1,8)=\"https://\"),B87&IF(ISNUMBER(FIND(\"?\",B87)),\"&\",\"?\")&\"hmsr=\"&UrlEncode(D87)&\"&hmpl=\"&UrlEncode(F87)&\"&hmcu=\"&UrlEncode(H87)&\"&hmkw=\"&UrlEncode(J87)&\"&hmci=\"&UrlEncode(L87)&\"\",\"http://\"&B87&IF(ISNUMBER(FIND(\"?\",B87)),\"&\",\"?\")&\"hmsr=\"&UrlEncode(D87)&\"&hmpl=\"&UrlEncode(F87)&\"&hmcu=\"&UrlEncode(H87)&\"&hmkw=\"&UrlEncode(J87)&\"&hmci=\"&UrlEncode(L87)&\"\"),\"请填写目标URL与媒体平台\")","v":"请填写目标URL与媒体平台"}]
[84,null,null,null,null,null,null,null,null,null,null,null,null,null,{"$f":"IF(LEN(B88)*LEN(D88),IF(OR(MID(B88,1,7)=\"http://\",MID(B88,1,8)=\"https://\"),B88&IF(ISNUMBER(FIND(\"?\",B88)),\"&\",\"?\")&\"hmsr=\"&UrlEncode(D88)&\"&hmpl=\"&UrlEncode(F88)&\"&hmcu=\"&UrlEncode(H88)&\"&hmkw=\"&UrlEncode(J88)&\"&hmci=\"&UrlEncode(L88)&\"\",\"http://\"&B88&IF(ISNUMBER(FIND(\"?\",B88)),\"&\",\"?\")&\"hmsr=\"&UrlEncode(D88)&\"&hmpl=\"&UrlEncode(F88)&\"&hmcu=\"&UrlEncode(H88)&\"&hmkw=\"&UrlEncode(J88)&\"&hmci=\"&UrlEncode(L88)&\"\"),\"请填写目标URL与媒体平台\")","v":"请填写目标URL与媒体平台"}]
[85,null,null,null,null,null,null,null,null,null,null,null,null,null,{"$f":"IF(LEN(B89)*LEN(D89),IF(OR(MID(B89,1,7)=\"http://\",MID(B89,1,8)=\"https://\"),B89&IF(ISNUMBER(FIND(\"?\",B89)),\"&\",\"?\")&\"hmsr=\"&UrlEncode(D89)&\"&hmpl=\"&UrlEncode(F89)&\"&hmcu=\"&UrlEncode(H89)&\"&hmkw=\"&UrlEncode(J89)&\"&hmci=\"&UrlEncode(L89)&\"\",\"http://\"&B89&IF(ISNUMBER(FIND(\"?\",B89)),\"&\",\"?\")&\"hmsr=\"&UrlEncode(D89)&\"&hmpl=\"&UrlEncode(F89)&\"&hmcu=\"&UrlEncode(H89)&\"&hmkw=\"&UrlEncode(J89)&\"&hmci=\"&UrlEncode(L89)&\"\"),\"请填写目标URL与媒体平台\")","v":"请填写目标URL与媒体平台"}]
[86,null,null,null,null,null,null,null,null,null,null,null,null,null,{"$f":"IF(LEN(B90)*LEN(D90),IF(OR(MID(B90,1,7)=\"http://\",MID(B90,1,8)=\"https://\"),B90&IF(ISNUMBER(FIND(\"?\",B90)),\"&\",\"?\")&\"hmsr=\"&UrlEncode(D90)&\"&hmpl=\"&UrlEncode(F90)&\"&hmcu=\"&UrlEncode(H90)&\"&hmkw=\"&UrlEncode(J90)&\"&hmci=\"&UrlEncode(L90)&\"\",\"http://\"&B90&IF(ISNUMBER(FIND(\"?\",B90)),\"&\",\"?\")&\"hmsr=\"&UrlEncode(D90)&\"&hmpl=\"&UrlEncode(F90)&\"&hmcu=\"&UrlEncode(H90)&\"&hmkw=\"&UrlEncode(J90)&\"&hmci=\"&UrlEncode(L90)&\"\"),\"请填写目标URL与媒体平台\")","v":"请填写目标URL与媒体平台"}]
[87,null,null,null,null,null,null,null,null,null,null,null,null,null,{"$f":"IF(LEN(B91)*LEN(D91),IF(OR(MID(B91,1,7)=\"http://\",MID(B91,1,8)=\"https://\"),B91&IF(ISNUMBER(FIND(\"?\",B91)),\"&\",\"?\")&\"hmsr=\"&UrlEncode(D91)&\"&hmpl=\"&UrlEncode(F91)&\"&hmcu=\"&UrlEncode(H91)&\"&hmkw=\"&UrlEncode(J91)&\"&hmci=\"&UrlEncode(L91)&\"\",\"http://\"&B91&IF(ISNUMBER(FIND(\"?\",B91)),\"&\",\"?\")&\"hmsr=\"&UrlEncode(D91)&\"&hmpl=\"&UrlEncode(F91)&\"&hmcu=\"&UrlEncode(H91)&\"&hmkw=\"&UrlEncode(J91)&\"&hmci=\"&UrlEncode(L91)&\"\"),\"请填写目标URL与媒体平台\")","v":"请填写目标URL与媒体平台"}]
[88,null,null,null,null,null,null,null,null,null,null,null,null,null,{"$f":"IF(LEN(B92)*LEN(D92),IF(OR(MID(B92,1,7)=\"http://\",MID(B92,1,8)=\"https://\"),B92&IF(ISNUMBER(FIND(\"?\",B92)),\"&\",\"?\")&\"hmsr=\"&UrlEncode(D92)&\"&hmpl=\"&UrlEncode(F92)&\"&hmcu=\"&UrlEncode(H92)&\"&hmkw=\"&UrlEncode(J92)&\"&hmci=\"&UrlEncode(L92)&\"\",\"http://\"&B92&IF(ISNUMBER(FIND(\"?\",B92)),\"&\",\"?\")&\"hmsr=\"&UrlEncode(D92)&\"&hmpl=\"&UrlEncode(F92)&\"&hmcu=\"&UrlEncode(H92)&\"&hmkw=\"&UrlEncode(J92)&\"&hmci=\"&UrlEncode(L92)&\"\"),\"请填写目标URL与媒体平台\")","v":"请填写目标URL与媒体平台"}]
[89,null,null,null,null,null,null,null,null,null,null,null,null,null,{"$f":"IF(LEN(B93)*LEN(D93),IF(OR(MID(B93,1,7)=\"http://\",MID(B93,1,8)=\"https://\"),B93&IF(ISNUMBER(FIND(\"?\",B93)),\"&\",\"?\")&\"hmsr=\"&UrlEncode(D93)&\"&hmpl=\"&UrlEncode(F93)&\"&hmcu=\"&UrlEncode(H93)&\"&hmkw=\"&UrlEncode(J93)&\"&hmci=\"&UrlEncode(L93)&\"\",\"http://\"&B93&IF(ISNUMBER(FIND(\"?\",B93)),\"&\",\"?\")&\"hmsr=\"&UrlEncode(D93)&\"&hmpl=\"&UrlEncode(F93)&\"&hmcu=\"&UrlEncode(H93)&\"&hmkw=\"&UrlEncode(J93)&\"&hmci=\"&UrlEncode(L93)&\"\"),\"请填写目标URL与媒体平台\")","v":"请填写目标URL与媒体平台"}]
[90,null,null,null,null,null,null,null,null,null,null,null,null,null,{"$f":"IF(LEN(B94)*LEN(D94),IF(OR(MID(B94,1,7)=\"http://\",MID(B94,1,8)=\"https://\"),B94&IF(ISNUMBER(FIND(\"?\",B94)),\"&\",\"?\")&\"hmsr=\"&UrlEncode(D94)&\"&hmpl=\"&UrlEncode(F94)&\"&hmcu=\"&UrlEncode(H94)&\"&hmkw=\"&UrlEncode(J94)&\"&hmci=\"&UrlEncode(L94)&\"\",\"http://\"&B94&IF(ISNUMBER(FIND(\"?\",B94)),\"&\",\"?\")&\"hmsr=\"&UrlEncode(D94)&\"&hmpl=\"&UrlEncode(F94)&\"&hmcu=\"&UrlEncode(H94)&\"&hmkw=\"&UrlEncode(J94)&\"&hmci=\"&UrlEncode(L94)&\"\"),\"请填写目标URL与媒体平台\")","v":"请填写目标URL与媒体平台"}]
[91,null,null,null,null,null,null,null,null,null,null,null,null,null,{"$f":"IF(LEN(B95)*LEN(D95),IF(OR(MID(B95,1,7)=\"http://\",MID(B95,1,8)=\"https://\"),B95&IF(ISNUMBER(FIND(\"?\",B95)),\"&\",\"?\")&\"hmsr=\"&UrlEncode(D95)&\"&hmpl=\"&UrlEncode(F95)&\"&hmcu=\"&UrlEncode(H95)&\"&hmkw=\"&UrlEncode(J95)&\"&hmci=\"&UrlEncode(L95)&\"\",\"http://\"&B95&IF(ISNUMBER(FIND(\"?\",B95)),\"&\",\"?\")&\"hmsr=\"&UrlEncode(D95)&\"&hmpl=\"&UrlEncode(F95)&\"&hmcu=\"&UrlEncode(H95)&\"&hmkw=\"&UrlEncode(J95)&\"&hmci=\"&UrlEncode(L95)&\"\"),\"请填写目标URL与媒体平台\")","v":"请填写目标URL与媒体平台"}]
[92,null,null,null,null,null,null,null,null,null,null,null,null,null,{"$f":"IF(LEN(B96)*LEN(D96),IF(OR(MID(B96,1,7)=\"http://\",MID(B96,1,8)=\"https://\"),B96&IF(ISNUMBER(FIND(\"?\",B96)),\"&\",\"?\")&\"hmsr=\"&UrlEncode(D96)&\"&hmpl=\"&UrlEncode(F96)&\"&hmcu=\"&UrlEncode(H96)&\"&hmkw=\"&UrlEncode(J96)&\"&hmci=\"&UrlEncode(L96)&\"\",\"http://\"&B96&IF(ISNUMBER(FIND(\"?\",B96)),\"&\",\"?\")&\"hmsr=\"&UrlEncode(D96)&\"&hmpl=\"&UrlEncode(F96)&\"&hmcu=\"&UrlEncode(H96)&\"&hmkw=\"&UrlEncode(J96)&\"&hmci=\"&UrlEncode(L96)&\"\"),\"请填写目标URL与媒体平台\")","v":"请填写目标URL与媒体平台"}]
[93,null,null,null,null,null,null,null,null,null,null,null,null,null,{"$f":"IF(LEN(B97)*LEN(D97),IF(OR(MID(B97,1,7)=\"http://\",MID(B97,1,8)=\"https://\"),B97&IF(ISNUMBER(FIND(\"?\",B97)),\"&\",\"?\")&\"hmsr=\"&UrlEncode(D97)&\"&hmpl=\"&UrlEncode(F97)&\"&hmcu=\"&UrlEncode(H97)&\"&hmkw=\"&UrlEncode(J97)&\"&hmci=\"&UrlEncode(L97)&\"\",\"http://\"&B97&IF(ISNUMBER(FIND(\"?\",B97)),\"&\",\"?\")&\"hmsr=\"&UrlEncode(D97)&\"&hmpl=\"&UrlEncode(F97)&\"&hmcu=\"&UrlEncode(H97)&\"&hmkw=\"&UrlEncode(J97)&\"&hmci=\"&UrlEncode(L97)&\"\"),\"请填写目标URL与媒体平台\")","v":"请填写目标URL与媒体平台"}]
[94,null,null,null,null,null,null,null,null,null,null,null,null,null,{"$f":"IF(LEN(B98)*LEN(D98),IF(OR(MID(B98,1,7)=\"http://\",MID(B98,1,8)=\"https://\"),B98&IF(ISNUMBER(FIND(\"?\",B98)),\"&\",\"?\")&\"hmsr=\"&UrlEncode(D98)&\"&hmpl=\"&UrlEncode(F98)&\"&hmcu=\"&UrlEncode(H98)&\"&hmkw=\"&UrlEncode(J98)&\"&hmci=\"&UrlEncode(L98)&\"\",\"http://\"&B98&IF(ISNUMBER(FIND(\"?\",B98)),\"&\",\"?\")&\"hmsr=\"&UrlEncode(D98)&\"&hmpl=\"&UrlEncode(F98)&\"&hmcu=\"&UrlEncode(H98)&\"&hmkw=\"&UrlEncode(J98)&\"&hmci=\"&UrlEncode(L98)&\"\"),\"请填写目标URL与媒体平台\")","v":"请填写目标URL与媒体平台"}]
[95,null,null,null,null,null,null,null,null,null,null,null,null,null,{"$f":"IF(LEN(B99)*LEN(D99),IF(OR(MID(B99,1,7)=\"http://\",MID(B99,1,8)=\"https://\"),B99&IF(ISNUMBER(FIND(\"?\",B99)),\"&\",\"?\")&\"hmsr=\"&UrlEncode(D99)&\"&hmpl=\"&UrlEncode(F99)&\"&hmcu=\"&UrlEncode(H99)&\"&hmkw=\"&UrlEncode(J99)&\"&hmci=\"&UrlEncode(L99)&\"\",\"http://\"&B99&IF(ISNUMBER(FIND(\"?\",B99)),\"&\",\"?\")&\"hmsr=\"&UrlEncode(D99)&\"&hmpl=\"&UrlEncode(F99)&\"&hmcu=\"&UrlEncode(H99)&\"&hmkw=\"&UrlEncode(J99)&\"&hmci=\"&UrlEncode(L99)&\"\"),\"请填写目标URL与媒体平台\")","v":"请填写目标URL与媒体平台"}]
[96,null,null,null,null,null,null,null,null,null,null,null,null,null,{"$f":"IF(LEN(B100)*LEN(D100),IF(OR(MID(B100,1,7)=\"http://\",MID(B100,1,8)=\"https://\"),B100&IF(ISNUMBER(FIND(\"?\",B100)),\"&\",\"?\")&\"hmsr=\"&UrlEncode(D100)&\"&hmpl=\"&UrlEncode(F100)&\"&hmcu=\"&UrlEncode(H100)&\"&hmkw=\"&UrlEncode(J100)&\"&hmci=\"&UrlEncode(L100)&\"\",\"http://\"&B100&IF(ISNUMBER(FIND(\"?\",B100)),\"&\",\"?\")&\"hmsr=\"&UrlEncode(D100)&\"&hmpl=\"&UrlEncode(F100)&\"&hmcu=\"&UrlEncode(H100)&\"&hmkw=\"&UrlEncode(J100)&\"&hmci=\"&UrlEncode(L100)&\"\"),\"请填写目标URL与媒体平台\")","v":"请填写目标URL与媒体平台"}]
[97,null,null,null,null,null,null,null,null,null,null,null,null,null,{"$f":"IF(LEN(B101)*LEN(D101),IF(OR(MID(B101,1,7)=\"http://\",MID(B101,1,8)=\"https://\"),B101&IF(ISNUMBER(FIND(\"?\",B101)),\"&\",\"?\")&\"hmsr=\"&UrlEncode(D101)&\"&hmpl=\"&UrlEncode(F101)&\"&hmcu=\"&UrlEncode(H101)&\"&hmkw=\"&UrlEncode(J101)&\"&hmci=\"&UrlEncode(L101)&\"\",\"http://\"&B101&IF(ISNUMBER(FIND(\"?\",B101)),\"&\",\"?\")&\"hmsr=\"&UrlEncode(D101)&\"&hmpl=\"&UrlEncode(F101)&\"&hmcu=\"&UrlEncode(H101)&\"&hmkw=\"&UrlEncode(J101)&\"&hmci=\"&UrlEncode(L101)&\"\"),\"请填写目标URL与媒体平台\")","v":"请填写目标URL与媒体平台"}]
[98,null,null,null,null,null,null,null,null,null,null,null,null,null,{"$f":"IF(LEN(B102)*LEN(D102),IF(OR(MID(B102,1,7)=\"http://\",MID(B102,1,8)=\"https://\"),B102&IF(ISNUMBER(FIND(\"?\",B102)),\"&\",\"?\")&\"hmsr=\"&UrlEncode(D102)&\"&hmpl=\"&UrlEncode(F102)&\"&hmcu=\"&UrlEncode(H102)&\"&hmkw=\"&UrlEncode(J102)&\"&hmci=\"&UrlEncode(L102)&\"\",\"http://\"&B102&IF(ISNUMBER(FIND(\"?\",B102)),\"&\",\"?\")&\"hmsr=\"&UrlEncode(D102)&\"&hmpl=\"&UrlEncode(F102)&\"&hmcu=\"&UrlEncode(H102)&\"&hmkw=\"&UrlEncode(J102)&\"&hmci=\"&UrlEncode(L102)&\"\"),\"请填写目标URL与媒体平台\")","v":"请填写目标URL与媒体平台"}]
[99,null,null,null,null,null,null,null,null,null,null,null,null,null,{"$f":"IF(LEN(B103)*LEN(D103),IF(OR(MID(B103,1,7)=\"http://\",MID(B103,1,8)=\"https://\"),B103&IF(ISNUMBER(FIND(\"?\",B103)),\"&\",\"?\")&\"hmsr=\"&UrlEncode(D103)&\"&hmpl=\"&UrlEncode(F103)&\"&hmcu=\"&UrlEncode(H103)&\"&hmkw=\"&UrlEncode(J103)&\"&hmci=\"&UrlEncode(L103)&\"\",\"http://\"&B103&IF(ISNUMBER(FIND(\"?\",B103)),\"&\",\"?\")&\"hmsr=\"&UrlEncode(D103)&\"&hmpl=\"&UrlEncode(F103)&\"&hmcu=\"&UrlEncode(H103)&\"&hmkw=\"&UrlEncode(J103)&\"&hmci=\"&UrlEncode(L103)&\"\"),\"请填写目标URL与媒体平台\")","v":"请填写目标URL与媒体平台"}]
[100,null,null,null,null,null,null,null,null,null,null,null,null,null,{"$f":"IF(LEN(B104)*LEN(D104),IF(OR(MID(B104,1,7)=\"http://\",MID(B104,1,8)=\"https://\"),B104&IF(ISNUMBER(FIND(\"?\",B104)),\"&\",\"?\")&\"hmsr=\"&UrlEncode(D104)&\"&hmpl=\"&UrlEncode(F104)&\"&hmcu=\"&UrlEncode(H104)&\"&hmkw=\"&UrlEncode(J104)&\"&hmci=\"&UrlEncode(L104)&\"\",\"http://\"&B104&IF(ISNUMBER(FIND(\"?\",B104)),\"&\",\"?\")&\"hmsr=\"&UrlEncode(D104)&\"&hmpl=\"&UrlEncode(F104)&\"&hmcu=\"&UrlEncode(H104)&\"&hmkw=\"&UrlEncode(J104)&\"&hmci=\"&UrlEncode(L104)&\"\"),\"请填写目标URL与媒体平台\")","v":"请填写目标URL与媒体平台"}]
[101,null,null,null,null,null,null,null,null,null,null,null,null,null,{"$f":"IF(LEN(B105)*LEN(D105),IF(OR(MID(B105,1,7)=\"http://\",MID(B105,1,8)=\"https://\"),B105&IF(ISNUMBER(FIND(\"?\",B105)),\"&\",\"?\")&\"hmsr=\"&UrlEncode(D105)&\"&hmpl=\"&UrlEncode(F105)&\"&hmcu=\"&UrlEncode(H105)&\"&hmkw=\"&UrlEncode(J105)&\"&hmci=\"&UrlEncode(L105)&\"\",\"http://\"&B105&IF(ISNUMBER(FIND(\"?\",B105)),\"&\",\"?\")&\"hmsr=\"&UrlEncode(D105)&\"&hmpl=\"&UrlEncode(F105)&\"&hmcu=\"&UrlEncode(H105)&\"&hmkw=\"&UrlEncode(J105)&\"&hmci=\"&UrlEncode(L105)&\"\"),\"请填写目标URL与媒体平台\")","v":"请填写目标URL与媒体平台"}]
[102,null,null,null,null,null,null,null,null,null,null,null,null,null,{"$f":"IF(LEN(B106)*LEN(D106),IF(OR(MID(B106,1,7)=\"http://\",MID(B106,1,8)=\"https://\"),B106&IF(ISNUMBER(FIND(\"?\",B106)),\"&\",\"?\")&\"hmsr=\"&UrlEncode(D106)&\"&hmpl=\"&UrlEncode(F106)&\"&hmcu=\"&UrlEncode(H106)&\"&hmkw=\"&UrlEncode(J106)&\"&hmci=\"&UrlEncode(L106)&\"\",\"http://\"&B106&IF(ISNUMBER(FIND(\"?\",B106)),\"&\",\"?\")&\"hmsr=\"&UrlEncode(D106)&\"&hmpl=\"&UrlEncode(F106)&\"&hmcu=\"&UrlEncode(H106)&\"&hmkw=\"&UrlEncode(J106)&\"&hmci=\"&UrlEncode(L106)&\"\"),\"请填写目标URL与媒体平台\")","v":"请填写目标URL与媒体平台"}]
[103,null,null,null,null,null,null,null,null,null,null,null,null,null,{"$f":"IF(LEN(B107)*LEN(D107),IF(OR(MID(B107,1,7)=\"http://\",MID(B107,1,8)=\"https://\"),B107&IF(ISNUMBER(FIND(\"?\",B107)),\"&\",\"?\")&\"hmsr=\"&UrlEncode(D107)&\"&hmpl=\"&UrlEncode(F107)&\"&hmcu=\"&UrlEncode(H107)&\"&hmkw=\"&UrlEncode(J107)&\"&hmci=\"&UrlEncode(L107)&\"\",\"http://\"&B107&IF(ISNUMBER(FIND(\"?\",B107)),\"&\",\"?\")&\"hmsr=\"&UrlEncode(D107)&\"&hmpl=\"&UrlEncode(F107)&\"&hmcu=\"&UrlEncode(H107)&\"&hmkw=\"&UrlEncode(J107)&\"&hmci=\"&UrlEncode(L107)&\"\"),\"请填写目标URL与媒体平台\")","v":"请填写目标URL与媒体平台"}]
[104,null,null,null,null,null,null,null,null,null,null,null,null,null,{"$f":"IF(LEN(B108)*LEN(D108),IF(OR(MID(B108,1,7)=\"http://\",MID(B108,1,8)=\"https://\"),B108&IF(ISNUMBER(FIND(\"?\",B108)),\"&\",\"?\")&\"hmsr=\"&UrlEncode(D108)&\"&hmpl=\"&UrlEncode(F108)&\"&hmcu=\"&UrlEncode(H108)&\"&hmkw=\"&UrlEncode(J108)&\"&hmci=\"&UrlEncode(L108)&\"\",\"http://\"&B108&IF(ISNUMBER(FIND(\"?\",B108)),\"&\",\"?\")&\"hmsr=\"&UrlEncode(D108)&\"&hmpl=\"&UrlEncode(F108)&\"&hmcu=\"&UrlEncode(H108)&\"&hmkw=\"&UrlEncode(J108)&\"&hmci=\"&UrlEncode(L108)&\"\"),\"请填写目标URL与媒体平台\")","v":"请填写目标URL与媒体平台"}]
[105,null,null,null,null,null,null,null,null,null,null,null,null,null,{"$f":"IF(LEN(B109)*LEN(D109),IF(OR(MID(B109,1,7)=\"http://\",MID(B109,1,8)=\"https://\"),B109&IF(ISNUMBER(FIND(\"?\",B109)),\"&\",\"?\")&\"hmsr=\"&UrlEncode(D109)&\"&hmpl=\"&UrlEncode(F109)&\"&hmcu=\"&UrlEncode(H109)&\"&hmkw=\"&UrlEncode(J109)&\"&hmci=\"&UrlEncode(L109)&\"\",\"http://\"&B109&IF(ISNUMBER(FIND(\"?\",B109)),\"&\",\"?\")&\"hmsr=\"&UrlEncode(D109)&\"&hmpl=\"&UrlEncode(F109)&\"&hmcu=\"&UrlEncode(H109)&\"&hmkw=\"&UrlEncode(J109)&\"&hmci=\"&UrlEncode(L109)&\"\"),\"请填写目标URL与媒体平台\")","v":"请填写目标URL与媒体平台"}]
[106,null,null,null,null,null,null,null,null,null,null,null,null,null,{"$f":"IF(LEN(B110)*LEN(D110),IF(OR(MID(B110,1,7)=\"http://\",MID(B110,1,8)=\"https://\"),B110&IF(ISNUMBER(FIND(\"?\",B110)),\"&\",\"?\")&\"hmsr=\"&UrlEncode(D110)&\"&hmpl=\"&UrlEncode(F110)&\"&hmcu=\"&UrlEncode(H110)&\"&hmkw=\"&UrlEncode(J110)&\"&hmci=\"&UrlEncode(L110)&\"\",\"http://\"&B110&IF(ISNUMBER(FIND(\"?\",B110)),\"&\",\"?\")&\"hmsr=\"&UrlEncode(D110)&\"&hmpl=\"&UrlEncode(F110)&\"&hmcu=\"&UrlEncode(H110)&\"&hmkw=\"&UrlEncode(J110)&\"&hmci=\"&UrlEncode(L110)&\"\"),\"请填写目标URL与媒体平台\")","v":"请填写目标URL与媒体平台"}]
[107,null,null,null,null,null,null,null,null,null,null,null,null,null,{"$f":"IF(LEN(B111)*LEN(D111),IF(OR(MID(B111,1,7)=\"http://\",MID(B111,1,8)=\"https://\"),B111&IF(ISNUMBER(FIND(\"?\",B111)),\"&\",\"?\")&\"hmsr=\"&UrlEncode(D111)&\"&hmpl=\"&UrlEncode(F111)&\"&hmcu=\"&UrlEncode(H111)&\"&hmkw=\"&UrlEncode(J111)&\"&hmci=\"&UrlEncode(L111)&\"\",\"http://\"&B111&IF(ISNUMBER(FIND(\"?\",B111)),\"&\",\"?\")&\"hmsr=\"&UrlEncode(D111)&\"&hmpl=\"&UrlEncode(F111)&\"&hmcu=\"&UrlEncode(H111)&\"&hmkw=\"&UrlEncode(J111)&\"&hmci=\"&UrlEncode(L111)&\"\"),\"请填写目标URL与媒体平台\")","v":"请填写目标URL与媒体平台"}]
[108,null,null,null,null,null,null,null,null,null,null,null,null,null,{"$f":"IF(LEN(B112)*LEN(D112),IF(OR(MID(B112,1,7)=\"http://\",MID(B112,1,8)=\"https://\"),B112&IF(ISNUMBER(FIND(\"?\",B112)),\"&\",\"?\")&\"hmsr=\"&UrlEncode(D112)&\"&hmpl=\"&UrlEncode(F112)&\"&hmcu=\"&UrlEncode(H112)&\"&hmkw=\"&UrlEncode(J112)&\"&hmci=\"&UrlEncode(L112)&\"\",\"http://\"&B112&IF(ISNUMBER(FIND(\"?\",B112)),\"&\",\"?\")&\"hmsr=\"&UrlEncode(D112)&\"&hmpl=\"&UrlEncode(F112)&\"&hmcu=\"&UrlEncode(H112)&\"&hmkw=\"&UrlEncode(J112)&\"&hmci=\"&UrlEncode(L112)&\"\"),\"请填写目标URL与媒体平台\")","v":"请填写目标URL与媒体平台"}]
[109,null,null,null,null,null,null,null,null,null,null,null,null,null,{"$f":"IF(LEN(B113)*LEN(D113),IF(OR(MID(B113,1,7)=\"http://\",MID(B113,1,8)=\"https://\"),B113&IF(ISNUMBER(FIND(\"?\",B113)),\"&\",\"?\")&\"hmsr=\"&UrlEncode(D113)&\"&hmpl=\"&UrlEncode(F113)&\"&hmcu=\"&UrlEncode(H113)&\"&hmkw=\"&UrlEncode(J113)&\"&hmci=\"&UrlEncode(L113)&\"\",\"http://\"&B113&IF(ISNUMBER(FIND(\"?\",B113)),\"&\",\"?\")&\"hmsr=\"&UrlEncode(D113)&\"&hmpl=\"&UrlEncode(F113)&\"&hmcu=\"&UrlEncode(H113)&\"&hmkw=\"&UrlEncode(J113)&\"&hmci=\"&UrlEncode(L113)&\"\"),\"请填写目标URL与媒体平台\")","v":"请填写目标URL与媒体平台"}]
[110,null,null,null,null,null,null,null,null,null,null,null,null,null,{"$f":"IF(LEN(B114)*LEN(D114),IF(OR(MID(B114,1,7)=\"http://\",MID(B114,1,8)=\"https://\"),B114&IF(ISNUMBER(FIND(\"?\",B114)),\"&\",\"?\")&\"hmsr=\"&UrlEncode(D114)&\"&hmpl=\"&UrlEncode(F114)&\"&hmcu=\"&UrlEncode(H114)&\"&hmkw=\"&UrlEncode(J114)&\"&hmci=\"&UrlEncode(L114)&\"\",\"http://\"&B114&IF(ISNUMBER(FIND(\"?\",B114)),\"&\",\"?\")&\"hmsr=\"&UrlEncode(D114)&\"&hmpl=\"&UrlEncode(F114)&\"&hmcu=\"&UrlEncode(H114)&\"&hmkw=\"&UrlEncode(J114)&\"&hmci=\"&UrlEncode(L114)&\"\"),\"请填写目标URL与媒体平台\")","v":"请填写目标URL与媒体平台"}]
[111,null,null,null,null,null,null,null,null,null,null,null,null,null,{"$f":"IF(LEN(B115)*LEN(D115),IF(OR(MID(B115,1,7)=\"http://\",MID(B115,1,8)=\"https://\"),B115&IF(ISNUMBER(FIND(\"?\",B115)),\"&\",\"?\")&\"hmsr=\"&UrlEncode(D115)&\"&hmpl=\"&UrlEncode(F115)&\"&hmcu=\"&UrlEncode(H115)&\"&hmkw=\"&UrlEncode(J115)&\"&hmci=\"&UrlEncode(L115)&\"\",\"http://\"&B115&IF(ISNUMBER(FIND(\"?\",B115)),\"&\",\"?\")&\"hmsr=\"&UrlEncode(D115)&\"&hmpl=\"&UrlEncode(F115)&\"&hmcu=\"&UrlEncode(H115)&\"&hmkw=\"&UrlEncode(J115)&\"&hmci=\"&UrlEncode(L115)&\"\"),\"请填写目标URL与媒体平台\")","v":"请填写目标URL与媒体平台"}]
[112,null,null,null,null,null,null,null,null,null,null,null,null,null,{"$f":"IF(LEN(B116)*LEN(D116),IF(OR(MID(B116,1,7)=\"http://\",MID(B116,1,8)=\"https://\"),B116&IF(ISNUMBER(FIND(\"?\",B116)),\"&\",\"?\")&\"hmsr=\"&UrlEncode(D116)&\"&hmpl=\"&UrlEncode(F116)&\"&hmcu=\"&UrlEncode(H116)&\"&hmkw=\"&UrlEncode(J116)&\"&hmci=\"&UrlEncode(L116)&\"\",\"http://\"&B116&IF(ISNUMBER(FIND(\"?\",B116)),\"&\",\"?\")&\"hmsr=\"&UrlEncode(D116)&\"&hmpl=\"&UrlEncode(F116)&\"&hmcu=\"&UrlEncode(H116)&\"&hmkw=\"&UrlEncode(J116)&\"&hmci=\"&UrlEncode(L116)&\"\"),\"请填写目标URL与媒体平台\")","v":"请填写目标URL与媒体平台"}]
[113,null,null,null,null,null,null,null,null,null,null,null,null,null,{"$f":"IF(LEN(B117)*LEN(D117),IF(OR(MID(B117,1,7)=\"http://\",MID(B117,1,8)=\"https://\"),B117&IF(ISNUMBER(FIND(\"?\",B117)),\"&\",\"?\")&\"hmsr=\"&UrlEncode(D117)&\"&hmpl=\"&UrlEncode(F117)&\"&hmcu=\"&UrlEncode(H117)&\"&hmkw=\"&UrlEncode(J117)&\"&hmci=\"&UrlEncode(L117)&\"\",\"http://\"&B117&IF(ISNUMBER(FIND(\"?\",B117)),\"&\",\"?\")&\"hmsr=\"&UrlEncode(D117)&\"&hmpl=\"&UrlEncode(F117)&\"&hmcu=\"&UrlEncode(H117)&\"&hmkw=\"&UrlEncode(J117)&\"&hmci=\"&UrlEncode(L117)&\"\"),\"请填写目标URL与媒体平台\")","v":"请填写目标URL与媒体平台"}]
[114,null,null,null,null,null,null,null,null,null,null,null,null,null,{"$f":"IF(LEN(B118)*LEN(D118),IF(OR(MID(B118,1,7)=\"http://\",MID(B118,1,8)=\"https://\"),B118&IF(ISNUMBER(FIND(\"?\",B118)),\"&\",\"?\")&\"hmsr=\"&UrlEncode(D118)&\"&hmpl=\"&UrlEncode(F118)&\"&hmcu=\"&UrlEncode(H118)&\"&hmkw=\"&UrlEncode(J118)&\"&hmci=\"&UrlEncode(L118)&\"\",\"http://\"&B118&IF(ISNUMBER(FIND(\"?\",B118)),\"&\",\"?\")&\"hmsr=\"&UrlEncode(D118)&\"&hmpl=\"&UrlEncode(F118)&\"&hmcu=\"&UrlEncode(H118)&\"&hmkw=\"&UrlEncode(J118)&\"&hmci=\"&UrlEncode(L118)&\"\"),\"请填写目标URL与媒体平台\")","v":"请填写目标URL与媒体平台"}]
[115,null,null,null,null,null,null,null,null,null,null,null,null,null,{"$f":"IF(LEN(B119)*LEN(D119),IF(OR(MID(B119,1,7)=\"http://\",MID(B119,1,8)=\"https://\"),B119&IF(ISNUMBER(FIND(\"?\",B119)),\"&\",\"?\")&\"hmsr=\"&UrlEncode(D119)&\"&hmpl=\"&UrlEncode(F119)&\"&hmcu=\"&UrlEncode(H119)&\"&hmkw=\"&UrlEncode(J119)&\"&hmci=\"&UrlEncode(L119)&\"\",\"http://\"&B119&IF(ISNUMBER(FIND(\"?\",B119)),\"&\",\"?\")&\"hmsr=\"&UrlEncode(D119)&\"&hmpl=\"&UrlEncode(F119)&\"&hmcu=\"&UrlEncode(H119)&\"&hmkw=\"&UrlEncode(J119)&\"&hmci=\"&UrlEncode(L119)&\"\"),\"请填写目标URL与媒体平台\")","v":"请填写目标URL与媒体平台"}]
[116,null,null,null,null,null,null,null,null,null,null,null,null,null,{"$f":"IF(LEN(B120)*LEN(D120),IF(OR(MID(B120,1,7)=\"http://\",MID(B120,1,8)=\"https://\"),B120&IF(ISNUMBER(FIND(\"?\",B120)),\"&\",\"?\")&\"hmsr=\"&UrlEncode(D120)&\"&hmpl=\"&UrlEncode(F120)&\"&hmcu=\"&UrlEncode(H120)&\"&hmkw=\"&UrlEncode(J120)&\"&hmci=\"&UrlEncode(L120)&\"\",\"http://\"&B120&IF(ISNUMBER(FIND(\"?\",B120)),\"&\",\"?\")&\"hmsr=\"&UrlEncode(D120)&\"&hmpl=\"&UrlEncode(F120)&\"&hmcu=\"&UrlEncode(H120)&\"&hmkw=\"&UrlEncode(J120)&\"&hmci=\"&UrlEncode(L120)&\"\"),\"请填写目标URL与媒体平台\")","v":"请填写目标URL与媒体平台"}]
[117,null,null,null,null,null,null,null,null,null,null,null,null,null,{"$f":"IF(LEN(B121)*LEN(D121),IF(OR(MID(B121,1,7)=\"http://\",MID(B121,1,8)=\"https://\"),B121&IF(ISNUMBER(FIND(\"?\",B121)),\"&\",\"?\")&\"hmsr=\"&UrlEncode(D121)&\"&hmpl=\"&UrlEncode(F121)&\"&hmcu=\"&UrlEncode(H121)&\"&hmkw=\"&UrlEncode(J121)&\"&hmci=\"&UrlEncode(L121)&\"\",\"http://\"&B121&IF(ISNUMBER(FIND(\"?\",B121)),\"&\",\"?\")&\"hmsr=\"&UrlEncode(D121)&\"&hmpl=\"&UrlEncode(F121)&\"&hmcu=\"&UrlEncode(H121)&\"&hmkw=\"&UrlEncode(J121)&\"&hmci=\"&UrlEncode(L121)&\"\"),\"请填写目标URL与媒体平台\")","v":"请填写目标URL与媒体平台"}]
[118,null,null,null,null,null,null,null,null,null,null,null,null,null,{"$f":"IF(LEN(B122)*LEN(D122),IF(OR(MID(B122,1,7)=\"http://\",MID(B122,1,8)=\"https://\"),B122&IF(ISNUMBER(FIND(\"?\",B122)),\"&\",\"?\")&\"hmsr=\"&UrlEncode(D122)&\"&hmpl=\"&UrlEncode(F122)&\"&hmcu=\"&UrlEncode(H122)&\"&hmkw=\"&UrlEncode(J122)&\"&hmci=\"&UrlEncode(L122)&\"\",\"http://\"&B122&IF(ISNUMBER(FIND(\"?\",B122)),\"&\",\"?\")&\"hmsr=\"&UrlEncode(D122)&\"&hmpl=\"&UrlEncode(F122)&\"&hmcu=\"&UrlEncode(H122)&\"&hmkw=\"&UrlEncode(J122)&\"&hmci=\"&UrlEncode(L122)&\"\"),\"请填写目标URL与媒体平台\")","v":"请填写目标URL与媒体平台"}]
[119,null,null,null,null,null,null,null,null,null,null,null,null,null,{"$f":"IF(LEN(B123)*LEN(D123),IF(OR(MID(B123,1,7)=\"http://\",MID(B123,1,8)=\"https://\"),B123&IF(ISNUMBER(FIND(\"?\",B123)),\"&\",\"?\")&\"hmsr=\"&UrlEncode(D123)&\"&hmpl=\"&UrlEncode(F123)&\"&hmcu=\"&UrlEncode(H123)&\"&hmkw=\"&UrlEncode(J123)&\"&hmci=\"&UrlEncode(L123)&\"\",\"http://\"&B123&IF(ISNUMBER(FIND(\"?\",B123)),\"&\",\"?\")&\"hmsr=\"&UrlEncode(D123)&\"&hmpl=\"&UrlEncode(F123)&\"&hmcu=\"&UrlEncode(H123)&\"&hmkw=\"&UrlEncode(J123)&\"&hmci=\"&UrlEncode(L123)&\"\"),\"请填写目标URL与媒体平台\")","v":"请填写目标URL与媒体平台"}]
[120,null,null,null,null,null,null,null,null,null,null,null,null,null,{"$f":"IF(LEN(B124)*LEN(D124),IF(OR(MID(B124,1,7)=\"http://\",MID(B124,1,8)=\"https://\"),B124&IF(ISNUMBER(FIND(\"?\",B124)),\"&\",\"?\")&\"hmsr=\"&UrlEncode(D124)&\"&hmpl=\"&UrlEncode(F124)&\"&hmcu=\"&UrlEncode(H124)&\"&hmkw=\"&UrlEncode(J124)&\"&hmci=\"&UrlEncode(L124)&\"\",\"http://\"&B124&IF(ISNUMBER(FIND(\"?\",B124)),\"&\",\"?\")&\"hmsr=\"&UrlEncode(D124)&\"&hmpl=\"&UrlEncode(F124)&\"&hmcu=\"&UrlEncode(H124)&\"&hmkw=\"&UrlEncode(J124)&\"&hmci=\"&UrlEncode(L124)&\"\"),\"请填写目标URL与媒体平台\")","v":"请填写目标URL与媒体平台"}]
[121,null,null,null,null,null,null,null,null,null,null,null,null,null,{"$f":"IF(LEN(B125)*LEN(D125),IF(OR(MID(B125,1,7)=\"http://\",MID(B125,1,8)=\"https://\"),B125&IF(ISNUMBER(FIND(\"?\",B125)),\"&\",\"?\")&\"hmsr=\"&UrlEncode(D125)&\"&hmpl=\"&UrlEncode(F125)&\"&hmcu=\"&UrlEncode(H125)&\"&hmkw=\"&UrlEncode(J125)&\"&hmci=\"&UrlEncode(L125)&\"\",\"http://\"&B125&IF(ISNUMBER(FIND(\"?\",B125)),\"&\",\"?\")&\"hmsr=\"&UrlEncode(D125)&\"&hmpl=\"&UrlEncode(F125)&\"&hmcu=\"&UrlEncode(H125)&\"&hmkw=\"&UrlEncode(J125)&\"&hmci=\"&UrlEncode(L125)&\"\"),\"请填写目标URL与媒体平台\")","v":"请填写目标URL与媒体平台"}]
[122,null,null,null,null,null,null,null,null,null,null,null,null,null,{"$f":"IF(LEN(B126)*LEN(D126),IF(OR(MID(B126,1,7)=\"http://\",MID(B126,1,8)=\"https://\"),B126&IF(ISNUMBER(FIND(\"?\",B126)),\"&\",\"?\")&\"hmsr=\"&UrlEncode(D126)&\"&hmpl=\"&UrlEncode(F126)&\"&hmcu=\"&UrlEncode(H126)&\"&hmkw=\"&UrlEncode(J126)&\"&hmci=\"&UrlEncode(L126)&\"\",\"http://\"&B126&IF(ISNUMBER(FIND(\"?\",B126)),\"&\",\"?\")&\"hmsr=\"&UrlEncode(D126)&\"&hmpl=\"&UrlEncode(F126)&\"&hmcu=\"&UrlEncode(H126)&\"&hmkw=\"&UrlEncode(J126)&\"&hmci=\"&UrlEncode(L126)&\"\"),\"请填写目标URL与媒体平台\")","v":"请填写目标URL与媒体平台"}]
[123,null,null,null,null,null,null,null,null,null,null,null,null,null,{"$f":"IF(LEN(B127)*LEN(D127),IF(OR(MID(B127,1,7)=\"http://\",MID(B127,1,8)=\"https://\"),B127&IF(ISNUMBER(FIND(\"?\",B127)),\"&\",\"?\")&\"hmsr=\"&UrlEncode(D127)&\"&hmpl=\"&UrlEncode(F127)&\"&hmcu=\"&UrlEncode(H127)&\"&hmkw=\"&UrlEncode(J127)&\"&hmci=\"&UrlEncode(L127)&\"\",\"http://\"&B127&IF(ISNUMBER(FIND(\"?\",B127)),\"&\",\"?\")&\"hmsr=\"&UrlEncode(D127)&\"&hmpl=\"&UrlEncode(F127)&\"&hmcu=\"&UrlEncode(H127)&\"&hmkw=\"&UrlEncode(J127)&\"&hmci=\"&UrlEncode(L127)&\"\"),\"请填写目标URL与媒体平台\")","v":"请填写目标URL与媒体平台"}]
[124,null,null,null,null,null,null,null,null,null,null,null,null,null,{"$f":"IF(LEN(B128)*LEN(D128),IF(OR(MID(B128,1,7)=\"http://\",MID(B128,1,8)=\"https://\"),B128&IF(ISNUMBER(FIND(\"?\",B128)),\"&\",\"?\")&\"hmsr=\"&UrlEncode(D128)&\"&hmpl=\"&UrlEncode(F128)&\"&hmcu=\"&UrlEncode(H128)&\"&hmkw=\"&UrlEncode(J128)&\"&hmci=\"&UrlEncode(L128)&\"\",\"http://\"&B128&IF(ISNUMBER(FIND(\"?\",B128)),\"&\",\"?\")&\"hmsr=\"&UrlEncode(D128)&\"&hmpl=\"&UrlEncode(F128)&\"&hmcu=\"&UrlEncode(H128)&\"&hmkw=\"&UrlEncode(J128)&\"&hmci=\"&UrlEncode(L128)&\"\"),\"请填写目标URL与媒体平台\")","v":"请填写目标URL与媒体平台"}]
[125,null,null,null,null,null,null,null,null,null,null,null,null,null,{"$f":"IF(LEN(B129)*LEN(D129),IF(OR(MID(B129,1,7)=\"http://\",MID(B129,1,8)=\"https://\"),B129&IF(ISNUMBER(FIND(\"?\",B129)),\"&\",\"?\")&\"hmsr=\"&UrlEncode(D129)&\"&hmpl=\"&UrlEncode(F129)&\"&hmcu=\"&UrlEncode(H129)&\"&hmkw=\"&UrlEncode(J129)&\"&hmci=\"&UrlEncode(L129)&\"\",\"http://\"&B129&IF(ISNUMBER(FIND(\"?\",B129)),\"&\",\"?\")&\"hmsr=\"&UrlEncode(D129)&\"&hmpl=\"&UrlEncode(F129)&\"&hmcu=\"&UrlEncode(H129)&\"&hmkw=\"&UrlEncode(J129)&\"&hmci=\"&UrlEncode(L129)&\"\"),\"请填写目标URL与媒体平台\")","v":"请填写目标URL与媒体平台"}]
[126,null,null,null,null,null,null,null,null,null,null,null,null,null,{"$f":"IF(LEN(B130)*LEN(D130),IF(OR(MID(B130,1,7)=\"http://\",MID(B130,1,8)=\"https://\"),B130&IF(ISNUMBER(FIND(\"?\",B130)),\"&\",\"?\")&\"hmsr=\"&UrlEncode(D130)&\"&hmpl=\"&UrlEncode(F130)&\"&hmcu=\"&UrlEncode(H130)&\"&hmkw=\"&UrlEncode(J130)&\"&hmci=\"&UrlEncode(L130)&\"\",\"http://\"&B130&IF(ISNUMBER(FIND(\"?\",B130)),\"&\",\"?\")&\"hmsr=\"&UrlEncode(D130)&\"&hmpl=\"&UrlEncode(F130)&\"&hmcu=\"&UrlEncode(H130)&\"&hmkw=\"&UrlEncode(J130)&\"&hmci=\"&UrlEncode(L130)&\"\"),\"请填写目标URL与媒体平台\")","v":"请填写目标URL与媒体平台"}]
[127,null,null,null,null,null,null,null,null,null,null,null,null,null,{"$f":"IF(LEN(B131)*LEN(D131),IF(OR(MID(B131,1,7)=\"http://\",MID(B131,1,8)=\"https://\"),B131&IF(ISNUMBER(FIND(\"?\",B131)),\"&\",\"?\")&\"hmsr=\"&UrlEncode(D131)&\"&hmpl=\"&UrlEncode(F131)&\"&hmcu=\"&UrlEncode(H131)&\"&hmkw=\"&UrlEncode(J131)&\"&hmci=\"&UrlEncode(L131)&\"\",\"http://\"&B131&IF(ISNUMBER(FIND(\"?\",B131)),\"&\",\"?\")&\"hmsr=\"&UrlEncode(D131)&\"&hmpl=\"&UrlEncode(F131)&\"&hmcu=\"&UrlEncode(H131)&\"&hmkw=\"&UrlEncode(J131)&\"&hmci=\"&UrlEncode(L131)&\"\"),\"请填写目标URL与媒体平台\")","v":"请填写目标URL与媒体平台"}]
[128,null,null,null,null,null,null,null,null,null,null,null,null,null,{"$f":"IF(LEN(B132)*LEN(D132),IF(OR(MID(B132,1,7)=\"http://\",MID(B132,1,8)=\"https://\"),B132&IF(ISNUMBER(FIND(\"?\",B132)),\"&\",\"?\")&\"hmsr=\"&UrlEncode(D132)&\"&hmpl=\"&UrlEncode(F132)&\"&hmcu=\"&UrlEncode(H132)&\"&hmkw=\"&UrlEncode(J132)&\"&hmci=\"&UrlEncode(L132)&\"\",\"http://\"&B132&IF(ISNUMBER(FIND(\"?\",B132)),\"&\",\"?\")&\"hmsr=\"&UrlEncode(D132)&\"&hmpl=\"&UrlEncode(F132)&\"&hmcu=\"&UrlEncode(H132)&\"&hmkw=\"&UrlEncode(J132)&\"&hmci=\"&UrlEncode(L132)&\"\"),\"请填写目标URL与媒体平台\")","v":"请填写目标URL与媒体平台"}]
[129,null,null,null,null,null,null,null,null,null,null,null,null,null,{"$f":"IF(LEN(B133)*LEN(D133),IF(OR(MID(B133,1,7)=\"http://\",MID(B133,1,8)=\"https://\"),B133&IF(ISNUMBER(FIND(\"?\",B133)),\"&\",\"?\")&\"hmsr=\"&UrlEncode(D133)&\"&hmpl=\"&UrlEncode(F133)&\"&hmcu=\"&UrlEncode(H133)&\"&hmkw=\"&UrlEncode(J133)&\"&hmci=\"&UrlEncode(L133)&\"\",\"http://\"&B133&IF(ISNUMBER(FIND(\"?\",B133)),\"&\",\"?\")&\"hmsr=\"&UrlEncode(D133)&\"&hmpl=\"&UrlEncode(F133)&\"&hmcu=\"&UrlEncode(H133)&\"&hmkw=\"&UrlEncode(J133)&\"&hmci=\"&UrlEncode(L133)&\"\"),\"请填写目标URL与媒体平台\")","v":"请填写目标URL与媒体平台"}]
[130,null,null,null,null,null,null,null,null,null,null,null,null,null,{"$f":"IF(LEN(B134)*LEN(D134),IF(OR(MID(B134,1,7)=\"http://\",MID(B134,1,8)=\"https://\"),B134&IF(ISNUMBER(FIND(\"?\",B134)),\"&\",\"?\")&\"hmsr=\"&UrlEncode(D134)&\"&hmpl=\"&UrlEncode(F134)&\"&hmcu=\"&UrlEncode(H134)&\"&hmkw=\"&UrlEncode(J134)&\"&hmci=\"&UrlEncode(L134)&\"\",\"http://\"&B134&IF(ISNUMBER(FIND(\"?\",B134)),\"&\",\"?\")&\"hmsr=\"&UrlEncode(D134)&\"&hmpl=\"&UrlEncode(F134)&\"&hmcu=\"&UrlEncode(H134)&\"&hmkw=\"&UrlEncode(J134)&\"&hmci=\"&UrlEncode(L134)&\"\"),\"请填写目标URL与媒体平台\")","v":"请填写目标URL与媒体平台"}]
[131,null,null,null,null,null,null,null,null,null,null,null,null,null,{"$f":"IF(LEN(B135)*LEN(D135),IF(OR(MID(B135,1,7)=\"http://\",MID(B135,1,8)=\"https://\"),B135&IF(ISNUMBER(FIND(\"?\",B135)),\"&\",\"?\")&\"hmsr=\"&UrlEncode(D135)&\"&hmpl=\"&UrlEncode(F135)&\"&hmcu=\"&UrlEncode(H135)&\"&hmkw=\"&UrlEncode(J135)&\"&hmci=\"&UrlEncode(L135)&\"\",\"http://\"&B135&IF(ISNUMBER(FIND(\"?\",B135)),\"&\",\"?\")&\"hmsr=\"&UrlEncode(D135)&\"&hmpl=\"&UrlEncode(F135)&\"&hmcu=\"&UrlEncode(H135)&\"&hmkw=\"&UrlEncode(J135)&\"&hmci=\"&UrlEncode(L135)&\"\"),\"请填写目标URL与媒体平台\")","v":"请填写目标URL与媒体平台"}]
[132,null,null,null,null,null,null,null,null,null,null,null,null,null,{"$f":"IF(LEN(B136)*LEN(D136),IF(OR(MID(B136,1,7)=\"http://\",MID(B136,1,8)=\"https://\"),B136&IF(ISNUMBER(FIND(\"?\",B136)),\"&\",\"?\")&\"hmsr=\"&UrlEncode(D136)&\"&hmpl=\"&UrlEncode(F136)&\"&hmcu=\"&UrlEncode(H136)&\"&hmkw=\"&UrlEncode(J136)&\"&hmci=\"&UrlEncode(L136)&\"\",\"http://\"&B136&IF(ISNUMBER(FIND(\"?\",B136)),\"&\",\"?\")&\"hmsr=\"&UrlEncode(D136)&\"&hmpl=\"&UrlEncode(F136)&\"&hmcu=\"&UrlEncode(H136)&\"&hmkw=\"&UrlEncode(J136)&\"&hmci=\"&UrlEncode(L136)&\"\"),\"请填写目标URL与媒体平台\")","v":"请填写目标URL与媒体平台"}]
[133,null,null,null,null,null,null,null,null,null,null,null,null,null,{"$f":"IF(LEN(B137)*LEN(D137),IF(OR(MID(B137,1,7)=\"http://\",MID(B137,1,8)=\"https://\"),B137&IF(ISNUMBER(FIND(\"?\",B137)),\"&\",\"?\")&\"hmsr=\"&UrlEncode(D137)&\"&hmpl=\"&UrlEncode(F137)&\"&hmcu=\"&UrlEncode(H137)&\"&hmkw=\"&UrlEncode(J137)&\"&hmci=\"&UrlEncode(L137)&\"\",\"http://\"&B137&IF(ISNUMBER(FIND(\"?\",B137)),\"&\",\"?\")&\"hmsr=\"&UrlEncode(D137)&\"&hmpl=\"&UrlEncode(F137)&\"&hmcu=\"&UrlEncode(H137)&\"&hmkw=\"&UrlEncode(J137)&\"&hmci=\"&UrlEncode(L137)&\"\"),\"请填写目标URL与媒体平台\")","v":"请填写目标URL与媒体平台"}]
[134,null,null,null,null,null,null,null,null,null,null,null,null,null,{"$f":"IF(LEN(B138)*LEN(D138),IF(OR(MID(B138,1,7)=\"http://\",MID(B138,1,8)=\"https://\"),B138&IF(ISNUMBER(FIND(\"?\",B138)),\"&\",\"?\")&\"hmsr=\"&UrlEncode(D138)&\"&hmpl=\"&UrlEncode(F138)&\"&hmcu=\"&UrlEncode(H138)&\"&hmkw=\"&UrlEncode(J138)&\"&hmci=\"&UrlEncode(L138)&\"\",\"http://\"&B138&IF(ISNUMBER(FIND(\"?\",B138)),\"&\",\"?\")&\"hmsr=\"&UrlEncode(D138)&\"&hmpl=\"&UrlEncode(F138)&\"&hmcu=\"&UrlEncode(H138)&\"&hmkw=\"&UrlEncode(J138)&\"&hmci=\"&UrlEncode(L138)&\"\"),\"请填写目标URL与媒体平台\")","v":"请填写目标URL与媒体平台"}]
[135,null,null,null,null,null,null,null,null,null,null,null,null,null,{"$f":"IF(LEN(B139)*LEN(D139),IF(OR(MID(B139,1,7)=\"http://\",MID(B139,1,8)=\"https://\"),B139&IF(ISNUMBER(FIND(\"?\",B139)),\"&\",\"?\")&\"hmsr=\"&UrlEncode(D139)&\"&hmpl=\"&UrlEncode(F139)&\"&hmcu=\"&UrlEncode(H139)&\"&hmkw=\"&UrlEncode(J139)&\"&hmci=\"&UrlEncode(L139)&\"\",\"http://\"&B139&IF(ISNUMBER(FIND(\"?\",B139)),\"&\",\"?\")&\"hmsr=\"&UrlEncode(D139)&\"&hmpl=\"&UrlEncode(F139)&\"&hmcu=\"&UrlEncode(H139)&\"&hmkw=\"&UrlEncode(J139)&\"&hmci=\"&UrlEncode(L139)&\"\"),\"请填写目标URL与媒体平台\")","v":"请填写目标URL与媒体平台"}]
[136,null,null,null,null,null,null,null,null,null,null,null,null,null,{"$f":"IF(LEN(B140)*LEN(D140),IF(OR(MID(B140,1,7)=\"http://\",MID(B140,1,8)=\"https://\"),B140&IF(ISNUMBER(FIND(\"?\",B140)),\"&\",\"?\")&\"hmsr=\"&UrlEncode(D140)&\"&hmpl=\"&UrlEncode(F140)&\"&hmcu=\"&UrlEncode(H140)&\"&hmkw=\"&UrlEncode(J140)&\"&hmci=\"&UrlEncode(L140)&\"\",\"http://\"&B140&IF(ISNUMBER(FIND(\"?\",B140)),\"&\",\"?\")&\"hmsr=\"&UrlEncode(D140)&\"&hmpl=\"&UrlEncode(F140)&\"&hmcu=\"&UrlEncode(H140)&\"&hmkw=\"&UrlEncode(J140)&\"&hmci=\"&UrlEncode(L140)&\"\"),\"请填写目标URL与媒体平台\")","v":"请填写目标URL与媒体平台"}]
[137,null,null,null,null,null,null,null,null,null,null,null,null,null,{"$f":"IF(LEN(B141)*LEN(D141),IF(OR(MID(B141,1,7)=\"http://\",MID(B141,1,8)=\"https://\"),B141&IF(ISNUMBER(FIND(\"?\",B141)),\"&\",\"?\")&\"hmsr=\"&UrlEncode(D141)&\"&hmpl=\"&UrlEncode(F141)&\"&hmcu=\"&UrlEncode(H141)&\"&hmkw=\"&UrlEncode(J141)&\"&hmci=\"&UrlEncode(L141)&\"\",\"http://\"&B141&IF(ISNUMBER(FIND(\"?\",B141)),\"&\",\"?\")&\"hmsr=\"&UrlEncode(D141)&\"&hmpl=\"&UrlEncode(F141)&\"&hmcu=\"&UrlEncode(H141)&\"&hmkw=\"&UrlEncode(J141)&\"&hmci=\"&UrlEncode(L141)&\"\"),\"请填写目标URL与媒体平台\")","v":"请填写目标URL与媒体平台"}]
[138,null,null,null,null,null,null,null,null,null,null,null,null,null,{"$f":"IF(LEN(B142)*LEN(D142),IF(OR(MID(B142,1,7)=\"http://\",MID(B142,1,8)=\"https://\"),B142&IF(ISNUMBER(FIND(\"?\",B142)),\"&\",\"?\")&\"hmsr=\"&UrlEncode(D142)&\"&hmpl=\"&UrlEncode(F142)&\"&hmcu=\"&UrlEncode(H142)&\"&hmkw=\"&UrlEncode(J142)&\"&hmci=\"&UrlEncode(L142)&\"\",\"http://\"&B142&IF(ISNUMBER(FIND(\"?\",B142)),\"&\",\"?\")&\"hmsr=\"&UrlEncode(D142)&\"&hmpl=\"&UrlEncode(F142)&\"&hmcu=\"&UrlEncode(H142)&\"&hmkw=\"&UrlEncode(J142)&\"&hmci=\"&UrlEncode(L142)&\"\"),\"请填写目标URL与媒体平台\")","v":"请填写目标URL与媒体平台"}]
[139,null,null,null,null,null,null,null,null,null,null,null,null,null,{"$f":"IF(LEN(B143)*LEN(D143),IF(OR(MID(B143,1,7)=\"http://\",MID(B143,1,8)=\"https://\"),B143&IF(ISNUMBER(FIND(\"?\",B143)),\"&\",\"?\")&\"hmsr=\"&UrlEncode(D143)&\"&hmpl=\"&UrlEncode(F143)&\"&hmcu=\"&UrlEncode(H143)&\"&hmkw=\"&UrlEncode(J143)&\"&hmci=\"&UrlEncode(L143)&\"\",\"http://\"&B143&IF(ISNUMBER(FIND(\"?\",B143)),\"&\",\"?\")&\"hmsr=\"&UrlEncode(D143)&\"&hmpl=\"&UrlEncode(F143)&\"&hmcu=\"&UrlEncode(H143)&\"&hmkw=\"&UrlEncode(J143)&\"&hmci=\"&UrlEncode(L143)&\"\"),\"请填写目标URL与媒体平台\")","v":"请填写目标URL与媒体平台"}]
[140,null,null,null,null,null,null,null,null,null,null,null,null,null,{"$f":"IF(LEN(B144)*LEN(D144),IF(OR(MID(B144,1,7)=\"http://\",MID(B144,1,8)=\"https://\"),B144&IF(ISNUMBER(FIND(\"?\",B144)),\"&\",\"?\")&\"hmsr=\"&UrlEncode(D144)&\"&hmpl=\"&UrlEncode(F144)&\"&hmcu=\"&UrlEncode(H144)&\"&hmkw=\"&UrlEncode(J144)&\"&hmci=\"&UrlEncode(L144)&\"\",\"http://\"&B144&IF(ISNUMBER(FIND(\"?\",B144)),\"&\",\"?\")&\"hmsr=\"&UrlEncode(D144)&\"&hmpl=\"&UrlEncode(F144)&\"&hmcu=\"&UrlEncode(H144)&\"&hmkw=\"&UrlEncode(J144)&\"&hmci=\"&UrlEncode(L144)&\"\"),\"请填写目标URL与媒体平台\")","v":"请填写目标URL与媒体平台"}]
[141,null,null,null,null,null,null,null,null,null,null,null,null,null,{"$f":"IF(LEN(B145)*LEN(D145),IF(OR(MID(B145,1,7)=\"http://\",MID(B145,1,8)=\"https://\"),B145&IF(ISNUMBER(FIND(\"?\",B145)),\"&\",\"?\")&\"hmsr=\"&UrlEncode(D145)&\"&hmpl=\"&UrlEncode(F145)&\"&hmcu=\"&UrlEncode(H145)&\"&hmkw=\"&UrlEncode(J145)&\"&hmci=\"&UrlEncode(L145)&\"\",\"http://\"&B145&IF(ISNUMBER(FIND(\"?\",B145)),\"&\",\"?\")&\"hmsr=\"&UrlEncode(D145)&\"&hmpl=\"&UrlEncode(F145)&\"&hmcu=\"&UrlEncode(H145)&\"&hmkw=\"&UrlEncode(J145)&\"&hmci=\"&UrlEncode(L145)&\"\"),\"请填写目标URL与媒体平台\")","v":"请填写目标URL与媒体平台"}]
[142,null,null,null,null,null,null,null,null,null,null,null,null,null,{"$f":"IF(LEN(B146)*LEN(D146),IF(OR(MID(B146,1,7)=\"http://\",MID(B146,1,8)=\"https://\"),B146&IF(ISNUMBER(FIND(\"?\",B146)),\"&\",\"?\")&\"hmsr=\"&UrlEncode(D146)&\"&hmpl=\"&UrlEncode(F146)&\"&hmcu=\"&UrlEncode(H146)&\"&hmkw=\"&UrlEncode(J146)&\"&hmci=\"&UrlEncode(L146)&\"\",\"http://\"&B146&IF(ISNUMBER(FIND(\"?\",B146)),\"&\",\"?\")&\"hmsr=\"&UrlEncode(D146)&\"&hmpl=\"&UrlEncode(F146)&\"&hmcu=\"&UrlEncode(H146)&\"&hmkw=\"&UrlEncode(J146)&\"&hmci=\"&UrlEncode(L146)&\"\"),\"请填写目标URL与媒体平台\")","v":"请填写目标URL与媒体平台"}]
[143,null,null,null,null,null,null,null,null,null,null,null,null,null,{"$f":"IF(LEN(B147)*LEN(D147),IF(OR(MID(B147,1,7)=\"http://\",MID(B147,1,8)=\"https://\"),B147&IF(ISNUMBER(FIND(\"?\",B147)),\"&\",\"?\")&\"hmsr=\"&UrlEncode(D147)&\"&hmpl=\"&UrlEncode(F147)&\"&hmcu=\"&UrlEncode(H147)&\"&hmkw=\"&UrlEncode(J147)&\"&hmci=\"&UrlEncode(L147)&\"\",\"http://\"&B147&IF(ISNUMBER(FIND(\"?\",B147)),\"&\",\"?\")&\"hmsr=\"&UrlEncode(D147)&\"&hmpl=\"&UrlEncode(F147)&\"&hmcu=\"&UrlEncode(H147)&\"&hmkw=\"&UrlEncode(J147)&\"&hmci=\"&UrlEncode(L147)&\"\"),\"请填写目标URL与媒体平台\")","v":"请填写目标URL与媒体平台"}]
[144,null,null,null,null,null,null,null,null,null,null,null,null,null,{"$f":"IF(LEN(B148)*LEN(D148),IF(OR(MID(B148,1,7)=\"http://\",MID(B148,1,8)=\"https://\"),B148&IF(ISNUMBER(FIND(\"?\",B148)),\"&\",\"?\")&\"hmsr=\"&UrlEncode(D148)&\"&hmpl=\"&UrlEncode(F148)&\"&hmcu=\"&UrlEncode(H148)&\"&hmkw=\"&UrlEncode(J148)&\"&hmci=\"&UrlEncode(L148)&\"\",\"http://\"&B148&IF(ISNUMBER(FIND(\"?\",B148)),\"&\",\"?\")&\"hmsr=\"&UrlEncode(D148)&\"&hmpl=\"&UrlEncode(F148)&\"&hmcu=\"&UrlEncode(H148)&\"&hmkw=\"&UrlEncode(J148)&\"&hmci=\"&UrlEncode(L148)&\"\"),\"请填写目标URL与媒体平台\")","v":"请填写目标URL与媒体平台"}]
[145,null,null,null,null,null,null,null,null,null,null,null,null,null,{"$f":"IF(LEN(B149)*LEN(D149),IF(OR(MID(B149,1,7)=\"http://\",MID(B149,1,8)=\"https://\"),B149&IF(ISNUMBER(FIND(\"?\",B149)),\"&\",\"?\")&\"hmsr=\"&UrlEncode(D149)&\"&hmpl=\"&UrlEncode(F149)&\"&hmcu=\"&UrlEncode(H149)&\"&hmkw=\"&UrlEncode(J149)&\"&hmci=\"&UrlEncode(L149)&\"\",\"http://\"&B149&IF(ISNUMBER(FIND(\"?\",B149)),\"&\",\"?\")&\"hmsr=\"&UrlEncode(D149)&\"&hmpl=\"&UrlEncode(F149)&\"&hmcu=\"&UrlEncode(H149)&\"&hmkw=\"&UrlEncode(J149)&\"&hmci=\"&UrlEncode(L149)&\"\"),\"请填写目标URL与媒体平台\")","v":"请填写目标URL与媒体平台"}]
[146,null,null,null,null,null,null,null,null,null,null,null,null,null,{"$f":"IF(LEN(B150)*LEN(D150),IF(OR(MID(B150,1,7)=\"http://\",MID(B150,1,8)=\"https://\"),B150&IF(ISNUMBER(FIND(\"?\",B150)),\"&\",\"?\")&\"hmsr=\"&UrlEncode(D150)&\"&hmpl=\"&UrlEncode(F150)&\"&hmcu=\"&UrlEncode(H150)&\"&hmkw=\"&UrlEncode(J150)&\"&hmci=\"&UrlEncode(L150)&\"\",\"http://\"&B150&IF(ISNUMBER(FIND(\"?\",B150)),\"&\",\"?\")&\"hmsr=\"&UrlEncode(D150)&\"&hmpl=\"&UrlEncode(F150)&\"&hmcu=\"&UrlEncode(H150)&\"&hmkw=\"&UrlEncode(J150)&\"&hmci=\"&UrlEncode(L150)&\"\"),\"请填写目标URL与媒体平台\")","v":"请填写目标URL与媒体平台"}]
[147,null,null,null,null,null,null,null,null,null,null,null,null,null,{"$f":"IF(LEN(B151)*LEN(D151),IF(OR(MID(B151,1,7)=\"http://\",MID(B151,1,8)=\"https://\"),B151&IF(ISNUMBER(FIND(\"?\",B151)),\"&\",\"?\")&\"hmsr=\"&UrlEncode(D151)&\"&hmpl=\"&UrlEncode(F151)&\"&hmcu=\"&UrlEncode(H151)&\"&hmkw=\"&UrlEncode(J151)&\"&hmci=\"&UrlEncode(L151)&\"\",\"http://\"&B151&IF(ISNUMBER(FIND(\"?\",B151)),\"&\",\"?\")&\"hmsr=\"&UrlEncode(D151)&\"&hmpl=\"&UrlEncode(F151)&\"&hmcu=\"&UrlEncode(H151)&\"&hmkw=\"&UrlEncode(J151)&\"&hmci=\"&UrlEncode(L151)&\"\"),\"请填写目标URL与媒体平台\")","v":"请填写目标URL与媒体平台"}]
[148,null,null,null,null,null,null,null,null,null,null,null,null,null,{"$f":"IF(LEN(B152)*LEN(D152),IF(OR(MID(B152,1,7)=\"http://\",MID(B152,1,8)=\"https://\"),B152&IF(ISNUMBER(FIND(\"?\",B152)),\"&\",\"?\")&\"hmsr=\"&UrlEncode(D152)&\"&hmpl=\"&UrlEncode(F152)&\"&hmcu=\"&UrlEncode(H152)&\"&hmkw=\"&UrlEncode(J152)&\"&hmci=\"&UrlEncode(L152)&\"\",\"http://\"&B152&IF(ISNUMBER(FIND(\"?\",B152)),\"&\",\"?\")&\"hmsr=\"&UrlEncode(D152)&\"&hmpl=\"&UrlEncode(F152)&\"&hmcu=\"&UrlEncode(H152)&\"&hmkw=\"&UrlEncode(J152)&\"&hmci=\"&UrlEncode(L152)&\"\"),\"请填写目标URL与媒体平台\")","v":"请填写目标URL与媒体平台"}]
[149,null,null,null,null,null,null,null,null,null,null,null,null,null,{"$f":"IF(LEN(B153)*LEN(D153),IF(OR(MID(B153,1,7)=\"http://\",MID(B153,1,8)=\"https://\"),B153&IF(ISNUMBER(FIND(\"?\",B153)),\"&\",\"?\")&\"hmsr=\"&UrlEncode(D153)&\"&hmpl=\"&UrlEncode(F153)&\"&hmcu=\"&UrlEncode(H153)&\"&hmkw=\"&UrlEncode(J153)&\"&hmci=\"&UrlEncode(L153)&\"\",\"http://\"&B153&IF(ISNUMBER(FIND(\"?\",B153)),\"&\",\"?\")&\"hmsr=\"&UrlEncode(D153)&\"&hmpl=\"&UrlEncode(F153)&\"&hmcu=\"&UrlEncode(H153)&\"&hmkw=\"&UrlEncode(J153)&\"&hmci=\"&UrlEncode(L153)&\"\"),\"请填写目标URL与媒体平台\")","v":"请填写目标URL与媒体平台"}]
[150,null,null,null,null,null,null,null,null,null,null,null,null,null,{"$f":"IF(LEN(B154)*LEN(D154),IF(OR(MID(B154,1,7)=\"http://\",MID(B154,1,8)=\"https://\"),B154&IF(ISNUMBER(FIND(\"?\",B154)),\"&\",\"?\")&\"hmsr=\"&UrlEncode(D154)&\"&hmpl=\"&UrlEncode(F154)&\"&hmcu=\"&UrlEncode(H154)&\"&hmkw=\"&UrlEncode(J154)&\"&hmci=\"&UrlEncode(L154)&\"\",\"http://\"&B154&IF(ISNUMBER(FIND(\"?\",B154)),\"&\",\"?\")&\"hmsr=\"&UrlEncode(D154)&\"&hmpl=\"&UrlEncode(F154)&\"&hmcu=\"&UrlEncode(H154)&\"&hmkw=\"&UrlEncode(J154)&\"&hmci=\"&UrlEncode(L154)&\"\"),\"请填写目标URL与媒体平台\")","v":"请填写目标URL与媒体平台"}]
[151,null,null,null,null,null,null,null,null,null,null,null,null,null,{"$f":"IF(LEN(B155)*LEN(D155),IF(OR(MID(B155,1,7)=\"http://\",MID(B155,1,8)=\"https://\"),B155&IF(ISNUMBER(FIND(\"?\",B155)),\"&\",\"?\")&\"hmsr=\"&UrlEncode(D155)&\"&hmpl=\"&UrlEncode(F155)&\"&hmcu=\"&UrlEncode(H155)&\"&hmkw=\"&UrlEncode(J155)&\"&hmci=\"&UrlEncode(L155)&\"\",\"http://\"&B155&IF(ISNUMBER(FIND(\"?\",B155)),\"&\",\"?\")&\"hmsr=\"&UrlEncode(D155)&\"&hmpl=\"&UrlEncode(F155)&\"&hmcu=\"&UrlEncode(H155)&\"&hmkw=\"&UrlEncode(J155)&\"&hmci=\"&UrlEncode(L155)&\"\"),\"请填写目标URL与媒体平台\")","v":"请填写目标URL与媒体平台"}]
[152,null,null,null,null,null,null,null,null,null,null,null,null,null,{"$f":"IF(LEN(B156)*LEN(D156),IF(OR(MID(B156,1,7)=\"http://\",MID(B156,1,8)=\"https://\"),B156&IF(ISNUMBER(FIND(\"?\",B156)),\"&\",\"?\")&\"hmsr=\"&UrlEncode(D156)&\"&hmpl=\"&UrlEncode(F156)&\"&hmcu=\"&UrlEncode(H156)&\"&hmkw=\"&UrlEncode(J156)&\"&hmci=\"&UrlEncode(L156)&\"\",\"http://\"&B156&IF(ISNUMBER(FIND(\"?\",B156)),\"&\",\"?\")&\"hmsr=\"&UrlEncode(D156)&\"&hmpl=\"&UrlEncode(F156)&\"&hmcu=\"&UrlEncode(H156)&\"&hmkw=\"&UrlEncode(J156)&\"&hmci=\"&UrlEncode(L156)&\"\"),\"请填写目标URL与媒体平台\")","v":"请填写目标URL与媒体平台"}]
[153,null,null,null,null,null,null,null,null,null,null,null,null,null,{"$f":"IF(LEN(B157)*LEN(D157),IF(OR(MID(B157,1,7)=\"http://\",MID(B157,1,8)=\"https://\"),B157&IF(ISNUMBER(FIND(\"?\",B157)),\"&\",\"?\")&\"hmsr=\"&UrlEncode(D157)&\"&hmpl=\"&UrlEncode(F157)&\"&hmcu=\"&UrlEncode(H157)&\"&hmkw=\"&UrlEncode(J157)&\"&hmci=\"&UrlEncode(L157)&\"\",\"http://\"&B157&IF(ISNUMBER(FIND(\"?\",B157)),\"&\",\"?\")&\"hmsr=\"&UrlEncode(D157)&\"&hmpl=\"&UrlEncode(F157)&\"&hmcu=\"&UrlEncode(H157)&\"&hmkw=\"&UrlEncode(J157)&\"&hmci=\"&UrlEncode(L157)&\"\"),\"请填写目标URL与媒体平台\")","v":"请填写目标URL与媒体平台"}]
[154,null,null,null,null,null,null,null,null,null,null,null,null,null,{"$f":"IF(LEN(B158)*LEN(D158),IF(OR(MID(B158,1,7)=\"http://\",MID(B158,1,8)=\"https://\"),B158&IF(ISNUMBER(FIND(\"?\",B158)),\"&\",\"?\")&\"hmsr=\"&UrlEncode(D158)&\"&hmpl=\"&UrlEncode(F158)&\"&hmcu=\"&UrlEncode(H158)&\"&hmkw=\"&UrlEncode(J158)&\"&hmci=\"&UrlEncode(L158)&\"\",\"http://\"&B158&IF(ISNUMBER(FIND(\"?\",B158)),\"&\",\"?\")&\"hmsr=\"&UrlEncode(D158)&\"&hmpl=\"&UrlEncode(F158)&\"&hmcu=\"&UrlEncode(H158)&\"&hmkw=\"&UrlEncode(J158)&\"&hmci=\"&UrlEncode(L158)&\"\"),\"请填写目标URL与媒体平台\")","v":"请填写目标URL与媒体平台"}]
[155,null,null,null,null,null,null,null,null,null,null,null,null,null,{"$f":"IF(LEN(B159)*LEN(D159),IF(OR(MID(B159,1,7)=\"http://\",MID(B159,1,8)=\"https://\"),B159&IF(ISNUMBER(FIND(\"?\",B159)),\"&\",\"?\")&\"hmsr=\"&UrlEncode(D159)&\"&hmpl=\"&UrlEncode(F159)&\"&hmcu=\"&UrlEncode(H159)&\"&hmkw=\"&UrlEncode(J159)&\"&hmci=\"&UrlEncode(L159)&\"\",\"http://\"&B159&IF(ISNUMBER(FIND(\"?\",B159)),\"&\",\"?\")&\"hmsr=\"&UrlEncode(D159)&\"&hmpl=\"&UrlEncode(F159)&\"&hmcu=\"&UrlEncode(H159)&\"&hmkw=\"&UrlEncode(J159)&\"&hmci=\"&UrlEncode(L159)&\"\"),\"请填写目标URL与媒体平台\")","v":"请填写目标URL与媒体平台"}]
[156,null,null,null,null,null,null,null,null,null,null,null,null,null,{"$f":"IF(LEN(B160)*LEN(D160),IF(OR(MID(B160,1,7)=\"http://\",MID(B160,1,8)=\"https://\"),B160&IF(ISNUMBER(FIND(\"?\",B160)),\"&\",\"?\")&\"hmsr=\"&UrlEncode(D160)&\"&hmpl=\"&UrlEncode(F160)&\"&hmcu=\"&UrlEncode(H160)&\"&hmkw=\"&UrlEncode(J160)&\"&hmci=\"&UrlEncode(L160)&\"\",\"http://\"&B160&IF(ISNUMBER(FIND(\"?\",B160)),\"&\",\"?\")&\"hmsr=\"&UrlEncode(D160)&\"&hmpl=\"&UrlEncode(F160)&\"&hmcu=\"&UrlEncode(H160)&\"&hmkw=\"&UrlEncode(J160)&\"&hmci=\"&UrlEncode(L160)&\"\"),\"请填写目标URL与媒体平台\")","v":"请填写目标URL与媒体平台"}]
[157,null,null,null,null,null,null,null,null,null,null,null,null,null,{"$f":"IF(LEN(B161)*LEN(D161),IF(OR(MID(B161,1,7)=\"http://\",MID(B161,1,8)=\"https://\"),B161&IF(ISNUMBER(FIND(\"?\",B161)),\"&\",\"?\")&\"hmsr=\"&UrlEncode(D161)&\"&hmpl=\"&UrlEncode(F161)&\"&hmcu=\"&UrlEncode(H161)&\"&hmkw=\"&UrlEncode(J161)&\"&hmci=\"&UrlEncode(L161)&\"\",\"http://\"&B161&IF(ISNUMBER(FIND(\"?\",B161)),\"&\",\"?\")&\"hmsr=\"&UrlEncode(D161)&\"&hmpl=\"&UrlEncode(F161)&\"&hmcu=\"&UrlEncode(H161)&\"&hmkw=\"&UrlEncode(J161)&\"&hmci=\"&UrlEncode(L161)&\"\"),\"请填写目标URL与媒体平台\")","v":"请填写目标URL与媒体平台"}]
[158,null,null,null,null,null,null,null,null,null,null,null,null,null,{"$f":"IF(LEN(B162)*LEN(D162),IF(OR(MID(B162,1,7)=\"http://\",MID(B162,1,8)=\"https://\"),B162&IF(ISNUMBER(FIND(\"?\",B162)),\"&\",\"?\")&\"hmsr=\"&UrlEncode(D162)&\"&hmpl=\"&UrlEncode(F162)&\"&hmcu=\"&UrlEncode(H162)&\"&hmkw=\"&UrlEncode(J162)&\"&hmci=\"&UrlEncode(L162)&\"\",\"http://\"&B162&IF(ISNUMBER(FIND(\"?\",B162)),\"&\",\"?\")&\"hmsr=\"&UrlEncode(D162)&\"&hmpl=\"&UrlEncode(F162)&\"&hmcu=\"&UrlEncode(H162)&\"&hmkw=\"&UrlEncode(J162)&\"&hmci=\"&UrlEncode(L162)&\"\"),\"请填写目标URL与媒体平台\")","v":"请填写目标URL与媒体平台"}]
[159,null,null,null,null,null,null,null,null,null,null,null,null,null,{"$f":"IF(LEN(B163)*LEN(D163),IF(OR(MID(B163,1,7)=\"http://\",MID(B163,1,8)=\"https://\"),B163&IF(ISNUMBER(FIND(\"?\",B163)),\"&\",\"?\")&\"hmsr=\"&UrlEncode(D163)&\"&hmpl=\"&UrlEncode(F163)&\"&hmcu=\"&UrlEncode(H163)&\"&hmkw=\"&UrlEncode(J163)&\"&hmci=\"&UrlEncode(L163)&\"\",\"http://\"&B163&IF(ISNUMBER(FIND(\"?\",B163)),\"&\",\"?\")&\"hmsr=\"&UrlEncode(D163)&\"&hmpl=\"&UrlEncode(F163)&\"&hmcu=\"&UrlEncode(H163)&\"&hmkw=\"&UrlEncode(J163)&\"&hmci=\"&UrlEncode(L163)&\"\"),\"请填写目标URL与媒体平台\")","v":"请填写目标URL与媒体平台"}]
[160,null,null,null,null,null,null,null,null,null,null,null,null,null,{"$f":"IF(LEN(B164)*LEN(D164),IF(OR(MID(B164,1,7)=\"http://\",MID(B164,1,8)=\"https://\"),B164&IF(ISNUMBER(FIND(\"?\",B164)),\"&\",\"?\")&\"hmsr=\"&UrlEncode(D164)&\"&hmpl=\"&UrlEncode(F164)&\"&hmcu=\"&UrlEncode(H164)&\"&hmkw=\"&UrlEncode(J164)&\"&hmci=\"&UrlEncode(L164)&\"\",\"http://\"&B164&IF(ISNUMBER(FIND(\"?\",B164)),\"&\",\"?\")&\"hmsr=\"&UrlEncode(D164)&\"&hmpl=\"&UrlEncode(F164)&\"&hmcu=\"&UrlEncode(H164)&\"&hmkw=\"&UrlEncode(J164)&\"&hmci=\"&UrlEncode(L164)&\"\"),\"请填写目标URL与媒体平台\")","v":"请填写目标URL与媒体平台"}]
[161,null,null,null,null,null,null,null,null,null,null,null,null,null,{"$f":"IF(LEN(B165)*LEN(D165),IF(OR(MID(B165,1,7)=\"http://\",MID(B165,1,8)=\"https://\"),B165&IF(ISNUMBER(FIND(\"?\",B165)),\"&\",\"?\")&\"hmsr=\"&UrlEncode(D165)&\"&hmpl=\"&UrlEncode(F165)&\"&hmcu=\"&UrlEncode(H165)&\"&hmkw=\"&UrlEncode(J165)&\"&hmci=\"&UrlEncode(L165)&\"\",\"http://\"&B165&IF(ISNUMBER(FIND(\"?\",B165)),\"&\",\"?\")&\"hmsr=\"&UrlEncode(D165)&\"&hmpl=\"&UrlEncode(F165)&\"&hmcu=\"&UrlEncode(H165)&\"&hmkw=\"&UrlEncode(J165)&\"&hmci=\"&UrlEncode(L165)&\"\"),\"请填写目标URL与媒体平台\")","v":"请填写目标URL与媒体平台"}]
[162,null,null,null,null,null,null,null,null,null,null,null,null,null,{"$f":"IF(LEN(B166)*LEN(D166),IF(OR(MID(B166,1,7)=\"http://\",MID(B166,1,8)=\"https://\"),B166&IF(ISNUMBER(FIND(\"?\",B166)),\"&\",\"?\")&\"hmsr=\"&UrlEncode(D166)&\"&hmpl=\"&UrlEncode(F166)&\"&hmcu=\"&UrlEncode(H166)&\"&hmkw=\"&UrlEncode(J166)&\"&hmci=\"&UrlEncode(L166)&\"\",\"http://\"&B166&IF(ISNUMBER(FIND(\"?\",B166)),\"&\",\"?\")&\"hmsr=\"&UrlEncode(D166)&\"&hmpl=\"&UrlEncode(F166)&\"&hmcu=\"&UrlEncode(H166)&\"&hmkw=\"&UrlEncode(J166)&\"&hmci=\"&UrlEncode(L166)&\"\"),\"请填写目标URL与媒体平台\")","v":"请填写目标URL与媒体平台"}]
[163,null,null,null,null,null,null,null,null,null,null,null,null,null,{"$f":"IF(LEN(B167)*LEN(D167),IF(OR(MID(B167,1,7)=\"http://\",MID(B167,1,8)=\"https://\"),B167&IF(ISNUMBER(FIND(\"?\",B167)),\"&\",\"?\")&\"hmsr=\"&UrlEncode(D167)&\"&hmpl=\"&UrlEncode(F167)&\"&hmcu=\"&UrlEncode(H167)&\"&hmkw=\"&UrlEncode(J167)&\"&hmci=\"&UrlEncode(L167)&\"\",\"http://\"&B167&IF(ISNUMBER(FIND(\"?\",B167)),\"&\",\"?\")&\"hmsr=\"&UrlEncode(D167)&\"&hmpl=\"&UrlEncode(F167)&\"&hmcu=\"&UrlEncode(H167)&\"&hmkw=\"&UrlEncode(J167)&\"&hmci=\"&UrlEncode(L167)&\"\"),\"请填写目标URL与媒体平台\")","v":"请填写目标URL与媒体平台"}]
[164,null,null,null,null,null,null,null,null,null,null,null,null,null,{"$f":"IF(LEN(B168)*LEN(D168),IF(OR(MID(B168,1,7)=\"http://\",MID(B168,1,8)=\"https://\"),B168&IF(ISNUMBER(FIND(\"?\",B168)),\"&\",\"?\")&\"hmsr=\"&UrlEncode(D168)&\"&hmpl=\"&UrlEncode(F168)&\"&hmcu=\"&UrlEncode(H168)&\"&hmkw=\"&UrlEncode(J168)&\"&hmci=\"&UrlEncode(L168)&\"\",\"http://\"&B168&IF(ISNUMBER(FIND(\"?\",B168)),\"&\",\"?\")&\"hmsr=\"&UrlEncode(D168)&\"&hmpl=\"&UrlEncode(F168)&\"&hmcu=\"&UrlEncode(H168)&\"&hmkw=\"&UrlEncode(J168)&\"&hmci=\"&UrlEncode(L168)&\"\"),\"请填写目标URL与媒体平台\")","v":"请填写目标URL与媒体平台"}]
[165,null,null,null,null,null,null,null,null,null,null,null,null,null,{"$f":"IF(LEN(B169)*LEN(D169),IF(OR(MID(B169,1,7)=\"http://\",MID(B169,1,8)=\"https://\"),B169&IF(ISNUMBER(FIND(\"?\",B169)),\"&\",\"?\")&\"hmsr=\"&UrlEncode(D169)&\"&hmpl=\"&UrlEncode(F169)&\"&hmcu=\"&UrlEncode(H169)&\"&hmkw=\"&UrlEncode(J169)&\"&hmci=\"&UrlEncode(L169)&\"\",\"http://\"&B169&IF(ISNUMBER(FIND(\"?\",B169)),\"&\",\"?\")&\"hmsr=\"&UrlEncode(D169)&\"&hmpl=\"&UrlEncode(F169)&\"&hmcu=\"&UrlEncode(H169)&\"&hmkw=\"&UrlEncode(J169)&\"&hmci=\"&UrlEncode(L169)&\"\"),\"请填写目标URL与媒体平台\")","v":"请填写目标URL与媒体平台"}]
[166,null,null,null,null,null,null,null,null,null,null,null,null,null,{"$f":"IF(LEN(B170)*LEN(D170),IF(OR(MID(B170,1,7)=\"http://\",MID(B170,1,8)=\"https://\"),B170&IF(ISNUMBER(FIND(\"?\",B170)),\"&\",\"?\")&\"hmsr=\"&UrlEncode(D170)&\"&hmpl=\"&UrlEncode(F170)&\"&hmcu=\"&UrlEncode(H170)&\"&hmkw=\"&UrlEncode(J170)&\"&hmci=\"&UrlEncode(L170)&\"\",\"http://\"&B170&IF(ISNUMBER(FIND(\"?\",B170)),\"&\",\"?\")&\"hmsr=\"&UrlEncode(D170)&\"&hmpl=\"&UrlEncode(F170)&\"&hmcu=\"&UrlEncode(H170)&\"&hmkw=\"&UrlEncode(J170)&\"&hmci=\"&UrlEncode(L170)&\"\"),\"请填写目标URL与媒体平台\")","v":"请填写目标URL与媒体平台"}]
[167,null,null,null,null,null,null,null,null,null,null,null,null,null,{"$f":"IF(LEN(B171)*LEN(D171),IF(OR(MID(B171,1,7)=\"http://\",MID(B171,1,8)=\"https://\"),B171&IF(ISNUMBER(FIND(\"?\",B171)),\"&\",\"?\")&\"hmsr=\"&UrlEncode(D171)&\"&hmpl=\"&UrlEncode(F171)&\"&hmcu=\"&UrlEncode(H171)&\"&hmkw=\"&UrlEncode(J171)&\"&hmci=\"&UrlEncode(L171)&\"\",\"http://\"&B171&IF(ISNUMBER(FIND(\"?\",B171)),\"&\",\"?\")&\"hmsr=\"&UrlEncode(D171)&\"&hmpl=\"&UrlEncode(F171)&\"&hmcu=\"&UrlEncode(H171)&\"&hmkw=\"&UrlEncode(J171)&\"&hmci=\"&UrlEncode(L171)&\"\"),\"请填写目标URL与媒体平台\")","v":"请填写目标URL与媒体平台"}]
[168,null,null,null,null,null,null,null,null,null,null,null,null,null,{"$f":"IF(LEN(B172)*LEN(D172),IF(OR(MID(B172,1,7)=\"http://\",MID(B172,1,8)=\"https://\"),B172&IF(ISNUMBER(FIND(\"?\",B172)),\"&\",\"?\")&\"hmsr=\"&UrlEncode(D172)&\"&hmpl=\"&UrlEncode(F172)&\"&hmcu=\"&UrlEncode(H172)&\"&hmkw=\"&UrlEncode(J172)&\"&hmci=\"&UrlEncode(L172)&\"\",\"http://\"&B172&IF(ISNUMBER(FIND(\"?\",B172)),\"&\",\"?\")&\"hmsr=\"&UrlEncode(D172)&\"&hmpl=\"&UrlEncode(F172)&\"&hmcu=\"&UrlEncode(H172)&\"&hmkw=\"&UrlEncode(J172)&\"&hmci=\"&UrlEncode(L172)&\"\"),\"请填写目标URL与媒体平台\")","v":"请填写目标URL与媒体平台"}]
[169,null,null,null,null,null,null,null,null,null,null,null,null,null,{"$f":"IF(LEN(B173)*LEN(D173),IF(OR(MID(B173,1,7)=\"http://\",MID(B173,1,8)=\"https://\"),B173&IF(ISNUMBER(FIND(\"?\",B173)),\"&\",\"?\")&\"hmsr=\"&UrlEncode(D173)&\"&hmpl=\"&UrlEncode(F173)&\"&hmcu=\"&UrlEncode(H173)&\"&hmkw=\"&UrlEncode(J173)&\"&hmci=\"&UrlEncode(L173)&\"\",\"http://\"&B173&IF(ISNUMBER(FIND(\"?\",B173)),\"&\",\"?\")&\"hmsr=\"&UrlEncode(D173)&\"&hmpl=\"&UrlEncode(F173)&\"&hmcu=\"&UrlEncode(H173)&\"&hmkw=\"&UrlEncode(J173)&\"&hmci=\"&UrlEncode(L173)&\"\"),\"请填写目标URL与媒体平台\")","v":"请填写目标URL与媒体平台"}]
[170,null,null,null,null,null,null,null,null,null,null,null,null,null,{"$f":"IF(LEN(B174)*LEN(D174),IF(OR(MID(B174,1,7)=\"http://\",MID(B174,1,8)=\"https://\"),B174&IF(ISNUMBER(FIND(\"?\",B174)),\"&\",\"?\")&\"hmsr=\"&UrlEncode(D174)&\"&hmpl=\"&UrlEncode(F174)&\"&hmcu=\"&UrlEncode(H174)&\"&hmkw=\"&UrlEncode(J174)&\"&hmci=\"&UrlEncode(L174)&\"\",\"http://\"&B174&IF(ISNUMBER(FIND(\"?\",B174)),\"&\",\"?\")&\"hmsr=\"&UrlEncode(D174)&\"&hmpl=\"&UrlEncode(F174)&\"&hmcu=\"&UrlEncode(H174)&\"&hmkw=\"&UrlEncode(J174)&\"&hmci=\"&UrlEncode(L174)&\"\"),\"请填写目标URL与媒体平台\")","v":"请填写目标URL与媒体平台"}]
[171,null,null,null,null,null,null,null,null,null,null,null,null,null,{"$f":"IF(LEN(B175)*LEN(D175),IF(OR(MID(B175,1,7)=\"http://\",MID(B175,1,8)=\"https://\"),B175&IF(ISNUMBER(FIND(\"?\",B175)),\"&\",\"?\")&\"hmsr=\"&UrlEncode(D175)&\"&hmpl=\"&UrlEncode(F175)&\"&hmcu=\"&UrlEncode(H175)&\"&hmkw=\"&UrlEncode(J175)&\"&hmci=\"&UrlEncode(L175)&\"\",\"http://\"&B175&IF(ISNUMBER(FIND(\"?\",B175)),\"&\",\"?\")&\"hmsr=\"&UrlEncode(D175)&\"&hmpl=\"&UrlEncode(F175)&\"&hmcu=\"&UrlEncode(H175)&\"&hmkw=\"&UrlEncode(J175)&\"&hmci=\"&UrlEncode(L175)&\"\"),\"请填写目标URL与媒体平台\")","v":"请填写目标URL与媒体平台"}]
[172,null,null,null,null,null,null,null,null,null,null,null,null,null,{"$f":"IF(LEN(B176)*LEN(D176),IF(OR(MID(B176,1,7)=\"http://\",MID(B176,1,8)=\"https://\"),B176&IF(ISNUMBER(FIND(\"?\",B176)),\"&\",\"?\")&\"hmsr=\"&UrlEncode(D176)&\"&hmpl=\"&UrlEncode(F176)&\"&hmcu=\"&UrlEncode(H176)&\"&hmkw=\"&UrlEncode(J176)&\"&hmci=\"&UrlEncode(L176)&\"\",\"http://\"&B176&IF(ISNUMBER(FIND(\"?\",B176)),\"&\",\"?\")&\"hmsr=\"&UrlEncode(D176)&\"&hmpl=\"&UrlEncode(F176)&\"&hmcu=\"&UrlEncode(H176)&\"&hmkw=\"&UrlEncode(J176)&\"&hmci=\"&UrlEncode(L176)&\"\"),\"请填写目标URL与媒体平台\")","v":"请填写目标URL与媒体平台"}]
[173,null,null,null,null,null,null,null,null,null,null,null,null,null,{"$f":"IF(LEN(B177)*LEN(D177),IF(OR(MID(B177,1,7)=\"http://\",MID(B177,1,8)=\"https://\"),B177&IF(ISNUMBER(FIND(\"?\",B177)),\"&\",\"?\")&\"hmsr=\"&UrlEncode(D177)&\"&hmpl=\"&UrlEncode(F177)&\"&hmcu=\"&UrlEncode(H177)&\"&hmkw=\"&UrlEncode(J177)&\"&hmci=\"&UrlEncode(L177)&\"\",\"http://\"&B177&IF(ISNUMBER(FIND(\"?\",B177)),\"&\",\"?\")&\"hmsr=\"&UrlEncode(D177)&\"&hmpl=\"&UrlEncode(F177)&\"&hmcu=\"&UrlEncode(H177)&\"&hmkw=\"&UrlEncode(J177)&\"&hmci=\"&UrlEncode(L177)&\"\"),\"请填写目标URL与媒体平台\")","v":"请填写目标URL与媒体平台"}]
[174,null,null,null,null,null,null,null,null,null,null,null,null,null,{"$f":"IF(LEN(B178)*LEN(D178),IF(OR(MID(B178,1,7)=\"http://\",MID(B178,1,8)=\"https://\"),B178&IF(ISNUMBER(FIND(\"?\",B178)),\"&\",\"?\")&\"hmsr=\"&UrlEncode(D178)&\"&hmpl=\"&UrlEncode(F178)&\"&hmcu=\"&UrlEncode(H178)&\"&hmkw=\"&UrlEncode(J178)&\"&hmci=\"&UrlEncode(L178)&\"\",\"http://\"&B178&IF(ISNUMBER(FIND(\"?\",B178)),\"&\",\"?\")&\"hmsr=\"&UrlEncode(D178)&\"&hmpl=\"&UrlEncode(F178)&\"&hmcu=\"&UrlEncode(H178)&\"&hmkw=\"&UrlEncode(J178)&\"&hmci=\"&UrlEncode(L178)&\"\"),\"请填写目标URL与媒体平台\")","v":"请填写目标URL与媒体平台"}]
[175,null,null,null,null,null,null,null,null,null,null,null,null,null,{"$f":"IF(LEN(B179)*LEN(D179),IF(OR(MID(B179,1,7)=\"http://\",MID(B179,1,8)=\"https://\"),B179&IF(ISNUMBER(FIND(\"?\",B179)),\"&\",\"?\")&\"hmsr=\"&UrlEncode(D179)&\"&hmpl=\"&UrlEncode(F179)&\"&hmcu=\"&UrlEncode(H179)&\"&hmkw=\"&UrlEncode(J179)&\"&hmci=\"&UrlEncode(L179)&\"\",\"http://\"&B179&IF(ISNUMBER(FIND(\"?\",B179)),\"&\",\"?\")&\"hmsr=\"&UrlEncode(D179)&\"&hmpl=\"&UrlEncode(F179)&\"&hmcu=\"&UrlEncode(H179)&\"&hmkw=\"&UrlEncode(J179)&\"&hmci=\"&UrlEncode(L179)&\"\"),\"请填写目标URL与媒体平台\")","v":"请填写目标URL与媒体平台"}]
[176,null,null,null,null,null,null,null,null,null,null,null,null,null,{"$f":"IF(LEN(B180)*LEN(D180),IF(OR(MID(B180,1,7)=\"http://\",MID(B180,1,8)=\"https://\"),B180&IF(ISNUMBER(FIND(\"?\",B180)),\"&\",\"?\")&\"hmsr=\"&UrlEncode(D180)&\"&hmpl=\"&UrlEncode(F180)&\"&hmcu=\"&UrlEncode(H180)&\"&hmkw=\"&UrlEncode(J180)&\"&hmci=\"&UrlEncode(L180)&\"\",\"http://\"&B180&IF(ISNUMBER(FIND(\"?\",B180)),\"&\",\"?\")&\"hmsr=\"&UrlEncode(D180)&\"&hmpl=\"&UrlEncode(F180)&\"&hmcu=\"&UrlEncode(H180)&\"&hmkw=\"&UrlEncode(J180)&\"&hmci=\"&UrlEncode(L180)&\"\"),\"请填写目标URL与媒体平台\")","v":"请填写目标URL与媒体平台"}]
[177,null,null,null,null,null,null,null,null,null,null,null,null,null,{"$f":"IF(LEN(B181)*LEN(D181),IF(OR(MID(B181,1,7)=\"http://\",MID(B181,1,8)=\"https://\"),B181&IF(ISNUMBER(FIND(\"?\",B181)),\"&\",\"?\")&\"hmsr=\"&UrlEncode(D181)&\"&hmpl=\"&UrlEncode(F181)&\"&hmcu=\"&UrlEncode(H181)&\"&hmkw=\"&UrlEncode(J181)&\"&hmci=\"&UrlEncode(L181)&\"\",\"http://\"&B181&IF(ISNUMBER(FIND(\"?\",B181)),\"&\",\"?\")&\"hmsr=\"&UrlEncode(D181)&\"&hmpl=\"&UrlEncode(F181)&\"&hmcu=\"&UrlEncode(H181)&\"&hmkw=\"&UrlEncode(J181)&\"&hmci=\"&UrlEncode(L181)&\"\"),\"请填写目标URL与媒体平台\")","v":"请填写目标URL与媒体平台"}]
[178,null,null,null,null,null,null,null,null,null,null,null,null,null,{"$f":"IF(LEN(B182)*LEN(D182),IF(OR(MID(B182,1,7)=\"http://\",MID(B182,1,8)=\"https://\"),B182&IF(ISNUMBER(FIND(\"?\",B182)),\"&\",\"?\")&\"hmsr=\"&UrlEncode(D182)&\"&hmpl=\"&UrlEncode(F182)&\"&hmcu=\"&UrlEncode(H182)&\"&hmkw=\"&UrlEncode(J182)&\"&hmci=\"&UrlEncode(L182)&\"\",\"http://\"&B182&IF(ISNUMBER(FIND(\"?\",B182)),\"&\",\"?\")&\"hmsr=\"&UrlEncode(D182)&\"&hmpl=\"&UrlEncode(F182)&\"&hmcu=\"&UrlEncode(H182)&\"&hmkw=\"&UrlEncode(J182)&\"&hmci=\"&UrlEncode(L182)&\"\"),\"请填写目标URL与媒体平台\")","v":"请填写目标URL与媒体平台"}]
[179,null,null,null,null,null,null,null,null,null,null,null,null,null,{"$f":"IF(LEN(B183)*LEN(D183),IF(OR(MID(B183,1,7)=\"http://\",MID(B183,1,8)=\"https://\"),B183&IF(ISNUMBER(FIND(\"?\",B183)),\"&\",\"?\")&\"hmsr=\"&UrlEncode(D183)&\"&hmpl=\"&UrlEncode(F183)&\"&hmcu=\"&UrlEncode(H183)&\"&hmkw=\"&UrlEncode(J183)&\"&hmci=\"&UrlEncode(L183)&\"\",\"http://\"&B183&IF(ISNUMBER(FIND(\"?\",B183)),\"&\",\"?\")&\"hmsr=\"&UrlEncode(D183)&\"&hmpl=\"&UrlEncode(F183)&\"&hmcu=\"&UrlEncode(H183)&\"&hmkw=\"&UrlEncode(J183)&\"&hmci=\"&UrlEncode(L183)&\"\"),\"请填写目标URL与媒体平台\")","v":"请填写目标URL与媒体平台"}]
[180,null,null,null,null,null,null,null,null,null,null,null,null,null,{"$f":"IF(LEN(B184)*LEN(D184),IF(OR(MID(B184,1,7)=\"http://\",MID(B184,1,8)=\"https://\"),B184&IF(ISNUMBER(FIND(\"?\",B184)),\"&\",\"?\")&\"hmsr=\"&UrlEncode(D184)&\"&hmpl=\"&UrlEncode(F184)&\"&hmcu=\"&UrlEncode(H184)&\"&hmkw=\"&UrlEncode(J184)&\"&hmci=\"&UrlEncode(L184)&\"\",\"http://\"&B184&IF(ISNUMBER(FIND(\"?\",B184)),\"&\",\"?\")&\"hmsr=\"&UrlEncode(D184)&\"&hmpl=\"&UrlEncode(F184)&\"&hmcu=\"&UrlEncode(H184)&\"&hmkw=\"&UrlEncode(J184)&\"&hmci=\"&UrlEncode(L184)&\"\"),\"请填写目标URL与媒体平台\")","v":"请填写目标URL与媒体平台"}]
[181,null,null,null,null,null,null,null,null,null,null,null,null,null,{"$f":"IF(LEN(B185)*LEN(D185),IF(OR(MID(B185,1,7)=\"http://\",MID(B185,1,8)=\"https://\"),B185&IF(ISNUMBER(FIND(\"?\",B185)),\"&\",\"?\")&\"hmsr=\"&UrlEncode(D185)&\"&hmpl=\"&UrlEncode(F185)&\"&hmcu=\"&UrlEncode(H185)&\"&hmkw=\"&UrlEncode(J185)&\"&hmci=\"&UrlEncode(L185)&\"\",\"http://\"&B185&IF(ISNUMBER(FIND(\"?\",B185)),\"&\",\"?\")&\"hmsr=\"&UrlEncode(D185)&\"&hmpl=\"&UrlEncode(F185)&\"&hmcu=\"&UrlEncode(H185)&\"&hmkw=\"&UrlEncode(J185)&\"&hmci=\"&UrlEncode(L185)&\"\"),\"请填写目标URL与媒体平台\")","v":"请填写目标URL与媒体平台"}]
[182,null,null,null,null,null,null,null,null,null,null,null,null,null,{"$f":"IF(LEN(B186)*LEN(D186),IF(OR(MID(B186,1,7)=\"http://\",MID(B186,1,8)=\"https://\"),B186&IF(ISNUMBER(FIND(\"?\",B186)),\"&\",\"?\")&\"hmsr=\"&UrlEncode(D186)&\"&hmpl=\"&UrlEncode(F186)&\"&hmcu=\"&UrlEncode(H186)&\"&hmkw=\"&UrlEncode(J186)&\"&hmci=\"&UrlEncode(L186)&\"\",\"http://\"&B186&IF(ISNUMBER(FIND(\"?\",B186)),\"&\",\"?\")&\"hmsr=\"&UrlEncode(D186)&\"&hmpl=\"&UrlEncode(F186)&\"&hmcu=\"&UrlEncode(H186)&\"&hmkw=\"&UrlEncode(J186)&\"&hmci=\"&UrlEncode(L186)&\"\"),\"请填写目标URL与媒体平台\")","v":"请填写目标URL与媒体平台"}]
[183,null,null,null,null,null,null,null,null,null,null,null,null,null,{"$f":"IF(LEN(B187)*LEN(D187),IF(OR(MID(B187,1,7)=\"http://\",MID(B187,1,8)=\"https://\"),B187&IF(ISNUMBER(FIND(\"?\",B187)),\"&\",\"?\")&\"hmsr=\"&UrlEncode(D187)&\"&hmpl=\"&UrlEncode(F187)&\"&hmcu=\"&UrlEncode(H187)&\"&hmkw=\"&UrlEncode(J187)&\"&hmci=\"&UrlEncode(L187)&\"\",\"http://\"&B187&IF(ISNUMBER(FIND(\"?\",B187)),\"&\",\"?\")&\"hmsr=\"&UrlEncode(D187)&\"&hmpl=\"&UrlEncode(F187)&\"&hmcu=\"&UrlEncode(H187)&\"&hmkw=\"&UrlEncode(J187)&\"&hmci=\"&UrlEncode(L187)&\"\"),\"请填写目标URL与媒体平台\")","v":"请填写目标URL与媒体平台"}]
[184,null,null,null,null,null,null,null,null,null,null,null,null,null,{"$f":"IF(LEN(B188)*LEN(D188),IF(OR(MID(B188,1,7)=\"http://\",MID(B188,1,8)=\"https://\"),B188&IF(ISNUMBER(FIND(\"?\",B188)),\"&\",\"?\")&\"hmsr=\"&UrlEncode(D188)&\"&hmpl=\"&UrlEncode(F188)&\"&hmcu=\"&UrlEncode(H188)&\"&hmkw=\"&UrlEncode(J188)&\"&hmci=\"&UrlEncode(L188)&\"\",\"http://\"&B188&IF(ISNUMBER(FIND(\"?\",B188)),\"&\",\"?\")&\"hmsr=\"&UrlEncode(D188)&\"&hmpl=\"&UrlEncode(F188)&\"&hmcu=\"&UrlEncode(H188)&\"&hmkw=\"&UrlEncode(J188)&\"&hmci=\"&UrlEncode(L188)&\"\"),\"请填写目标URL与媒体平台\")","v":"请填写目标URL与媒体平台"}]
[185,null,null,null,null,null,null,null,null,null,null,null,null,null,{"$f":"IF(LEN(B189)*LEN(D189),IF(OR(MID(B189,1,7)=\"http://\",MID(B189,1,8)=\"https://\"),B189&IF(ISNUMBER(FIND(\"?\",B189)),\"&\",\"?\")&\"hmsr=\"&UrlEncode(D189)&\"&hmpl=\"&UrlEncode(F189)&\"&hmcu=\"&UrlEncode(H189)&\"&hmkw=\"&UrlEncode(J189)&\"&hmci=\"&UrlEncode(L189)&\"\",\"http://\"&B189&IF(ISNUMBER(FIND(\"?\",B189)),\"&\",\"?\")&\"hmsr=\"&UrlEncode(D189)&\"&hmpl=\"&UrlEncode(F189)&\"&hmcu=\"&UrlEncode(H189)&\"&hmkw=\"&UrlEncode(J189)&\"&hmci=\"&UrlEncode(L189)&\"\"),\"请填写目标URL与媒体平台\")","v":"请填写目标URL与媒体平台"}]
[186,null,null,null,null,null,null,null,null,null,null,null,null,null,{"$f":"IF(LEN(B190)*LEN(D190),IF(OR(MID(B190,1,7)=\"http://\",MID(B190,1,8)=\"https://\"),B190&IF(ISNUMBER(FIND(\"?\",B190)),\"&\",\"?\")&\"hmsr=\"&UrlEncode(D190)&\"&hmpl=\"&UrlEncode(F190)&\"&hmcu=\"&UrlEncode(H190)&\"&hmkw=\"&UrlEncode(J190)&\"&hmci=\"&UrlEncode(L190)&\"\",\"http://\"&B190&IF(ISNUMBER(FIND(\"?\",B190)),\"&\",\"?\")&\"hmsr=\"&UrlEncode(D190)&\"&hmpl=\"&UrlEncode(F190)&\"&hmcu=\"&UrlEncode(H190)&\"&hmkw=\"&UrlEncode(J190)&\"&hmci=\"&UrlEncode(L190)&\"\"),\"请填写目标URL与媒体平台\")","v":"请填写目标URL与媒体平台"}]
[187,null,null,null,null,null,null,null,null,null,null,null,null,null,{"$f":"IF(LEN(B191)*LEN(D191),IF(OR(MID(B191,1,7)=\"http://\",MID(B191,1,8)=\"https://\"),B191&IF(ISNUMBER(FIND(\"?\",B191)),\"&\",\"?\")&\"hmsr=\"&UrlEncode(D191)&\"&hmpl=\"&UrlEncode(F191)&\"&hmcu=\"&UrlEncode(H191)&\"&hmkw=\"&UrlEncode(J191)&\"&hmci=\"&UrlEncode(L191)&\"\",\"http://\"&B191&IF(ISNUMBER(FIND(\"?\",B191)),\"&\",\"?\")&\"hmsr=\"&UrlEncode(D191)&\"&hmpl=\"&UrlEncode(F191)&\"&hmcu=\"&UrlEncode(H191)&\"&hmkw=\"&UrlEncode(J191)&\"&hmci=\"&UrlEncode(L191)&\"\"),\"请填写目标URL与媒体平台\")","v":"请填写目标URL与媒体平台"}]
[188,null,null,null,null,null,null,null,null,null,null,null,null,null,{"$f":"IF(LEN(B192)*LEN(D192),IF(OR(MID(B192,1,7)=\"http://\",MID(B192,1,8)=\"https://\"),B192&IF(ISNUMBER(FIND(\"?\",B192)),\"&\",\"?\")&\"hmsr=\"&UrlEncode(D192)&\"&hmpl=\"&UrlEncode(F192)&\"&hmcu=\"&UrlEncode(H192)&\"&hmkw=\"&UrlEncode(J192)&\"&hmci=\"&UrlEncode(L192)&\"\",\"http://\"&B192&IF(ISNUMBER(FIND(\"?\",B192)),\"&\",\"?\")&\"hmsr=\"&UrlEncode(D192)&\"&hmpl=\"&UrlEncode(F192)&\"&hmcu=\"&UrlEncode(H192)&\"&hmkw=\"&UrlEncode(J192)&\"&hmci=\"&UrlEncode(L192)&\"\"),\"请填写目标URL与媒体平台\")","v":"请填写目标URL与媒体平台"}]
[189,null,null,null,null,null,null,null,null,null,null,null,null,null,{"$f":"IF(LEN(B193)*LEN(D193),IF(OR(MID(B193,1,7)=\"http://\",MID(B193,1,8)=\"https://\"),B193&IF(ISNUMBER(FIND(\"?\",B193)),\"&\",\"?\")&\"hmsr=\"&UrlEncode(D193)&\"&hmpl=\"&UrlEncode(F193)&\"&hmcu=\"&UrlEncode(H193)&\"&hmkw=\"&UrlEncode(J193)&\"&hmci=\"&UrlEncode(L193)&\"\",\"http://\"&B193&IF(ISNUMBER(FIND(\"?\",B193)),\"&\",\"?\")&\"hmsr=\"&UrlEncode(D193)&\"&hmpl=\"&UrlEncode(F193)&\"&hmcu=\"&UrlEncode(H193)&\"&hmkw=\"&UrlEncode(J193)&\"&hmci=\"&UrlEncode(L193)&\"\"),\"请填写目标URL与媒体平台\")","v":"请填写目标URL与媒体平台"}]
[190,null,null,null,null,null,null,null,null,null,null,null,null,null,{"$f":"IF(LEN(B194)*LEN(D194),IF(OR(MID(B194,1,7)=\"http://\",MID(B194,1,8)=\"https://\"),B194&IF(ISNUMBER(FIND(\"?\",B194)),\"&\",\"?\")&\"hmsr=\"&UrlEncode(D194)&\"&hmpl=\"&UrlEncode(F194)&\"&hmcu=\"&UrlEncode(H194)&\"&hmkw=\"&UrlEncode(J194)&\"&hmci=\"&UrlEncode(L194)&\"\",\"http://\"&B194&IF(ISNUMBER(FIND(\"?\",B194)),\"&\",\"?\")&\"hmsr=\"&UrlEncode(D194)&\"&hmpl=\"&UrlEncode(F194)&\"&hmcu=\"&UrlEncode(H194)&\"&hmkw=\"&UrlEncode(J194)&\"&hmci=\"&UrlEncode(L194)&\"\"),\"请填写目标URL与媒体平台\")","v":"请填写目标URL与媒体平台"}]
[191,null,null,null,null,null,null,null,null,null,null,null,null,null,{"$f":"IF(LEN(B195)*LEN(D195),IF(OR(MID(B195,1,7)=\"http://\",MID(B195,1,8)=\"https://\"),B195&IF(ISNUMBER(FIND(\"?\",B195)),\"&\",\"?\")&\"hmsr=\"&UrlEncode(D195)&\"&hmpl=\"&UrlEncode(F195)&\"&hmcu=\"&UrlEncode(H195)&\"&hmkw=\"&UrlEncode(J195)&\"&hmci=\"&UrlEncode(L195)&\"\",\"http://\"&B195&IF(ISNUMBER(FIND(\"?\",B195)),\"&\",\"?\")&\"hmsr=\"&UrlEncode(D195)&\"&hmpl=\"&UrlEncode(F195)&\"&hmcu=\"&UrlEncode(H195)&\"&hmkw=\"&UrlEncode(J195)&\"&hmci=\"&UrlEncode(L195)&\"\"),\"请填写目标URL与媒体平台\")","v":"请填写目标URL与媒体平台"}]
[192,null,null,null,null,null,null,null,null,null,null,null,null,null,{"$f":"IF(LEN(B196)*LEN(D196),IF(OR(MID(B196,1,7)=\"http://\",MID(B196,1,8)=\"https://\"),B196&IF(ISNUMBER(FIND(\"?\",B196)),\"&\",\"?\")&\"hmsr=\"&UrlEncode(D196)&\"&hmpl=\"&UrlEncode(F196)&\"&hmcu=\"&UrlEncode(H196)&\"&hmkw=\"&UrlEncode(J196)&\"&hmci=\"&UrlEncode(L196)&\"\",\"http://\"&B196&IF(ISNUMBER(FIND(\"?\",B196)),\"&\",\"?\")&\"hmsr=\"&UrlEncode(D196)&\"&hmpl=\"&UrlEncode(F196)&\"&hmcu=\"&UrlEncode(H196)&\"&hmkw=\"&UrlEncode(J196)&\"&hmci=\"&UrlEncode(L196)&\"\"),\"请填写目标URL与媒体平台\")","v":"请填写目标URL与媒体平台"}]
[193,null,null,null,null,null,null,null,null,null,null,null,null,null,{"$f":"IF(LEN(B197)*LEN(D197),IF(OR(MID(B197,1,7)=\"http://\",MID(B197,1,8)=\"https://\"),B197&IF(ISNUMBER(FIND(\"?\",B197)),\"&\",\"?\")&\"hmsr=\"&UrlEncode(D197)&\"&hmpl=\"&UrlEncode(F197)&\"&hmcu=\"&UrlEncode(H197)&\"&hmkw=\"&UrlEncode(J197)&\"&hmci=\"&UrlEncode(L197)&\"\",\"http://\"&B197&IF(ISNUMBER(FIND(\"?\",B197)),\"&\",\"?\")&\"hmsr=\"&UrlEncode(D197)&\"&hmpl=\"&UrlEncode(F197)&\"&hmcu=\"&UrlEncode(H197)&\"&hmkw=\"&UrlEncode(J197)&\"&hmci=\"&UrlEncode(L197)&\"\"),\"请填写目标URL与媒体平台\")","v":"请填写目标URL与媒体平台"}]
[194,null,null,null,null,null,null,null,null,null,null,null,null,null,{"$f":"IF(LEN(B198)*LEN(D198),IF(OR(MID(B198,1,7)=\"http://\",MID(B198,1,8)=\"https://\"),B198&IF(ISNUMBER(FIND(\"?\",B198)),\"&\",\"?\")&\"hmsr=\"&UrlEncode(D198)&\"&hmpl=\"&UrlEncode(F198)&\"&hmcu=\"&UrlEncode(H198)&\"&hmkw=\"&UrlEncode(J198)&\"&hmci=\"&UrlEncode(L198)&\"\",\"http://\"&B198&IF(ISNUMBER(FIND(\"?\",B198)),\"&\",\"?\")&\"hmsr=\"&UrlEncode(D198)&\"&hmpl=\"&UrlEncode(F198)&\"&hmcu=\"&UrlEncode(H198)&\"&hmkw=\"&UrlEncode(J198)&\"&hmci=\"&UrlEncode(L198)&\"\"),\"请填写目标URL与媒体平台\")","v":"请填写目标URL与媒体平台"}]
[195,null,null,null,null,null,null,null,null,null,null,null,null,null,{"$f":"IF(LEN(B199)*LEN(D199),IF(OR(MID(B199,1,7)=\"http://\",MID(B199,1,8)=\"https://\"),B199&IF(ISNUMBER(FIND(\"?\",B199)),\"&\",\"?\")&\"hmsr=\"&UrlEncode(D199)&\"&hmpl=\"&UrlEncode(F199)&\"&hmcu=\"&UrlEncode(H199)&\"&hmkw=\"&UrlEncode(J199)&\"&hmci=\"&UrlEncode(L199)&\"\",\"http://\"&B199&IF(ISNUMBER(FIND(\"?\",B199)),\"&\",\"?\")&\"hmsr=\"&UrlEncode(D199)&\"&hmpl=\"&UrlEncode(F199)&\"&hmcu=\"&UrlEncode(H199)&\"&hmkw=\"&UrlEncode(J199)&\"&hmci=\"&UrlEncode(L199)&\"\"),\"请填写目标URL与媒体平台\")","v":"请填写目标URL与媒体平台"}]
[196,null,null,null,null,null,null,null,null,null,null,null,null,null,{"$f":"IF(LEN(B200)*LEN(D200),IF(OR(MID(B200,1,7)=\"http://\",MID(B200,1,8)=\"https://\"),B200&IF(ISNUMBER(FIND(\"?\",B200)),\"&\",\"?\")&\"hmsr=\"&UrlEncode(D200)&\"&hmpl=\"&UrlEncode(F200)&\"&hmcu=\"&UrlEncode(H200)&\"&hmkw=\"&UrlEncode(J200)&\"&hmci=\"&UrlEncode(L200)&\"\",\"http://\"&B200&IF(ISNUMBER(FIND(\"?\",B200)),\"&\",\"?\")&\"hmsr=\"&UrlEncode(D200)&\"&hmpl=\"&UrlEncode(F200)&\"&hmcu=\"&UrlEncode(H200)&\"&hmkw=\"&UrlEncode(J200)&\"&hmci=\"&UrlEncode(L200)&\"\"),\"请填写目标URL与媒体平台\")","v":"请填写目标URL与媒体平台"}]
[197,null,null,null,null,null,null,null,null,null,null,null,null,null,{"$f":"IF(LEN(B201)*LEN(D201),IF(OR(MID(B201,1,7)=\"http://\",MID(B201,1,8)=\"https://\"),B201&IF(ISNUMBER(FIND(\"?\",B201)),\"&\",\"?\")&\"hmsr=\"&UrlEncode(D201)&\"&hmpl=\"&UrlEncode(F201)&\"&hmcu=\"&UrlEncode(H201)&\"&hmkw=\"&UrlEncode(J201)&\"&hmci=\"&UrlEncode(L201)&\"\",\"http://\"&B201&IF(ISNUMBER(FIND(\"?\",B201)),\"&\",\"?\")&\"hmsr=\"&UrlEncode(D201)&\"&hmpl=\"&UrlEncode(F201)&\"&hmcu=\"&UrlEncode(H201)&\"&hmkw=\"&UrlEncode(J201)&\"&hmci=\"&UrlEncode(L201)&\"\"),\"请填写目标URL与媒体平台\")","v":"请填写目标URL与媒体平台"}]
[198,null,null,null,null,null,null,null,null,null,null,null,null,null,{"$f":"IF(LEN(B202)*LEN(D202),IF(OR(MID(B202,1,7)=\"http://\",MID(B202,1,8)=\"https://\"),B202&IF(ISNUMBER(FIND(\"?\",B202)),\"&\",\"?\")&\"hmsr=\"&UrlEncode(D202)&\"&hmpl=\"&UrlEncode(F202)&\"&hmcu=\"&UrlEncode(H202)&\"&hmkw=\"&UrlEncode(J202)&\"&hmci=\"&UrlEncode(L202)&\"\",\"http://\"&B202&IF(ISNUMBER(FIND(\"?\",B202)),\"&\",\"?\")&\"hmsr=\"&UrlEncode(D202)&\"&hmpl=\"&UrlEncode(F202)&\"&hmcu=\"&UrlEncode(H202)&\"&hmkw=\"&UrlEncode(J202)&\"&hmci=\"&UrlEncode(L202)&\"\"),\"请填写目标URL与媒体平台\")","v":"请填写目标URL与媒体平台"}]
[199,null,null,null,null,null,null,null,null,null,null,null,null,null,{"$f":"IF(LEN(B203)*LEN(D203),IF(OR(MID(B203,1,7)=\"http://\",MID(B203,1,8)=\"https://\"),B203&IF(ISNUMBER(FIND(\"?\",B203)),\"&\",\"?\")&\"hmsr=\"&UrlEncode(D203)&\"&hmpl=\"&UrlEncode(F203)&\"&hmcu=\"&UrlEncode(H203)&\"&hmkw=\"&UrlEncode(J203)&\"&hmci=\"&UrlEncode(L203)&\"\",\"http://\"&B203&IF(ISNUMBER(FIND(\"?\",B203)),\"&\",\"?\")&\"hmsr=\"&UrlEncode(D203)&\"&hmpl=\"&UrlEncode(F203)&\"&hmcu=\"&UrlEncode(H203)&\"&hmkw=\"&UrlEncode(J203)&\"&hmci=\"&UrlEncode(L203)&\"\"),\"请填写目标URL与媒体平台\")","v":"请填写目标URL与媒体平台"}]
[200,null,null,null,null,null,null,null,null,null,null,null,null,null,{"$f":"IF(LEN(B204)*LEN(D204),IF(OR(MID(B204,1,7)=\"http://\",MID(B204,1,8)=\"https://\"),B204&IF(ISNUMBER(FIND(\"?\",B204)),\"&\",\"?\")&\"hmsr=\"&UrlEncode(D204)&\"&hmpl=\"&UrlEncode(F204)&\"&hmcu=\"&UrlEncode(H204)&\"&hmkw=\"&UrlEncode(J204)&\"&hmci=\"&UrlEncode(L204)&\"\",\"http://\"&B204&IF(ISNUMBER(FIND(\"?\",B204)),\"&\",\"?\")&\"hmsr=\"&UrlEncode(D204)&\"&hmpl=\"&UrlEncode(F204)&\"&hmcu=\"&UrlEncode(H204)&\"&hmkw=\"&UrlEncode(J204)&\"&hmci=\"&UrlEncode(L204)&\"\"),\"请填写目标URL与媒体平台\")","v":"请填写目标URL与媒体平台"}]
[201,null,null,null,null,null,null,null,null,null,null,null,null,null,{"$f":"IF(LEN(B205)*LEN(D205),IF(OR(MID(B205,1,7)=\"http://\",MID(B205,1,8)=\"https://\"),B205&IF(ISNUMBER(FIND(\"?\",B205)),\"&\",\"?\")&\"hmsr=\"&UrlEncode(D205)&\"&hmpl=\"&UrlEncode(F205)&\"&hmcu=\"&UrlEncode(H205)&\"&hmkw=\"&UrlEncode(J205)&\"&hmci=\"&UrlEncode(L205)&\"\",\"http://\"&B205&IF(ISNUMBER(FIND(\"?\",B205)),\"&\",\"?\")&\"hmsr=\"&UrlEncode(D205)&\"&hmpl=\"&UrlEncode(F205)&\"&hmcu=\"&UrlEncode(H205)&\"&hmkw=\"&UrlEncode(J205)&\"&hmci=\"&UrlEncode(L205)&\"\"),\"请填写目标URL与媒体平台\")","v":"请填写目标URL与媒体平台"}]
[202,null,null,null,null,null,null,null,null,null,null,null,null,null,{"$f":"IF(LEN(B206)*LEN(D206),IF(OR(MID(B206,1,7)=\"http://\",MID(B206,1,8)=\"https://\"),B206&IF(ISNUMBER(FIND(\"?\",B206)),\"&\",\"?\")&\"hmsr=\"&UrlEncode(D206)&\"&hmpl=\"&UrlEncode(F206)&\"&hmcu=\"&UrlEncode(H206)&\"&hmkw=\"&UrlEncode(J206)&\"&hmci=\"&UrlEncode(L206)&\"\",\"http://\"&B206&IF(ISNUMBER(FIND(\"?\",B206)),\"&\",\"?\")&\"hmsr=\"&UrlEncode(D206)&\"&hmpl=\"&UrlEncode(F206)&\"&hmcu=\"&UrlEncode(H206)&\"&hmkw=\"&UrlEncode(J206)&\"&hmci=\"&UrlEncode(L206)&\"\"),\"请填写目标URL与媒体平台\")","v":"请填写目标URL与媒体平台"}]
[203,null,null,null,null,null,null,null,null,null,null,null,null,null,{"$f":"IF(LEN(B207)*LEN(D207),IF(OR(MID(B207,1,7)=\"http://\",MID(B207,1,8)=\"https://\"),B207&IF(ISNUMBER(FIND(\"?\",B207)),\"&\",\"?\")&\"hmsr=\"&UrlEncode(D207)&\"&hmpl=\"&UrlEncode(F207)&\"&hmcu=\"&UrlEncode(H207)&\"&hmkw=\"&UrlEncode(J207)&\"&hmci=\"&UrlEncode(L207)&\"\",\"http://\"&B207&IF(ISNUMBER(FIND(\"?\",B207)),\"&\",\"?\")&\"hmsr=\"&UrlEncode(D207)&\"&hmpl=\"&UrlEncode(F207)&\"&hmcu=\"&UrlEncode(H207)&\"&hmkw=\"&UrlEncode(J207)&\"&hmci=\"&UrlEncode(L207)&\"\"),\"请填写目标URL与媒体平台\")","v":"请填写目标URL与媒体平台"}]
[204,null,null,null,null,null,null,null,null,null,null,null,null,null,{"$f":"IF(LEN(B208)*LEN(D208),IF(OR(MID(B208,1,7)=\"http://\",MID(B208,1,8)=\"https://\"),B208&IF(ISNUMBER(FIND(\"?\",B208)),\"&\",\"?\")&\"hmsr=\"&UrlEncode(D208)&\"&hmpl=\"&UrlEncode(F208)&\"&hmcu=\"&UrlEncode(H208)&\"&hmkw=\"&UrlEncode(J208)&\"&hmci=\"&UrlEncode(L208)&\"\",\"http://\"&B208&IF(ISNUMBER(FIND(\"?\",B208)),\"&\",\"?\")&\"hmsr=\"&UrlEncode(D208)&\"&hmpl=\"&UrlEncode(F208)&\"&hmcu=\"&UrlEncode(H208)&\"&hmkw=\"&UrlEncode(J208)&\"&hmci=\"&UrlEncode(L208)&\"\"),\"请填写目标URL与媒体平台\")","v":"请填写目标URL与媒体平台"}]
[205,null,null,null,null,null,null,null,null,null,null,null,null,null,{"$f":"IF(LEN(B209)*LEN(D209),IF(OR(MID(B209,1,7)=\"http://\",MID(B209,1,8)=\"https://\"),B209&IF(ISNUMBER(FIND(\"?\",B209)),\"&\",\"?\")&\"hmsr=\"&UrlEncode(D209)&\"&hmpl=\"&UrlEncode(F209)&\"&hmcu=\"&UrlEncode(H209)&\"&hmkw=\"&UrlEncode(J209)&\"&hmci=\"&UrlEncode(L209)&\"\",\"http://\"&B209&IF(ISNUMBER(FIND(\"?\",B209)),\"&\",\"?\")&\"hmsr=\"&UrlEncode(D209)&\"&hmpl=\"&UrlEncode(F209)&\"&hmcu=\"&UrlEncode(H209)&\"&hmkw=\"&UrlEncode(J209)&\"&hmci=\"&UrlEncode(L209)&\"\"),\"请填写目标URL与媒体平台\")","v":"请填写目标URL与媒体平台"}]
[206,null,null,null,null,null,null,null,null,null,null,null,null,null,{"$f":"IF(LEN(B210)*LEN(D210),IF(OR(MID(B210,1,7)=\"http://\",MID(B210,1,8)=\"https://\"),B210&IF(ISNUMBER(FIND(\"?\",B210)),\"&\",\"?\")&\"hmsr=\"&UrlEncode(D210)&\"&hmpl=\"&UrlEncode(F210)&\"&hmcu=\"&UrlEncode(H210)&\"&hmkw=\"&UrlEncode(J210)&\"&hmci=\"&UrlEncode(L210)&\"\",\"http://\"&B210&IF(ISNUMBER(FIND(\"?\",B210)),\"&\",\"?\")&\"hmsr=\"&UrlEncode(D210)&\"&hmpl=\"&UrlEncode(F210)&\"&hmcu=\"&UrlEncode(H210)&\"&hmkw=\"&UrlEncode(J210)&\"&hmci=\"&UrlEncode(L210)&\"\"),\"请填写目标URL与媒体平台\")","v":"请填写目标URL与媒体平台"}]
[207,null,null,null,null,null,null,null,null,null,null,null,null,null,{"$f":"IF(LEN(B211)*LEN(D211),IF(OR(MID(B211,1,7)=\"http://\",MID(B211,1,8)=\"https://\"),B211&IF(ISNUMBER(FIND(\"?\",B211)),\"&\",\"?\")&\"hmsr=\"&UrlEncode(D211)&\"&hmpl=\"&UrlEncode(F211)&\"&hmcu=\"&UrlEncode(H211)&\"&hmkw=\"&UrlEncode(J211)&\"&hmci=\"&UrlEncode(L211)&\"\",\"http://\"&B211&IF(ISNUMBER(FIND(\"?\",B211)),\"&\",\"?\")&\"hmsr=\"&UrlEncode(D211)&\"&hmpl=\"&UrlEncode(F211)&\"&hmcu=\"&UrlEncode(H211)&\"&hmkw=\"&UrlEncode(J211)&\"&hmci=\"&UrlEncode(L211)&\"\"),\"请填写目标URL与媒体平台\")","v":"请填写目标URL与媒体平台"}]
[208,null,null,null,null,null,null,null,null,null,null,null,null,null,{"$f":"IF(LEN(B212)*LEN(D212),IF(OR(MID(B212,1,7)=\"http://\",MID(B212,1,8)=\"https://\"),B212&IF(ISNUMBER(FIND(\"?\",B212)),\"&\",\"?\")&\"hmsr=\"&UrlEncode(D212)&\"&hmpl=\"&UrlEncode(F212)&\"&hmcu=\"&UrlEncode(H212)&\"&hmkw=\"&UrlEncode(J212)&\"&hmci=\"&UrlEncode(L212)&\"\",\"http://\"&B212&IF(ISNUMBER(FIND(\"?\",B212)),\"&\",\"?\")&\"hmsr=\"&UrlEncode(D212)&\"&hmpl=\"&UrlEncode(F212)&\"&hmcu=\"&UrlEncode(H212)&\"&hmkw=\"&UrlEncode(J212)&\"&hmci=\"&UrlEncode(L212)&\"\"),\"请填写目标URL与媒体平台\")","v":"请填写目标URL与媒体平台"}]
[209,null,null,null,null,null,null,null,null,null,null,null,null,null,{"$f":"IF(LEN(B213)*LEN(D213),IF(OR(MID(B213,1,7)=\"http://\",MID(B213,1,8)=\"https://\"),B213&IF(ISNUMBER(FIND(\"?\",B213)),\"&\",\"?\")&\"hmsr=\"&UrlEncode(D213)&\"&hmpl=\"&UrlEncode(F213)&\"&hmcu=\"&UrlEncode(H213)&\"&hmkw=\"&UrlEncode(J213)&\"&hmci=\"&UrlEncode(L213)&\"\",\"http://\"&B213&IF(ISNUMBER(FIND(\"?\",B213)),\"&\",\"?\")&\"hmsr=\"&UrlEncode(D213)&\"&hmpl=\"&UrlEncode(F213)&\"&hmcu=\"&UrlEncode(H213)&\"&hmkw=\"&UrlEncode(J213)&\"&hmci=\"&UrlEncode(L213)&\"\"),\"请填写目标URL与媒体平台\")","v":"请填写目标URL与媒体平台"}]
[210,null,null,null,null,null,null,null,null,null,null,null,null,null,{"$f":"IF(LEN(B214)*LEN(D214),IF(OR(MID(B214,1,7)=\"http://\",MID(B214,1,8)=\"https://\"),B214&IF(ISNUMBER(FIND(\"?\",B214)),\"&\",\"?\")&\"hmsr=\"&UrlEncode(D214)&\"&hmpl=\"&UrlEncode(F214)&\"&hmcu=\"&UrlEncode(H214)&\"&hmkw=\"&UrlEncode(J214)&\"&hmci=\"&UrlEncode(L214)&\"\",\"http://\"&B214&IF(ISNUMBER(FIND(\"?\",B214)),\"&\",\"?\")&\"hmsr=\"&UrlEncode(D214)&\"&hmpl=\"&UrlEncode(F214)&\"&hmcu=\"&UrlEncode(H214)&\"&hmkw=\"&UrlEncode(J214)&\"&hmci=\"&UrlEncode(L214)&\"\"),\"请填写目标URL与媒体平台\")","v":"请填写目标URL与媒体平台"}]
[211,null,null,null,null,null,null,null,null,null,null,null,null,null,{"$f":"IF(LEN(B215)*LEN(D215),IF(OR(MID(B215,1,7)=\"http://\",MID(B215,1,8)=\"https://\"),B215&IF(ISNUMBER(FIND(\"?\",B215)),\"&\",\"?\")&\"hmsr=\"&UrlEncode(D215)&\"&hmpl=\"&UrlEncode(F215)&\"&hmcu=\"&UrlEncode(H215)&\"&hmkw=\"&UrlEncode(J215)&\"&hmci=\"&UrlEncode(L215)&\"\",\"http://\"&B215&IF(ISNUMBER(FIND(\"?\",B215)),\"&\",\"?\")&\"hmsr=\"&UrlEncode(D215)&\"&hmpl=\"&UrlEncode(F215)&\"&hmcu=\"&UrlEncode(H215)&\"&hmkw=\"&UrlEncode(J215)&\"&hmci=\"&UrlEncode(L215)&\"\"),\"请填写目标URL与媒体平台\")","v":"请填写目标URL与媒体平台"}]
[212,null,null,null,null,null,null,null,null,null,null,null,null,null,{"$f":"IF(LEN(B216)*LEN(D216),IF(OR(MID(B216,1,7)=\"http://\",MID(B216,1,8)=\"https://\"),B216&IF(ISNUMBER(FIND(\"?\",B216)),\"&\",\"?\")&\"hmsr=\"&UrlEncode(D216)&\"&hmpl=\"&UrlEncode(F216)&\"&hmcu=\"&UrlEncode(H216)&\"&hmkw=\"&UrlEncode(J216)&\"&hmci=\"&UrlEncode(L216)&\"\",\"http://\"&B216&IF(ISNUMBER(FIND(\"?\",B216)),\"&\",\"?\")&\"hmsr=\"&UrlEncode(D216)&\"&hmpl=\"&UrlEncode(F216)&\"&hmcu=\"&UrlEncode(H216)&\"&hmkw=\"&UrlEncode(J216)&\"&hmci=\"&UrlEncode(L216)&\"\"),\"请填写目标URL与媒体平台\")","v":"请填写目标URL与媒体平台"}]
[213,null,null,null,null,null,null,null,null,null,null,null,null,null,{"$f":"IF(LEN(B217)*LEN(D217),IF(OR(MID(B217,1,7)=\"http://\",MID(B217,1,8)=\"https://\"),B217&IF(ISNUMBER(FIND(\"?\",B217)),\"&\",\"?\")&\"hmsr=\"&UrlEncode(D217)&\"&hmpl=\"&UrlEncode(F217)&\"&hmcu=\"&UrlEncode(H217)&\"&hmkw=\"&UrlEncode(J217)&\"&hmci=\"&UrlEncode(L217)&\"\",\"http://\"&B217&IF(ISNUMBER(FIND(\"?\",B217)),\"&\",\"?\")&\"hmsr=\"&UrlEncode(D217)&\"&hmpl=\"&UrlEncode(F217)&\"&hmcu=\"&UrlEncode(H217)&\"&hmkw=\"&UrlEncode(J217)&\"&hmci=\"&UrlEncode(L217)&\"\"),\"请填写目标URL与媒体平台\")","v":"请填写目标URL与媒体平台"}]
[214,null,null,null,null,null,null,null,null,null,null,null,null,null,{"$f":"IF(LEN(B218)*LEN(D218),IF(OR(MID(B218,1,7)=\"http://\",MID(B218,1,8)=\"https://\"),B218&IF(ISNUMBER(FIND(\"?\",B218)),\"&\",\"?\")&\"hmsr=\"&UrlEncode(D218)&\"&hmpl=\"&UrlEncode(F218)&\"&hmcu=\"&UrlEncode(H218)&\"&hmkw=\"&UrlEncode(J218)&\"&hmci=\"&UrlEncode(L218)&\"\",\"http://\"&B218&IF(ISNUMBER(FIND(\"?\",B218)),\"&\",\"?\")&\"hmsr=\"&UrlEncode(D218)&\"&hmpl=\"&UrlEncode(F218)&\"&hmcu=\"&UrlEncode(H218)&\"&hmkw=\"&UrlEncode(J218)&\"&hmci=\"&UrlEncode(L218)&\"\"),\"请填写目标URL与媒体平台\")","v":"请填写目标URL与媒体平台"}]
[215,null,null,null,null,null,null,null,null,null,null,null,null,null,{"$f":"IF(LEN(B219)*LEN(D219),IF(OR(MID(B219,1,7)=\"http://\",MID(B219,1,8)=\"https://\"),B219&IF(ISNUMBER(FIND(\"?\",B219)),\"&\",\"?\")&\"hmsr=\"&UrlEncode(D219)&\"&hmpl=\"&UrlEncode(F219)&\"&hmcu=\"&UrlEncode(H219)&\"&hmkw=\"&UrlEncode(J219)&\"&hmci=\"&UrlEncode(L219)&\"\",\"http://\"&B219&IF(ISNUMBER(FIND(\"?\",B219)),\"&\",\"?\")&\"hmsr=\"&UrlEncode(D219)&\"&hmpl=\"&UrlEncode(F219)&\"&hmcu=\"&UrlEncode(H219)&\"&hmkw=\"&UrlEncode(J219)&\"&hmci=\"&UrlEncode(L219)&\"\"),\"请填写目标URL与媒体平台\")","v":"请填写目标URL与媒体平台"}]
[216,null,null,null,null,null,null,null,null,null,null,null,null,null,{"$f":"IF(LEN(B220)*LEN(D220),IF(OR(MID(B220,1,7)=\"http://\",MID(B220,1,8)=\"https://\"),B220&IF(ISNUMBER(FIND(\"?\",B220)),\"&\",\"?\")&\"hmsr=\"&UrlEncode(D220)&\"&hmpl=\"&UrlEncode(F220)&\"&hmcu=\"&UrlEncode(H220)&\"&hmkw=\"&UrlEncode(J220)&\"&hmci=\"&UrlEncode(L220)&\"\",\"http://\"&B220&IF(ISNUMBER(FIND(\"?\",B220)),\"&\",\"?\")&\"hmsr=\"&UrlEncode(D220)&\"&hmpl=\"&UrlEncode(F220)&\"&hmcu=\"&UrlEncode(H220)&\"&hmkw=\"&UrlEncode(J220)&\"&hmci=\"&UrlEncode(L220)&\"\"),\"请填写目标URL与媒体平台\")","v":"请填写目标URL与媒体平台"}]
[217,null,null,null,null,null,null,null,null,null,null,null,null,null,{"$f":"IF(LEN(B221)*LEN(D221),IF(OR(MID(B221,1,7)=\"http://\",MID(B221,1,8)=\"https://\"),B221&IF(ISNUMBER(FIND(\"?\",B221)),\"&\",\"?\")&\"hmsr=\"&UrlEncode(D221)&\"&hmpl=\"&UrlEncode(F221)&\"&hmcu=\"&UrlEncode(H221)&\"&hmkw=\"&UrlEncode(J221)&\"&hmci=\"&UrlEncode(L221)&\"\",\"http://\"&B221&IF(ISNUMBER(FIND(\"?\",B221)),\"&\",\"?\")&\"hmsr=\"&UrlEncode(D221)&\"&hmpl=\"&UrlEncode(F221)&\"&hmcu=\"&UrlEncode(H221)&\"&hmkw=\"&UrlEncode(J221)&\"&hmci=\"&UrlEncode(L221)&\"\"),\"请填写目标URL与媒体平台\")","v":"请填写目标URL与媒体平台"}]
[218,null,null,null,null,null,null,null,null,null,null,null,null,null,{"$f":"IF(LEN(B222)*LEN(D222),IF(OR(MID(B222,1,7)=\"http://\",MID(B222,1,8)=\"https://\"),B222&IF(ISNUMBER(FIND(\"?\",B222)),\"&\",\"?\")&\"hmsr=\"&UrlEncode(D222)&\"&hmpl=\"&UrlEncode(F222)&\"&hmcu=\"&UrlEncode(H222)&\"&hmkw=\"&UrlEncode(J222)&\"&hmci=\"&UrlEncode(L222)&\"\",\"http://\"&B222&IF(ISNUMBER(FIND(\"?\",B222)),\"&\",\"?\")&\"hmsr=\"&UrlEncode(D222)&\"&hmpl=\"&UrlEncode(F222)&\"&hmcu=\"&UrlEncode(H222)&\"&hmkw=\"&UrlEncode(J222)&\"&hmci=\"&UrlEncode(L222)&\"\"),\"请填写目标URL与媒体平台\")","v":"请填写目标URL与媒体平台"}]
[219,null,null,null,null,null,null,null,null,null,null,null,null,null,{"$f":"IF(LEN(B223)*LEN(D223),IF(OR(MID(B223,1,7)=\"http://\",MID(B223,1,8)=\"https://\"),B223&IF(ISNUMBER(FIND(\"?\",B223)),\"&\",\"?\")&\"hmsr=\"&UrlEncode(D223)&\"&hmpl=\"&UrlEncode(F223)&\"&hmcu=\"&UrlEncode(H223)&\"&hmkw=\"&UrlEncode(J223)&\"&hmci=\"&UrlEncode(L223)&\"\",\"http://\"&B223&IF(ISNUMBER(FIND(\"?\",B223)),\"&\",\"?\")&\"hmsr=\"&UrlEncode(D223)&\"&hmpl=\"&UrlEncode(F223)&\"&hmcu=\"&UrlEncode(H223)&\"&hmkw=\"&UrlEncode(J223)&\"&hmci=\"&UrlEncode(L223)&\"\"),\"请填写目标URL与媒体平台\")","v":"请填写目标URL与媒体平台"}]
[220,null,null,null,null,null,null,null,null,null,null,null,null,null,{"$f":"IF(LEN(B224)*LEN(D224),IF(OR(MID(B224,1,7)=\"http://\",MID(B224,1,8)=\"https://\"),B224&IF(ISNUMBER(FIND(\"?\",B224)),\"&\",\"?\")&\"hmsr=\"&UrlEncode(D224)&\"&hmpl=\"&UrlEncode(F224)&\"&hmcu=\"&UrlEncode(H224)&\"&hmkw=\"&UrlEncode(J224)&\"&hmci=\"&UrlEncode(L224)&\"\",\"http://\"&B224&IF(ISNUMBER(FIND(\"?\",B224)),\"&\",\"?\")&\"hmsr=\"&UrlEncode(D224)&\"&hmpl=\"&UrlEncode(F224)&\"&hmcu=\"&UrlEncode(H224)&\"&hmkw=\"&UrlEncode(J224)&\"&hmci=\"&UrlEncode(L224)&\"\"),\"请填写目标URL与媒体平台\")","v":"请填写目标URL与媒体平台"}]
[221,null,null,null,null,null,null,null,null,null,null,null,null,null,{"$f":"IF(LEN(B225)*LEN(D225),IF(OR(MID(B225,1,7)=\"http://\",MID(B225,1,8)=\"https://\"),B225&IF(ISNUMBER(FIND(\"?\",B225)),\"&\",\"?\")&\"hmsr=\"&UrlEncode(D225)&\"&hmpl=\"&UrlEncode(F225)&\"&hmcu=\"&UrlEncode(H225)&\"&hmkw=\"&UrlEncode(J225)&\"&hmci=\"&UrlEncode(L225)&\"\",\"http://\"&B225&IF(ISNUMBER(FIND(\"?\",B225)),\"&\",\"?\")&\"hmsr=\"&UrlEncode(D225)&\"&hmpl=\"&UrlEncode(F225)&\"&hmcu=\"&UrlEncode(H225)&\"&hmkw=\"&UrlEncode(J225)&\"&hmci=\"&UrlEncode(L225)&\"\"),\"请填写目标URL与媒体平台\")","v":"请填写目标URL与媒体平台"}]
[222,null,null,null,null,null,null,null,null,null,null,null,null,null,{"$f":"IF(LEN(B226)*LEN(D226),IF(OR(MID(B226,1,7)=\"http://\",MID(B226,1,8)=\"https://\"),B226&IF(ISNUMBER(FIND(\"?\",B226)),\"&\",\"?\")&\"hmsr=\"&UrlEncode(D226)&\"&hmpl=\"&UrlEncode(F226)&\"&hmcu=\"&UrlEncode(H226)&\"&hmkw=\"&UrlEncode(J226)&\"&hmci=\"&UrlEncode(L226)&\"\",\"http://\"&B226&IF(ISNUMBER(FIND(\"?\",B226)),\"&\",\"?\")&\"hmsr=\"&UrlEncode(D226)&\"&hmpl=\"&UrlEncode(F226)&\"&hmcu=\"&UrlEncode(H226)&\"&hmkw=\"&UrlEncode(J226)&\"&hmci=\"&UrlEncode(L226)&\"\"),\"请填写目标URL与媒体平台\")","v":"请填写目标URL与媒体平台"}]
[223,null,null,null,null,null,null,null,null,null,null,null,null,null,{"$f":"IF(LEN(B227)*LEN(D227),IF(OR(MID(B227,1,7)=\"http://\",MID(B227,1,8)=\"https://\"),B227&IF(ISNUMBER(FIND(\"?\",B227)),\"&\",\"?\")&\"hmsr=\"&UrlEncode(D227)&\"&hmpl=\"&UrlEncode(F227)&\"&hmcu=\"&UrlEncode(H227)&\"&hmkw=\"&UrlEncode(J227)&\"&hmci=\"&UrlEncode(L227)&\"\",\"http://\"&B227&IF(ISNUMBER(FIND(\"?\",B227)),\"&\",\"?\")&\"hmsr=\"&UrlEncode(D227)&\"&hmpl=\"&UrlEncode(F227)&\"&hmcu=\"&UrlEncode(H227)&\"&hmkw=\"&UrlEncode(J227)&\"&hmci=\"&UrlEncode(L227)&\"\"),\"请填写目标URL与媒体平台\")","v":"请填写目标URL与媒体平台"}]
[224,null,null,null,null,null,null,null,null,null,null,null,null,null,{"$f":"IF(LEN(B228)*LEN(D228),IF(OR(MID(B228,1,7)=\"http://\",MID(B228,1,8)=\"https://\"),B228&IF(ISNUMBER(FIND(\"?\",B228)),\"&\",\"?\")&\"hmsr=\"&UrlEncode(D228)&\"&hmpl=\"&UrlEncode(F228)&\"&hmcu=\"&UrlEncode(H228)&\"&hmkw=\"&UrlEncode(J228)&\"&hmci=\"&UrlEncode(L228)&\"\",\"http://\"&B228&IF(ISNUMBER(FIND(\"?\",B228)),\"&\",\"?\")&\"hmsr=\"&UrlEncode(D228)&\"&hmpl=\"&UrlEncode(F228)&\"&hmcu=\"&UrlEncode(H228)&\"&hmkw=\"&UrlEncode(J228)&\"&hmci=\"&UrlEncode(L228)&\"\"),\"请填写目标URL与媒体平台\")","v":"请填写目标URL与媒体平台"}]
[225,null,null,null,null,null,null,null,null,null,null,null,null,null,{"$f":"IF(LEN(B229)*LEN(D229),IF(OR(MID(B229,1,7)=\"http://\",MID(B229,1,8)=\"https://\"),B229&IF(ISNUMBER(FIND(\"?\",B229)),\"&\",\"?\")&\"hmsr=\"&UrlEncode(D229)&\"&hmpl=\"&UrlEncode(F229)&\"&hmcu=\"&UrlEncode(H229)&\"&hmkw=\"&UrlEncode(J229)&\"&hmci=\"&UrlEncode(L229)&\"\",\"http://\"&B229&IF(ISNUMBER(FIND(\"?\",B229)),\"&\",\"?\")&\"hmsr=\"&UrlEncode(D229)&\"&hmpl=\"&UrlEncode(F229)&\"&hmcu=\"&UrlEncode(H229)&\"&hmkw=\"&UrlEncode(J229)&\"&hmci=\"&UrlEncode(L229)&\"\"),\"请填写目标URL与媒体平台\")","v":"请填写目标URL与媒体平台"}]
[226,null,null,null,null,null,null,null,null,null,null,null,null,null,{"$f":"IF(LEN(B230)*LEN(D230),IF(OR(MID(B230,1,7)=\"http://\",MID(B230,1,8)=\"https://\"),B230&IF(ISNUMBER(FIND(\"?\",B230)),\"&\",\"?\")&\"hmsr=\"&UrlEncode(D230)&\"&hmpl=\"&UrlEncode(F230)&\"&hmcu=\"&UrlEncode(H230)&\"&hmkw=\"&UrlEncode(J230)&\"&hmci=\"&UrlEncode(L230)&\"\",\"http://\"&B230&IF(ISNUMBER(FIND(\"?\",B230)),\"&\",\"?\")&\"hmsr=\"&UrlEncode(D230)&\"&hmpl=\"&UrlEncode(F230)&\"&hmcu=\"&UrlEncode(H230)&\"&hmkw=\"&UrlEncode(J230)&\"&hmci=\"&UrlEncode(L230)&\"\"),\"请填写目标URL与媒体平台\")","v":"请填写目标URL与媒体平台"}]
[227,null,null,null,null,null,null,null,null,null,null,null,null,null,{"$f":"IF(LEN(B231)*LEN(D231),IF(OR(MID(B231,1,7)=\"http://\",MID(B231,1,8)=\"https://\"),B231&IF(ISNUMBER(FIND(\"?\",B231)),\"&\",\"?\")&\"hmsr=\"&UrlEncode(D231)&\"&hmpl=\"&UrlEncode(F231)&\"&hmcu=\"&UrlEncode(H231)&\"&hmkw=\"&UrlEncode(J231)&\"&hmci=\"&UrlEncode(L231)&\"\",\"http://\"&B231&IF(ISNUMBER(FIND(\"?\",B231)),\"&\",\"?\")&\"hmsr=\"&UrlEncode(D231)&\"&hmpl=\"&UrlEncode(F231)&\"&hmcu=\"&UrlEncode(H231)&\"&hmkw=\"&UrlEncode(J231)&\"&hmci=\"&UrlEncode(L231)&\"\"),\"请填写目标URL与媒体平台\")","v":"请填写目标URL与媒体平台"}]
[228,null,null,null,null,null,null,null,null,null,null,null,null,null,{"$f":"IF(LEN(B232)*LEN(D232),IF(OR(MID(B232,1,7)=\"http://\",MID(B232,1,8)=\"https://\"),B232&IF(ISNUMBER(FIND(\"?\",B232)),\"&\",\"?\")&\"hmsr=\"&UrlEncode(D232)&\"&hmpl=\"&UrlEncode(F232)&\"&hmcu=\"&UrlEncode(H232)&\"&hmkw=\"&UrlEncode(J232)&\"&hmci=\"&UrlEncode(L232)&\"\",\"http://\"&B232&IF(ISNUMBER(FIND(\"?\",B232)),\"&\",\"?\")&\"hmsr=\"&UrlEncode(D232)&\"&hmpl=\"&UrlEncode(F232)&\"&hmcu=\"&UrlEncode(H232)&\"&hmkw=\"&UrlEncode(J232)&\"&hmci=\"&UrlEncode(L232)&\"\"),\"请填写目标URL与媒体平台\")","v":"请填写目标URL与媒体平台"}]
[229,null,null,null,null,null,null,null,null,null,null,null,null,null,{"$f":"IF(LEN(B233)*LEN(D233),IF(OR(MID(B233,1,7)=\"http://\",MID(B233,1,8)=\"https://\"),B233&IF(ISNUMBER(FIND(\"?\",B233)),\"&\",\"?\")&\"hmsr=\"&UrlEncode(D233)&\"&hmpl=\"&UrlEncode(F233)&\"&hmcu=\"&UrlEncode(H233)&\"&hmkw=\"&UrlEncode(J233)&\"&hmci=\"&UrlEncode(L233)&\"\",\"http://\"&B233&IF(ISNUMBER(FIND(\"?\",B233)),\"&\",\"?\")&\"hmsr=\"&UrlEncode(D233)&\"&hmpl=\"&UrlEncode(F233)&\"&hmcu=\"&UrlEncode(H233)&\"&hmkw=\"&UrlEncode(J233)&\"&hmci=\"&UrlEncode(L233)&\"\"),\"请填写目标URL与媒体平台\")","v":"请填写目标URL与媒体平台"}]
[230,null,null,null,null,null,null,null,null,null,null,null,null,null,{"$f":"IF(LEN(B234)*LEN(D234),IF(OR(MID(B234,1,7)=\"http://\",MID(B234,1,8)=\"https://\"),B234&IF(ISNUMBER(FIND(\"?\",B234)),\"&\",\"?\")&\"hmsr=\"&UrlEncode(D234)&\"&hmpl=\"&UrlEncode(F234)&\"&hmcu=\"&UrlEncode(H234)&\"&hmkw=\"&UrlEncode(J234)&\"&hmci=\"&UrlEncode(L234)&\"\",\"http://\"&B234&IF(ISNUMBER(FIND(\"?\",B234)),\"&\",\"?\")&\"hmsr=\"&UrlEncode(D234)&\"&hmpl=\"&UrlEncode(F234)&\"&hmcu=\"&UrlEncode(H234)&\"&hmkw=\"&UrlEncode(J234)&\"&hmci=\"&UrlEncode(L234)&\"\"),\"请填写目标URL与媒体平台\")","v":"请填写目标URL与媒体平台"}]
[231,null,null,null,null,null,null,null,null,null,null,null,null,null,{"$f":"IF(LEN(B235)*LEN(D235),IF(OR(MID(B235,1,7)=\"http://\",MID(B235,1,8)=\"https://\"),B235&IF(ISNUMBER(FIND(\"?\",B235)),\"&\",\"?\")&\"hmsr=\"&UrlEncode(D235)&\"&hmpl=\"&UrlEncode(F235)&\"&hmcu=\"&UrlEncode(H235)&\"&hmkw=\"&UrlEncode(J235)&\"&hmci=\"&UrlEncode(L235)&\"\",\"http://\"&B235&IF(ISNUMBER(FIND(\"?\",B235)),\"&\",\"?\")&\"hmsr=\"&UrlEncode(D235)&\"&hmpl=\"&UrlEncode(F235)&\"&hmcu=\"&UrlEncode(H235)&\"&hmkw=\"&UrlEncode(J235)&\"&hmci=\"&UrlEncode(L235)&\"\"),\"请填写目标URL与媒体平台\")","v":"请填写目标URL与媒体平台"}]
[232,null,null,null,null,null,null,null,null,null,null,null,null,null,{"$f":"IF(LEN(B236)*LEN(D236),IF(OR(MID(B236,1,7)=\"http://\",MID(B236,1,8)=\"https://\"),B236&IF(ISNUMBER(FIND(\"?\",B236)),\"&\",\"?\")&\"hmsr=\"&UrlEncode(D236)&\"&hmpl=\"&UrlEncode(F236)&\"&hmcu=\"&UrlEncode(H236)&\"&hmkw=\"&UrlEncode(J236)&\"&hmci=\"&UrlEncode(L236)&\"\",\"http://\"&B236&IF(ISNUMBER(FIND(\"?\",B236)),\"&\",\"?\")&\"hmsr=\"&UrlEncode(D236)&\"&hmpl=\"&UrlEncode(F236)&\"&hmcu=\"&UrlEncode(H236)&\"&hmkw=\"&UrlEncode(J236)&\"&hmci=\"&UrlEncode(L236)&\"\"),\"请填写目标URL与媒体平台\")","v":"请填写目标URL与媒体平台"}]
[233,null,null,null,null,null,null,null,null,null,null,null,null,null,{"$f":"IF(LEN(B237)*LEN(D237),IF(OR(MID(B237,1,7)=\"http://\",MID(B237,1,8)=\"https://\"),B237&IF(ISNUMBER(FIND(\"?\",B237)),\"&\",\"?\")&\"hmsr=\"&UrlEncode(D237)&\"&hmpl=\"&UrlEncode(F237)&\"&hmcu=\"&UrlEncode(H237)&\"&hmkw=\"&UrlEncode(J237)&\"&hmci=\"&UrlEncode(L237)&\"\",\"http://\"&B237&IF(ISNUMBER(FIND(\"?\",B237)),\"&\",\"?\")&\"hmsr=\"&UrlEncode(D237)&\"&hmpl=\"&UrlEncode(F237)&\"&hmcu=\"&UrlEncode(H237)&\"&hmkw=\"&UrlEncode(J237)&\"&hmci=\"&UrlEncode(L237)&\"\"),\"请填写目标URL与媒体平台\")","v":"请填写目标URL与媒体平台"}]
[234,null,null,null,null,null,null,null,null,null,null,null,null,null,{"$f":"IF(LEN(B238)*LEN(D238),IF(OR(MID(B238,1,7)=\"http://\",MID(B238,1,8)=\"https://\"),B238&IF(ISNUMBER(FIND(\"?\",B238)),\"&\",\"?\")&\"hmsr=\"&UrlEncode(D238)&\"&hmpl=\"&UrlEncode(F238)&\"&hmcu=\"&UrlEncode(H238)&\"&hmkw=\"&UrlEncode(J238)&\"&hmci=\"&UrlEncode(L238)&\"\",\"http://\"&B238&IF(ISNUMBER(FIND(\"?\",B238)),\"&\",\"?\")&\"hmsr=\"&UrlEncode(D238)&\"&hmpl=\"&UrlEncode(F238)&\"&hmcu=\"&UrlEncode(H238)&\"&hmkw=\"&UrlEncode(J238)&\"&hmci=\"&UrlEncode(L238)&\"\"),\"请填写目标URL与媒体平台\")","v":"请填写目标URL与媒体平台"}]
[235,null,null,null,null,null,null,null,null,null,null,null,null,null,{"$f":"IF(LEN(B239)*LEN(D239),IF(OR(MID(B239,1,7)=\"http://\",MID(B239,1,8)=\"https://\"),B239&IF(ISNUMBER(FIND(\"?\",B239)),\"&\",\"?\")&\"hmsr=\"&UrlEncode(D239)&\"&hmpl=\"&UrlEncode(F239)&\"&hmcu=\"&UrlEncode(H239)&\"&hmkw=\"&UrlEncode(J239)&\"&hmci=\"&UrlEncode(L239)&\"\",\"http://\"&B239&IF(ISNUMBER(FIND(\"?\",B239)),\"&\",\"?\")&\"hmsr=\"&UrlEncode(D239)&\"&hmpl=\"&UrlEncode(F239)&\"&hmcu=\"&UrlEncode(H239)&\"&hmkw=\"&UrlEncode(J239)&\"&hmci=\"&UrlEncode(L239)&\"\"),\"请填写目标URL与媒体平台\")","v":"请填写目标URL与媒体平台"}]
[236,null,null,null,null,null,null,null,null,null,null,null,null,null,{"$f":"IF(LEN(B240)*LEN(D240),IF(OR(MID(B240,1,7)=\"http://\",MID(B240,1,8)=\"https://\"),B240&IF(ISNUMBER(FIND(\"?\",B240)),\"&\",\"?\")&\"hmsr=\"&UrlEncode(D240)&\"&hmpl=\"&UrlEncode(F240)&\"&hmcu=\"&UrlEncode(H240)&\"&hmkw=\"&UrlEncode(J240)&\"&hmci=\"&UrlEncode(L240)&\"\",\"http://\"&B240&IF(ISNUMBER(FIND(\"?\",B240)),\"&\",\"?\")&\"hmsr=\"&UrlEncode(D240)&\"&hmpl=\"&UrlEncode(F240)&\"&hmcu=\"&UrlEncode(H240)&\"&hmkw=\"&UrlEncode(J240)&\"&hmci=\"&UrlEncode(L240)&\"\"),\"请填写目标URL与媒体平台\")","v":"请填写目标URL与媒体平台"}]
[237,null,null,null,null,null,null,null,null,null,null,null,null,null,{"$f":"IF(LEN(B241)*LEN(D241),IF(OR(MID(B241,1,7)=\"http://\",MID(B241,1,8)=\"https://\"),B241&IF(ISNUMBER(FIND(\"?\",B241)),\"&\",\"?\")&\"hmsr=\"&UrlEncode(D241)&\"&hmpl=\"&UrlEncode(F241)&\"&hmcu=\"&UrlEncode(H241)&\"&hmkw=\"&UrlEncode(J241)&\"&hmci=\"&UrlEncode(L241)&\"\",\"http://\"&B241&IF(ISNUMBER(FIND(\"?\",B241)),\"&\",\"?\")&\"hmsr=\"&UrlEncode(D241)&\"&hmpl=\"&UrlEncode(F241)&\"&hmcu=\"&UrlEncode(H241)&\"&hmkw=\"&UrlEncode(J241)&\"&hmci=\"&UrlEncode(L241)&\"\"),\"请填写目标URL与媒体平台\")","v":"请填写目标URL与媒体平台"}]
[238,null,null,null,null,null,null,null,null,null,null,null,null,null,{"$f":"IF(LEN(B242)*LEN(D242),IF(OR(MID(B242,1,7)=\"http://\",MID(B242,1,8)=\"https://\"),B242&IF(ISNUMBER(FIND(\"?\",B242)),\"&\",\"?\")&\"hmsr=\"&UrlEncode(D242)&\"&hmpl=\"&UrlEncode(F242)&\"&hmcu=\"&UrlEncode(H242)&\"&hmkw=\"&UrlEncode(J242)&\"&hmci=\"&UrlEncode(L242)&\"\",\"http://\"&B242&IF(ISNUMBER(FIND(\"?\",B242)),\"&\",\"?\")&\"hmsr=\"&UrlEncode(D242)&\"&hmpl=\"&UrlEncode(F242)&\"&hmcu=\"&UrlEncode(H242)&\"&hmkw=\"&UrlEncode(J242)&\"&hmci=\"&UrlEncode(L242)&\"\"),\"请填写目标URL与媒体平台\")","v":"请填写目标URL与媒体平台"}]
[239,null,null,null,null,null,null,null,null,null,null,null,null,null,{"$f":"IF(LEN(B243)*LEN(D243),IF(OR(MID(B243,1,7)=\"http://\",MID(B243,1,8)=\"https://\"),B243&IF(ISNUMBER(FIND(\"?\",B243)),\"&\",\"?\")&\"hmsr=\"&UrlEncode(D243)&\"&hmpl=\"&UrlEncode(F243)&\"&hmcu=\"&UrlEncode(H243)&\"&hmkw=\"&UrlEncode(J243)&\"&hmci=\"&UrlEncode(L243)&\"\",\"http://\"&B243&IF(ISNUMBER(FIND(\"?\",B243)),\"&\",\"?\")&\"hmsr=\"&UrlEncode(D243)&\"&hmpl=\"&UrlEncode(F243)&\"&hmcu=\"&UrlEncode(H243)&\"&hmkw=\"&UrlEncode(J243)&\"&hmci=\"&UrlEncode(L243)&\"\"),\"请填写目标URL与媒体平台\")","v":"请填写目标URL与媒体平台"}]
[240,null,null,null,null,null,null,null,null,null,null,null,null,null,{"$f":"IF(LEN(B244)*LEN(D244),IF(OR(MID(B244,1,7)=\"http://\",MID(B244,1,8)=\"https://\"),B244&IF(ISNUMBER(FIND(\"?\",B244)),\"&\",\"?\")&\"hmsr=\"&UrlEncode(D244)&\"&hmpl=\"&UrlEncode(F244)&\"&hmcu=\"&UrlEncode(H244)&\"&hmkw=\"&UrlEncode(J244)&\"&hmci=\"&UrlEncode(L244)&\"\",\"http://\"&B244&IF(ISNUMBER(FIND(\"?\",B244)),\"&\",\"?\")&\"hmsr=\"&UrlEncode(D244)&\"&hmpl=\"&UrlEncode(F244)&\"&hmcu=\"&UrlEncode(H244)&\"&hmkw=\"&UrlEncode(J244)&\"&hmci=\"&UrlEncode(L244)&\"\"),\"请填写目标URL与媒体平台\")","v":"请填写目标URL与媒体平台"}]
[241,null,null,null,null,null,null,null,null,null,null,null,null,null,{"$f":"IF(LEN(B245)*LEN(D245),IF(OR(MID(B245,1,7)=\"http://\",MID(B245,1,8)=\"https://\"),B245&IF(ISNUMBER(FIND(\"?\",B245)),\"&\",\"?\")&\"hmsr=\"&UrlEncode(D245)&\"&hmpl=\"&UrlEncode(F245)&\"&hmcu=\"&UrlEncode(H245)&\"&hmkw=\"&UrlEncode(J245)&\"&hmci=\"&UrlEncode(L245)&\"\",\"http://\"&B245&IF(ISNUMBER(FIND(\"?\",B245)),\"&\",\"?\")&\"hmsr=\"&UrlEncode(D245)&\"&hmpl=\"&UrlEncode(F245)&\"&hmcu=\"&UrlEncode(H245)&\"&hmkw=\"&UrlEncode(J245)&\"&hmci=\"&UrlEncode(L245)&\"\"),\"请填写目标URL与媒体平台\")","v":"请填写目标URL与媒体平台"}]
[242,null,null,null,null,null,null,null,null,null,null,null,null,null,{"$f":"IF(LEN(B246)*LEN(D246),IF(OR(MID(B246,1,7)=\"http://\",MID(B246,1,8)=\"https://\"),B246&IF(ISNUMBER(FIND(\"?\",B246)),\"&\",\"?\")&\"hmsr=\"&UrlEncode(D246)&\"&hmpl=\"&UrlEncode(F246)&\"&hmcu=\"&UrlEncode(H246)&\"&hmkw=\"&UrlEncode(J246)&\"&hmci=\"&UrlEncode(L246)&\"\",\"http://\"&B246&IF(ISNUMBER(FIND(\"?\",B246)),\"&\",\"?\")&\"hmsr=\"&UrlEncode(D246)&\"&hmpl=\"&UrlEncode(F246)&\"&hmcu=\"&UrlEncode(H246)&\"&hmkw=\"&UrlEncode(J246)&\"&hmci=\"&UrlEncode(L246)&\"\"),\"请填写目标URL与媒体平台\")","v":"请填写目标URL与媒体平台"}]
[243,null,null,null,null,null,null,null,null,null,null,null,null,null,{"$f":"IF(LEN(B247)*LEN(D247),IF(OR(MID(B247,1,7)=\"http://\",MID(B247,1,8)=\"https://\"),B247&IF(ISNUMBER(FIND(\"?\",B247)),\"&\",\"?\")&\"hmsr=\"&UrlEncode(D247)&\"&hmpl=\"&UrlEncode(F247)&\"&hmcu=\"&UrlEncode(H247)&\"&hmkw=\"&UrlEncode(J247)&\"&hmci=\"&UrlEncode(L247)&\"\",\"http://\"&B247&IF(ISNUMBER(FIND(\"?\",B247)),\"&\",\"?\")&\"hmsr=\"&UrlEncode(D247)&\"&hmpl=\"&UrlEncode(F247)&\"&hmcu=\"&UrlEncode(H247)&\"&hmkw=\"&UrlEncode(J247)&\"&hmci=\"&UrlEncode(L247)&\"\"),\"请填写目标URL与媒体平台\")","v":"请填写目标URL与媒体平台"}]
[244,null,null,null,null,null,null,null,null,null,null,null,null,null,{"$f":"IF(LEN(B248)*LEN(D248),IF(OR(MID(B248,1,7)=\"http://\",MID(B248,1,8)=\"https://\"),B248&IF(ISNUMBER(FIND(\"?\",B248)),\"&\",\"?\")&\"hmsr=\"&UrlEncode(D248)&\"&hmpl=\"&UrlEncode(F248)&\"&hmcu=\"&UrlEncode(H248)&\"&hmkw=\"&UrlEncode(J248)&\"&hmci=\"&UrlEncode(L248)&\"\",\"http://\"&B248&IF(ISNUMBER(FIND(\"?\",B248)),\"&\",\"?\")&\"hmsr=\"&UrlEncode(D248)&\"&hmpl=\"&UrlEncode(F248)&\"&hmcu=\"&UrlEncode(H248)&\"&hmkw=\"&UrlEncode(J248)&\"&hmci=\"&UrlEncode(L248)&\"\"),\"请填写目标URL与媒体平台\")","v":"请填写目标URL与媒体平台"}]
[245,null,null,null,null,null,null,null,null,null,null,null,null,null,{"$f":"IF(LEN(B249)*LEN(D249),IF(OR(MID(B249,1,7)=\"http://\",MID(B249,1,8)=\"https://\"),B249&IF(ISNUMBER(FIND(\"?\",B249)),\"&\",\"?\")&\"hmsr=\"&UrlEncode(D249)&\"&hmpl=\"&UrlEncode(F249)&\"&hmcu=\"&UrlEncode(H249)&\"&hmkw=\"&UrlEncode(J249)&\"&hmci=\"&UrlEncode(L249)&\"\",\"http://\"&B249&IF(ISNUMBER(FIND(\"?\",B249)),\"&\",\"?\")&\"hmsr=\"&UrlEncode(D249)&\"&hmpl=\"&UrlEncode(F249)&\"&hmcu=\"&UrlEncode(H249)&\"&hmkw=\"&UrlEncode(J249)&\"&hmci=\"&UrlEncode(L249)&\"\"),\"请填写目标URL与媒体平台\")","v":"请填写目标URL与媒体平台"}]
[246,null,null,null,null,null,null,null,null,null,null,null,null,null,{"$f":"IF(LEN(B250)*LEN(D250),IF(OR(MID(B250,1,7)=\"http://\",MID(B250,1,8)=\"https://\"),B250&IF(ISNUMBER(FIND(\"?\",B250)),\"&\",\"?\")&\"hmsr=\"&UrlEncode(D250)&\"&hmpl=\"&UrlEncode(F250)&\"&hmcu=\"&UrlEncode(H250)&\"&hmkw=\"&UrlEncode(J250)&\"&hmci=\"&UrlEncode(L250)&\"\",\"http://\"&B250&IF(ISNUMBER(FIND(\"?\",B250)),\"&\",\"?\")&\"hmsr=\"&UrlEncode(D250)&\"&hmpl=\"&UrlEncode(F250)&\"&hmcu=\"&UrlEncode(H250)&\"&hmkw=\"&UrlEncode(J250)&\"&hmci=\"&UrlEncode(L250)&\"\"),\"请填写目标URL与媒体平台\")","v":"请填写目标URL与媒体平台"}]
[247,null,null,null,null,null,null,null,null,null,null,null,null,null,{"$f":"IF(LEN(B251)*LEN(D251),IF(OR(MID(B251,1,7)=\"http://\",MID(B251,1,8)=\"https://\"),B251&IF(ISNUMBER(FIND(\"?\",B251)),\"&\",\"?\")&\"hmsr=\"&UrlEncode(D251)&\"&hmpl=\"&UrlEncode(F251)&\"&hmcu=\"&UrlEncode(H251)&\"&hmkw=\"&UrlEncode(J251)&\"&hmci=\"&UrlEncode(L251)&\"\",\"http://\"&B251&IF(ISNUMBER(FIND(\"?\",B251)),\"&\",\"?\")&\"hmsr=\"&UrlEncode(D251)&\"&hmpl=\"&UrlEncode(F251)&\"&hmcu=\"&UrlEncode(H251)&\"&hmkw=\"&UrlEncode(J251)&\"&hmci=\"&UrlEncode(L251)&\"\"),\"请填写目标URL与媒体平台\")","v":"请填写目标URL与媒体平台"}]
[248,null,null,null,null,null,null,null,null,null,null,null,null,null,{"$f":"IF(LEN(B252)*LEN(D252),IF(OR(MID(B252,1,7)=\"http://\",MID(B252,1,8)=\"https://\"),B252&IF(ISNUMBER(FIND(\"?\",B252)),\"&\",\"?\")&\"hmsr=\"&UrlEncode(D252)&\"&hmpl=\"&UrlEncode(F252)&\"&hmcu=\"&UrlEncode(H252)&\"&hmkw=\"&UrlEncode(J252)&\"&hmci=\"&UrlEncode(L252)&\"\",\"http://\"&B252&IF(ISNUMBER(FIND(\"?\",B252)),\"&\",\"?\")&\"hmsr=\"&UrlEncode(D252)&\"&hmpl=\"&UrlEncode(F252)&\"&hmcu=\"&UrlEncode(H252)&\"&hmkw=\"&UrlEncode(J252)&\"&hmci=\"&UrlEncode(L252)&\"\"),\"请填写目标URL与媒体平台\")","v":"请填写目标URL与媒体平台"}]
[249,null,null,null,null,null,null,null,null,null,null,null,null,null,{"$f":"IF(LEN(B253)*LEN(D253),IF(OR(MID(B253,1,7)=\"http://\",MID(B253,1,8)=\"https://\"),B253&IF(ISNUMBER(FIND(\"?\",B253)),\"&\",\"?\")&\"hmsr=\"&UrlEncode(D253)&\"&hmpl=\"&UrlEncode(F253)&\"&hmcu=\"&UrlEncode(H253)&\"&hmkw=\"&UrlEncode(J253)&\"&hmci=\"&UrlEncode(L253)&\"\",\"http://\"&B253&IF(ISNUMBER(FIND(\"?\",B253)),\"&\",\"?\")&\"hmsr=\"&UrlEncode(D253)&\"&hmpl=\"&UrlEncode(F253)&\"&hmcu=\"&UrlEncode(H253)&\"&hmkw=\"&UrlEncode(J253)&\"&hmci=\"&UrlEncode(L253)&\"\"),\"请填写目标URL与媒体平台\")","v":"请填写目标URL与媒体平台"}]
[250,null,null,null,null,null,null,null,null,null,null,null,null,null,{"$f":"IF(LEN(B254)*LEN(D254),IF(OR(MID(B254,1,7)=\"http://\",MID(B254,1,8)=\"https://\"),B254&IF(ISNUMBER(FIND(\"?\",B254)),\"&\",\"?\")&\"hmsr=\"&UrlEncode(D254)&\"&hmpl=\"&UrlEncode(F254)&\"&hmcu=\"&UrlEncode(H254)&\"&hmkw=\"&UrlEncode(J254)&\"&hmci=\"&UrlEncode(L254)&\"\",\"http://\"&B254&IF(ISNUMBER(FIND(\"?\",B254)),\"&\",\"?\")&\"hmsr=\"&UrlEncode(D254)&\"&hmpl=\"&UrlEncode(F254)&\"&hmcu=\"&UrlEncode(H254)&\"&hmkw=\"&UrlEncode(J254)&\"&hmci=\"&UrlEncode(L254)&\"\"),\"请填写目标URL与媒体平台\")","v":"请填写目标URL与媒体平台"}]
[251,null,null,null,null,null,null,null,null,null,null,null,null,null,{"$f":"IF(LEN(B255)*LEN(D255),IF(OR(MID(B255,1,7)=\"http://\",MID(B255,1,8)=\"https://\"),B255&IF(ISNUMBER(FIND(\"?\",B255)),\"&\",\"?\")&\"hmsr=\"&UrlEncode(D255)&\"&hmpl=\"&UrlEncode(F255)&\"&hmcu=\"&UrlEncode(H255)&\"&hmkw=\"&UrlEncode(J255)&\"&hmci=\"&UrlEncode(L255)&\"\",\"http://\"&B255&IF(ISNUMBER(FIND(\"?\",B255)),\"&\",\"?\")&\"hmsr=\"&UrlEncode(D255)&\"&hmpl=\"&UrlEncode(F255)&\"&hmcu=\"&UrlEncode(H255)&\"&hmkw=\"&UrlEncode(J255)&\"&hmci=\"&UrlEncode(L255)&\"\"),\"请填写目标URL与媒体平台\")","v":"请填写目标URL与媒体平台"}]
[252,null,null,null,null,null,null,null,null,null,null,null,null,null,{"$f":"IF(LEN(B256)*LEN(D256),IF(OR(MID(B256,1,7)=\"http://\",MID(B256,1,8)=\"https://\"),B256&IF(ISNUMBER(FIND(\"?\",B256)),\"&\",\"?\")&\"hmsr=\"&UrlEncode(D256)&\"&hmpl=\"&UrlEncode(F256)&\"&hmcu=\"&UrlEncode(H256)&\"&hmkw=\"&UrlEncode(J256)&\"&hmci=\"&UrlEncode(L256)&\"\",\"http://\"&B256&IF(ISNUMBER(FIND(\"?\",B256)),\"&\",\"?\")&\"hmsr=\"&UrlEncode(D256)&\"&hmpl=\"&UrlEncode(F256)&\"&hmcu=\"&UrlEncode(H256)&\"&hmkw=\"&UrlEncode(J256)&\"&hmci=\"&UrlEncode(L256)&\"\"),\"请填写目标URL与媒体平台\")","v":"请填写目标URL与媒体平台"}]
[253,null,null,null,null,null,null,null,null,null,null,null,null,null,{"$f":"IF(LEN(B257)*LEN(D257),IF(OR(MID(B257,1,7)=\"http://\",MID(B257,1,8)=\"https://\"),B257&IF(ISNUMBER(FIND(\"?\",B257)),\"&\",\"?\")&\"hmsr=\"&UrlEncode(D257)&\"&hmpl=\"&UrlEncode(F257)&\"&hmcu=\"&UrlEncode(H257)&\"&hmkw=\"&UrlEncode(J257)&\"&hmci=\"&UrlEncode(L257)&\"\",\"http://\"&B257&IF(ISNUMBER(FIND(\"?\",B257)),\"&\",\"?\")&\"hmsr=\"&UrlEncode(D257)&\"&hmpl=\"&UrlEncode(F257)&\"&hmcu=\"&UrlEncode(H257)&\"&hmkw=\"&UrlEncode(J257)&\"&hmci=\"&UrlEncode(L257)&\"\"),\"请填写目标URL与媒体平台\")","v":"请填写目标URL与媒体平台"}]
[254,null,null,null,null,null,null,null,null,null,null,null,null,null,{"$f":"IF(LEN(B258)*LEN(D258),IF(OR(MID(B258,1,7)=\"http://\",MID(B258,1,8)=\"https://\"),B258&IF(ISNUMBER(FIND(\"?\",B258)),\"&\",\"?\")&\"hmsr=\"&UrlEncode(D258)&\"&hmpl=\"&UrlEncode(F258)&\"&hmcu=\"&UrlEncode(H258)&\"&hmkw=\"&UrlEncode(J258)&\"&hmci=\"&UrlEncode(L258)&\"\",\"http://\"&B258&IF(ISNUMBER(FIND(\"?\",B258)),\"&\",\"?\")&\"hmsr=\"&UrlEncode(D258)&\"&hmpl=\"&UrlEncode(F258)&\"&hmcu=\"&UrlEncode(H258)&\"&hmkw=\"&UrlEncode(J258)&\"&hmci=\"&UrlEncode(L258)&\"\"),\"请填写目标URL与媒体平台\")","v":"请填写目标URL与媒体平台"}]
[255,null,null,null,null,null,null,null,null,null,null,null,null,null,{"$f":"IF(LEN(B259)*LEN(D259),IF(OR(MID(B259,1,7)=\"http://\",MID(B259,1,8)=\"https://\"),B259&IF(ISNUMBER(FIND(\"?\",B259)),\"&\",\"?\")&\"hmsr=\"&UrlEncode(D259)&\"&hmpl=\"&UrlEncode(F259)&\"&hmcu=\"&UrlEncode(H259)&\"&hmkw=\"&UrlEncode(J259)&\"&hmci=\"&UrlEncode(L259)&\"\",\"http://\"&B259&IF(ISNUMBER(FIND(\"?\",B259)),\"&\",\"?\")&\"hmsr=\"&UrlEncode(D259)&\"&hmpl=\"&UrlEncode(F259)&\"&hmcu=\"&UrlEncode(H259)&\"&hmkw=\"&UrlEncode(J259)&\"&hmci=\"&UrlEncode(L259)&\"\"),\"请填写目标URL与媒体平台\")","v":"请填写目标URL与媒体平台"}]
[256,null,null,null,null,null,null,null,null,null,null,null,null,null,{"$f":"IF(LEN(B260)*LEN(D260),IF(OR(MID(B260,1,7)=\"http://\",MID(B260,1,8)=\"https://\"),B260&IF(ISNUMBER(FIND(\"?\",B260)),\"&\",\"?\")&\"hmsr=\"&UrlEncode(D260)&\"&hmpl=\"&UrlEncode(F260)&\"&hmcu=\"&UrlEncode(H260)&\"&hmkw=\"&UrlEncode(J260)&\"&hmci=\"&UrlEncode(L260)&\"\",\"http://\"&B260&IF(ISNUMBER(FIND(\"?\",B260)),\"&\",\"?\")&\"hmsr=\"&UrlEncode(D260)&\"&hmpl=\"&UrlEncode(F260)&\"&hmcu=\"&UrlEncode(H260)&\"&hmkw=\"&UrlEncode(J260)&\"&hmci=\"&UrlEncode(L260)&\"\"),\"请填写目标URL与媒体平台\")","v":"请填写目标URL与媒体平台"}]
[257,null,null,null,null,null,null,null,null,null,null,null,null,null,{"$f":"IF(LEN(B261)*LEN(D261),IF(OR(MID(B261,1,7)=\"http://\",MID(B261,1,8)=\"https://\"),B261&IF(ISNUMBER(FIND(\"?\",B261)),\"&\",\"?\")&\"hmsr=\"&UrlEncode(D261)&\"&hmpl=\"&UrlEncode(F261)&\"&hmcu=\"&UrlEncode(H261)&\"&hmkw=\"&UrlEncode(J261)&\"&hmci=\"&UrlEncode(L261)&\"\",\"http://\"&B261&IF(ISNUMBER(FIND(\"?\",B261)),\"&\",\"?\")&\"hmsr=\"&UrlEncode(D261)&\"&hmpl=\"&UrlEncode(F261)&\"&hmcu=\"&UrlEncode(H261)&\"&hmkw=\"&UrlEncode(J261)&\"&hmci=\"&UrlEncode(L261)&\"\"),\"请填写目标URL与媒体平台\")","v":"请填写目标URL与媒体平台"}]
[258,null,null,null,null,null,null,null,null,null,null,null,null,null,{"$f":"IF(LEN(B262)*LEN(D262),IF(OR(MID(B262,1,7)=\"http://\",MID(B262,1,8)=\"https://\"),B262&IF(ISNUMBER(FIND(\"?\",B262)),\"&\",\"?\")&\"hmsr=\"&UrlEncode(D262)&\"&hmpl=\"&UrlEncode(F262)&\"&hmcu=\"&UrlEncode(H262)&\"&hmkw=\"&UrlEncode(J262)&\"&hmci=\"&UrlEncode(L262)&\"\",\"http://\"&B262&IF(ISNUMBER(FIND(\"?\",B262)),\"&\",\"?\")&\"hmsr=\"&UrlEncode(D262)&\"&hmpl=\"&UrlEncode(F262)&\"&hmcu=\"&UrlEncode(H262)&\"&hmkw=\"&UrlEncode(J262)&\"&hmci=\"&UrlEncode(L262)&\"\"),\"请填写目标URL与媒体平台\")","v":"请填写目标URL与媒体平台"}]
[259,null,null,null,null,null,null,null,null,null,null,null,null,null,{"$f":"IF(LEN(B263)*LEN(D263),IF(OR(MID(B263,1,7)=\"http://\",MID(B263,1,8)=\"https://\"),B263&IF(ISNUMBER(FIND(\"?\",B263)),\"&\",\"?\")&\"hmsr=\"&UrlEncode(D263)&\"&hmpl=\"&UrlEncode(F263)&\"&hmcu=\"&UrlEncode(H263)&\"&hmkw=\"&UrlEncode(J263)&\"&hmci=\"&UrlEncode(L263)&\"\",\"http://\"&B263&IF(ISNUMBER(FIND(\"?\",B263)),\"&\",\"?\")&\"hmsr=\"&UrlEncode(D263)&\"&hmpl=\"&UrlEncode(F263)&\"&hmcu=\"&UrlEncode(H263)&\"&hmkw=\"&UrlEncode(J263)&\"&hmci=\"&UrlEncode(L263)&\"\"),\"请填写目标URL与媒体平台\")","v":"请填写目标URL与媒体平台"}]
[260,null,null,null,null,null,null,null,null,null,null,null,null,null,{"$f":"IF(LEN(B264)*LEN(D264),IF(OR(MID(B264,1,7)=\"http://\",MID(B264,1,8)=\"https://\"),B264&IF(ISNUMBER(FIND(\"?\",B264)),\"&\",\"?\")&\"hmsr=\"&UrlEncode(D264)&\"&hmpl=\"&UrlEncode(F264)&\"&hmcu=\"&UrlEncode(H264)&\"&hmkw=\"&UrlEncode(J264)&\"&hmci=\"&UrlEncode(L264)&\"\",\"http://\"&B264&IF(ISNUMBER(FIND(\"?\",B264)),\"&\",\"?\")&\"hmsr=\"&UrlEncode(D264)&\"&hmpl=\"&UrlEncode(F264)&\"&hmcu=\"&UrlEncode(H264)&\"&hmkw=\"&UrlEncode(J264)&\"&hmci=\"&UrlEncode(L264)&\"\"),\"请填写目标URL与媒体平台\")","v":"请填写目标URL与媒体平台"}]
[261,null,null,null,null,null,null,null,null,null,null,null,null,null,{"$f":"IF(LEN(B265)*LEN(D265),IF(OR(MID(B265,1,7)=\"http://\",MID(B265,1,8)=\"https://\"),B265&IF(ISNUMBER(FIND(\"?\",B265)),\"&\",\"?\")&\"hmsr=\"&UrlEncode(D265)&\"&hmpl=\"&UrlEncode(F265)&\"&hmcu=\"&UrlEncode(H265)&\"&hmkw=\"&UrlEncode(J265)&\"&hmci=\"&UrlEncode(L265)&\"\",\"http://\"&B265&IF(ISNUMBER(FIND(\"?\",B265)),\"&\",\"?\")&\"hmsr=\"&UrlEncode(D265)&\"&hmpl=\"&UrlEncode(F265)&\"&hmcu=\"&UrlEncode(H265)&\"&hmkw=\"&UrlEncode(J265)&\"&hmci=\"&UrlEncode(L265)&\"\"),\"请填写目标URL与媒体平台\")","v":"请填写目标URL与媒体平台"}]
[262,null,null,null,null,null,null,null,null,null,null,null,null,null,{"$f":"IF(LEN(B266)*LEN(D266),IF(OR(MID(B266,1,7)=\"http://\",MID(B266,1,8)=\"https://\"),B266&IF(ISNUMBER(FIND(\"?\",B266)),\"&\",\"?\")&\"hmsr=\"&UrlEncode(D266)&\"&hmpl=\"&UrlEncode(F266)&\"&hmcu=\"&UrlEncode(H266)&\"&hmkw=\"&UrlEncode(J266)&\"&hmci=\"&UrlEncode(L266)&\"\",\"http://\"&B266&IF(ISNUMBER(FIND(\"?\",B266)),\"&\",\"?\")&\"hmsr=\"&UrlEncode(D266)&\"&hmpl=\"&UrlEncode(F266)&\"&hmcu=\"&UrlEncode(H266)&\"&hmkw=\"&UrlEncode(J266)&\"&hmci=\"&UrlEncode(L266)&\"\"),\"请填写目标URL与媒体平台\")","v":"请填写目标URL与媒体平台"}]
[263,null,null,null,null,null,null,null,null,null,null,null,null,null,{"$f":"IF(LEN(B267)*LEN(D267),IF(OR(MID(B267,1,7)=\"http://\",MID(B267,1,8)=\"https://\"),B267&IF(ISNUMBER(FIND(\"?\",B267)),\"&\",\"?\")&\"hmsr=\"&UrlEncode(D267)&\"&hmpl=\"&UrlEncode(F267)&\"&hmcu=\"&UrlEncode(H267)&\"&hmkw=\"&UrlEncode(J267)&\"&hmci=\"&UrlEncode(L267)&\"\",\"http://\"&B267&IF(ISNUMBER(FIND(\"?\",B267)),\"&\",\"?\")&\"hmsr=\"&UrlEncode(D267)&\"&hmpl=\"&UrlEncode(F267)&\"&hmcu=\"&UrlEncode(H267)&\"&hmkw=\"&UrlEncode(J267)&\"&hmci=\"&UrlEncode(L267)&\"\"),\"请填写目标URL与媒体平台\")","v":"请填写目标URL与媒体平台"}]
[264,null,null,null,null,null,null,null,null,null,null,null,null,null,{"$f":"IF(LEN(B268)*LEN(D268),IF(OR(MID(B268,1,7)=\"http://\",MID(B268,1,8)=\"https://\"),B268&IF(ISNUMBER(FIND(\"?\",B268)),\"&\",\"?\")&\"hmsr=\"&UrlEncode(D268)&\"&hmpl=\"&UrlEncode(F268)&\"&hmcu=\"&UrlEncode(H268)&\"&hmkw=\"&UrlEncode(J268)&\"&hmci=\"&UrlEncode(L268)&\"\",\"http://\"&B268&IF(ISNUMBER(FIND(\"?\",B268)),\"&\",\"?\")&\"hmsr=\"&UrlEncode(D268)&\"&hmpl=\"&UrlEncode(F268)&\"&hmcu=\"&UrlEncode(H268)&\"&hmkw=\"&UrlEncode(J268)&\"&hmci=\"&UrlEncode(L268)&\"\"),\"请填写目标URL与媒体平台\")","v":"请填写目标URL与媒体平台"}]
[265,null,null,null,null,null,null,null,null,null,null,null,null,null,{"$f":"IF(LEN(B269)*LEN(D269),IF(OR(MID(B269,1,7)=\"http://\",MID(B269,1,8)=\"https://\"),B269&IF(ISNUMBER(FIND(\"?\",B269)),\"&\",\"?\")&\"hmsr=\"&UrlEncode(D269)&\"&hmpl=\"&UrlEncode(F269)&\"&hmcu=\"&UrlEncode(H269)&\"&hmkw=\"&UrlEncode(J269)&\"&hmci=\"&UrlEncode(L269)&\"\",\"http://\"&B269&IF(ISNUMBER(FIND(\"?\",B269)),\"&\",\"?\")&\"hmsr=\"&UrlEncode(D269)&\"&hmpl=\"&UrlEncode(F269)&\"&hmcu=\"&UrlEncode(H269)&\"&hmkw=\"&UrlEncode(J269)&\"&hmci=\"&UrlEncode(L269)&\"\"),\"请填写目标URL与媒体平台\")","v":"请填写目标URL与媒体平台"}]
[266,null,null,null,null,null,null,null,null,null,null,null,null,null,{"$f":"IF(LEN(B270)*LEN(D270),IF(OR(MID(B270,1,7)=\"http://\",MID(B270,1,8)=\"https://\"),B270&IF(ISNUMBER(FIND(\"?\",B270)),\"&\",\"?\")&\"hmsr=\"&UrlEncode(D270)&\"&hmpl=\"&UrlEncode(F270)&\"&hmcu=\"&UrlEncode(H270)&\"&hmkw=\"&UrlEncode(J270)&\"&hmci=\"&UrlEncode(L270)&\"\",\"http://\"&B270&IF(ISNUMBER(FIND(\"?\",B270)),\"&\",\"?\")&\"hmsr=\"&UrlEncode(D270)&\"&hmpl=\"&UrlEncode(F270)&\"&hmcu=\"&UrlEncode(H270)&\"&hmkw=\"&UrlEncode(J270)&\"&hmci=\"&UrlEncode(L270)&\"\"),\"请填写目标URL与媒体平台\")","v":"请填写目标URL与媒体平台"}]
[267,null,null,null,null,null,null,null,null,null,null,null,null,null,{"$f":"IF(LEN(B271)*LEN(D271),IF(OR(MID(B271,1,7)=\"http://\",MID(B271,1,8)=\"https://\"),B271&IF(ISNUMBER(FIND(\"?\",B271)),\"&\",\"?\")&\"hmsr=\"&UrlEncode(D271)&\"&hmpl=\"&UrlEncode(F271)&\"&hmcu=\"&UrlEncode(H271)&\"&hmkw=\"&UrlEncode(J271)&\"&hmci=\"&UrlEncode(L271)&\"\",\"http://\"&B271&IF(ISNUMBER(FIND(\"?\",B271)),\"&\",\"?\")&\"hmsr=\"&UrlEncode(D271)&\"&hmpl=\"&UrlEncode(F271)&\"&hmcu=\"&UrlEncode(H271)&\"&hmkw=\"&UrlEncode(J271)&\"&hmci=\"&UrlEncode(L271)&\"\"),\"请填写目标URL与媒体平台\")","v":"请填写目标URL与媒体平台"}]
[268,null,null,null,null,null,null,null,null,null,null,null,null,null,{"$f":"IF(LEN(B272)*LEN(D272),IF(OR(MID(B272,1,7)=\"http://\",MID(B272,1,8)=\"https://\"),B272&IF(ISNUMBER(FIND(\"?\",B272)),\"&\",\"?\")&\"hmsr=\"&UrlEncode(D272)&\"&hmpl=\"&UrlEncode(F272)&\"&hmcu=\"&UrlEncode(H272)&\"&hmkw=\"&UrlEncode(J272)&\"&hmci=\"&UrlEncode(L272)&\"\",\"http://\"&B272&IF(ISNUMBER(FIND(\"?\",B272)),\"&\",\"?\")&\"hmsr=\"&UrlEncode(D272)&\"&hmpl=\"&UrlEncode(F272)&\"&hmcu=\"&UrlEncode(H272)&\"&hmkw=\"&UrlEncode(J272)&\"&hmci=\"&UrlEncode(L272)&\"\"),\"请填写目标URL与媒体平台\")","v":"请填写目标URL与媒体平台"}]
[269,null,null,null,null,null,null,null,null,null,null,null,null,null,{"$f":"IF(LEN(B273)*LEN(D273),IF(OR(MID(B273,1,7)=\"http://\",MID(B273,1,8)=\"https://\"),B273&IF(ISNUMBER(FIND(\"?\",B273)),\"&\",\"?\")&\"hmsr=\"&UrlEncode(D273)&\"&hmpl=\"&UrlEncode(F273)&\"&hmcu=\"&UrlEncode(H273)&\"&hmkw=\"&UrlEncode(J273)&\"&hmci=\"&UrlEncode(L273)&\"\",\"http://\"&B273&IF(ISNUMBER(FIND(\"?\",B273)),\"&\",\"?\")&\"hmsr=\"&UrlEncode(D273)&\"&hmpl=\"&UrlEncode(F273)&\"&hmcu=\"&UrlEncode(H273)&\"&hmkw=\"&UrlEncode(J273)&\"&hmci=\"&UrlEncode(L273)&\"\"),\"请填写目标URL与媒体平台\")","v":"请填写目标URL与媒体平台"}]
[270,null,null,null,null,null,null,null,null,null,null,null,null,null,{"$f":"IF(LEN(B274)*LEN(D274),IF(OR(MID(B274,1,7)=\"http://\",MID(B274,1,8)=\"https://\"),B274&IF(ISNUMBER(FIND(\"?\",B274)),\"&\",\"?\")&\"hmsr=\"&UrlEncode(D274)&\"&hmpl=\"&UrlEncode(F274)&\"&hmcu=\"&UrlEncode(H274)&\"&hmkw=\"&UrlEncode(J274)&\"&hmci=\"&UrlEncode(L274)&\"\",\"http://\"&B274&IF(ISNUMBER(FIND(\"?\",B274)),\"&\",\"?\")&\"hmsr=\"&UrlEncode(D274)&\"&hmpl=\"&UrlEncode(F274)&\"&hmcu=\"&UrlEncode(H274)&\"&hmkw=\"&UrlEncode(J274)&\"&hmci=\"&UrlEncode(L274)&\"\"),\"请填写目标URL与媒体平台\")","v":"请填写目标URL与媒体平台"}]
[271,null,null,null,null,null,null,null,null,null,null,null,null,null,{"$f":"IF(LEN(B275)*LEN(D275),IF(OR(MID(B275,1,7)=\"http://\",MID(B275,1,8)=\"https://\"),B275&IF(ISNUMBER(FIND(\"?\",B275)),\"&\",\"?\")&\"hmsr=\"&UrlEncode(D275)&\"&hmpl=\"&UrlEncode(F275)&\"&hmcu=\"&UrlEncode(H275)&\"&hmkw=\"&UrlEncode(J275)&\"&hmci=\"&UrlEncode(L275)&\"\",\"http://\"&B275&IF(ISNUMBER(FIND(\"?\",B275)),\"&\",\"?\")&\"hmsr=\"&UrlEncode(D275)&\"&hmpl=\"&UrlEncode(F275)&\"&hmcu=\"&UrlEncode(H275)&\"&hmkw=\"&UrlEncode(J275)&\"&hmci=\"&UrlEncode(L275)&\"\"),\"请填写目标URL与媒体平台\")","v":"请填写目标URL与媒体平台"}]
[272,null,null,null,null,null,null,null,null,null,null,null,null,null,{"$f":"IF(LEN(B276)*LEN(D276),IF(OR(MID(B276,1,7)=\"http://\",MID(B276,1,8)=\"https://\"),B276&IF(ISNUMBER(FIND(\"?\",B276)),\"&\",\"?\")&\"hmsr=\"&UrlEncode(D276)&\"&hmpl=\"&UrlEncode(F276)&\"&hmcu=\"&UrlEncode(H276)&\"&hmkw=\"&UrlEncode(J276)&\"&hmci=\"&UrlEncode(L276)&\"\",\"http://\"&B276&IF(ISNUMBER(FIND(\"?\",B276)),\"&\",\"?\")&\"hmsr=\"&UrlEncode(D276)&\"&hmpl=\"&UrlEncode(F276)&\"&hmcu=\"&UrlEncode(H276)&\"&hmkw=\"&UrlEncode(J276)&\"&hmci=\"&UrlEncode(L276)&\"\"),\"请填写目标URL与媒体平台\")","v":"请填写目标URL与媒体平台"}]
[273,null,null,null,null,null,null,null,null,null,null,null,null,null,{"$f":"IF(LEN(B277)*LEN(D277),IF(OR(MID(B277,1,7)=\"http://\",MID(B277,1,8)=\"https://\"),B277&IF(ISNUMBER(FIND(\"?\",B277)),\"&\",\"?\")&\"hmsr=\"&UrlEncode(D277)&\"&hmpl=\"&UrlEncode(F277)&\"&hmcu=\"&UrlEncode(H277)&\"&hmkw=\"&UrlEncode(J277)&\"&hmci=\"&UrlEncode(L277)&\"\",\"http://\"&B277&IF(ISNUMBER(FIND(\"?\",B277)),\"&\",\"?\")&\"hmsr=\"&UrlEncode(D277)&\"&hmpl=\"&UrlEncode(F277)&\"&hmcu=\"&UrlEncode(H277)&\"&hmkw=\"&UrlEncode(J277)&\"&hmci=\"&UrlEncode(L277)&\"\"),\"请填写目标URL与媒体平台\")","v":"请填写目标URL与媒体平台"}]
[274,null,null,null,null,null,null,null,null,null,null,null,null,null,{"$f":"IF(LEN(B278)*LEN(D278),IF(OR(MID(B278,1,7)=\"http://\",MID(B278,1,8)=\"https://\"),B278&IF(ISNUMBER(FIND(\"?\",B278)),\"&\",\"?\")&\"hmsr=\"&UrlEncode(D278)&\"&hmpl=\"&UrlEncode(F278)&\"&hmcu=\"&UrlEncode(H278)&\"&hmkw=\"&UrlEncode(J278)&\"&hmci=\"&UrlEncode(L278)&\"\",\"http://\"&B278&IF(ISNUMBER(FIND(\"?\",B278)),\"&\",\"?\")&\"hmsr=\"&UrlEncode(D278)&\"&hmpl=\"&UrlEncode(F278)&\"&hmcu=\"&UrlEncode(H278)&\"&hmkw=\"&UrlEncode(J278)&\"&hmci=\"&UrlEncode(L278)&\"\"),\"请填写目标URL与媒体平台\")","v":"请填写目标URL与媒体平台"}]
[275,null,null,null,null,null,null,null,null,null,null,null,null,null,{"$f":"IF(LEN(B279)*LEN(D279),IF(OR(MID(B279,1,7)=\"http://\",MID(B279,1,8)=\"https://\"),B279&IF(ISNUMBER(FIND(\"?\",B279)),\"&\",\"?\")&\"hmsr=\"&UrlEncode(D279)&\"&hmpl=\"&UrlEncode(F279)&\"&hmcu=\"&UrlEncode(H279)&\"&hmkw=\"&UrlEncode(J279)&\"&hmci=\"&UrlEncode(L279)&\"\",\"http://\"&B279&IF(ISNUMBER(FIND(\"?\",B279)),\"&\",\"?\")&\"hmsr=\"&UrlEncode(D279)&\"&hmpl=\"&UrlEncode(F279)&\"&hmcu=\"&UrlEncode(H279)&\"&hmkw=\"&UrlEncode(J279)&\"&hmci=\"&UrlEncode(L279)&\"\"),\"请填写目标URL与媒体平台\")","v":"请填写目标URL与媒体平台"}]
[276,null,null,null,null,null,null,null,null,null,null,null,null,null,{"$f":"IF(LEN(B280)*LEN(D280),IF(OR(MID(B280,1,7)=\"http://\",MID(B280,1,8)=\"https://\"),B280&IF(ISNUMBER(FIND(\"?\",B280)),\"&\",\"?\")&\"hmsr=\"&UrlEncode(D280)&\"&hmpl=\"&UrlEncode(F280)&\"&hmcu=\"&UrlEncode(H280)&\"&hmkw=\"&UrlEncode(J280)&\"&hmci=\"&UrlEncode(L280)&\"\",\"http://\"&B280&IF(ISNUMBER(FIND(\"?\",B280)),\"&\",\"?\")&\"hmsr=\"&UrlEncode(D280)&\"&hmpl=\"&UrlEncode(F280)&\"&hmcu=\"&UrlEncode(H280)&\"&hmkw=\"&UrlEncode(J280)&\"&hmci=\"&UrlEncode(L280)&\"\"),\"请填写目标URL与媒体平台\")","v":"请填写目标URL与媒体平台"}]
[277,null,null,null,null,null,null,null,null,null,null,null,null,null,{"$f":"IF(LEN(B281)*LEN(D281),IF(OR(MID(B281,1,7)=\"http://\",MID(B281,1,8)=\"https://\"),B281&IF(ISNUMBER(FIND(\"?\",B281)),\"&\",\"?\")&\"hmsr=\"&UrlEncode(D281)&\"&hmpl=\"&UrlEncode(F281)&\"&hmcu=\"&UrlEncode(H281)&\"&hmkw=\"&UrlEncode(J281)&\"&hmci=\"&UrlEncode(L281)&\"\",\"http://\"&B281&IF(ISNUMBER(FIND(\"?\",B281)),\"&\",\"?\")&\"hmsr=\"&UrlEncode(D281)&\"&hmpl=\"&UrlEncode(F281)&\"&hmcu=\"&UrlEncode(H281)&\"&hmkw=\"&UrlEncode(J281)&\"&hmci=\"&UrlEncode(L281)&\"\"),\"请填写目标URL与媒体平台\")","v":"请填写目标URL与媒体平台"}]
[278,null,null,null,null,null,null,null,null,null,null,null,null,null,{"$f":"IF(LEN(B282)*LEN(D282),IF(OR(MID(B282,1,7)=\"http://\",MID(B282,1,8)=\"https://\"),B282&IF(ISNUMBER(FIND(\"?\",B282)),\"&\",\"?\")&\"hmsr=\"&UrlEncode(D282)&\"&hmpl=\"&UrlEncode(F282)&\"&hmcu=\"&UrlEncode(H282)&\"&hmkw=\"&UrlEncode(J282)&\"&hmci=\"&UrlEncode(L282)&\"\",\"http://\"&B282&IF(ISNUMBER(FIND(\"?\",B282)),\"&\",\"?\")&\"hmsr=\"&UrlEncode(D282)&\"&hmpl=\"&UrlEncode(F282)&\"&hmcu=\"&UrlEncode(H282)&\"&hmkw=\"&UrlEncode(J282)&\"&hmci=\"&UrlEncode(L282)&\"\"),\"请填写目标URL与媒体平台\")","v":"请填写目标URL与媒体平台"}]
[279,null,null,null,null,null,null,null,null,null,null,null,null,null,{"$f":"IF(LEN(B283)*LEN(D283),IF(OR(MID(B283,1,7)=\"http://\",MID(B283,1,8)=\"https://\"),B283&IF(ISNUMBER(FIND(\"?\",B283)),\"&\",\"?\")&\"hmsr=\"&UrlEncode(D283)&\"&hmpl=\"&UrlEncode(F283)&\"&hmcu=\"&UrlEncode(H283)&\"&hmkw=\"&UrlEncode(J283)&\"&hmci=\"&UrlEncode(L283)&\"\",\"http://\"&B283&IF(ISNUMBER(FIND(\"?\",B283)),\"&\",\"?\")&\"hmsr=\"&UrlEncode(D283)&\"&hmpl=\"&UrlEncode(F283)&\"&hmcu=\"&UrlEncode(H283)&\"&hmkw=\"&UrlEncode(J283)&\"&hmci=\"&UrlEncode(L283)&\"\"),\"请填写目标URL与媒体平台\")","v":"请填写目标URL与媒体平台"}]
[280,null,null,null,null,null,null,null,null,null,null,null,null,null,{"$f":"IF(LEN(B284)*LEN(D284),IF(OR(MID(B284,1,7)=\"http://\",MID(B284,1,8)=\"https://\"),B284&IF(ISNUMBER(FIND(\"?\",B284)),\"&\",\"?\")&\"hmsr=\"&UrlEncode(D284)&\"&hmpl=\"&UrlEncode(F284)&\"&hmcu=\"&UrlEncode(H284)&\"&hmkw=\"&UrlEncode(J284)&\"&hmci=\"&UrlEncode(L284)&\"\",\"http://\"&B284&IF(ISNUMBER(FIND(\"?\",B284)),\"&\",\"?\")&\"hmsr=\"&UrlEncode(D284)&\"&hmpl=\"&UrlEncode(F284)&\"&hmcu=\"&UrlEncode(H284)&\"&hmkw=\"&UrlEncode(J284)&\"&hmci=\"&UrlEncode(L284)&\"\"),\"请填写目标URL与媒体平台\")","v":"请填写目标URL与媒体平台"}]
[281,null,null,null,null,null,null,null,null,null,null,null,null,null,{"$f":"IF(LEN(B285)*LEN(D285),IF(OR(MID(B285,1,7)=\"http://\",MID(B285,1,8)=\"https://\"),B285&IF(ISNUMBER(FIND(\"?\",B285)),\"&\",\"?\")&\"hmsr=\"&UrlEncode(D285)&\"&hmpl=\"&UrlEncode(F285)&\"&hmcu=\"&UrlEncode(H285)&\"&hmkw=\"&UrlEncode(J285)&\"&hmci=\"&UrlEncode(L285)&\"\",\"http://\"&B285&IF(ISNUMBER(FIND(\"?\",B285)),\"&\",\"?\")&\"hmsr=\"&UrlEncode(D285)&\"&hmpl=\"&UrlEncode(F285)&\"&hmcu=\"&UrlEncode(H285)&\"&hmkw=\"&UrlEncode(J285)&\"&hmci=\"&UrlEncode(L285)&\"\"),\"请填写目标URL与媒体平台\")","v":"请填写目标URL与媒体平台"}]
[282,null,null,null,null,null,null,null,null,null,null,null,null,null,{"$f":"IF(LEN(B286)*LEN(D286),IF(OR(MID(B286,1,7)=\"http://\",MID(B286,1,8)=\"https://\"),B286&IF(ISNUMBER(FIND(\"?\",B286)),\"&\",\"?\")&\"hmsr=\"&UrlEncode(D286)&\"&hmpl=\"&UrlEncode(F286)&\"&hmcu=\"&UrlEncode(H286)&\"&hmkw=\"&UrlEncode(J286)&\"&hmci=\"&UrlEncode(L286)&\"\",\"http://\"&B286&IF(ISNUMBER(FIND(\"?\",B286)),\"&\",\"?\")&\"hmsr=\"&UrlEncode(D286)&\"&hmpl=\"&UrlEncode(F286)&\"&hmcu=\"&UrlEncode(H286)&\"&hmkw=\"&UrlEncode(J286)&\"&hmci=\"&UrlEncode(L286)&\"\"),\"请填写目标URL与媒体平台\")","v":"请填写目标URL与媒体平台"}]
[283,null,null,null,null,null,null,null,null,null,null,null,null,null,{"$f":"IF(LEN(B287)*LEN(D287),IF(OR(MID(B287,1,7)=\"http://\",MID(B287,1,8)=\"https://\"),B287&IF(ISNUMBER(FIND(\"?\",B287)),\"&\",\"?\")&\"hmsr=\"&UrlEncode(D287)&\"&hmpl=\"&UrlEncode(F287)&\"&hmcu=\"&UrlEncode(H287)&\"&hmkw=\"&UrlEncode(J287)&\"&hmci=\"&UrlEncode(L287)&\"\",\"http://\"&B287&IF(ISNUMBER(FIND(\"?\",B287)),\"&\",\"?\")&\"hmsr=\"&UrlEncode(D287)&\"&hmpl=\"&UrlEncode(F287)&\"&hmcu=\"&UrlEncode(H287)&\"&hmkw=\"&UrlEncode(J287)&\"&hmci=\"&UrlEncode(L287)&\"\"),\"请填写目标URL与媒体平台\")","v":"请填写目标URL与媒体平台"}]
[284,null,null,null,null,null,null,null,null,null,null,null,null,null,{"$f":"IF(LEN(B288)*LEN(D288),IF(OR(MID(B288,1,7)=\"http://\",MID(B288,1,8)=\"https://\"),B288&IF(ISNUMBER(FIND(\"?\",B288)),\"&\",\"?\")&\"hmsr=\"&UrlEncode(D288)&\"&hmpl=\"&UrlEncode(F288)&\"&hmcu=\"&UrlEncode(H288)&\"&hmkw=\"&UrlEncode(J288)&\"&hmci=\"&UrlEncode(L288)&\"\",\"http://\"&B288&IF(ISNUMBER(FIND(\"?\",B288)),\"&\",\"?\")&\"hmsr=\"&UrlEncode(D288)&\"&hmpl=\"&UrlEncode(F288)&\"&hmcu=\"&UrlEncode(H288)&\"&hmkw=\"&UrlEncode(J288)&\"&hmci=\"&UrlEncode(L288)&\"\"),\"请填写目标URL与媒体平台\")","v":"请填写目标URL与媒体平台"}]
[285,null,null,null,null,null,null,null,null,null,null,null,null,null,{"$f":"IF(LEN(B289)*LEN(D289),IF(OR(MID(B289,1,7)=\"http://\",MID(B289,1,8)=\"https://\"),B289&IF(ISNUMBER(FIND(\"?\",B289)),\"&\",\"?\")&\"hmsr=\"&UrlEncode(D289)&\"&hmpl=\"&UrlEncode(F289)&\"&hmcu=\"&UrlEncode(H289)&\"&hmkw=\"&UrlEncode(J289)&\"&hmci=\"&UrlEncode(L289)&\"\",\"http://\"&B289&IF(ISNUMBER(FIND(\"?\",B289)),\"&\",\"?\")&\"hmsr=\"&UrlEncode(D289)&\"&hmpl=\"&UrlEncode(F289)&\"&hmcu=\"&UrlEncode(H289)&\"&hmkw=\"&UrlEncode(J289)&\"&hmci=\"&UrlEncode(L289)&\"\"),\"请填写目标URL与媒体平台\")","v":"请填写目标URL与媒体平台"}]
[286,null,null,null,null,null,null,null,null,null,null,null,null,null,{"$f":"IF(LEN(B290)*LEN(D290),IF(OR(MID(B290,1,7)=\"http://\",MID(B290,1,8)=\"https://\"),B290&IF(ISNUMBER(FIND(\"?\",B290)),\"&\",\"?\")&\"hmsr=\"&UrlEncode(D290)&\"&hmpl=\"&UrlEncode(F290)&\"&hmcu=\"&UrlEncode(H290)&\"&hmkw=\"&UrlEncode(J290)&\"&hmci=\"&UrlEncode(L290)&\"\",\"http://\"&B290&IF(ISNUMBER(FIND(\"?\",B290)),\"&\",\"?\")&\"hmsr=\"&UrlEncode(D290)&\"&hmpl=\"&UrlEncode(F290)&\"&hmcu=\"&UrlEncode(H290)&\"&hmkw=\"&UrlEncode(J290)&\"&hmci=\"&UrlEncode(L290)&\"\"),\"请填写目标URL与媒体平台\")","v":"请填写目标URL与媒体平台"}]
[287,null,null,null,null,null,null,null,null,null,null,null,null,null,{"$f":"IF(LEN(B291)*LEN(D291),IF(OR(MID(B291,1,7)=\"http://\",MID(B291,1,8)=\"https://\"),B291&IF(ISNUMBER(FIND(\"?\",B291)),\"&\",\"?\")&\"hmsr=\"&UrlEncode(D291)&\"&hmpl=\"&UrlEncode(F291)&\"&hmcu=\"&UrlEncode(H291)&\"&hmkw=\"&UrlEncode(J291)&\"&hmci=\"&UrlEncode(L291)&\"\",\"http://\"&B291&IF(ISNUMBER(FIND(\"?\",B291)),\"&\",\"?\")&\"hmsr=\"&UrlEncode(D291)&\"&hmpl=\"&UrlEncode(F291)&\"&hmcu=\"&UrlEncode(H291)&\"&hmkw=\"&UrlEncode(J291)&\"&hmci=\"&UrlEncode(L291)&\"\"),\"请填写目标URL与媒体平台\")","v":"请填写目标URL与媒体平台"}]
[288,null,null,null,null,null,null,null,null,null,null,null,null,null,{"$f":"IF(LEN(B292)*LEN(D292),IF(OR(MID(B292,1,7)=\"http://\",MID(B292,1,8)=\"https://\"),B292&IF(ISNUMBER(FIND(\"?\",B292)),\"&\",\"?\")&\"hmsr=\"&UrlEncode(D292)&\"&hmpl=\"&UrlEncode(F292)&\"&hmcu=\"&UrlEncode(H292)&\"&hmkw=\"&UrlEncode(J292)&\"&hmci=\"&UrlEncode(L292)&\"\",\"http://\"&B292&IF(ISNUMBER(FIND(\"?\",B292)),\"&\",\"?\")&\"hmsr=\"&UrlEncode(D292)&\"&hmpl=\"&UrlEncode(F292)&\"&hmcu=\"&UrlEncode(H292)&\"&hmkw=\"&UrlEncode(J292)&\"&hmci=\"&UrlEncode(L292)&\"\"),\"请填写目标URL与媒体平台\")","v":"请填写目标URL与媒体平台"}]
[289,null,null,null,null,null,null,null,null,null,null,null,null,null,{"$f":"IF(LEN(B293)*LEN(D293),IF(OR(MID(B293,1,7)=\"http://\",MID(B293,1,8)=\"https://\"),B293&IF(ISNUMBER(FIND(\"?\",B293)),\"&\",\"?\")&\"hmsr=\"&UrlEncode(D293)&\"&hmpl=\"&UrlEncode(F293)&\"&hmcu=\"&UrlEncode(H293)&\"&hmkw=\"&UrlEncode(J293)&\"&hmci=\"&UrlEncode(L293)&\"\",\"http://\"&B293&IF(ISNUMBER(FIND(\"?\",B293)),\"&\",\"?\")&\"hmsr=\"&UrlEncode(D293)&\"&hmpl=\"&UrlEncode(F293)&\"&hmcu=\"&UrlEncode(H293)&\"&hmkw=\"&UrlEncode(J293)&\"&hmci=\"&UrlEncode(L293)&\"\"),\"请填写目标URL与媒体平台\")","v":"请填写目标URL与媒体平台"}]
[290,null,null,null,null,null,null,null,null,null,null,null,null,null,{"$f":"IF(LEN(B294)*LEN(D294),IF(OR(MID(B294,1,7)=\"http://\",MID(B294,1,8)=\"https://\"),B294&IF(ISNUMBER(FIND(\"?\",B294)),\"&\",\"?\")&\"hmsr=\"&UrlEncode(D294)&\"&hmpl=\"&UrlEncode(F294)&\"&hmcu=\"&UrlEncode(H294)&\"&hmkw=\"&UrlEncode(J294)&\"&hmci=\"&UrlEncode(L294)&\"\",\"http://\"&B294&IF(ISNUMBER(FIND(\"?\",B294)),\"&\",\"?\")&\"hmsr=\"&UrlEncode(D294)&\"&hmpl=\"&UrlEncode(F294)&\"&hmcu=\"&UrlEncode(H294)&\"&hmkw=\"&UrlEncode(J294)&\"&hmci=\"&UrlEncode(L294)&\"\"),\"请填写目标URL与媒体平台\")","v":"请填写目标URL与媒体平台"}]
[291,null,null,null,null,null,null,null,null,null,null,null,null,null,{"$f":"IF(LEN(B295)*LEN(D295),IF(OR(MID(B295,1,7)=\"http://\",MID(B295,1,8)=\"https://\"),B295&IF(ISNUMBER(FIND(\"?\",B295)),\"&\",\"?\")&\"hmsr=\"&UrlEncode(D295)&\"&hmpl=\"&UrlEncode(F295)&\"&hmcu=\"&UrlEncode(H295)&\"&hmkw=\"&UrlEncode(J295)&\"&hmci=\"&UrlEncode(L295)&\"\",\"http://\"&B295&IF(ISNUMBER(FIND(\"?\",B295)),\"&\",\"?\")&\"hmsr=\"&UrlEncode(D295)&\"&hmpl=\"&UrlEncode(F295)&\"&hmcu=\"&UrlEncode(H295)&\"&hmkw=\"&UrlEncode(J295)&\"&hmci=\"&UrlEncode(L295)&\"\"),\"请填写目标URL与媒体平台\")","v":"请填写目标URL与媒体平台"}]
[292,null,null,null,null,null,null,null,null,null,null,null,null,null,{"$f":"IF(LEN(B296)*LEN(D296),IF(OR(MID(B296,1,7)=\"http://\",MID(B296,1,8)=\"https://\"),B296&IF(ISNUMBER(FIND(\"?\",B296)),\"&\",\"?\")&\"hmsr=\"&UrlEncode(D296)&\"&hmpl=\"&UrlEncode(F296)&\"&hmcu=\"&UrlEncode(H296)&\"&hmkw=\"&UrlEncode(J296)&\"&hmci=\"&UrlEncode(L296)&\"\",\"http://\"&B296&IF(ISNUMBER(FIND(\"?\",B296)),\"&\",\"?\")&\"hmsr=\"&UrlEncode(D296)&\"&hmpl=\"&UrlEncode(F296)&\"&hmcu=\"&UrlEncode(H296)&\"&hmkw=\"&UrlEncode(J296)&\"&hmci=\"&UrlEncode(L296)&\"\"),\"请填写目标URL与媒体平台\")","v":"请填写目标URL与媒体平台"}]
[293,null,null,null,null,null,null,null,null,null,null,null,null,null,{"$f":"IF(LEN(B297)*LEN(D297),IF(OR(MID(B297,1,7)=\"http://\",MID(B297,1,8)=\"https://\"),B297&IF(ISNUMBER(FIND(\"?\",B297)),\"&\",\"?\")&\"hmsr=\"&UrlEncode(D297)&\"&hmpl=\"&UrlEncode(F297)&\"&hmcu=\"&UrlEncode(H297)&\"&hmkw=\"&UrlEncode(J297)&\"&hmci=\"&UrlEncode(L297)&\"\",\"http://\"&B297&IF(ISNUMBER(FIND(\"?\",B297)),\"&\",\"?\")&\"hmsr=\"&UrlEncode(D297)&\"&hmpl=\"&UrlEncode(F297)&\"&hmcu=\"&UrlEncode(H297)&\"&hmkw=\"&UrlEncode(J297)&\"&hmci=\"&UrlEncode(L297)&\"\"),\"请填写目标URL与媒体平台\")","v":"请填写目标URL与媒体平台"}]
[294,null,null,null,null,null,null,null,null,null,null,null,null,null,{"$f":"IF(LEN(B298)*LEN(D298),IF(OR(MID(B298,1,7)=\"http://\",MID(B298,1,8)=\"https://\"),B298&IF(ISNUMBER(FIND(\"?\",B298)),\"&\",\"?\")&\"hmsr=\"&UrlEncode(D298)&\"&hmpl=\"&UrlEncode(F298)&\"&hmcu=\"&UrlEncode(H298)&\"&hmkw=\"&UrlEncode(J298)&\"&hmci=\"&UrlEncode(L298)&\"\",\"http://\"&B298&IF(ISNUMBER(FIND(\"?\",B298)),\"&\",\"?\")&\"hmsr=\"&UrlEncode(D298)&\"&hmpl=\"&UrlEncode(F298)&\"&hmcu=\"&UrlEncode(H298)&\"&hmkw=\"&UrlEncode(J298)&\"&hmci=\"&UrlEncode(L298)&\"\"),\"请填写目标URL与媒体平台\")","v":"请填写目标URL与媒体平台"}]
[295,null,null,null,null,null,null,null,null,null,null,null,null,null,{"$f":"IF(LEN(B299)*LEN(D299),IF(OR(MID(B299,1,7)=\"http://\",MID(B299,1,8)=\"https://\"),B299&IF(ISNUMBER(FIND(\"?\",B299)),\"&\",\"?\")&\"hmsr=\"&UrlEncode(D299)&\"&hmpl=\"&UrlEncode(F299)&\"&hmcu=\"&UrlEncode(H299)&\"&hmkw=\"&UrlEncode(J299)&\"&hmci=\"&UrlEncode(L299)&\"\",\"http://\"&B299&IF(ISNUMBER(FIND(\"?\",B299)),\"&\",\"?\")&\"hmsr=\"&UrlEncode(D299)&\"&hmpl=\"&UrlEncode(F299)&\"&hmcu=\"&UrlEncode(H299)&\"&hmkw=\"&UrlEncode(J299)&\"&hmci=\"&UrlEncode(L299)&\"\"),\"请填写目标URL与媒体平台\")","v":"请填写目标URL与媒体平台"}]
[296,null,null,null,null,null,null,null,null,null,null,null,null,null,{"$f":"IF(LEN(B300)*LEN(D300),IF(OR(MID(B300,1,7)=\"http://\",MID(B300,1,8)=\"https://\"),B300&IF(ISNUMBER(FIND(\"?\",B300)),\"&\",\"?\")&\"hmsr=\"&UrlEncode(D300)&\"&hmpl=\"&UrlEncode(F300)&\"&hmcu=\"&UrlEncode(H300)&\"&hmkw=\"&UrlEncode(J300)&\"&hmci=\"&UrlEncode(L300)&\"\",\"http://\"&B300&IF(ISNUMBER(FIND(\"?\",B300)),\"&\",\"?\")&\"hmsr=\"&UrlEncode(D300)&\"&hmpl=\"&UrlEncode(F300)&\"&hmcu=\"&UrlEncode(H300)&\"&hmkw=\"&UrlEncode(J300)&\"&hmci=\"&UrlEncode(L300)&\"\"),\"请填写目标URL与媒体平台\")","v":"请填写目标URL与媒体平台"}]
[297,null,null,null,null,null,null,null,null,null,null,null,null,null,{"$f":"IF(LEN(B301)*LEN(D301),IF(OR(MID(B301,1,7)=\"http://\",MID(B301,1,8)=\"https://\"),B301&IF(ISNUMBER(FIND(\"?\",B301)),\"&\",\"?\")&\"hmsr=\"&UrlEncode(D301)&\"&hmpl=\"&UrlEncode(F301)&\"&hmcu=\"&UrlEncode(H301)&\"&hmkw=\"&UrlEncode(J301)&\"&hmci=\"&UrlEncode(L301)&\"\",\"http://\"&B301&IF(ISNUMBER(FIND(\"?\",B301)),\"&\",\"?\")&\"hmsr=\"&UrlEncode(D301)&\"&hmpl=\"&UrlEncode(F301)&\"&hmcu=\"&UrlEncode(H301)&\"&hmkw=\"&UrlEncode(J301)&\"&hmci=\"&UrlEncode(L301)&\"\"),\"请填写目标URL与媒体平台\")","v":"请填写目标URL与媒体平台"}]
[298,null,null,null,null,null,null,null,null,null,null,null,null,null,{"$f":"IF(LEN(B302)*LEN(D302),IF(OR(MID(B302,1,7)=\"http://\",MID(B302,1,8)=\"https://\"),B302&IF(ISNUMBER(FIND(\"?\",B302)),\"&\",\"?\")&\"hmsr=\"&UrlEncode(D302)&\"&hmpl=\"&UrlEncode(F302)&\"&hmcu=\"&UrlEncode(H302)&\"&hmkw=\"&UrlEncode(J302)&\"&hmci=\"&UrlEncode(L302)&\"\",\"http://\"&B302&IF(ISNUMBER(FIND(\"?\",B302)),\"&\",\"?\")&\"hmsr=\"&UrlEncode(D302)&\"&hmpl=\"&UrlEncode(F302)&\"&hmcu=\"&UrlEncode(H302)&\"&hmkw=\"&UrlEncode(J302)&\"&hmci=\"&UrlEncode(L302)&\"\"),\"请填写目标URL与媒体平台\")","v":"请填写目标URL与媒体平台"}]
[299,null,null,null,null,null,null,null,null,null,null,null,null,null,{"$f":"IF(LEN(B303)*LEN(D303),IF(OR(MID(B303,1,7)=\"http://\",MID(B303,1,8)=\"https://\"),B303&IF(ISNUMBER(FIND(\"?\",B303)),\"&\",\"?\")&\"hmsr=\"&UrlEncode(D303)&\"&hmpl=\"&UrlEncode(F303)&\"&hmcu=\"&UrlEncode(H303)&\"&hmkw=\"&UrlEncode(J303)&\"&hmci=\"&UrlEncode(L303)&\"\",\"http://\"&B303&IF(ISNUMBER(FIND(\"?\",B303)),\"&\",\"?\")&\"hmsr=\"&UrlEncode(D303)&\"&hmpl=\"&UrlEncode(F303)&\"&hmcu=\"&UrlEncode(H303)&\"&hmkw=\"&UrlEncode(J303)&\"&hmci=\"&UrlEncode(L303)&\"\"),\"请填写目标URL与媒体平台\")","v":"请填写目标URL与媒体平台"}]
[300,null,null,null,null,null,null,null,null,null,null,null,null,null,{"$f":"IF(LEN(B304)*LEN(D304),IF(OR(MID(B304,1,7)=\"http://\",MID(B304,1,8)=\"https://\"),B304&IF(ISNUMBER(FIND(\"?\",B304)),\"&\",\"?\")&\"hmsr=\"&UrlEncode(D304)&\"&hmpl=\"&UrlEncode(F304)&\"&hmcu=\"&UrlEncode(H304)&\"&hmkw=\"&UrlEncode(J304)&\"&hmci=\"&UrlEncode(L304)&\"\",\"http://\"&B304&IF(ISNUMBER(FIND(\"?\",B304)),\"&\",\"?\")&\"hmsr=\"&UrlEncode(D304)&\"&hmpl=\"&UrlEncode(F304)&\"&hmcu=\"&UrlEncode(H304)&\"&hmkw=\"&UrlEncode(J304)&\"&hmci=\"&UrlEncode(L304)&\"\"),\"请填写目标URL与媒体平台\")","v":"请填写目标URL与媒体平台"}]
[]
[]
[]
[]
[null,null,null,null,null,null,null,null,null,null,null,null,null,null,{"$f":"IF(LEN(B309)*LEN(D309),123,321)","v":321}]

{"sheet":"批量生成utm参数推广URL","index":1,"n_rows":304,"n_cols":15,"rows_kept":304,"cut":false,"hidden":false,"merged":[[0,13,303,13],[0,14,2,14],[0,0,2,0],[0,1,1,12],[2,1,2,11],[3,12,303,12],[3,10,303,10],[3,8,303,8],[3,6,303,6],[3,4,303,4],[3,2,303,2]]}
[null,"1、在左侧填写如下信息：准备推广页面的URL、广告所投放的媒体平台、投放的计划、单元、关键词和创意。右侧会自动生成一个带有参数的URL。\n2、将生成的URL作为在其它媒体平台推广的落地URL，当访客访问该URL时，百度统计平台会根据URL中的参数进行整理与分析。",null,null,null,null,null,null,null,null,null,null,null,null,"前300行数据将会自动生成。若超出300行，请复制下方单元格的公式。"]
[]
[]
[null,"目标URL*",null,"媒体平台：utm_source*",null,"计划名称：utm_media",null,"单元名称：utm_campaign",null,"关键词：utm_term",null,"创意：utm_content",null,null,"生成的URL"]
[1,"www.domain.com",null,"测试媒体平台",null,"测试计划名称",null,"测试单元名称",null,"测试关键词",null,"测试创意",null,null,{"$f":"IF(LEN(B5)*LEN(D5),B5&IF(ISNUMBER(FIND(\"?\",B5)),\"&\",\"?\")&\"utm_source=\"&UrlEncode(D5)&\"&utm_medium=\"&UrlEncode(F5)&\"&utm_campaign=\"&UrlEncode(H5)&\"&utm_term=\"&UrlEncode(J5)&\"&utm_content=\"&UrlEncode(L5)&\"\",\"请填写目标URL与媒体平台\")","v":"www.domain.com?utm_source=%E6%B5%8B%E8%AF%95%E5%AA%92%E4%BD%93%E5%B9%B3%E5%8F%B0&utm_medium=%E6%B5%8B%E8%AF%95%E8%AE%A1%E5%88%92%E5%90%8D%E7%A7%B0&utm_campaign=%E6%B5%8B%E8%AF%95%E5%8D%95%E5%85%83%E5%90%8D%E7%A7%B0&utm_term=%E6%B5%8B%E8%AF%95%E5%85%B3%E9%94%AE%E8%AF%8D&utm_content=%E6%B5%8B%E8%AF%95%E5%88%9B%E6%84%8F"}]
[2,null,null,null,null,null,null,null,null,null,null,null,null,null,{"$f":"IF(LEN(B6)*LEN(D6),B6&\"?utm_source=\"&UrlEncode(D6)&\"&utm_medium=\"&UrlEncode(F6)&\"&utm_campaign=\"&UrlEncode(H6)&\"&utm_term=\"&UrlEncode(J6)&\"&utm_content=\"&UrlEncode(L6)&\"\",\"请填写目标URL与媒体平台\")","v":"请填写目标URL与媒体平台"}]
[3,null,null,null,null,null,null,null,null,null,null,null,null,null,{"$f":"IF(LEN(B7)*LEN(D7),B7&\"?utm_source=\"&UrlEncode(D7)&\"&utm_medium=\"&UrlEncode(F7)&\"&utm_campaign=\"&UrlEncode(H7)&\"&utm_term=\"&UrlEncode(J7)&\"&utm_content=\"&UrlEncode(L7)&\"\",\"请填写目标URL与媒体平台\")","v":"请填写目标URL与媒体平台"}]
[4,null,null,null,null,null,null,null,null,null,null,null,null,null,{"$f":"IF(LEN(B8)*LEN(D8),B8&\"?utm_source=\"&UrlEncode(D8)&\"&utm_medium=\"&UrlEncode(F8)&\"&utm_campaign=\"&UrlEncode(H8)&\"&utm_term=\"&UrlEncode(J8)&\"&utm_content=\"&UrlEncode(L8)&\"\",\"请填写目标URL与媒体平台\")","v":"请填写目标URL与媒体平台"}]
[5,null,null,null,null,null,null,null,null,null,null,null,null,null,{"$f":"IF(LEN(B9)*LEN(D9),B9&\"?utm_source=\"&UrlEncode(D9)&\"&utm_medium=\"&UrlEncode(F9)&\"&utm_campaign=\"&UrlEncode(H9)&\"&utm_term=\"&UrlEncode(J9)&\"&utm_content=\"&UrlEncode(L9)&\"\",\"请填写目标URL与媒体平台\")","v":"请填写目标URL与媒体平台"}]
[6,null,null,null,null,null,null,null,null,null,null,null,null,null,{"$f":"IF(LEN(B10)*LEN(D10),B10&\"?utm_source=\"&UrlEncode(D10)&\"&utm_medium=\"&UrlEncode(F10)&\"&utm_campaign=\"&UrlEncode(H10)&\"&utm_term=\"&UrlEncode(J10)&\"&utm_content=\"&UrlEncode(L10)&\"\",\"请填写目标URL与媒体平台\")","v":"请填写目标URL与媒体平台"}]
[7,null,null,null,null,null,null,null,null,null,null,null,null,null,{"$f":"IF(LEN(B11)*LEN(D11),B11&\"?utm_source=\"&UrlEncode(D11)&\"&utm_medium=\"&UrlEncode(F11)&\"&utm_campaign=\"&UrlEncode(H11)&\"&utm_term=\"&UrlEncode(J11)&\"&utm_content=\"&UrlEncode(L11)&\"\",\"请填写目标URL与媒体平台\")","v":"请填写目标URL与媒体平台"}]
[8,null,null,null,null,null,null,null,null,null,null,null,null,null,{"$f":"IF(LEN(B12)*LEN(D12),B12&\"?utm_source=\"&UrlEncode(D12)&\"&utm_medium=\"&UrlEncode(F12)&\"&utm_campaign=\"&UrlEncode(H12)&\"&utm_term=\"&UrlEncode(J12)&\"&utm_content=\"&UrlEncode(L12)&\"\",\"请填写目标URL与媒体平台\")","v":"请填写目标URL与媒体平台"}]
[9,null,null,null,null,null,null,null,null,null,null,null,null,null,{"$f":"IF(LEN(B13)*LEN(D13),B13&\"?utm_source=\"&UrlEncode(D13)&\"&utm_medium=\"&UrlEncode(F13)&\"&utm_campaign=\"&UrlEncode(H13)&\"&utm_term=\"&UrlEncode(J13)&\"&utm_content=\"&UrlEncode(L13)&\"\",\"请填写目标URL与媒体平台\")","v":"请填写目标URL与媒体平台"}]
[10,null,null,null,null,null,null,null,null,null,null,null,null,null,{"$f":"IF(LEN(B14)*LEN(D14),B14&\"?utm_source=\"&UrlEncode(D14)&\"&utm_medium=\"&UrlEncode(F14)&\"&utm_campaign=\"&UrlEncode(H14)&\"&utm_term=\"&UrlEncode(J14)&\"&utm_content=\"&UrlEncode(L14)&\"\",\"请填写目标URL与媒体平台\")","v":"请填写目标URL与媒体平台"}]
[11,null,null,null,null,null,null,null,null,null,null,null,null,null,{"$f":"IF(LEN(B15)*LEN(D15),B15&\"?utm_source=\"&UrlEncode(D15)&\"&utm_medium=\"&UrlEncode(F15)&\"&utm_campaign=\"&UrlEncode(H15)&\"&utm_term=\"&UrlEncode(J15)&\"&utm_content=\"&UrlEncode(L15)&\"\",\"请填写目标URL与媒体平台\")","v":"请填写目标URL与媒体平台"}]
[12,null,null,null,null,null,null,null,null,null,null,null,null,null,{"$f":"IF(LEN(B16)*LEN(D16),B16&\"?utm_source=\"&UrlEncode(D16)&\"&utm_medium=\"&UrlEncode(F16)&\"&utm_campaign=\"&UrlEncode(H16)&\"&utm_term=\"&UrlEncode(J16)&\"&utm_content=\"&UrlEncode(L16)&\"\",\"请填写目标URL与媒体平台\")","v":"请填写目标URL与媒体平台"}]
[13,null,null,null,null,null,null,null,null,null,null,null,null,null,{"$f":"IF(LEN(B17)*LEN(D17),B17&\"?utm_source=\"&UrlEncode(D17)&\"&utm_medium=\"&UrlEncode(F17)&\"&utm_campaign=\"&UrlEncode(H17)&\"&utm_term=\"&UrlEncode(J17)&\"&utm_content=\"&UrlEncode(L17)&\"\",\"请填写目标URL与媒体平台\")","v":"请填写目标URL与媒体平台"}]
[14,null,null,null,null,null,null,null,null,null,null,null,null,null,{"$f":"IF(LEN(B18)*LEN(D18),B18&\"?utm_source=\"&UrlEncode(D18)&\"&utm_medium=\"&UrlEncode(F18)&\"&utm_campaign=\"&UrlEncode(H18)&\"&utm_term=\"&UrlEncode(J18)&\"&utm_content=\"&UrlEncode(L18)&\"\",\"请填写目标URL与媒体平台\")","v":"请填写目标URL与媒体平台"}]
[15,null,null,null,null,null,null,null,null,null,null,null,null,null,{"$f":"IF(LEN(B19)*LEN(D19),B19&\"?utm_source=\"&UrlEncode(D19)&\"&utm_medium=\"&UrlEncode(F19)&\"&utm_campaign=\"&UrlEncode(H19)&\"&utm_term=\"&UrlEncode(J19)&\"&utm_content=\"&UrlEncode(L19)&\"\",\"请填写目标URL与媒体平台\")","v":"请填写目标URL与媒体平台"}]
[16,null,null,null,null,null,null,null,null,null,null,null,null,null,{"$f":"IF(LEN(B20)*LEN(D20),B20&\"?utm_source=\"&UrlEncode(D20)&\"&utm_medium=\"&UrlEncode(F20)&\"&utm_campaign=\"&UrlEncode(H20)&\"&utm_term=\"&UrlEncode(J20)&\"&utm_content=\"&UrlEncode(L20)&\"\",\"请填写目标URL与媒体平台\")","v":"请填写目标URL与媒体平台"}]
[17,null,null,null,null,null,null,null,null,null,null,null,null,null,{"$f":"IF(LEN(B21)*LEN(D21),B21&\"?utm_source=\"&UrlEncode(D21)&\"&utm_medium=\"&UrlEncode(F21)&\"&utm_campaign=\"&UrlEncode(H21)&\"&utm_term=\"&UrlEncode(J21)&\"&utm_content=\"&UrlEncode(L21)&\"\",\"请填写目标URL与媒体平台\")","v":"请填写目标URL与媒体平台"}]
[18,null,null,null,null,null,null,null,null,null,null,null,null,null,{"$f":"IF(LEN(B22)*LEN(D22),B22&\"?utm_source=\"&UrlEncode(D22)&\"&utm_medium=\"&UrlEncode(F22)&\"&utm_campaign=\"&UrlEncode(H22)&\"&utm_term=\"&UrlEncode(J22)&\"&utm_content=\"&UrlEncode(L22)&\"\",\"请填写目标URL与媒体平台\")","v":"请填写目标URL与媒体平台"}]
[19,null,null,null,null,null,null,null,null,null,null,null,null,null,{"$f":"IF(LEN(B23)*LEN(D23),B23&\"?utm_source=\"&UrlEncode(D23)&\"&utm_medium=\"&UrlEncode(F23)&\"&utm_campaign=\"&UrlEncode(H23)&\"&utm_term=\"&UrlEncode(J23)&\"&utm_content=\"&UrlEncode(L23)&\"\",\"请填写目标URL与媒体平台\")","v":"请填写目标URL与媒体平台"}]
[20,null,null,null,null,null,null,null,null,null,null,null,null,null,{"$f":"IF(LEN(B24)*LEN(D24),B24&\"?utm_source=\"&UrlEncode(D24)&\"&utm_medium=\"&UrlEncode(F24)&\"&utm_campaign=\"&UrlEncode(H24)&\"&utm_term=\"&UrlEncode(J24)&\"&utm_content=\"&UrlEncode(L24)&\"\",\"请填写目标URL与媒体平台\")","v":"请填写目标URL与媒体平台"}]
[21,null,null,null,null,null,null,null,null,null,null,null,null,null,{"$f":"IF(LEN(B25)*LEN(D25),B25&\"?utm_source=\"&UrlEncode(D25)&\"&utm_medium=\"&UrlEncode(F25)&\"&utm_campaign=\"&UrlEncode(H25)&\"&utm_term=\"&UrlEncode(J25)&\"&utm_content=\"&UrlEncode(L25)&\"\",\"请填写目标URL与媒体平台\")","v":"请填写目标URL与媒体平台"}]
[22,null,null,null,null,null,null,null,null,null,null,null,null,null,{"$f":"IF(LEN(B26)*LEN(D26),B26&\"?utm_source=\"&UrlEncode(D26)&\"&utm_medium=\"&UrlEncode(F26)&\"&utm_campaign=\"&UrlEncode(H26)&\"&utm_term=\"&UrlEncode(J26)&\"&utm_content=\"&UrlEncode(L26)&\"\",\"请填写目标URL与媒体平台\")","v":"请填写目标URL与媒体平台"}]
[23,null,null,null,null,null,null,null,null,null,null,null,null,null,{"$f":"IF(LEN(B27)*LEN(D27),B27&\"?utm_source=\"&UrlEncode(D27)&\"&utm_medium=\"&UrlEncode(F27)&\"&utm_campaign=\"&UrlEncode(H27)&\"&utm_term=\"&UrlEncode(J27)&\"&utm_content=\"&UrlEncode(L27)&\"\",\"请填写目标URL与媒体平台\")","v":"请填写目标URL与媒体平台"}]
[24,null,null,null,null,null,null,null,null,null,null,null,null,null,{"$f":"IF(LEN(B28)*LEN(D28),B28&\"?utm_source=\"&UrlEncode(D28)&\"&utm_medium=\"&UrlEncode(F28)&\"&utm_campaign=\"&UrlEncode(H28)&\"&utm_term=\"&UrlEncode(J28)&\"&utm_content=\"&UrlEncode(L28)&\"\",\"请填写目标URL与媒体平台\")","v":"请填写目标URL与媒体平台"}]
[25,null,null,null,null,null,null,null,null,null,null,null,null,null,{"$f":"IF(LEN(B29)*LEN(D29),B29&\"?utm_source=\"&UrlEncode(D29)&\"&utm_medium=\"&UrlEncode(F29)&\"&utm_campaign=\"&UrlEncode(H29)&\"&utm_term=\"&UrlEncode(J29)&\"&utm_content=\"&UrlEncode(L29)&\"\",\"请填写目标URL与媒体平台\")","v":"请填写目标URL与媒体平台"}]
[26,null,null,null,null,null,null,null,null,null,null,null,null,null,{"$f":"IF(LEN(B30)*LEN(D30),B30&\"?utm_source=\"&UrlEncode(D30)&\"&utm_medium=\"&UrlEncode(F30)&\"&utm_campaign=\"&UrlEncode(H30)&\"&utm_term=\"&UrlEncode(J30)&\"&utm_content=\"&UrlEncode(L30)&\"\",\"请填写目标URL与媒体平台\")","v":"请填写目标URL与媒体平台"}]
[27,null,null,null,null,null,null,null,null,null,null,null,null,null,{"$f":"IF(LEN(B31)*LEN(D31),B31&\"?utm_source=\"&UrlEncode(D31)&\"&utm_medium=\"&UrlEncode(F31)&\"&utm_campaign=\"&UrlEncode(H31)&\"&utm_term=\"&UrlEncode(J31)&\"&utm_content=\"&UrlEncode(L31)&\"\",\"请填写目标URL与媒体平台\")","v":"请填写目标URL与媒体平台"}]
[28,null,null,null,null,null,null,null,null,null,null,null,null,null,{"$f":"IF(LEN(B32)*LEN(D32),B32&\"?utm_source=\"&UrlEncode(D32)&\"&utm_medium=\"&UrlEncode(F32)&\"&utm_campaign=\"&UrlEncode(H32)&\"&utm_term=\"&UrlEncode(J32)&\"&utm_content=\"&UrlEncode(L32)&\"\",\"请填写目标URL与媒体平台\")","v":"请填写目标URL与媒体平台"}]
[29,null,null,null,null,null,null,null,null,null,null,null,null,null,{"$f":"IF(LEN(B33)*LEN(D33),B33&\"?utm_source=\"&UrlEncode(D33)&\"&utm_medium=\"&UrlEncode(F33)&\"&utm_campaign=\"&UrlEncode(H33)&\"&utm_term=\"&UrlEncode(J33)&\"&utm_content=\"&UrlEncode(L33)&\"\",\"请填写目标URL与媒体平台\")","v":"请填写目标URL与媒体平台"}]
[30,null,null,null,null,null,null,null,null,null,null,null,null,null,{"$f":"IF(LEN(B34)*LEN(D34),B34&\"?utm_source=\"&UrlEncode(D34)&\"&utm_medium=\"&UrlEncode(F34)&\"&utm_campaign=\"&UrlEncode(H34)&\"&utm_term=\"&UrlEncode(J34)&\"&utm_content=\"&UrlEncode(L34)&\"\",\"请填写目标URL与媒体平台\")","v":"请填写目标URL与媒体平台"}]
[31,null,null,null,null,null,null,null,null,null,null,null,null,null,{"$f":"IF(LEN(B35)*LEN(D35),B35&\"?utm_source=\"&UrlEncode(D35)&\"&utm_medium=\"&UrlEncode(F35)&\"&utm_campaign=\"&UrlEncode(H35)&\"&utm_term=\"&UrlEncode(J35)&\"&utm_content=\"&UrlEncode(L35)&\"\",\"请填写目标URL与媒体平台\")","v":"请填写目标URL与媒体平台"}]
[32,null,null,null,null,null,null,null,null,null,null,null,null,null,{"$f":"IF(LEN(B36)*LEN(D36),B36&\"?utm_source=\"&UrlEncode(D36)&\"&utm_medium=\"&UrlEncode(F36)&\"&utm_campaign=\"&UrlEncode(H36)&\"&utm_term=\"&UrlEncode(J36)&\"&utm_content=\"&UrlEncode(L36)&\"\",\"请填写目标URL与媒体平台\")","v":"请填写目标URL与媒体平台"}]
[33,null,null,null,null,null,null,null,null,null,null,null,null,null,{"$f":"IF(LEN(B37)*LEN(D37),B37&\"?utm_source=\"&UrlEncode(D37)&\"&utm_medium=\"&UrlEncode(F37)&\"&utm_campaign=\"&UrlEncode(H37)&\"&utm_term=\"&UrlEncode(J37)&\"&utm_content=\"&UrlEncode(L37)&\"\",\"请填写目标URL与媒体平台\")","v":"请填写目标URL与媒体平台"}]
[34,null,null,null,null,null,null,null,null,null,null,null,null,null,{"$f":"IF(LEN(B38)*LEN(D38),B38&\"?utm_source=\"&UrlEncode(D38)&\"&utm_medium=\"&UrlEncode(F38)&\"&utm_campaign=\"&UrlEncode(H38)&\"&utm_term=\"&UrlEncode(J38)&\"&utm_content=\"&UrlEncode(L38)&\"\",\"请填写目标URL与媒体平台\")","v":"请填写目标URL与媒体平台"}]
[35,null,null,null,null,null,null,null,null,null,null,null,null,null,{"$f":"IF(LEN(B39)*LEN(D39),B39&\"?utm_source=\"&UrlEncode(D39)&\"&utm_medium=\"&UrlEncode(F39)&\"&utm_campaign=\"&UrlEncode(H39)&\"&utm_term=\"&UrlEncode(J39)&\"&utm_content=\"&UrlEncode(L39)&\"\",\"请填写目标URL与媒体平台\")","v":"请填写目标URL与媒体平台"}]
[36,null,null,null,null,null,null,null,null,null,null,null,null,null,{"$f":"IF(LEN(B40)*LEN(D40),B40&\"?utm_source=\"&UrlEncode(D40)&\"&utm_medium=\"&UrlEncode(F40)&\"&utm_campaign=\"&UrlEncode(H40)&\"&utm_term=\"&UrlEncode(J40)&\"&utm_content=\"&UrlEncode(L40)&\"\",\"请填写目标URL与媒体平台\")","v":"请填写目标URL与媒体平台"}]
[37,null,null,null,null,null,null,null,null,null,null,null,null,null,{"$f":"IF(LEN(B41)*LEN(D41),B41&\"?utm_source=\"&UrlEncode(D41)&\"&utm_medium=\"&UrlEncode(F41)&\"&utm_campaign=\"&UrlEncode(H41)&\"&utm_term=\"&UrlEncode(J41)&\"&utm_content=\"&UrlEncode(L41)&\"\",\"请填写目标URL与媒体平台\")","v":"请填写目标URL与媒体平台"}]
[38,null,null,null,null,null,null,null,null,null,null,null,null,null,{"$f":"IF(LEN(B42)*LEN(D42),B42&\"?utm_source=\"&UrlEncode(D42)&\"&utm_medium=\"&UrlEncode(F42)&\"&utm_campaign=\"&UrlEncode(H42)&\"&utm_term=\"&UrlEncode(J42)&\"&utm_content=\"&UrlEncode(L42)&\"\",\"请填写目标URL与媒体平台\")","v":"请填写目标URL与媒体平台"}]
[39,null,null,null,null,null,null,null,null,null,null,null,null,null,{"$f":"IF(LEN(B43)*LEN(D43),B43&\"?utm_source=\"&UrlEncode(D43)&\"&utm_medium=\"&UrlEncode(F43)&\"&utm_campaign=\"&UrlEncode(H43)&\"&utm_term=\"&UrlEncode(J43)&\"&utm_content=\"&UrlEncode(L43)&\"\",\"请填写目标URL与媒体平台\")","v":"请填写目标URL与媒体平台"}]
[40,null,null,null,null,null,null,null,null,null,null,null,null,null,{"$f":"IF(LEN(B44)*LEN(D44),B44&\"?utm_source=\"&UrlEncode(D44)&\"&utm_medium=\"&UrlEncode(F44)&\"&utm_campaign=\"&UrlEncode(H44)&\"&utm_term=\"&UrlEncode(J44)&\"&utm_content=\"&UrlEncode(L44)&\"\",\"请填写目标URL与媒体平台\")","v":"请填写目标URL与媒体平台"}]
[41,null,null,null,null,null,null,null,null,null,null,null,null,null,{"$f":"IF(LEN(B45)*LEN(D45),B45&\"?utm_source=\"&UrlEncode(D45)&\"&utm_medium=\"&UrlEncode(F45)&\"&utm_campaign=\"&UrlEncode(H45)&\"&utm_term=\"&UrlEncode(J45)&\"&utm_content=\"&UrlEncode(L45)&\"\",\"请填写目标URL与媒体平台\")","v":"请填写目标URL与媒体平台"}]
[42,null,null,null,null,null,null,null,null,null,null,null,null,null,{"$f":"IF(LEN(B46)*LEN(D46),B46&\"?utm_source=\"&UrlEncode(D46)&\"&utm_medium=\"&UrlEncode(F46)&\"&utm_campaign=\"&UrlEncode(H46)&\"&utm_term=\"&UrlEncode(J46)&\"&utm_content=\"&UrlEncode(L46)&\"\",\"请填写目标URL与媒体平台\")","v":"请填写目标URL与媒体平台"}]
[43,null,null,null,null,null,null,null,null,null,null,null,null,null,{"$f":"IF(LEN(B47)*LEN(D47),B47&\"?utm_source=\"&UrlEncode(D47)&\"&utm_medium=\"&UrlEncode(F47)&\"&utm_campaign=\"&UrlEncode(H47)&\"&utm_term=\"&UrlEncode(J47)&\"&utm_content=\"&UrlEncode(L47)&\"\",\"请填写目标URL与媒体平台\")","v":"请填写目标URL与媒体平台"}]
[44,null,null,null,null,null,null,null,null,null,null,null,null,null,{"$f":"IF(LEN(B48)*LEN(D48),B48&\"?utm_source=\"&UrlEncode(D48)&\"&utm_medium=\"&UrlEncode(F48)&\"&utm_campaign=\"&UrlEncode(H48)&\"&utm_term=\"&UrlEncode(J48)&\"&utm_content=\"&UrlEncode(L48)&\"\",\"请填写目标URL与媒体平台\")","v":"请填写目标URL与媒体平台"}]
[45,null,null,null,null,null,null,null,null,null,null,null,null,null,{"$f":"IF(LEN(B49)*LEN(D49),B49&\"?utm_source=\"&UrlEncode(D49)&\"&utm_medium=\"&UrlEncode(F49)&\"&utm_campaign=\"&UrlEncode(H49)&\"&utm_term=\"&UrlEncode(J49)&\"&utm_content=\"&UrlEncode(L49)&\"\",\"请填写目标URL与媒体平台\")","v":"请填写目标URL与媒体平台"}]
[46,null,null,null,null,null,null,null,null,null,null,null,null,null,{"$f":"IF(LEN(B50)*LEN(D50),B50&\"?utm_source=\"&UrlEncode(D50)&\"&utm_medium=\"&UrlEncode(F50)&\"&utm_campaign=\"&UrlEncode(H50)&\"&utm_term=\"&UrlEncode(J50)&\"&utm_content=\"&UrlEncode(L50)&\"\",\"请填写目标URL与媒体平台\")","v":"请填写目标URL与媒体平台"}]
[47,null,null,null,null,null,null,null,null,null,null,null,null,null,{"$f":"IF(LEN(B51)*LEN(D51),B51&\"?utm_source=\"&UrlEncode(D51)&\"&utm_medium=\"&UrlEncode(F51)&\"&utm_campaign=\"&UrlEncode(H51)&\"&utm_term=\"&UrlEncode(J51)&\"&utm_content=\"&UrlEncode(L51)&\"\",\"请填写目标URL与媒体平台\")","v":"请填写目标URL与媒体平台"}]
[48,null,null,null,null,null,null,null,null,null,null,null,null,null,{"$f":"IF(LEN(B52)*LEN(D52),B52&\"?utm_source=\"&UrlEncode(D52)&\"&utm_medium=\"&UrlEncode(F52)&\"&utm_campaign=\"&UrlEncode(H52)&\"&utm_term=\"&UrlEncode(J52)&\"&utm_content=\"&UrlEncode(L52)&\"\",\"请填写目标URL与媒体平台\")","v":"请填写目标URL与媒体平台"}]
[49,null,null,null,null,null,null,null,null,null,null,null,null,null,{"$f":"IF(LEN(B53)*LEN(D53),B53&\"?utm_source=\"&UrlEncode(D53)&\"&utm_medium=\"&UrlEncode(F53)&\"&utm_campaign=\"&UrlEncode(H53)&\"&utm_term=\"&UrlEncode(J53)&\"&utm_content=\"&UrlEncode(L53)&\"\",\"请填写目标URL与媒体平台\")","v":"请填写目标URL与媒体平台"}]
[50,null,null,null,null,null,null,null,null,null,null,null,null,null,{"$f":"IF(LEN(B54)*LEN(D54),B54&\"?utm_source=\"&UrlEncode(D54)&\"&utm_medium=\"&UrlEncode(F54)&\"&utm_campaign=\"&UrlEncode(H54)&\"&utm_term=\"&UrlEncode(J54)&\"&utm_content=\"&UrlEncode(L54)&\"\",\"请填写目标URL与媒体平台\")","v":"请填写目标URL与媒体平台"}]
[51,null,null,null,null,null,null,null,null,null,null,null,null,null,{"$f":"IF(LEN(B55)*LEN(D55),B55&\"?utm_source=\"&UrlEncode(D55)&\"&utm_medium=\"&UrlEncode(F55)&\"&utm_campaign=\"&UrlEncode(H55)&\"&utm_term=\"&UrlEncode(J55)&\"&utm_content=\"&UrlEncode(L55)&\"\",\"请填写目标URL与媒体平台\")","v":"请填写目标URL与媒体平台"}]
[52,null,null,null,null,null,null,null,null,null,null,null,null,null,{"$f":"IF(LEN(B56)*LEN(D56),B56&\"?utm_source=\"&UrlEncode(D56)&\"&utm_medium=\"&UrlEncode(F56)&\"&utm_campaign=\"&UrlEncode(H56)&\"&utm_term=\"&UrlEncode(J56)&\"&utm_content=\"&UrlEncode(L56)&\"\",\"请填写目标URL与媒体平台\")","v":"请填写目标URL与媒体平台"}]
[53,null,null,null,null,null,null,null,null,null,null,null,null,null,{"$f":"IF(LEN(B57)*LEN(D57),B57&\"?utm_source=\"&UrlEncode(D57)&\"&utm_medium=\"&UrlEncode(F57)&\"&utm_campaign=\"&UrlEncode(H57)&\"&utm_term=\"&UrlEncode(J57)&\"&utm_content=\"&UrlEncode(L57)&\"\",\"请填写目标URL与媒体平台\")","v":"请填写目标URL与媒体平台"}]
[54,null,null,null,null,null,null,null,null,null,null,null,null,null,{"$f":"IF(LEN(B58)*LEN(D58),B58&\"?utm_source=\"&UrlEncode(D58)&\"&utm_medium=\"&UrlEncode(F58)&\"&utm_campaign=\"&UrlEncode(H58)&\"&utm_term=\"&UrlEncode(J58)&\"&utm_content=\"&UrlEncode(L58)&\"\",\"请填写目标URL与媒体平台\")","v":"请填写目标URL与媒体平台"}]
[55,null,null,null,null,null,null,null,null,null,null,null,null,null,{"$f":"IF(LEN(B59)*LEN(D59),B59&\"?utm_source=\"&UrlEncode(D59)&\"&utm_medium=\"&UrlEncode(F59)&\"&utm_campaign=\"&UrlEncode(H59)&\"&utm_term=\"&UrlEncode(J59)&\"&utm_content=\"&UrlEncode(L59)&\"\",\"请填写目标URL与媒体平台\")","v":"请填写目标URL与媒体平台"}]
[56,null,null,null,null,null,null,null,null,null,null,null,null,null,{"$f":"IF(LEN(B60)*LEN(D60),B60&\"?utm_source=\"&UrlEncode(D60)&\"&utm_medium=\"&UrlEncode(F60)&\"&utm_campaign=\"&UrlEncode(H60)&\"&utm_term=\"&UrlEncode(J60)&\"&utm_content=\"&UrlEncode(L60)&\"\",\"请填写目标URL与媒体平台\")","v":"请填写目标URL与媒体平台"}]
[57,null,null,null,null,null,null,null,null,null,null,null,null,null,{"$f":"IF(LEN(B61)*LEN(D61),B61&\"?utm_source=\"&UrlEncode(D61)&\"&utm_medium=\"&UrlEncode(F61)&\"&utm_campaign=\"&UrlEncode(H61)&\"&utm_term=\"&UrlEncode(J61)&\"&utm_content=\"&UrlEncode(L61)&\"\",\"请填写目标URL与媒体平台\")","v":"请填写目标URL与媒体平台"}]
[58,null,null,null,null,null,null,null,null,null,null,null,null,null,{"$f":"IF(LEN(B62)*LEN(D62),B62&\"?utm_source=\"&UrlEncode(D62)&\"&utm_medium=\"&UrlEncode(F62)&\"&utm_campaign=\"&UrlEncode(H62)&\"&utm_term=\"&UrlEncode(J62)&\"&utm_content=\"&UrlEncode(L62)&\"\",\"请填写目标URL与媒体平台\")","v":"请填写目标URL与媒体平台"}]
[59,null,null,null,null,null,null,null,null,null,null,null,null,null,{"$f":"IF(LEN(B63)*LEN(D63),B63&\"?utm_source=\"&UrlEncode(D63)&\"&utm_medium=\"&UrlEncode(F63)&\"&utm_campaign=\"&UrlEncode(H63)&\"&utm_term=\"&UrlEncode(J63)&\"&utm_content=\"&UrlEncode(L63)&\"\",\"请填写目标URL与媒体平台\")","v":"请填写目标URL与媒体平台"}]
[60,null,null,null,null,null,null,null,null,null,null,null,null,null,{"$f":"IF(LEN(B64)*LEN(D64),B64&\"?utm_source=\"&UrlEncode(D64)&\"&utm_medium=\"&UrlEncode(F64)&\"&utm_campaign=\"&UrlEncode(H64)&\"&utm_term=\"&UrlEncode(J64)&\"&utm_content=\"&UrlEncode(L64)&\"\",\"请填写目标URL与媒体平台\")","v":"请填写目标URL与媒体平台"}]
[61,null,null,null,null,null,null,null,null,null,null,null,null,null,{"$f":"IF(LEN(B65)*LEN(D65),B65&\"?utm_source=\"&UrlEncode(D65)&\"&utm_medium=\"&UrlEncode(F65)&\"&utm_campaign=\"&UrlEncode(H65)&\"&utm_term=\"&UrlEncode(J65)&\"&utm_content=\"&UrlEncode(L65)&\"\",\"请填写目标URL与媒体平台\")","v":"请填写目标URL与媒体平台"}]
[62,null,null,null,null,null,null,null,null,null,null,null,null,null,{"$f":"IF(LEN(B66)*LEN(D66),B66&\"?utm_source=\"&UrlEncode(D66)&\"&utm_medium=\"&UrlEncode(F66)&\"&utm_campaign=\"&UrlEncode(H66)&\"&utm_term=\"&UrlEncode(J66)&\"&utm_content=\"&UrlEncode(L66)&\"\",\"请填写目标URL与媒体平台\")","v":"请填写目标URL与媒体平台"}]
[63,null,null,null,null,null,null,null,null,null,null,null,null,null,{"$f":"IF(LEN(B67)*LEN(D67),B67&\"?utm_source=\"&UrlEncode(D67)&\"&utm_medium=\"&UrlEncode(F67)&\"&utm_campaign=\"&UrlEncode(H67)&\"&utm_term=\"&UrlEncode(J67)&\"&utm_content=\"&UrlEncode(L67)&\"\",\"请填写目标URL与媒体平台\")","v":"请填写目标URL与媒体平台"}]
[64,null,null,null,null,null,null,null,null,null,null,null,null,null,{"$f":"IF(LEN(B68)*LEN(D68),B68&\"?utm_source=\"&UrlEncode(D68)&\"&utm_medium=\"&UrlEncode(F68)&\"&utm_campaign=\"&UrlEncode(H68)&\"&utm_term=\"&UrlEncode(J68)&\"&utm_content=\"&UrlEncode(L68)&\"\",\"请填写目标URL与媒体平台\")","v":"请填写目标URL与媒体平台"}]
[65,null,null,null,null,null,null,null,null,null,null,null,null,null,{"$f":"IF(LEN(B69)*LEN(D69),B69&\"?utm_source=\"&UrlEncode(D69)&\"&utm_medium=\"&UrlEncode(F69)&\"&utm_campaign=\"&UrlEncode(H69)&\"&utm_term=\"&UrlEncode(J69)&\"&utm_content=\"&UrlEncode(L69)&\"\",\"请填写目标URL与媒体平台\")","v":"请填写目标URL与媒体平台"}]
[66,null,null,null,null,null,null,null,null,null,null,null,null,null,{"$f":"IF(LEN(B70)*LEN(D70),B70&\"?utm_source=\"&UrlEncode(D70)&\"&utm_medium=\"&UrlEncode(F70)&\"&utm_campaign=\"&UrlEncode(H70)&\"&utm_term=\"&UrlEncode(J70)&\"&utm_content=\"&UrlEncode(L70)&\"\",\"请填写目标URL与媒体平台\")","v":"请填写目标URL与媒体平台"}]
[67,null,null,null,null,null,null,null,null,null,null,null,null,null,{"$f":"IF(LEN(B71)*LEN(D71),B71&\"?utm_source=\"&UrlEncode(D71)&\"&utm_medium=\"&UrlEncode(F71)&\"&utm_campaign=\"&UrlEncode(H71)&\"&utm_term=\"&UrlEncode(J71)&\"&utm_content=\"&UrlEncode(L71)&\"\",\"请填写目标URL与媒体平台\")","v":"请填写目标URL与媒体平台"}]
[68,null,null,null,null,null,null,null,null,null,null,null,null,null,{"$f":"IF(LEN(B72)*LEN(D72),B72&\"?utm_source=\"&UrlEncode(D72)&\"&utm_medium=\"&UrlEncode(F72)&\"&utm_campaign=\"&UrlEncode(H72)&\"&utm_term=\"&UrlEncode(J72)&\"&utm_content=\"&UrlEncode(L72)&\"\",\"请填写目标URL与媒体平台\")","v":"请填写目标URL与媒体平台"}]
[69,null,null,null,null,null,null,null,null,null,null,null,null,null,{"$f":"IF(LEN(B73)*LEN(D73),B73&\"?utm_source=\"&UrlEncode(D73)&\"&utm_medium=\"&UrlEncode(F73)&\"&utm_campaign=\"&UrlEncode(H73)&\"&utm_term=\"&UrlEncode(J73)&\"&utm_content=\"&UrlEncode(L73)&\"\",\"请填写目标URL与媒体平台\")","v":"请填写目标URL与媒体平台"}]
[70,null,null,null,null,null,null,null,null,null,null,null,null,null,{"$f":"IF(LEN(B74)*LEN(D74),B74&\"?utm_source=\"&UrlEncode(D74)&\"&utm_medium=\"&UrlEncode(F74)&\"&utm_campaign=\"&UrlEncode(H74)&\"&utm_term=\"&UrlEncode(J74)&\"&utm_content=\"&UrlEncode(L74)&\"\",\"请填写目标URL与媒体平台\")","v":"请填写目标URL与媒体平台"}]
[71,null,null,null,null,null,null,null,null,null,null,null,null,null,{"$f":"IF(LEN(B75)*LEN(D75),B75&\"?utm_source=\"&UrlEncode(D75)&\"&utm_medium=\"&UrlEncode(F75)&\"&utm_campaign=\"&UrlEncode(H75)&\"&utm_term=\"&UrlEncode(J75)&\"&utm_content=\"&UrlEncode(L75)&\"\",\"请填写目标URL与媒体平台\")","v":"请填写目标URL与媒体平台"}]
[72,null,null,null,null,null,null,null,null,null,null,null,null,null,{"$f":"IF(LEN(B76)*LEN(D76),B76&\"?utm_source=\"&UrlEncode(D76)&\"&utm_medium=\"&UrlEncode(F76)&\"&utm_campaign=\"&UrlEncode(H76)&\"&utm_term=\"&UrlEncode(J76)&\"&utm_content=\"&UrlEncode(L76)&\"\",\"请填写目标URL与媒体平台\")","v":"请填写目标URL与媒体平台"}]
[73,null,null,null,null,null,null,null,null,null,null,null,null,null,{"$f":"IF(LEN(B77)*LEN(D77),B77&\"?utm_source=\"&UrlEncode(D77)&\"&utm_medium=\"&UrlEncode(F77)&\"&utm_campaign=\"&UrlEncode(H77)&\"&utm_term=\"&UrlEncode(J77)&\"&utm_content=\"&UrlEncode(L77)&\"\",\"请填写目标URL与媒体平台\")","v":"请填写目标URL与媒体平台"}]
[74,null,null,null,null,null,null,null,null,null,null,null,null,null,{"$f":"IF(LEN(B78)*LEN(D78),B78&\"?utm_source=\"&UrlEncode(D78)&\"&utm_medium=\"&UrlEncode(F78)&\"&utm_campaign=\"&UrlEncode(H78)&\"&utm_term=\"&UrlEncode(J78)&\"&utm_content=\"&UrlEncode(L78)&\"\",\"请填写目标URL与媒体平台\")","v":"请填写目标URL与媒体平台"}]
[75,null,null,null,null,null,null,null,null,null,null,null,null,null,{"$f":"IF(LEN(B79)*LEN(D79),B79&\"?utm_source=\"&UrlEncode(D79)&\"&utm_medium=\"&UrlEncode(F79)&\"&utm_campaign=\"&UrlEncode(H79)&\"&utm_term=\"&UrlEncode(J79)&\"&utm_content=\"&UrlEncode(L79)&\"\",\"请填写目标URL与媒体平台\")","v":"请填写目标URL与媒体平台"}]
[76,null,null,null,null,null,null,null,null,null,null,null,null,null,{"$f":"IF(LEN(B80)*LEN(D80),B80&\"?utm_source=\"&UrlEncode(D80)&\"&utm_medium=\"&UrlEncode(F80)&\"&utm_campaign=\"&UrlEncode(H80)&\"&utm_term=\"&UrlEncode(J80)&\"&utm_content=\"&UrlEncode(L80)&\"\",\"请填写目标URL与媒体平台\")","v":"请填写目标URL与媒体平台"}]
[77,null,null,null,null,null,null,null,null,null,null,null,null,null,{"$f":"IF(LEN(B81)*LEN(D81),B81&\"?utm_source=\"&UrlEncode(D81)&\"&utm_medium=\"&UrlEncode(F81)&\"&utm_campaign=\"&UrlEncode(H81)&\"&utm_term=\"&UrlEncode(J81)&\"&utm_content=\"&UrlEncode(L81)&\"\",\"请填写目标URL与媒体平台\")","v":"请填写目标URL与媒体平台"}]
[78,null,null,null,null,null,null,null,null,null,null,null,null,null,{"$f":"IF(LEN(B82)*LEN(D82),B82&\"?utm_source=\"&UrlEncode(D82)&\"&utm_medium=\"&UrlEncode(F82)&\"&utm_campaign=\"&UrlEncode(H82)&\"&utm_term=\"&UrlEncode(J82)&\"&utm_content=\"&UrlEncode(L82)&\"\",\"请填写目标URL与媒体平台\")","v":"请填写目标URL与媒体平台"}]
[79,null,null,null,null,null,null,null,null,null,null,null,null,null,{"$f":"IF(LEN(B83)*LEN(D83),B83&\"?utm_source=\"&UrlEncode(D83)&\"&utm_medium=\"&UrlEncode(F83)&\"&utm_campaign=\"&UrlEncode(H83)&\"&utm_term=\"&UrlEncode(J83)&\"&utm_content=\"&UrlEncode(L83)&\"\",\"请填写目标URL与媒体平台\")","v":"请填写目标URL与媒体平台"}]
[80,null,null,null,null,null,null,null,null,null,null,null,null,null,{"$f":"IF(LEN(B84)*LEN(D84),B84&\"?utm_source=\"&UrlEncode(D84)&\"&utm_medium=\"&UrlEncode(F84)&\"&utm_campaign=\"&UrlEncode(H84)&\"&utm_term=\"&UrlEncode(J84)&\"&utm_content=\"&UrlEncode(L84)&\"\",\"请填写目标URL与媒体平台\")","v":"请填写目标URL与媒体平台"}]
[81,null,null,null,null,null,null,null,null,null,null,null,null,null,{"$f":"IF(LEN(B85)*LEN(D85),B85&\"?utm_source=\"&UrlEncode(D85)&\"&utm_medium=\"&UrlEncode(F85)&\"&utm_campaign=\"&UrlEncode(H85)&\"&utm_term=\"&UrlEncode(J85)&\"&utm_content=\"&UrlEncode(L85)&\"\",\"请填写目标URL与媒体平台\")","v":"请填写目标URL与媒体平台"}]
[82,null,null,null,null,null,null,null,null,null,null,null,null,null,{"$f":"IF(LEN(B86)*LEN(D86),B86&\"?utm_source=\"&UrlEncode(D86)&\"&utm_medium=\"&UrlEncode(F86)&\"&utm_campaign=\"&UrlEncode(H86)&\"&utm_term=\"&UrlEncode(J86)&\"&utm_content=\"&UrlEncode(L86)&\"\",\"请填写目标URL与媒体平台\")","v":"请填写目标URL与媒体平台"}]
[83,null,null,null,null,null,null,null,null,null,null,null,null,null,{"$f":"IF(LEN(B87)*LEN(D87),B87&\"?utm_source=\"&UrlEncode(D87)&\"&utm_medium=\"&UrlEncode(F87)&\"&utm_campaign=\"&UrlEncode(H87)&\"&utm_term=\"&UrlEncode(J87)&\"&utm_content=\"&UrlEncode(L87)&\"\",\"请填写目标URL与媒体平台\")","v":"请填写目标URL与媒体平台"}]
[84,null,null,null,null,null,null,null,null,null,null,null,null,null,{"$f":"IF(LEN(B88)*LEN(D88),B88&\"?utm_source=\"&UrlEncode(D88)&\"&utm_medium=\"&UrlEncode(F88)&\"&utm_campaign=\"&UrlEncode(H88)&\"&utm_term=\"&UrlEncode(J88)&\"&utm_content=\"&UrlEncode(L88)&\"\",\"请填写目标URL与媒体平台\")","v":"请填写目标URL与媒体平台"}]
[85,null,null,null,null,null,null,null,null,null,null,null,null,null,{"$f":"IF(LEN(B89)*LEN(D89),B89&\"?utm_source=\"&UrlEncode(D89)&\"&utm_medium=\"&UrlEncode(F89)&\"&utm_campaign=\"&UrlEncode(H89)&\"&utm_term=\"&UrlEncode(J89)&\"&utm_content=\"&UrlEncode(L89)&\"\",\"请填写目标URL与媒体平台\")","v":"请填写目标URL与媒体平台"}]
[86,null,null,null,null,null,null,null,null,null,null,null,null,null,{"$f":"IF(LEN(B90)*LEN(D90),B90&\"?utm_source=\"&UrlEncode(D90)&\"&utm_medium=\"&UrlEncode(F90)&\"&utm_campaign=\"&UrlEncode(H90)&\"&utm_term=\"&UrlEncode(J90)&\"&utm_content=\"&UrlEncode(L90)&\"\",\"请填写目标URL与媒体平台\")","v":"请填写目标URL与媒体平台"}]
[87,null,null,null,null,null,null,null,null,null,null,null,null,null,{"$f":"IF(LEN(B91)*LEN(D91),B91&\"?utm_source=\"&UrlEncode(D91)&\"&utm_medium=\"&UrlEncode(F91)&\"&utm_campaign=\"&UrlEncode(H91)&\"&utm_term=\"&UrlEncode(J91)&\"&utm_content=\"&UrlEncode(L91)&\"\",\"请填写目标URL与媒体平台\")","v":"请填写目标URL与媒体平台"}]
[88,null,null,null,null,null,null,null,null,null,null,null,null,null,{"$f":"IF(LEN(B92)*LEN(D92),B92&\"?utm_source=\"&UrlEncode(D92)&\"&utm_medium=\"&UrlEncode(F92)&\"&utm_campaign=\"&UrlEncode(H92)&\"&utm_term=\"&UrlEncode(J92)&\"&utm_content=\"&UrlEncode(L92)&\"\",\"请填写目标URL与媒体平台\")","v":"请填写目标URL与媒体平台"}]
[89,null,null,null,null,null,null,null,null,null,null,null,null,null,{"$f":"IF(LEN(B93)*LEN(D93),B93&\"?utm_source=\"&UrlEncode(D93)&\"&utm_medium=\"&UrlEncode(F93)&\"&utm_campaign=\"&UrlEncode(H93)&\"&utm_term=\"&UrlEncode(J93)&\"&utm_content=\"&UrlEncode(L93)&\"\",\"请填写目标URL与媒体平台\")","v":"请填写目标URL与媒体平台"}]
[90,null,null,null,null,null,null,null,null,null,null,null,null,null,{"$f":"IF(LEN(B94)*LEN(D94),B94&\"?utm_source=\"&UrlEncode(D94)&\"&utm_medium=\"&UrlEncode(F94)&\"&utm_campaign=\"&UrlEncode(H94)&\"&utm_term=\"&UrlEncode(J94)&\"&utm_content=\"&UrlEncode(L94)&\"\",\"请填写目标URL与媒体平台\")","v":"请填写目标URL与媒体平台"}]
[91,null,null,null,null,null,null,null,null,null,null,null,null,null,{"$f":"IF(LEN(B95)*LEN(D95),B95&\"?utm_source=\"&UrlEncode(D95)&\"&utm_medium=\"&UrlEncode(F95)&\"&utm_campaign=\"&UrlEncode(H95)&\"&utm_term=\"&UrlEncode(J95)&\"&utm_content=\"&UrlEncode(L95)&\"\",\"请填写目标URL与媒体平台\")","v":"请填写目标URL与媒体平台"}]
[92,null,null,null,null,null,null,null,null,null,null,null,null,null,{"$f":"IF(LEN(B96)*LEN(D96),B96&\"?utm_source=\"&UrlEncode(D96)&\"&utm_medium=\"&UrlEncode(F96)&\"&utm_campaign=\"&UrlEncode(H96)&\"&utm_term=\"&UrlEncode(J96)&\"&utm_content=\"&UrlEncode(L96)&\"\",\"请填写目标URL与媒体平台\")","v":"请填写目标URL与媒体平台"}]
[93,null,null,null,null,null,null,null,null,null,null,null,null,null,{"$f":"IF(LEN(B97)*LEN(D97),B97&\"?utm_source=\"&UrlEncode(D97)&\"&utm_medium=\"&UrlEncode(F97)&\"&utm_campaign=\"&UrlEncode(H97)&\"&utm_term=\"&UrlEncode(J97)&\"&utm_content=\"&UrlEncode(L97)&\"\",\"请填写目标URL与媒体平台\")","v":"请填写目标URL与媒体平台"}]
[94,null,null,null,null,null,null,null,null,null,null,null,null,null,{"$f":"IF(LEN(B98)*LEN(D98),B98&\"?utm_source=\"&UrlEncode(D98)&\"&utm_medium=\"&UrlEncode(F98)&\"&utm_campaign=\"&UrlEncode(H98)&\"&utm_term=\"&UrlEncode(J98)&\"&utm_content=\"&UrlEncode(L98)&\"\",\"请填写目标URL与媒体平台\")","v":"请填写目标URL与媒体平台"}]
[95,null,null,null,null,null,null,null,null,null,null,null,null,null,{"$f":"IF(LEN(B99)*LEN(D99),B99&\"?utm_source=\"&UrlEncode(D99)&\"&utm_medium=\"&UrlEncode(F99)&\"&utm_campaign=\"&UrlEncode(H99)&\"&utm_term=\"&UrlEncode(J99)&\"&utm_content=\"&UrlEncode(L99)&\"\",\"请填写目标URL与媒体平台\")","v":"请填写目标URL与媒体平台"}]
[96,null,null,null,null,null,null,null,null,null,null,null,null,null,{"$f":"IF(LEN(B100)*LEN(D100),B100&\"?utm_source=\"&UrlEncode(D100)&\"&utm_medium=\"&UrlEncode(F100)&\"&utm_campaign=\"&UrlEncode(H100)&\"&utm_term=\"&UrlEncode(J100)&\"&utm_content=\"&UrlEncode(L100)&\"\",\"请填写目标URL与媒体平台\")","v":"请填写目标URL与媒体平台"}]
[97,null,null,null,null,null,null,null,null,null,null,null,null,null,{"$f":"IF(LEN(B101)*LEN(D101),B101&\"?utm_source=\"&UrlEncode(D101)&\"&utm_medium=\"&UrlEncode(F101)&\"&utm_campaign=\"&UrlEncode(H101)&\"&utm_term=\"&UrlEncode(J101)&\"&utm_content=\"&UrlEncode(L101)&\"\",\"请填写目标URL与媒体平台\")","v":"请填写目标URL与媒体平台"}]
[98,null,null,null,null,null,null,null,null,null,null,null,null,null,{"$f":"IF(LEN(B102)*LEN(D102),B102&\"?utm_source=\"&UrlEncode(D102)&\"&utm_medium=\"&UrlEncode(F102)&\"&utm_campaign=\"&UrlEncode(H102)&\"&utm_term=\"&UrlEncode(J102)&\"&utm_content=\"&UrlEncode(L102)&\"\",\"请填写目标URL与媒体平台\")","v":"请填写目标URL与媒体平台"}]
[99,null,null,null,null,null,null,null,null,null,null,null,null,null,{"$f":"IF(LEN(B103)*LEN(D103),B103&\"?utm_source=\"&UrlEncode(D103)&\"&utm_medium=\"&UrlEncode(F103)&\"&utm_campaign=\"&UrlEncode(H103)&\"&utm_term=\"&UrlEncode(J103)&\"&utm_content=\"&UrlEncode(L103)&\"\",\"请填写目标URL与媒体平台\")","v":"请填写目标URL与媒体平台"}]
[100,null,null,null,null,null,null,null,null,null,null,null,null,null,{"$f":"IF(LEN(B104)*LEN(D104),B104&\"?utm_source=\"&UrlEncode(D104)&\"&utm_medium=\"&UrlEncode(F104)&\"&utm_campaign=\"&UrlEncode(H104)&\"&utm_term=\"&UrlEncode(J104)&\"&utm_content=\"&UrlEncode(L104)&\"\",\"请填写目标URL与媒体平台\")","v":"请填写目标URL与媒体平台"}]
[101,null,null,null,null,null,null,null,null,null,null,null,null,null,{"$f":"IF(LEN(B105)*LEN(D105),B105&\"?utm_source=\"&UrlEncode(D105)&\"&utm_medium=\"&UrlEncode(F105)&\"&utm_campaign=\"&UrlEncode(H105)&\"&utm_term=\"&UrlEncode(J105)&\"&utm_content=\"&UrlEncode(L105)&\"\",\"请填写目标URL与媒体平台\")","v":"请填写目标URL与媒体平台"}]
[102,null,null,null,null,null,null,null,null,null,null,null,null,null,{"$f":"IF(LEN(B106)*LEN(D106),B106&\"?utm_source=\"&UrlEncode(D106)&\"&utm_medium=\"&UrlEncode(F106)&\"&utm_campaign=\"&UrlEncode(H106)&\"&utm_term=\"&UrlEncode(J106)&\"&utm_content=\"&UrlEncode(L106)&\"\",\"请填写目标URL与媒体平台\")","v":"请填写目标URL与媒体平台"}]
[103,null,null,null,null,null,null,null,null,null,null,null,null,null,{"$f":"IF(LEN(B107)*LEN(D107),B107&\"?utm_source=\"&UrlEncode(D107)&\"&utm_medium=\"&UrlEncode(F107)&\"&utm_campaign=\"&UrlEncode(H107)&\"&utm_term=\"&UrlEncode(J107)&\"&utm_content=\"&UrlEncode(L107)&\"\",\"请填写目标URL与媒体平台\")","v":"请填写目标URL与媒体平台"}]
[104,null,null,null,null,null,null,null,null,null,null,null,null,null,{"$f":"IF(LEN(B108)*LEN(D108),B108&\"?utm_source=\"&UrlEncode(D108)&\"&utm_medium=\"&UrlEncode(F108)&\"&utm_campaign=\"&UrlEncode(H108)&\"&utm_term=\"&UrlEncode(J108)&\"&utm_content=\"&UrlEncode(L108)&\"\",\"请填写目标URL与媒体平台\")","v":"请填写目标URL与媒体平台"}]
[105,null,null,null,null,null,null,null,null,null,null,null,null,null,{"$f":"IF(LEN(B109)*LEN(D109),B109&\"?utm_source=\"&UrlEncode(D109)&\"&utm_medium=\"&UrlEncode(F109)&\"&utm_campaign=\"&UrlEncode(H109)&\"&utm_term=\"&UrlEncode(J109)&\"&utm_content=\"&UrlEncode(L109)&\"\",\"请填写目标URL与媒体平台\")","v":"请填写目标URL与媒体平台"}]
[106,null,null,null,null,null,null,null,null,null,null,null,null,null,{"$f":"IF(LEN(B110)*LEN(D110),B110&\"?utm_source=\"&UrlEncode(D110)&\"&utm_medium=\"&UrlEncode(F110)&\"&utm_campaign=\"&UrlEncode(H110)&\"&utm_term=\"&UrlEncode(J110)&\"&utm_content=\"&UrlEncode(L110)&\"\",\"请填写目标URL与媒体平台\")","v":"请填写目标URL与媒体平台"}]
[107,null,null,null,null,null,null,null,null,null,null,null,null,null,{"$f":"IF(LEN(B111)*LEN(D111),B111&\"?utm_source=\"&UrlEncode(D111)&\"&utm_medium=\"&UrlEncode(F111)&\"&utm_campaign=\"&UrlEncode(H111)&\"&utm_term=\"&UrlEncode(J111)&\"&utm_content=\"&UrlEncode(L111)&\"\",\"请填写目标URL与媒体平台\")","v":"请填写目标URL与媒体平台"}]
[108,null,null,null,null,null,null,null,null,null,null,null,null,null,{"$f":"IF(LEN(B112)*LEN(D112),B112&\"?utm_source=\"&UrlEncode(D112)&\"&utm_medium=\"&UrlEncode(F112)&\"&utm_campaign=\"&UrlEncode(H112)&\"&utm_term=\"&UrlEncode(J112)&\"&utm_content=\"&UrlEncode(L112)&\"\",\"请填写目标URL与媒体平台\")","v":"请填写目标URL与媒体平台"}]
[109,null,null,null,null,null,null,null,null,null,null,null,null,null,{"$f":"IF(LEN(B113)*LEN(D113),B113&\"?utm_source=\"&UrlEncode(D113)&\"&utm_medium=\"&UrlEncode(F113)&\"&utm_campaign=\"&UrlEncode(H113)&\"&utm_term=\"&UrlEncode(J113)&\"&utm_content=\"&UrlEncode(L113)&\"\",\"请填写目标URL与媒体平台\")","v":"请填写目标URL与媒体平台"}]
[110,null,null,null,null,null,null,null,null,null,null,null,null,null,{"$f":"IF(LEN(B114)*LEN(D114),B114&\"?utm_source=\"&UrlEncode(D114)&\"&utm_medium=\"&UrlEncode(F114)&\"&utm_campaign=\"&UrlEncode(H114)&\"&utm_term=\"&UrlEncode(J114)&\"&utm_content=\"&UrlEncode(L114)&\"\",\"请填写目标URL与媒体平台\")","v":"请填写目标URL与媒体平台"}]
[111,null,null,null,null,null,null,null,null,null,null,null,null,null,{"$f":"IF(LEN(B115)*LEN(D115),B115&\"?utm_source=\"&UrlEncode(D115)&\"&utm_medium=\"&UrlEncode(F115)&\"&utm_campaign=\"&UrlEncode(H115)&\"&utm_term=\"&UrlEncode(J115)&\"&utm_content=\"&UrlEncode(L115)&\"\",\"请填写目标URL与媒体平台\")","v":"请填写目标URL与媒体平台"}]
[112,null,null,null,null,null,null,null,null,null,null,null,null,null,{"$f":"IF(LEN(B116)*LEN(D116),B116&\"?utm_source=\"&UrlEncode(D116)&\"&utm_medium=\"&UrlEncode(F116)&\"&utm_campaign=\"&UrlEncode(H116)&\"&utm_term=\"&UrlEncode(J116)&\"&utm_content=\"&UrlEncode(L116)&\"\",\"请填写目标URL与媒体平台\")","v":"请填写目标URL与媒体平台"}]
[113,null,null,null,null,null,null,null,null,null,null,null,null,null,{"$f":"IF(LEN(B117)*LEN(D117),B117&\"?utm_source=\"&UrlEncode(D117)&\"&utm_medium=\"&UrlEncode(F117)&\"&utm_campaign=\"&UrlEncode(H117)&\"&utm_term=\"&UrlEncode(J117)&\"&utm_content=\"&UrlEncode(L117)&\"\",\"请填写目标URL与媒体平台\")","v":"请填写目标URL与媒体平台"}]
[114,null,null,null,null,null,null,null,null,null,null,null,null,null,{"$f":"IF(LEN(B118)*LEN(D118),B118&\"?utm_source=\"&UrlEncode(D118)&\"&utm_medium=\"&UrlEncode(F118)&\"&utm_campaign=\"&UrlEncode(H118)&\"&utm_term=\"&UrlEncode(J118)&\"&utm_content=\"&UrlEncode(L118)&\"\",\"请填写目标URL与媒体平台\")","v":"请填写目标URL与媒体平台"}]
[115,null,null,null,null,null,null,null,null,null,null,null,null,null,{"$f":"IF(LEN(B119)*LEN(D119),B119&\"?utm_source=\"&UrlEncode(D119)&\"&utm_medium=\"&UrlEncode(F119)&\"&utm_campaign=\"&UrlEncode(H119)&\"&utm_term=\"&UrlEncode(J119)&\"&utm_content=\"&UrlEncode(L119)&\"\",\"请填写目标URL与媒体平台\")","v":"请填写目标URL与媒体平台"}]
[116,null,null,null,null,null,null,null,null,null,null,null,null,null,{"$f":"IF(LEN(B120)*LEN(D120),B120&\"?utm_source=\"&UrlEncode(D120)&\"&utm_medium=\"&UrlEncode(F120)&\"&utm_campaign=\"&UrlEncode(H120)&\"&utm_term=\"&UrlEncode(J120)&\"&utm_content=\"&UrlEncode(L120)&\"\",\"请填写目标URL与媒体平台\")","v":"请填写目标URL与媒体平台"}]
[117,null,null,null,null,null,null,null,null,null,null,null,null,null,{"$f":"IF(LEN(B121)*LEN(D121),B121&\"?utm_source=\"&UrlEncode(D121)&\"&utm_medium=\"&UrlEncode(F121)&\"&utm_campaign=\"&UrlEncode(H121)&\"&utm_term=\"&UrlEncode(J121)&\"&utm_content=\"&UrlEncode(L121)&\"\",\"请填写目标URL与媒体平台\")","v":"请填写目标URL与媒体平台"}]
[118,null,null,null,null,null,null,null,null,null,null,null,null,null,{"$f":"IF(LEN(B122)*LEN(D122),B122&\"?utm_source=\"&UrlEncode(D122)&\"&utm_medium=\"&UrlEncode(F122)&\"&utm_campaign=\"&UrlEncode(H122)&\"&utm_term=\"&UrlEncode(J122)&\"&utm_content=\"&UrlEncode(L122)&\"\",\"请填写目标URL与媒体平台\")","v":"请填写目标URL与媒体平台"}]
[119,null,null,null,null,null,null,null,null,null,null,null,null,null,{"$f":"IF(LEN(B123)*LEN(D123),B123&\"?utm_source=\"&UrlEncode(D123)&\"&utm_medium=\"&UrlEncode(F123)&\"&utm_campaign=\"&UrlEncode(H123)&\"&utm_term=\"&UrlEncode(J123)&\"&utm_content=\"&UrlEncode(L123)&\"\",\"请填写目标URL与媒体平台\")","v":"请填写目标URL与媒体平台"}]
[120,null,null,null,null,null,null,null,null,null,null,null,null,null,{"$f":"IF(LEN(B124)*LEN(D124),B124&\"?utm_source=\"&UrlEncode(D124)&\"&utm_medium=\"&UrlEncode(F124)&\"&utm_campaign=\"&UrlEncode(H124)&\"&utm_term=\"&UrlEncode(J124)&\"&utm_content=\"&UrlEncode(L124)&\"\",\"请填写目标URL与媒体平台\")","v":"请填写目标URL与媒体平台"}]
[121,null,null,null,null,null,null,null,null,null,null,null,null,null,{"$f":"IF(LEN(B125)*LEN(D125),B125&\"?utm_source=\"&UrlEncode(D125)&\"&utm_medium=\"&UrlEncode(F125)&\"&utm_campaign=\"&UrlEncode(H125)&\"&utm_term=\"&UrlEncode(J125)&\"&utm_content=\"&UrlEncode(L125)&\"\",\"请填写目标URL与媒体平台\")","v":"请填写目标URL与媒体平台"}]
[122,null,null,null,null,null,null,null,null,null,null,null,null,null,{"$f":"IF(LEN(B126)*LEN(D126),B126&\"?utm_source=\"&UrlEncode(D126)&\"&utm_medium=\"&UrlEncode(F126)&\"&utm_campaign=\"&UrlEncode(H126)&\"&utm_term=\"&UrlEncode(J126)&\"&utm_content=\"&UrlEncode(L126)&\"\",\"请填写目标URL与媒体平台\")","v":"请填写目标URL与媒体平台"}]
[123,null,null,null,null,null,null,null,null,null,null,null,null,null,{"$f":"IF(LEN(B127)*LEN(D127),B127&\"?utm_source=\"&UrlEncode(D127)&\"&utm_medium=\"&UrlEncode(F127)&\"&utm_campaign=\"&UrlEncode(H127)&\"&utm_term=\"&UrlEncode(J127)&\"&utm_content=\"&UrlEncode(L127)&\"\",\"请填写目标URL与媒体平台\")","v":"请填写目标URL与媒体平台"}]
[124,null,null,null,null,null,null,null,null,null,null,null,null,null,{"$f":"IF(LEN(B128)*LEN(D128),B128&\"?utm_source=\"&UrlEncode(D128)&\"&utm_medium=\"&UrlEncode(F128)&\"&utm_campaign=\"&UrlEncode(H128)&\"&utm_term=\"&UrlEncode(J128)&\"&utm_content=\"&UrlEncode(L128)&\"\",\"请填写目标URL与媒体平台\")","v":"请填写目标URL与媒体平台"}]
[125,null,null,null,null,null,null,null,null,null,null,null,null,null,{"$f":"IF(LEN(B129)*LEN(D129),B129&\"?utm_source=\"&UrlEncode(D129)&\"&utm_medium=\"&UrlEncode(F129)&\"&utm_campaign=\"&UrlEncode(H129)&\"&utm_term=\"&UrlEncode(J129)&\"&utm_content=\"&UrlEncode(L129)&\"\",\"请填写目标URL与媒体平台\")","v":"请填写目标URL与媒体平台"}]
[126,null,null,null,null,null,null,null,null,null,null,null,null,null,{"$f":"IF(LEN(B130)*LEN(D130),B130&\"?utm_source=\"&UrlEncode(D130)&\"&utm_medium=\"&UrlEncode(F130)&\"&utm_campaign=\"&UrlEncode(H130)&\"&utm_term=\"&UrlEncode(J130)&\"&utm_content=\"&UrlEncode(L130)&\"\",\"请填写目标URL与媒体平台\")","v":"请填写目标URL与媒体平台"}]
[127,null,null,null,null,null,null,null,null,null,null,null,null,null,{"$f":"IF(LEN(B131)*LEN(D131),B131&\"?utm_source=\"&UrlEncode(D131)&\"&utm_medium=\"&UrlEncode(F131)&\"&utm_campaign=\"&UrlEncode(H131)&\"&utm_term=\"&UrlEncode(J131)&\"&utm_content=\"&UrlEncode(L131)&\"\",\"请填写目标URL与媒体平台\")","v":"请填写目标URL与媒体平台"}]
[128,null,null,null,null,null,null,null,null,null,null,null,null,null,{"$f":"IF(LEN(B132)*LEN(D132),B132&\"?utm_source=\"&UrlEncode(D132)&\"&utm_medium=\"&UrlEncode(F132)&\"&utm_campaign=\"&UrlEncode(H132)&\"&utm_term=\"&UrlEncode(J132)&\"&utm_content=\"&UrlEncode(L132)&\"\",\"请填写目标URL与媒体平台\")","v":"请填写目标URL与媒体平台"}]
[129,null,null,null,null,null,null,null,null,null,null,null,null,null,{"$f":"IF(LEN(B133)*LEN(D133),B133&\"?utm_source=\"&UrlEncode(D133)&\"&utm_medium=\"&UrlEncode(F133)&\"&utm_campaign=\"&UrlEncode(H133)&\"&utm_term=\"&UrlEncode(J133)&\"&utm_content=\"&UrlEncode(L133)&\"\",\"请填写目标URL与媒体平台\")","v":"请填写目标URL与媒体平台"}]
[130,null,null,null,null,null,null,null,null,null,null,null,null,null,{"$f":"IF(LEN(B134)*LEN(D134),B134&\"?utm_source=\"&UrlEncode(D134)&\"&utm_medium=\"&UrlEncode(F134)&\"&utm_campaign=\"&UrlEncode(H134)&\"&utm_term=\"&UrlEncode(J134)&\"&utm_content=\"&UrlEncode(L134)&\"\",\"请填写目标URL与媒体平台\")","v":"请填写目标URL与媒体平台"}]
[131,null,null,null,null,null,null,null,null,null,null,null,null,null,{"$f":"IF(LEN(B135)*LEN(D135),B135&\"?utm_source=\"&UrlEncode(D135)&\"&utm_medium=\"&UrlEncode(F135)&\"&utm_campaign=\"&UrlEncode(H135)&\"&utm_term=\"&UrlEncode(J135)&\"&utm_content=\"&UrlEncode(L135)&\"\",\"请填写目标URL与媒体平台\")","v":"请填写目标URL与媒体平台"}]
[132,null,null,null,null,null,null,null,null,null,null,null,null,null,{"$f":"IF(LEN(B136)*LEN(D136),B136&\"?utm_source=\"&UrlEncode(D136)&\"&utm_medium=\"&UrlEncode(F136)&\"&utm_campaign=\"&UrlEncode(H136)&\"&utm_term=\"&UrlEncode(J136)&\"&utm_content=\"&UrlEncode(L136)&\"\",\"请填写目标URL与媒体平台\")","v":"请填写目标URL与媒体平台"}]
[133,null,null,null,null,null,null,null,null,null,null,null,null,null,{"$f":"IF(LEN(B137)*LEN(D137),B137&\"?utm_source=\"&UrlEncode(D137)&\"&utm_medium=\"&UrlEncode(F137)&\"&utm_campaign=\"&UrlEncode(H137)&\"&utm_term=\"&UrlEncode(J137)&\"&utm_content=\"&UrlEncode(L137)&\"\",\"请填写目标URL与媒体平台\")","v":"请填写目标URL与媒体平台"}]
[134,null,null,null,null,null,null,null,null,null,null,null,null,null,{"$f":"IF(LEN(B138)*LEN(D138),B138&\"?utm_source=\"&UrlEncode(D138)&\"&utm_medium=\"&UrlEncode(F138)&\"&utm_campaign=\"&UrlEncode(H138)&\"&utm_term=\"&UrlEncode(J138)&\"&utm_content=\"&UrlEncode(L138)&\"\",\"请填写目标URL与媒体平台\")","v":"请填写目标URL与媒体平台"}]
[135,null,null,null,null,null,null,null,null,null,null,null,null,null,{"$f":"IF(LEN(B139)*LEN(D139),B139&\"?utm_source=\"&UrlEncode(D139)&\"&utm_medium=\"&UrlEncode(F139)&\"&utm_campaign=\"&UrlEncode(H139)&\"&utm_term=\"&UrlEncode(J139)&\"&utm_content=\"&UrlEncode(L139)&\"\",\"请填写目标URL与媒体平台\")","v":"请填写目标URL与媒体平台"}]
[136,null,null,null,null,null,null,null,null,null,null,null,null,null,{"$f":"IF(LEN(B140)*LEN(D140),B140&\"?utm_source=\"&UrlEncode(D140)&\"&utm_medium=\"&UrlEncode(F140)&\"&utm_campaign=\"&UrlEncode(H140)&\"&utm_term=\"&UrlEncode(J140)&\"&utm_content=\"&UrlEncode(L140)&\"\",\"请填写目标URL与媒体平台\")","v":"请填写目标URL与媒体平台"}]
[137,null,null,null,null,null,null,null,null,null,null,null,null,null,{"$f":"IF(LEN(B141)*LEN(D141),B141&\"?utm_source=\"&UrlEncode(D141)&\"&utm_medium=\"&UrlEncode(F141)&\"&utm_campaign=\"&UrlEncode(H141)&\"&utm_term=\"&UrlEncode(J141)&\"&utm_content=\"&UrlEncode(L141)&\"\",\"请填写目标URL与媒体平台\")","v":"请填写目标URL与媒体平台"}]
[138,null,null,null,null,null,null,null,null,null,null,null,null,null,{"$f":"IF(LEN(B142)*LEN(D142),B142&\"?utm_source=\"&UrlEncode(D142)&\"&utm_medium=\"&UrlEncode(F142)&\"&utm_campaign=\"&UrlEncode(H142)&\"&utm_term=\"&UrlEncode(J142)&\"&utm_content=\"&UrlEncode(L142)&\"\",\"请填写目标URL与媒体平台\")","v":"请填写目标URL与媒体平台"}]
[139,null,null,null,null,null,null,null,null,null,null,null,null,null,{"$f":"IF(LEN(B143)*LEN(D143),B143&\"?utm_source=\"&UrlEncode(D143)&\"&utm_medium=\"&UrlEncode(F143)&\"&utm_campaign=\"&UrlEncode(H143)&\"&utm_term=\"&UrlEncode(J143)&\"&utm_content=\"&UrlEncode(L143)&\"\",\"请填写目标URL与媒体平台\")","v":"请填写目标URL与媒体平台"}]
[140,null,null,null,null,null,null,null,null,null,null,null,null,null,{"$f":"IF(LEN(B144)*LEN(D144),B144&\"?utm_source=\"&UrlEncode(D144)&\"&utm_medium=\"&UrlEncode(F144)&\"&utm_campaign=\"&UrlEncode(H144)&\"&utm_term=\"&UrlEncode(J144)&\"&utm_content=\"&UrlEncode(L144)&\"\",\"请填写目标URL与媒体平台\")","v":"请填写目标URL与媒体平台"}]
[141,null,null,null,null,null,null,null,null,null,null,null,null,null,{"$f":"IF(LEN(B145)*LEN(D145),B145&\"?utm_source=\"&UrlEncode(D145)&\"&utm_medium=\"&UrlEncode(F145)&\"&utm_campaign=\"&UrlEncode(H145)&\"&utm_term=\"&UrlEncode(J145)&\"&utm_content=\"&UrlEncode(L145)&\"\",\"请填写目标URL与媒体平台\")","v":"请填写目标URL与媒体平台"}]
[142,null,null,null,null,null,null,null,null,null,null,null,null,null,{"$f":"IF(LEN(B146)*LEN(D146),B146&\"?utm_source=\"&UrlEncode(D146)&\"&utm_medium=\"&UrlEncode(F146)&\"&utm_campaign=\"&UrlEncode(H146)&\"&utm_term=\"&UrlEncode(J146)&\"&utm_content=\"&UrlEncode(L146)&\"\",\"请填写目标URL与媒体平台\")","v":"请填写目标URL与媒体平台"}]
[143,null,null,null,null,null,null,null,null,null,null,null,null,null,{"$f":"IF(LEN(B147)*LEN(D147),B147&\"?utm_source=\"&UrlEncode(D147)&\"&utm_medium=\"&UrlEncode(F147)&\"&utm_campaign=\"&UrlEncode(H147)&\"&utm_term=\"&UrlEncode(J147)&\"&utm_content=\"&UrlEncode(L147)&\"\",\"请填写目标URL与媒体平台\")","v":"请填写目标URL与媒体平台"}]
[144,null,null,null,null,null,null,null,null,null,null,null,null,null,{"$f":"IF(LEN(B148)*LEN(D148),B148&\"?utm_source=\"&UrlEncode(D148)&\"&utm_medium=\"&UrlEncode(F148)&\"&utm_campaign=\"&UrlEncode(H148)&\"&utm_term=\"&UrlEncode(J148)&\"&utm_content=\"&UrlEncode(L148)&\"\",\"请填写目标URL与媒体平台\")","v":"请填写目标URL与媒体平台"}]
[145,null,null,null,null,null,null,null,null,null,null,null,null,null,{"$f":"IF(LEN(B149)*LEN(D149),B149&\"?utm_source=\"&UrlEncode(D149)&\"&utm_medium=\"&UrlEncode(F149)&\"&utm_campaign=\"&UrlEncode(H149)&\"&utm_term=\"&UrlEncode(J149)&\"&utm_content=\"&UrlEncode(L149)&\"\",\"请填写目标URL与媒体平台\")","v":"请填写目标URL与媒体平台"}]
[146,null,null,null,null,null,null,null,null,null,null,null,null,null,{"$f":"IF(LEN(B150)*LEN(D150),B150&\"?utm_source=\"&UrlEncode(D150)&\"&utm_medium=\"&UrlEncode(F150)&\"&utm_campaign=\"&UrlEncode(H150)&\"&utm_term=\"&UrlEncode(J150)&\"&utm_content=\"&UrlEncode(L150)&\"\",\"请填写目标URL与媒体平台\")","v":"请填写目标URL与媒体平台"}]
[147,null,null,null,null,null,null,null,null,null,null,null,null,null,{"$f":"IF(LEN(B151)*LEN(D151),B151&\"?utm_source=\"&UrlEncode(D151)&\"&utm_medium=\"&UrlEncode(F151)&\"&utm_campaign=\"&UrlEncode(H151)&\"&utm_term=\"&UrlEncode(J151)&\"&utm_content=\"&UrlEncode(L151)&\"\",\"请填写目标URL与媒体平台\")","v":"请填写目标URL与媒体平台"}]
[148,null,null,null,null,null,null,null,null,null,null,null,null,null,{"$f":"IF(LEN(B152)*LEN(D152),B152&\"?utm_source=\"&UrlEncode(D152)&\"&utm_medium=\"&UrlEncode(F152)&\"&utm_campaign=\"&UrlEncode(H152)&\"&utm_term=\"&UrlEncode(J152)&\"&utm_content=\"&UrlEncode(L152)&\"\",\"请填写目标URL与媒体平台\")","v":"请填写目标URL与媒体平台"}]
[149,null,null,null,null,null,null,null,null,null,null,null,null,null,{"$f":"IF(LEN(B153)*LEN(D153),B153&\"?utm_source=\"&UrlEncode(D153)&\"&utm_medium=\"&UrlEncode(F153)&\"&utm_campaign=\"&UrlEncode(H153)&\"&utm_term=\"&UrlEncode(J153)&\"&utm_content=\"&UrlEncode(L153)&\"\",\"请填写目标URL与媒体平台\")","v":"请填写目标URL与媒体平台"}]
[150,null,null,null,null,null,null,null,null,null,null,null,null,null,{"$f":"IF(LEN(B154)*LEN(D154),B154&\"?utm_source=\"&UrlEncode(D154)&\"&utm_medium=\"&UrlEncode(F154)&\"&utm_campaign=\"&UrlEncode(H154)&\"&utm_term=\"&UrlEncode(J154)&\"&utm_content=\"&UrlEncode(L154)&\"\",\"请填写目标URL与媒体平台\")","v":"请填写目标URL与媒体平台"}]
[151,null,null,null,null,null,null,null,null,null,null,null,null,null,{"$f":"IF(LEN(B155)*LEN(D155),B155&\"?utm_source=\"&UrlEncode(D155)&\"&utm_medium=\"&UrlEncode(F155)&\"&utm_campaign=\"&UrlEncode(H155)&\"&utm_term=\"&UrlEncode(J155)&\"&utm_content=\"&UrlEncode(L155)&\"\",\"请填写目标URL与媒体平台\")","v":"请填写目标URL与媒体平台"}]
[152,null,null,null,null,null,null,null,null,null,null,null,null,null,{"$f":"IF(LEN(B156)*LEN(D156),B156&\"?utm_source=\"&UrlEncode(D156)&\"&utm_medium=\"&UrlEncode(F156)&\"&utm_campaign=\"&UrlEncode(H156)&\"&utm_term=\"&UrlEncode(J156)&\"&utm_content=\"&UrlEncode(L156)&\"\",\"请填写目标URL与媒体平台\")","v":"请填写目标URL与媒体平台"}]
[153,null,null,null,null,null,null,null,null,null,null,null,null,null,{"$f":"IF(LEN(B157)*LEN(D157),B157&\"?utm_source=\"&UrlEncode(D157)&\"&utm_medium=\"&UrlEncode(F157)&\"&utm_campaign=\"&UrlEncode(H157)&\"&utm_term=\"&UrlEncode(J157)&\"&utm_content=\"&UrlEncode(L157)&\"\",\"请填写目标URL与媒体平台\")","v":"请填写目标URL与媒体平台"}]
[154,null,null,null,null,null,null,null,null,null,null,null,null,null,{"$f":"IF(LEN(B158)*LEN(D158),B158&\"?utm_source=\"&UrlEncode(D158)&\"&utm_medium=\"&UrlEncode(F158)&\"&utm_campaign=\"&UrlEncode(H158)&\"&utm_term=\"&UrlEncode(J158)&\"&utm_content=\"&UrlEncode(L158)&\"\",\"请填写目标URL与媒体平台\")","v":"请填写目标URL与媒体平台"}]
[155,null,null,null,null,null,null,null,null,null,null,null,null,null,{"$f":"IF(LEN(B159)*LEN(D159),B159&\"?utm_source=\"&UrlEncode(D159)&\"&utm_medium=\"&UrlEncode(F159)&\"&utm_campaign=\"&UrlEncode(H159)&\"&utm_term=\"&UrlEncode(J159)&\"&utm_content=\"&UrlEncode(L159)&\"\",\"请填写目标URL与媒体平台\")","v":"请填写目标URL与媒体平台"}]
[156,null,null,null,null,null,null,null,null,null,null,null,null,null,{"$f":"IF(LEN(B160)*LEN(D160),B160&\"?utm_source=\"&UrlEncode(D160)&\"&utm_medium=\"&UrlEncode(F160)&\"&utm_campaign=\"&UrlEncode(H160)&\"&utm_term=\"&UrlEncode(J160)&\"&utm_content=\"&UrlEncode(L160)&\"\",\"请填写目标URL与媒体平台\")","v":"请填写目标URL与媒体平台"}]
[157,null,null,null,null,null,null,null,null,null,null,null,null,null,{"$f":"IF(LEN(B161)*LEN(D161),B161&\"?utm_source=\"&UrlEncode(D161)&\"&utm_medium=\"&UrlEncode(F161)&\"&utm_campaign=\"&UrlEncode(H161)&\"&utm_term=\"&UrlEncode(J161)&\"&utm_content=\"&UrlEncode(L161)&\"\",\"请填写目标URL与媒体平台\")","v":"请填写目标URL与媒体平台"}]
[158,null,null,null,null,null,null,null,null,null,null,null,null,null,{"$f":"IF(LEN(B162)*LEN(D162),B162&\"?utm_source=\"&UrlEncode(D162)&\"&utm_medium=\"&UrlEncode(F162)&\"&utm_campaign=\"&UrlEncode(H162)&\"&utm_term=\"&UrlEncode(J162)&\"&utm_content=\"&UrlEncode(L162)&\"\",\"请填写目标URL与媒体平台\")","v":"请填写目标URL与媒体平台"}]
[159,null,null,null,null,null,null,null,null,null,null,null,null,null,{"$f":"IF(LEN(B163)*LEN(D163),B163&\"?utm_source=\"&UrlEncode(D163)&\"&utm_medium=\"&UrlEncode(F163)&\"&utm_campaign=\"&UrlEncode(H163)&\"&utm_term=\"&UrlEncode(J163)&\"&utm_content=\"&UrlEncode(L163)&\"\",\"请填写目标URL与媒体平台\")","v":"请填写目标URL与媒体平台"}]
[160,null,null,null,null,null,null,null,null,null,null,null,null,null,{"$f":"IF(LEN(B164)*LEN(D164),B164&\"?utm_source=\"&UrlEncode(D164)&\"&utm_medium=\"&UrlEncode(F164)&\"&utm_campaign=\"&UrlEncode(H164)&\"&utm_term=\"&UrlEncode(J164)&\"&utm_content=\"&UrlEncode(L164)&\"\",\"请填写目标URL与媒体平台\")","v":"请填写目标URL与媒体平台"}]
[161,null,null,null,null,null,null,null,null,null,null,null,null,null,{"$f":"IF(LEN(B165)*LEN(D165),B165&\"?utm_source=\"&UrlEncode(D165)&\"&utm_medium=\"&UrlEncode(F165)&\"&utm_campaign=\"&UrlEncode(H165)&\"&utm_term=\"&UrlEncode(J165)&\"&utm_content=\"&UrlEncode(L165)&\"\",\"请填写目标URL与媒体平台\")","v":"请填写目标URL与媒体平台"}]
[162,null,null,null,null,null,null,null,null,null,null,null,null,null,{"$f":"IF(LEN(B166)*LEN(D166),B166&\"?utm_source=\"&UrlEncode(D166)&\"&utm_medium=\"&UrlEncode(F166)&\"&utm_campaign=\"&UrlEncode(H166)&\"&utm_term=\"&UrlEncode(J166)&\"&utm_content=\"&UrlEncode(L166)&\"\",\"请填写目标URL与媒体平台\")","v":"请填写目标URL与媒体平台"}]
[163,null,null,null,null,null,null,null,null,null,null,null,null,null,{"$f":"IF(LEN(B167)*LEN(D167),B167&\"?utm_source=\"&UrlEncode(D167)&\"&utm_medium=\"&UrlEncode(F167)&\"&utm_campaign=\"&UrlEncode(H167)&\"&utm_term=\"&UrlEncode(J167)&\"&utm_content=\"&UrlEncode(L167)&\"\",\"请填写目标URL与媒体平台\")","v":"请填写目标URL与媒体平台"}]
[164,null,null,null,null,null,null,null,null,null,null,null,null,null,{"$f":"IF(LEN(B168)*LEN(D168),B168&\"?utm_source=\"&UrlEncode(D168)&\"&utm_medium=\"&UrlEncode(F168)&\"&utm_campaign=\"&UrlEncode(H168)&\"&utm_term=\"&UrlEncode(J168)&\"&utm_content=\"&UrlEncode(L168)&\"\",\"请填写目标URL与媒体平台\")","v":"请填写目标URL与媒体平台"}]
[165,null,null,null,null,null,null,null,null,null,null,null,null,null,{"$f":"IF(LEN(B169)*LEN(D169),B169&\"?utm_source=\"&UrlEncode(D169)&\"&utm_medium=\"&UrlEncode(F169)&\"&utm_campaign=\"&UrlEncode(H169)&\"&utm_term=\"&UrlEncode(J169)&\"&utm_content=\"&UrlEncode(L169)&\"\",\"请填写目标URL与媒体平台\")","v":"请填写目标URL与媒体平台"}]
[166,null,null,null,null,null,null,null,null,null,null,null,null,null,{"$f":"IF(LEN(B170)*LEN(D170),B170&\"?utm_source=\"&UrlEncode(D170)&\"&utm_medium=\"&UrlEncode(F170)&\"&utm_campaign=\"&UrlEncode(H170)&\"&utm_term=\"&UrlEncode(J170)&\"&utm_content=\"&UrlEncode(L170)&\"\",\"请填写目标URL与媒体平台\")","v":"请填写目标URL与媒体平台"}]
[167,null,null,null,null,null,null,null,null,null,null,null,null,null,{"$f":"IF(LEN(B171)*LEN(D171),B171&\"?utm_source=\"&UrlEncode(D171)&\"&utm_medium=\"&UrlEncode(F171)&\"&utm_campaign=\"&UrlEncode(H171)&\"&utm_term=\"&UrlEncode(J171)&\"&utm_content=\"&UrlEncode(L171)&\"\",\"请填写目标URL与媒体平台\")","v":"请填写目标URL与媒体平台"}]
[168,null,null,null,null,null,null,null,null,null,null,null,null,null,{"$f":"IF(LEN(B172)*LEN(D172),B172&\"?utm_source=\"&UrlEncode(D172)&\"&utm_medium=\"&UrlEncode(F172)&\"&utm_campaign=\"&UrlEncode(H172)&\"&utm_term=\"&UrlEncode(J172)&\"&utm_content=\"&UrlEncode(L172)&\"\",\"请填写目标URL与媒体平台\")","v":"请填写目标URL与媒体平台"}]
[169,null,null,null,null,null,null,null,null,null,null,null,null,null,{"$f":"IF(LEN(B173)*LEN(D173),B173&\"?utm_source=\"&UrlEncode(D173)&\"&utm_medium=\"&UrlEncode(F173)&\"&utm_campaign=\"&UrlEncode(H173)&\"&utm_term=\"&UrlEncode(J173)&\"&utm_content=\"&UrlEncode(L173)&\"\",\"请填写目标URL与媒体平台\")","v":"请填写目标URL与媒体平台"}]
[170,null,null,null,null,null,null,null,null,null,null,null,null,null,{"$f":"IF(LEN(B174)*LEN(D174),B174&\"?utm_source=\"&UrlEncode(D174)&\"&utm_medium=\"&UrlEncode(F174)&\"&utm_campaign=\"&UrlEncode(H174)&\"&utm_term=\"&UrlEncode(J174)&\"&utm_content=\"&UrlEncode(L174)&\"\",\"请填写目标URL与媒体平台\")","v":"请填写目标URL与媒体平台"}]
[171,null,null,null,null,null,null,null,null,null,null,null,null,null,{"$f":"IF(LEN(B175)*LEN(D175),B175&\"?utm_source=\"&UrlEncode(D175)&\"&utm_medium=\"&UrlEncode(F175)&\"&utm_campaign=\"&UrlEncode(H175)&\"&utm_term=\"&UrlEncode(J175)&\"&utm_content=\"&UrlEncode(L175)&\"\",\"请填写目标URL与媒体平台\")","v":"请填写目标URL与媒体平台"}]
[172,null,null,null,null,null,null,null,null,null,null,null,null,null,{"$f":"IF(LEN(B176)*LEN(D176),B176&\"?utm_source=\"&UrlEncode(D176)&\"&utm_medium=\"&UrlEncode(F176)&\"&utm_campaign=\"&UrlEncode(H176)&\"&utm_term=\"&UrlEncode(J176)&\"&utm_content=\"&UrlEncode(L176)&\"\",\"请填写目标URL与媒体平台\")","v":"请填写目标URL与媒体平台"}]
[173,null,null,null,null,null,null,null,null,null,null,null,null,null,{"$f":"IF(LEN(B177)*LEN(D177),B177&\"?utm_source=\"&UrlEncode(D177)&\"&utm_medium=\"&UrlEncode(F177)&\"&utm_campaign=\"&UrlEncode(H177)&\"&utm_term=\"&UrlEncode(J177)&\"&utm_content=\"&UrlEncode(L177)&\"\",\"请填写目标URL与媒体平台\")","v":"请填写目标URL与媒体平台"}]
[174,null,null,null,null,null,null,null,null,null,null,null,null,null,{"$f":"IF(LEN(B178)*LEN(D178),B178&\"?utm_source=\"&UrlEncode(D178)&\"&utm_medium=\"&UrlEncode(F178)&\"&utm_campaign=\"&UrlEncode(H178)&\"&utm_term=\"&UrlEncode(J178)&\"&utm_content=\"&UrlEncode(L178)&\"\",\"请填写目标URL与媒体平台\")","v":"请填写目标URL与媒体平台"}]
[175,null,null,null,null,null,null,null,null,null,null,null,null,null,{"$f":"IF(LEN(B179)*LEN(D179),B179&\"?utm_source=\"&UrlEncode(D179)&\"&utm_medium=\"&UrlEncode(F179)&\"&utm_campaign=\"&UrlEncode(H179)&\"&utm_term=\"&UrlEncode(J179)&\"&utm_content=\"&UrlEncode(L179)&\"\",\"请填写目标URL与媒体平台\")","v":"请填写目标URL与媒体平台"}]
[176,null,null,null,null,null,null,null,null,null,null,null,null,null,{"$f":"IF(LEN(B180)*LEN(D180),B180&\"?utm_source=\"&UrlEncode(D180)&\"&utm_medium=\"&UrlEncode(F180)&\"&utm_campaign=\"&UrlEncode(H180)&\"&utm_term=\"&UrlEncode(J180)&\"&utm_content=\"&UrlEncode(L180)&\"\",\"请填写目标URL与媒体平台\")","v":"请填写目标URL与媒体平台"}]
[177,null,null,null,null,null,null,null,null,null,null,null,null,null,{"$f":"IF(LEN(B181)*LEN(D181),B181&\"?utm_source=\"&UrlEncode(D181)&\"&utm_medium=\"&UrlEncode(F181)&\"&utm_campaign=\"&UrlEncode(H181)&\"&utm_term=\"&UrlEncode(J181)&\"&utm_content=\"&UrlEncode(L181)&\"\",\"请填写目标URL与媒体平台\")","v":"请填写目标URL与媒体平台"}]
[178,null,null,null,null,null,null,null,null,null,null,null,null,null,{"$f":"IF(LEN(B182)*LEN(D182),B182&\"?utm_source=\"&UrlEncode(D182)&\"&utm_medium=\"&UrlEncode(F182)&\"&utm_campaign=\"&UrlEncode(H182)&\"&utm_term=\"&UrlEncode(J182)&\"&utm_content=\"&UrlEncode(L182)&\"\",\"请填写目标URL与媒体平台\")","v":"请填写目标URL与媒体平台"}]
[179,null,null,null,null,null,null,null,null,null,null,null,null,null,{"$f":"IF(LEN(B183)*LEN(D183),B183&\"?utm_source=\"&UrlEncode(D183)&\"&utm_medium=\"&UrlEncode(F183)&\"&utm_campaign=\"&UrlEncode(H183)&\"&utm_term=\"&UrlEncode(J183)&\"&utm_content=\"&UrlEncode(L183)&\"\",\"请填写目标URL与媒体平台\")","v":"请填写目标URL与媒体平台"}]
[180,null,null,null,null,null,null,null,null,null,null,null,null,null,{"$f":"IF(LEN(B184)*LEN(D184),B184&\"?utm_source=\"&UrlEncode(D184)&\"&utm_medium=\"&UrlEncode(F184)&\"&utm_campaign=\"&UrlEncode(H184)&\"&utm_term=\"&UrlEncode(J184)&\"&utm_content=\"&UrlEncode(L184)&\"\",\"请填写目标URL与媒体平台\")","v":"请填写目标URL与媒体平台"}]
[181,null,null,null,null,null,null,null,null,null,null,null,null,null,{"$f":"IF(LEN(B185)*LEN(D185),B185&\"?utm_source=\"&UrlEncode(D185)&\"&utm_medium=\"&UrlEncode(F185)&\"&utm_campaign=\"&UrlEncode(H185)&\"&utm_term=\"&UrlEncode(J185)&\"&utm_content=\"&UrlEncode(L185)&\"\",\"请填写目标URL与媒体平台\")","v":"请填写目标URL与媒体平台"}]
[182,null,null,null,null,null,null,null,null,null,null,null,null,null,{"$f":"IF(LEN(B186)*LEN(D186),B186&\"?utm_source=\"&UrlEncode(D186)&\"&utm_medium=\"&UrlEncode(F186)&\"&utm_campaign=\"&UrlEncode(H186)&\"&utm_term=\"&UrlEncode(J186)&\"&utm_content=\"&UrlEncode(L186)&\"\",\"请填写目标URL与媒体平台\")","v":"请填写目标URL与媒体平台"}]
[183,null,null,null,null,null,null,null,null,null,null,null,null,null,{"$f":"IF(LEN(B187)*LEN(D187),B187&\"?utm_source=\"&UrlEncode(D187)&\"&utm_medium=\"&UrlEncode(F187)&\"&utm_campaign=\"&UrlEncode(H187)&\"&utm_term=\"&UrlEncode(J187)&\"&utm_content=\"&UrlEncode(L187)&\"\",\"请填写目标URL与媒体平台\")","v":"请填写目标URL与媒体平台"}]
[184,null,null,null,null,null,null,null,null,null,null,null,null,null,{"$f":"IF(LEN(B188)*LEN(D188),B188&\"?utm_source=\"&UrlEncode(D188)&\"&utm_medium=\"&UrlEncode(F188)&\"&utm_campaign=\"&UrlEncode(H188)&\"&utm_term=\"&UrlEncode(J188)&\"&utm_content=\"&UrlEncode(L188)&\"\",\"请填写目标URL与媒体平台\")","v":"请填写目标URL与媒体平台"}]
[185,null,null,null,null,null,null,null,null,null,null,null,null,null,{"$f":"IF(LEN(B189)*LEN(D189),B189&\"?utm_source=\"&UrlEncode(D189)&\"&utm_medium=\"&UrlEncode(F189)&\"&utm_campaign=\"&UrlEncode(H189)&\"&utm_term=\"&UrlEncode(J189)&\"&utm_content=\"&UrlEncode(L189)&\"\",\"请填写目标URL与媒体平台\")","v":"请填写目标URL与媒体平台"}]
[186,null,null,null,null,null,null,null,null,null,null,null,null,null,{"$f":"IF(LEN(B190)*LEN(D190),B190&\"?utm_source=\"&UrlEncode(D190)&\"&utm_medium=\"&UrlEncode(F190)&\"&utm_campaign=\"&UrlEncode(H190)&\"&utm_term=\"&UrlEncode(J190)&\"&utm_content=\"&UrlEncode(L190)&\"\",\"请填写目标URL与媒体平台\")","v":"请填写目标URL与媒体平台"}]
[187,null,null,null,null,null,null,null,null,null,null,null,null,null,{"$f":"IF(LEN(B191)*LEN(D191),B191&\"?utm_source=\"&UrlEncode(D191)&\"&utm_medium=\"&UrlEncode(F191)&\"&utm_campaign=\"&UrlEncode(H191)&\"&utm_term=\"&UrlEncode(J191)&\"&utm_content=\"&UrlEncode(L191)&\"\",\"请填写目标URL与媒体平台\")","v":"请填写目标URL与媒体平台"}]
[188,null,null,null,null,null,null,null,null,null,null,null,null,null,{"$f":"IF(LEN(B192)*LEN(D192),B192&\"?utm_source=\"&UrlEncode(D192)&\"&utm_medium=\"&UrlEncode(F192)&\"&utm_campaign=\"&UrlEncode(H192)&\"&utm_term=\"&UrlEncode(J192)&\"&utm_content=\"&UrlEncode(L192)&\"\",\"请填写目标URL与媒体平台\")","v":"请填写目标URL与媒体平台"}]
[189,null,null,null,null,null,null,null,null,null,null,null,null,null,{"$f":"IF(LEN(B193)*LEN(D193),B193&\"?utm_source=\"&UrlEncode(D193)&\"&utm_medium=\"&UrlEncode(F193)&\"&utm_campaign=\"&UrlEncode(H193)&\"&utm_term=\"&UrlEncode(J193)&\"&utm_content=\"&UrlEncode(L193)&\"\",\"请填写目标URL与媒体平台\")","v":"请填写目标URL与媒体平台"}]
[190,null,null,null,null,null,null,null,null,null,null,null,null,null,{"$f":"IF(LEN(B194)*LEN(D194),B194&\"?utm_source=\"&UrlEncode(D194)&\"&utm_medium=\"&UrlEncode(F194)&\"&utm_campaign=\"&UrlEncode(H194)&\"&utm_term=\"&UrlEncode(J194)&\"&utm_content=\"&UrlEncode(L194)&\"\",\"请填写目标URL与媒体平台\")","v":"请填写目标URL与媒体平台"}]
[191,null,null,null,null,null,null,null,null,null,null,null,null,null,{"$f":"IF(LEN(B195)*LEN(D195),B195&\"?utm_source=\"&UrlEncode(D195)&\"&utm_medium=\"&UrlEncode(F195)&\"&utm_campaign=\"&UrlEncode(H195)&\"&utm_term=\"&UrlEncode(J195)&\"&utm_content=\"&UrlEncode(L195)&\"\",\"请填写目标URL与媒体平台\")","v":"请填写目标URL与媒体平台"}]
[192,null,null,null,null,null,null,null,null,null,null,null,null,null,{"$f":"IF(LEN(B196)*LEN(D196),B196&\"?utm_source=\"&UrlEncode(D196)&\"&utm_medium=\"&UrlEncode(F196)&\"&utm_campaign=\"&UrlEncode(H196)&\"&utm_term=\"&UrlEncode(J196)&\"&utm_content=\"&UrlEncode(L196)&\"\",\"请填写目标URL与媒体平台\")","v":"请填写目标URL与媒体平台"}]
[193,null,null,null,null,null,null,null,null,null,null,null,null,null,{"$f":"IF(LEN(B197)*LEN(D197),B197&\"?utm_source=\"&UrlEncode(D197)&\"&utm_medium=\"&UrlEncode(F197)&\"&utm_campaign=\"&UrlEncode(H197)&\"&utm_term=\"&UrlEncode(J197)&\"&utm_content=\"&UrlEncode(L197)&\"\",\"请填写目标URL与媒体平台\")","v":"请填写目标URL与媒体平台"}]
[194,null,null,null,null,null,null,null,null,null,null,null,null,null,{"$f":"IF(LEN(B198)*LEN(D198),B198&\"?utm_source=\"&UrlEncode(D198)&\"&utm_medium=\"&UrlEncode(F198)&\"&utm_campaign=\"&UrlEncode(H198)&\"&utm_term=\"&UrlEncode(J198)&\"&utm_content=\"&UrlEncode(L198)&\"\",\"请填写目标URL与媒体平台\")","v":"请填写目标URL与媒体平台"}]
[195,null,null,null,null,null,null,null,null,null,null,null,null,null,{"$f":"IF(LEN(B199)*LEN(D199),B199&\"?utm_source=\"&UrlEncode(D199)&\"&utm_medium=\"&UrlEncode(F199)&\"&utm_campaign=\"&UrlEncode(H199)&\"&utm_term=\"&UrlEncode(J199)&\"&utm_content=\"&UrlEncode(L199)&\"\",\"请填写目标URL与媒体平台\")","v":"请填写目标URL与媒体平台"}]
[196,null,null,null,null,null,null,null,null,null,null,null,null,null,{"$f":"IF(LEN(B200)*LEN(D200),B200&\"?utm_source=\"&UrlEncode(D200)&\"&utm_medium=\"&UrlEncode(F200)&\"&utm_campaign=\"&UrlEncode(H200)&\"&utm_term=\"&UrlEncode(J200)&\"&utm_content=\"&UrlEncode(L200)&\"\",\"请填写目标URL与媒体平台\")","v":"请填写目标URL与媒体平台"}]
[197,null,null,null,null,null,null,null,null,null,null,null,null,null,{"$f":"IF(LEN(B201)*LEN(D201),B201&\"?utm_source=\"&UrlEncode(D201)&\"&utm_medium=\"&UrlEncode(F201)&\"&utm_campaign=\"&UrlEncode(H201)&\"&utm_term=\"&UrlEncode(J201)&\"&utm_content=\"&UrlEncode(L201)&\"\",\"请填写目标URL与媒体平台\")","v":"请填写目标URL与媒体平台"}]
[198,null,null,null,null,null,null,null,null,null,null,null,null,null,{"$f":"IF(LEN(B202)*LEN(D202),B202&\"?utm_source=\"&UrlEncode(D202)&\"&utm_medium=\"&UrlEncode(F202)&\"&utm_campaign=\"&UrlEncode(H202)&\"&utm_term=\"&UrlEncode(J202)&\"&utm_content=\"&UrlEncode(L202)&\"\",\"请填写目标URL与媒体平台\")","v":"请填写目标URL与媒体平台"}]
[199,null,null,null,null,null,null,null,null,null,null,null,null,null,{"$f":"IF(LEN(B203)*LEN(D203),B203&\"?utm_source=\"&UrlEncode(D203)&\"&utm_medium=\"&UrlEncode(F203)&\"&utm_campaign=\"&UrlEncode(H203)&\"&utm_term=\"&UrlEncode(J203)&\"&utm_content=\"&UrlEncode(L203)&\"\",\"请填写目标URL与媒体平台\")","v":"请填写目标URL与媒体平台"}]
[200,null,null,null,null,null,null,null,null,null,null,null,null,null,{"$f":"IF(LEN(B204)*LEN(D204),B204&\"?utm_source=\"&UrlEncode(D204)&\"&utm_medium=\"&UrlEncode(F204)&\"&utm_campaign=\"&UrlEncode(H204)&\"&utm_term=\"&UrlEncode(J204)&\"&utm_content=\"&UrlEncode(L204)&\"\",\"请填写目标URL与媒体平台\")","v":"请填写目标URL与媒体平台"}]
[201,null,null,null,null,null,null,null,null,null,null,null,null,null,{"$f":"IF(LEN(B205)*LEN(D205),B205&\"?utm_source=\"&UrlEncode(D205)&\"&utm_medium=\"&UrlEncode(F205)&\"&utm_campaign=\"&UrlEncode(H205)&\"&utm_term=\"&UrlEncode(J205)&\"&utm_content=\"&UrlEncode(L205)&\"\",\"请填写目标URL与媒体平台\")","v":"请填写目标URL与媒体平台"}]
[202,null,null,null,null,null,null,null,null,null,null,null,null,null,{"$f":"IF(LEN(B206)*LEN(D206),B206&\"?utm_source=\"&UrlEncode(D206)&\"&utm_medium=\"&UrlEncode(F206)&\"&utm_campaign=\"&UrlEncode(H206)&\"&utm_term=\"&UrlEncode(J206)&\"&utm_content=\"&UrlEncode(L206)&\"\",\"请填写目标URL与媒体平台\")","v":"请填写目标URL与媒体平台"}]
[203,null,null,null,null,null,null,null,null,null,null,null,null,null,{"$f":"IF(LEN(B207)*LEN(D207),B207&\"?utm_source=\"&UrlEncode(D207)&\"&utm_medium=\"&UrlEncode(F207)&\"&utm_campaign=\"&UrlEncode(H207)&\"&utm_term=\"&UrlEncode(J207)&\"&utm_content=\"&UrlEncode(L207)&\"\",\"请填写目标URL与媒体平台\")","v":"请填写目标URL与媒体平台"}]
[204,null,null,null,null,null,null,null,null,null,null,null,null,null,{"$f":"IF(LEN(B208)*LEN(D208),B208&\"?utm_source=\"&UrlEncode(D208)&\"&utm_medium=\"&UrlEncode(F208)&\"&utm_campaign=\"&UrlEncode(H208)&\"&utm_term=\"&UrlEncode(J208)&\"&utm_content=\"&UrlEncode(L208)&\"\",\"请填写目标URL与媒体平台\")","v":"请填写目标URL与媒体平台"}]
[205,null,null,null,null,null,null,null,null,null,null,null,null,null,{"$f":"IF(LEN(B209)*LEN(D209),B209&\"?utm_source=\"&UrlEncode(D209)&\"&utm_medium=\"&UrlEncode(F209)&\"&utm_campaign=\"&UrlEncode(H209)&\"&utm_term=\"&UrlEncode(J209)&\"&utm_content=\"&UrlEncode(L209)&\"\",\"请填写目标URL与媒体平台\")","v":"请填写目标URL与媒体平台"}]
[206,null,null,null,null,null,null,null,null,null,null,null,null,null,{"$f":"IF(LEN(B210)*LEN(D210),B210&\"?utm_source=\"&UrlEncode(D210)&\"&utm_medium=\"&UrlEncode(F210)&\"&utm_campaign=\"&UrlEncode(H210)&\"&utm_term=\"&UrlEncode(J210)&\"&utm_content=\"&UrlEncode(L210)&\"\",\"请填写目标URL与媒体平台\")","v":"请填写目标URL与媒体平台"}]
[207,null,null,null,null,null,null,null,null,null,null,null,null,null,{"$f":"IF(LEN(B211)*LEN(D211),B211&\"?utm_source=\"&UrlEncode(D211)&\"&utm_medium=\"&UrlEncode(F211)&\"&utm_campaign=\"&UrlEncode(H211)&\"&utm_term=\"&UrlEncode(J211)&\"&utm_content=\"&UrlEncode(L211)&\"\",\"请填写目标URL与媒体平台\")","v":"请填写目标URL与媒体平台"}]
[208,null,null,null,null,null,null,null,null,null,null,null,null,null,{"$f":"IF(LEN(B212)*LEN(D212),B212&\"?utm_source=\"&UrlEncode(D212)&\"&utm_medium=\"&UrlEncode(F212)&\"&utm_campaign=\"&UrlEncode(H212)&\"&utm_term=\"&UrlEncode(J212)&\"&utm_content=\"&UrlEncode(L212)&\"\",\"请填写目标URL与媒体平台\")","v":"请填写目标URL与媒体平台"}]
[209,null,null,null,null,null,null,null,null,null,null,null,null,null,{"$f":"IF(LEN(B213)*LEN(D213),B213&\"?utm_source=\"&UrlEncode(D213)&\"&utm_medium=\"&UrlEncode(F213)&\"&utm_campaign=\"&UrlEncode(H213)&\"&utm_term=\"&UrlEncode(J213)&\"&utm_content=\"&UrlEncode(L213)&\"\",\"请填写目标URL与媒体平台\")","v":"请填写目标URL与媒体平台"}]
[210,null,null,null,null,null,null,null,null,null,null,null,null,null,{"$f":"IF(LEN(B214)*LEN(D214),B214&\"?utm_source=\"&UrlEncode(D214)&\"&utm_medium=\"&UrlEncode(F214)&\"&utm_campaign=\"&UrlEncode(H214)&\"&utm_term=\"&UrlEncode(J214)&\"&utm_content=\"&UrlEncode(L214)&\"\",\"请填写目标URL与媒体平台\")","v":"请填写目标URL与媒体平台"}]
[211,null,null,null,null,null,null,null,null,null,null,null,null,null,{"$f":"IF(LEN(B215)*LEN(D215),B215&\"?utm_source=\"&UrlEncode(D215)&\"&utm_medium=\"&UrlEncode(F215)&\"&utm_campaign=\"&UrlEncode(H215)&\"&utm_term=\"&UrlEncode(J215)&\"&utm_content=\"&UrlEncode(L215)&\"\",\"请填写目标URL与媒体平台\")","v":"请填写目标URL与媒体平台"}]
[212,null,null,null,null,null,null,null,null,null,null,null,null,null,{"$f":"IF(LEN(B216)*LEN(D216),B216&\"?utm_source=\"&UrlEncode(D216)&\"&utm_medium=\"&UrlEncode(F216)&\"&utm_campaign=\"&UrlEncode(H216)&\"&utm_term=\"&UrlEncode(J216)&\"&utm_content=\"&UrlEncode(L216)&\"\",\"请填写目标URL与媒体平台\")","v":"请填写目标URL与媒体平台"}]
[213,null,null,null,null,null,null,null,null,null,null,null,null,null,{"$f":"IF(LEN(B217)*LEN(D217),B217&\"?utm_source=\"&UrlEncode(D217)&\"&utm_medium=\"&UrlEncode(F217)&\"&utm_campaign=\"&UrlEncode(H217)&\"&utm_term=\"&UrlEncode(J217)&\"&utm_content=\"&UrlEncode(L217)&\"\",\"请填写目标URL与媒体平台\")","v":"请填写目标URL与媒体平台"}]
[214,null,null,null,null,null,null,null,null,null,null,null,null,null,{"$f":"IF(LEN(B218)*LEN(D218),B218&\"?utm_source=\"&UrlEncode(D218)&\"&utm_medium=\"&UrlEncode(F218)&\"&utm_campaign=\"&UrlEncode(H218)&\"&utm_term=\"&UrlEncode(J218)&\"&utm_content=\"&UrlEncode(L218)&\"\",\"请填写目标URL与媒体平台\")","v":"请填写目标URL与媒体平台"}]
[215,null,null,null,null,null,null,null,null,null,null,null,null,null,{"$f":"IF(LEN(B219)*LEN(D219),B219&\"?utm_source=\"&UrlEncode(D219)&\"&utm_medium=\"&UrlEncode(F219)&\"&utm_campaign=\"&UrlEncode(H219)&\"&utm_term=\"&UrlEncode(J219)&\"&utm_content=\"&UrlEncode(L219)&\"\",\"请填写目标URL与媒体平台\")","v":"请填写目标URL与媒体平台"}]
[216,null,null,null,null,null,null,null,null,null,null,null,null,null,{"$f":"IF(LEN(B220)*LEN(D220),B220&\"?utm_source=\"&UrlEncode(D220)&\"&utm_medium=\"&UrlEncode(F220)&\"&utm_campaign=\"&UrlEncode(H220)&\"&utm_term=\"&UrlEncode(J220)&\"&utm_content=\"&UrlEncode(L220)&\"\",\"请填写目标URL与媒体平台\")","v":"请填写目标URL与媒体平台"}]
[217,null,null,null,null,null,null,null,null,null,null,null,null,null,{"$f":"IF(LEN(B221)*LEN(D221),B221&\"?utm_source=\"&UrlEncode(D221)&\"&utm_medium=\"&UrlEncode(F221)&\"&utm_campaign=\"&UrlEncode(H221)&\"&utm_term=\"&UrlEncode(J221)&\"&utm_content=\"&UrlEncode(L221)&\"\",\"请填写目标URL与媒体平台\")","v":"请填写目标URL与媒体平台"}]
[218,null,null,null,null,null,null,null,null,null,null,null,null,null,{"$f":"IF(LEN(B222)*LEN(D222),B222&\"?utm_source=\"&UrlEncode(D222)&\"&utm_medium=\"&UrlEncode(F222)&\"&utm_campaign=\"&UrlEncode(H222)&\"&utm_term=\"&UrlEncode(J222)&\"&utm_content=\"&UrlEncode(L222)&\"\",\"请填写目标URL与媒体平台\")","v":"请填写目标URL与媒体平台"}]
[219,null,null,null,null,null,null,null,null,null,null,null,null,null,{"$f":"IF(LEN(B223)*LEN(D223),B223&\"?utm_source=\"&UrlEncode(D223)&\"&utm_medium=\"&UrlEncode(F223)&\"&utm_campaign=\"&UrlEncode(H223)&\"&utm_term=\"&UrlEncode(J223)&\"&utm_content=\"&UrlEncode(L223)&\"\",\"请填写目标URL与媒体平台\")","v":"请填写目标URL与媒体平台"}]
[220,null,null,null,null,null,null,null,null,null,null,null,null,null,{"$f":"IF(LEN(B224)*LEN(D224),B224&\"?utm_source=\"&UrlEncode(D224)&\"&utm_medium=\"&UrlEncode(F224)&\"&utm_campaign=\"&UrlEncode(H224)&\"&utm_term=\"&UrlEncode(J224)&\"&utm_content=\"&UrlEncode(L224)&\"\",\"请填写目标URL与媒体平台\")","v":"请填写目标URL与媒体平台"}]
[221,null,null,null,null,null,null,null,null,null,null,null,null,null,{"$f":"IF(LEN(B225)*LEN(D225),B225&\"?utm_source=\"&UrlEncode(D225)&\"&utm_medium=\"&UrlEncode(F225)&\"&utm_campaign=\"&UrlEncode(H225)&\"&utm_term=\"&UrlEncode(J225)&\"&utm_content=\"&UrlEncode(L225)&\"\",\"请填写目标URL与媒体平台\")","v":"请填写目标URL与媒体平台"}]
[222,null,null,null,null,null,null,null,null,null,null,null,null,null,{"$f":"IF(LEN(B226)*LEN(D226),B226&\"?utm_source=\"&UrlEncode(D226)&\"&utm_medium=\"&UrlEncode(F226)&\"&utm_campaign=\"&UrlEncode(H226)&\"&utm_term=\"&UrlEncode(J226)&\"&utm_content=\"&UrlEncode(L226)&\"\",\"请填写目标URL与媒体平台\")","v":"请填写目标URL与媒体平台"}]
[223,null,null,null,null,null,null,null,null,null,null,null,null,null,{"$f":"IF(LEN(B227)*LEN(D227),B227&\"?utm_source=\"&UrlEncode(D227)&\"&utm_medium=\"&UrlEncode(F227)&\"&utm_campaign=\"&UrlEncode(H227)&\"&utm_term=\"&UrlEncode(J227)&\"&utm_content=\"&UrlEncode(L227)&\"\",\"请填写目标URL与媒体平台\")","v":"请填写目标URL与媒体平台"}]
[224,null,null,null,null,null,null,null,null,null,null,null,null,null,{"$f":"IF(LEN(B228)*LEN(D228),B228&\"?utm_source=\"&UrlEncode(D228)&\"&utm_medium=\"&UrlEncode(F228)&\"&utm_campaign=\"&UrlEncode(H228)&\"&utm_term=\"&UrlEncode(J228)&\"&utm_content=\"&UrlEncode(L228)&\"\",\"请填写目标URL与媒体平台\")","v":"请填写目标URL与媒体平台"}]
[225,null,null,null,null,null,null,null,null,null,null,null,null,null,{"$f":"IF(LEN(B229)*LEN(D229),B229&\"?utm_source=\"&UrlEncode(D229)&\"&utm_medium=\"&UrlEncode(F229)&\"&utm_campaign=\"&UrlEncode(H229)&\"&utm_term=\"&UrlEncode(J229)&\"&utm_content=\"&UrlEncode(L229)&\"\",\"请填写目标URL与媒体平台\")","v":"请填写目标URL与媒体平台"}]
[226,null,null,null,null,null,null,null,null,null,null,null,null,null,{"$f":"IF(LEN(B230)*LEN(D230),B230&\"?utm_source=\"&UrlEncode(D230)&\"&utm_medium=\"&UrlEncode(F230)&\"&utm_campaign=\"&UrlEncode(H230)&\"&utm_term=\"&UrlEncode(J230)&\"&utm_content=\"&UrlEncode(L230)&\"\",\"请填写目标URL与媒体平台\")","v":"请填写目标URL与媒体平台"}]
[227,null,null,null,null,null,null,null,null,null,null,null,null,null,{"$f":"IF(LEN(B231)*LEN(D231),B231&\"?utm_source=\"&UrlEncode(D231)&\"&utm_medium=\"&UrlEncode(F231)&\"&utm_campaign=\"&UrlEncode(H231)&\"&utm_term=\"&UrlEncode(J231)&\"&utm_content=\"&UrlEncode(L231)&\"\",\"请填写目标URL与媒体平台\")","v":"请填写目标URL与媒体平台"}]
[228,null,null,null,null,null,null,null,null,null,null,null,null,null,{"$f":"IF(LEN(B232)*LEN(D232),B232&\"?utm_source=\"&UrlEncode(D232)&\"&utm_medium=\"&UrlEncode(F232)&\"&utm_campaign=\"&UrlEncode(H232)&\"&utm_term=\"&UrlEncode(J232)&\"&utm_content=\"&UrlEncode(L232)&\"\",\"请填写目标URL与媒体平台\")","v":"请填写目标URL与媒体平台"}]
[229,null,null,null,null,null,null,null,null,null,null,null,null,null,{"$f":"IF(LEN(B233)*LEN(D233),B233&\"?utm_source=\"&UrlEncode(D233)&\"&utm_medium=\"&UrlEncode(F233)&\"&utm_campaign=\"&UrlEncode(H233)&\"&utm_term=\"&UrlEncode(J233)&\"&utm_content=\"&UrlEncode(L233)&\"\",\"请填写目标URL与媒体平台\")","v":"请填写目标URL与媒体平台"}]
[230,null,null,null,null,null,null,null,null,null,null,null,null,null,{"$f":"IF(LEN(B234)*LEN(D234),B234&\"?utm_source=\"&UrlEncode(D234)&\"&utm_medium=\"&UrlEncode(F234)&\"&utm_campaign=\"&UrlEncode(H234)&\"&utm_term=\"&UrlEncode(J234)&\"&utm_content=\"&UrlEncode(L234)&\"\",\"请填写目标URL与媒体平台\")","v":"请填写目标URL与媒体平台"}]
[231,null,null,null,null,null,null,null,null,null,null,null,null,null,{"$f":"IF(LEN(B235)*LEN(D235),B235&\"?utm_source=\"&UrlEncode(D235)&\"&utm_medium=\"&UrlEncode(F235)&\"&utm_campaign=\"&UrlEncode(H235)&\"&utm_term=\"&UrlEncode(J235)&\"&utm_content=\"&UrlEncode(L235)&\"\",\"请填写目标URL与媒体平台\")","v":"请填写目标URL与媒体平台"}]
[232,null,null,null,null,null,null,null,null,null,null,null,null,null,{"$f":"IF(LEN(B236)*LEN(D236),B236&\"?utm_source=\"&UrlEncode(D236)&\"&utm_medium=\"&UrlEncode(F236)&\"&utm_campaign=\"&UrlEncode(H236)&\"&utm_term=\"&UrlEncode(J236)&\"&utm_content=\"&UrlEncode(L236)&\"\",\"请填写目标URL与媒体平台\")","v":"请填写目标URL与媒体平台"}]
[233,null,null,null,null,null,null,null,null,null,null,null,null,null,{"$f":"IF(LEN(B237)*LEN(D237),B237&\"?utm_source=\"&UrlEncode(D237)&\"&utm_medium=\"&UrlEncode(F237)&\"&utm_campaign=\"&UrlEncode(H237)&\"&utm_term=\"&UrlEncode(J237)&\"&utm_content=\"&UrlEncode(L237)&\"\",\"请填写目标URL与媒体平台\")","v":"请填写目标URL与媒体平台"}]
[234,null,null,null,null,null,null,null,null,null,null,null,null,null,{"$f":"IF(LEN(B238)*LEN(D238),B238&\"?utm_source=\"&UrlEncode(D238)&\"&utm_medium=\"&UrlEncode(F238)&\"&utm_campaign=\"&UrlEncode(H238)&\"&utm_term=\"&UrlEncode(J238)&\"&utm_content=\"&UrlEncode(L238)&\"\",\"请填写目标URL与媒体平台\")","v":"请填写目标URL与媒体平台"}]
[235,null,null,null,null,null,null,null,null,null,null,null,null,null,{"$f":"IF(LEN(B239)*LEN(D239),B239&\"?utm_source=\"&UrlEncode(D239)&\"&utm_medium=\"&UrlEncode(F239)&\"&utm_campaign=\"&UrlEncode(H239)&\"&utm_term=\"&UrlEncode(J239)&\"&utm_content=\"&UrlEncode(L239)&\"\",\"请填写目标URL与媒体平台\")","v":"请填写目标URL与媒体平台"}]
[236,null,null,null,null,null,null,null,null,null,null,null,null,null,{"$f":"IF(LEN(B240)*LEN(D240),B240&\"?utm_source=\"&UrlEncode(D240)&\"&utm_medium=\"&UrlEncode(F240)&\"&utm_campaign=\"&UrlEncode(H240)&\"&utm_term=\"&UrlEncode(J240)&\"&utm_content=\"&UrlEncode(L240)&\"\",\"请填写目标URL与媒体平台\")","v":"请填写目标URL与媒体平台"}]
[237,null,null,null,null,null,null,null,null,null,null,null,null,null,{"$f":"IF(LEN(B241)*LEN(D241),B241&\"?utm_source=\"&UrlEncode(D241)&\"&utm_medium=\"&UrlEncode(F241)&\"&utm_campaign=\"&UrlEncode(H241)&\"&utm_term=\"&UrlEncode(J241)&\"&utm_content=\"&UrlEncode(L241)&\"\",\"请填写目标URL与媒体平台\")","v":"请填写目标URL与媒体平台"}]
[238,null,null,null,null,null,null,null,null,null,null,null,null,null,{"$f":"IF(LEN(B242)*LEN(D242),B242&\"?utm_source=\"&UrlEncode(D242)&\"&utm_medium=\"&UrlEncode(F242)&\"&utm_campaign=\"&UrlEncode(H242)&\"&utm_term=\"&UrlEncode(J242)&\"&utm_content=\"&UrlEncode(L242)&\"\",\"请填写目标URL与媒体平台\")","v":"请填写目标URL与媒体平台"}]
[239,null,null,null,null,null,null,null,null,null,null,null,null,null,{"$f":"IF(LEN(B243)*LEN(D243),B243&\"?utm_source=\"&UrlEncode(D243)&\"&utm_medium=\"&UrlEncode(F243)&\"&utm_campaign=\"&UrlEncode(H243)&\"&utm_term=\"&UrlEncode(J243)&\"&utm_content=\"&UrlEncode(L243)&\"\",\"请填写目标URL与媒体平台\")","v":"请填写目标URL与媒体平台"}]
[240,null,null,null,null,null,null,null,null,null,null,null,null,null,{"$f":"IF(LEN(B244)*LEN(D244),B244&\"?utm_source=\"&UrlEncode(D244)&\"&utm_medium=\"&UrlEncode(F244)&\"&utm_campaign=\"&UrlEncode(H244)&\"&utm_term=\"&UrlEncode(J244)&\"&utm_content=\"&UrlEncode(L244)&\"\",\"请填写目标URL与媒体平台\")","v":"请填写目标URL与媒体平台"}]
[241,null,null,null,null,null,null,null,null,null,null,null,null,null,{"$f":"IF(LEN(B245)*LEN(D245),B245&\"?utm_source=\"&UrlEncode(D245)&\"&utm_medium=\"&UrlEncode(F245)&\"&utm_campaign=\"&UrlEncode(H245)&\"&utm_term=\"&UrlEncode(J245)&\"&utm_content=\"&UrlEncode(L245)&\"\",\"请填写目标URL与媒体平台\")","v":"请填写目标URL与媒体平台"}]
[242,null,null,null,null,null,null,null,null,null,null,null,null,null,{"$f":"IF(LEN(B246)*LEN(D246),B246&\"?utm_source=\"&UrlEncode(D246)&\"&utm_medium=\"&UrlEncode(F246)&\"&utm_campaign=\"&UrlEncode(H246)&\"&utm_term=\"&UrlEncode(J246)&\"&utm_content=\"&UrlEncode(L246)&\"\",\"请填写目标URL与媒体平台\")","v":"请填写目标URL与媒体平台"}]
[243,null,null,null,null,null,null,null,null,null,null,null,null,null,{"$f":"IF(LEN(B247)*LEN(D247),B247&\"?utm_source=\"&UrlEncode(D247)&\"&utm_medium=\"&UrlEncode(F247)&\"&utm_campaign=\"&UrlEncode(H247)&\"&utm_term=\"&UrlEncode(J247)&\"&utm_content=\"&UrlEncode(L247)&\"\",\"请填写目标URL与媒体平台\")","v":"请填写目标URL与媒体平台"}]
[244,null,null,null,null,null,null,null,null,null,null,null,null,null,{"$f":"IF(LEN(B248)*LEN(D248),B248&\"?utm_source=\"&UrlEncode(D248)&\"&utm_medium=\"&UrlEncode(F248)&\"&utm_campaign=\"&UrlEncode(H248)&\"&utm_term=\"&UrlEncode(J248)&\"&utm_content=\"&UrlEncode(L248)&\"\",\"请填写目标URL与媒体平台\")","v":"请填写目标URL与媒体平台"}]
[245,null,null,null,null,null,null,null,null,null,null,null,null,null,{"$f":"IF(LEN(B249)*LEN(D249),B249&\"?utm_source=\"&UrlEncode(D249)&\"&utm_medium=\"&UrlEncode(F249)&\"&utm_campaign=\"&UrlEncode(H249)&\"&utm_term=\"&UrlEncode(J249)&\"&utm_content=\"&UrlEncode(L249)&\"\",\"请填写目标URL与媒体平台\")","v":"请填写目标URL与媒体平台"}]
[246,null,null,null,null,null,null,null,null,null,null,null,null,null,{"$f":"IF(LEN(B250)*LEN(D250),B250&\"?utm_source=\"&UrlEncode(D250)&\"&utm_medium=\"&UrlEncode(F250)&\"&utm_campaign=\"&UrlEncode(H250)&\"&utm_term=\"&UrlEncode(J250)&\"&utm_content=\"&UrlEncode(L250)&\"\",\"请填写目标URL与媒体平台\")","v":"请填写目标URL与媒体平台"}]
[247,null,null,null,null,null,null,null,null,null,null,null,null,null,{"$f":"IF(LEN(B251)*LEN(D251),B251&\"?utm_source=\"&UrlEncode(D251)&\"&utm_medium=\"&UrlEncode(F251)&\"&utm_campaign=\"&UrlEncode(H251)&\"&utm_term=\"&UrlEncode(J251)&\"&utm_content=\"&UrlEncode(L251)&\"\",\"请填写目标URL与媒体平台\")","v":"请填写目标URL与媒体平台"}]
[248,null,null,null,null,null,null,null,null,null,null,null,null,null,{"$f":"IF(LEN(B252)*LEN(D252),B252&\"?utm_source=\"&UrlEncode(D252)&\"&utm_medium=\"&UrlEncode(F252)&\"&utm_campaign=\"&UrlEncode(H252)&\"&utm_term=\"&UrlEncode(J252)&\"&utm_content=\"&UrlEncode(L252)&\"\",\"请填写目标URL与媒体平台\")","v":"请填写目标URL与媒体平台"}]
[249,null,null,null,null,null,null,null,null,null,null,null,null,null,{"$f":"IF(LEN(B253)*LEN(D253),B253&\"?utm_source=\"&UrlEncode(D253)&\"&utm_medium=\"&UrlEncode(F253)&\"&utm_campaign=\"&UrlEncode(H253)&\"&utm_term=\"&UrlEncode(J253)&\"&utm_content=\"&UrlEncode(L253)&\"\",\"请填写目标URL与媒体平台\")","v":"请填写目标URL与媒体平台"}]
[250,null,null,null,null,null,null,null,null,null,null,null,null,null,{"$f":"IF(LEN(B254)*LEN(D254),B254&\"?utm_source=\"&UrlEncode(D254)&\"&utm_medium=\"&UrlEncode(F254)&\"&utm_campaign=\"&UrlEncode(H254)&\"&utm_term=\"&UrlEncode(J254)&\"&utm_content=\"&UrlEncode(L254)&\"\",\"请填写目标URL与媒体平台\")","v":"请填写目标URL与媒体平台"}]
[251,null,null,null,null,null,null,null,null,null,null,null,null,null,{"$f":"IF(LEN(B255)*LEN(D255),B255&\"?utm_source=\"&UrlEncode(D255)&\"&utm_medium=\"&UrlEncode(F255)&\"&utm_campaign=\"&UrlEncode(H255)&\"&utm_term=\"&UrlEncode(J255)&\"&utm_content=\"&UrlEncode(L255)&\"\",\"请填写目标URL与媒体平台\")","v":"请填写目标URL与媒体平台"}]
[252,null,null,null,null,null,null,null,null,null,null,null,null,null,{"$f":"IF(LEN(B256)*LEN(D256),B256&\"?utm_source=\"&UrlEncode(D256)&\"&utm_medium=\"&UrlEncode(F256)&\"&utm_campaign=\"&UrlEncode(H256)&\"&utm_term=\"&UrlEncode(J256)&\"&utm_content=\"&UrlEncode(L256)&\"\",\"请填写目标URL与媒体平台\")","v":"请填写目标URL与媒体平台"}]
[253,null,null,null,null,null,null,null,null,null,null,null,null,null,{"$f":"IF(LEN(B257)*LEN(D257),B257&\"?utm_source=\"&UrlEncode(D257)&\"&utm_medium=\"&UrlEncode(F257)&\"&utm_campaign=\"&UrlEncode(H257)&\"&utm_term=\"&UrlEncode(J257)&\"&utm_content=\"&UrlEncode(L257)&\"\",\"请填写目标URL与媒体平台\")","v":"请填写目标URL与媒体平台"}]
[254,null,null,null,null,null,null,null,null,null,null,null,null,null,{"$f":"IF(LEN(B258)*LEN(D258),B258&\"?utm_source=\"&UrlEncode(D258)&\"&utm_medium=\"&UrlEncode(F258)&\"&utm_campaign=\"&UrlEncode(H258)&\"&utm_term=\"&UrlEncode(J258)&\"&utm_content=\"&UrlEncode(L258)&\"\",\"请填写目标URL与媒体平台\")","v":"请填写目标URL与媒体平台"}]
[255,null,null,null,null,null,null,null,null,null,null,null,null,null,{"$f":"IF(LEN(B259)*LEN(D259),B259&\"?utm_source=\"&UrlEncode(D259)&\"&utm_medium=\"&UrlEncode(F259)&\"&utm_campaign=\"&UrlEncode(H259)&\"&utm_term=\"&UrlEncode(J259)&\"&utm_content=\"&UrlEncode(L259)&\"\",\"请填写目标URL与媒体平台\")","v":"请填写目标URL与媒体平台"}]
[256,null,null,null,null,null,null,null,null,null,null,null,null,null,{"$f":"IF(LEN(B260)*LEN(D260),B260&\"?utm_source=\"&UrlEncode(D260)&\"&utm_medium=\"&UrlEncode(F260)&\"&utm_campaign=\"&UrlEncode(H260)&\"&utm_term=\"&UrlEncode(J260)&\"&utm_content=\"&UrlEncode(L260)&\"\",\"请填写目标URL与媒体平台\")","v":"请填写目标URL与媒体平台"}]
[257,null,null,null,null,null,null,null,null,null,null,null,null,null,{"$f":"IF(LEN(B261)*LEN(D261),B261&\"?utm_source=\"&UrlEncode(D261)&\"&utm_medium=\"&UrlEncode(F261)&\"&utm_campaign=\"&UrlEncode(H261)&\"&utm_term=\"&UrlEncode(J261)&\"&utm_content=\"&UrlEncode(L261)&\"\",\"请填写目标URL与媒体平台\")","v":"请填写目标URL与媒体平台"}]
[258,null,null,null,null,null,null,null,null,null,null,null,null,null,{"$f":"IF(LEN(B262)*LEN(D262),B262&\"?utm_source=\"&UrlEncode(D262)&\"&utm_medium=\"&UrlEncode(F262)&\"&utm_campaign=\"&UrlEncode(H262)&\"&utm_term=\"&UrlEncode(J262)&\"&utm_content=\"&UrlEncode(L262)&\"\",\"请填写目标URL与媒体平台\")","v":"请填写目标URL与媒体平台"}]
[259,null,null,null,null,null,null,null,null,null,null,null,null,null,{"$f":"IF(LEN(B263)*LEN(D263),B263&\"?utm_source=\"&UrlEncode(D263)&\"&utm_medium=\"&UrlEncode(F263)&\"&utm_campaign=\"&UrlEncode(H263)&\"&utm_term=\"&UrlEncode(J263)&\"&utm_content=\"&UrlEncode(L263)&\"\",\"请填写目标URL与媒体平台\")","v":"请填写目标URL与媒体平台"}]
[260,null,null,null,null,null,null,null,null,null,null,null,null,null,{"$f":"IF(LEN(B264)*LEN(D264),B264&\"?utm_source=\"&UrlEncode(D264)&\"&utm_medium=\"&UrlEncode(F264)&\"&utm_campaign=\"&UrlEncode(H264)&\"&utm_term=\"&UrlEncode(J264)&\"&utm_content=\"&UrlEncode(L264)&\"\",\"请填写目标URL与媒体平台\")","v":"请填写目标URL与媒体平台"}]
[261,null,null,null,null,null,null,null,null,null,null,null,null,null,{"$f":"IF(LEN(B265)*LEN(D265),B265&\"?utm_source=\"&UrlEncode(D265)&\"&utm_medium=\"&UrlEncode(F265)&\"&utm_campaign=\"&UrlEncode(H265)&\"&utm_term=\"&UrlEncode(J265)&\"&utm_content=\"&UrlEncode(L265)&\"\",\"请填写目标URL与媒体平台\")","v":"请填写目标URL与媒体平台"}]
[262,null,null,null,null,null,null,null,null,null,null,null,null,null,{"$f":"IF(LEN(B266)*LEN(D266),B266&\"?utm_source=\"&UrlEncode(D266)&\"&utm_medium=\"&UrlEncode(F266)&\"&utm_campaign=\"&UrlEncode(H266)&\"&utm_term=\"&UrlEncode(J266)&\"&utm_content=\"&UrlEncode(L266)&\"\",\"请填写目标URL与媒体平台\")","v":"请填写目标URL与媒体平台"}]
[263,null,null,null,null,null,null,null,null,null,null,null,null,null,{"$f":"IF(LEN(B267)*LEN(D267),B267&\"?utm_source=\"&UrlEncode(D267)&\"&utm_medium=\"&UrlEncode(F267)&\"&utm_campaign=\"&UrlEncode(H267)&\"&utm_term=\"&UrlEncode(J267)&\"&utm_content=\"&UrlEncode(L267)&\"\",\"请填写目标URL与媒体平台\")","v":"请填写目标URL与媒体平台"}]
[264,null,null,null,null,null,null,null,null,null,null,null,null,null,{"$f":"IF(LEN(B268)*LEN(D268),B268&\"?utm_source=\"&UrlEncode(D268)&\"&utm_medium=\"&UrlEncode(F268)&\"&utm_campaign=\"&UrlEncode(H268)&\"&utm_term=\"&UrlEncode(J268)&\"&utm_content=\"&UrlEncode(L268)&\"\",\"请填写目标URL与媒体平台\")","v":"请填写目标URL与媒体平台"}]
[265,null,null,null,null,null,null,null,null,null,null,null,null,null,{"$f":"IF(LEN(B269)*LEN(D269),B269&\"?utm_source=\"&UrlEncode(D269)&\"&utm_medium=\"&UrlEncode(F269)&\"&utm_campaign=\"&UrlEncode(H269)&\"&utm_term=\"&UrlEncode(J269)&\"&utm_content=\"&UrlEncode(L269)&\"\",\"请填写目标URL与媒体平台\")","v":"请填写目标URL与媒体平台"}]
[266,null,null,null,null,null,null,null,null,null,null,null,null,null,{"$f":"IF(LEN(B270)*LEN(D270),B270&\"?utm_source=\"&UrlEncode(D270)&\"&utm_medium=\"&UrlEncode(F270)&\"&utm_campaign=\"&UrlEncode(H270)&\"&utm_term=\"&UrlEncode(J270)&\"&utm_content=\"&UrlEncode(L270)&\"\",\"请填写目标URL与媒体平台\")","v":"请填写目标URL与媒体平台"}]
[267,null,null,null,null,null,null,null,null,null,null,null,null,null,{"$f":"IF(LEN(B271)*LEN(D271),B271&\"?utm_source=\"&UrlEncode(D271)&\"&utm_medium=\"&UrlEncode(F271)&\"&utm_campaign=\"&UrlEncode(H271)&\"&utm_term=\"&UrlEncode(J271)&\"&utm_content=\"&UrlEncode(L271)&\"\",\"请填写目标URL与媒体平台\")","v":"请填写目标URL与媒体平台"}]
[268,null,null,null,null,null,null,null,null,null,null,null,null,null,{"$f":"IF(LEN(B272)*LEN(D272),B272&\"?utm_source=\"&UrlEncode(D272)&\"&utm_medium=\"&UrlEncode(F272)&\"&utm_campaign=\"&UrlEncode(H272)&\"&utm_term=\"&UrlEncode(J272)&\"&utm_content=\"&UrlEncode(L272)&\"\",\"请填写目标URL与媒体平台\")","v":"请填写目标URL与媒体平台"}]
[269,null,null,null,null,null,null,null,null,null,null,null,null,null,{"$f":"IF(LEN(B273)*LEN(D273),B273&\"?utm_source=\"&UrlEncode(D273)&\"&utm_medium=\"&UrlEncode(F273)&\"&utm_campaign=\"&UrlEncode(H273)&\"&utm_term=\"&UrlEncode(J273)&\"&utm_content=\"&UrlEncode(L273)&\"\",\"请填写目标URL与媒体平台\")","v":"请填写目标URL与媒体平台"}]
[270,null,null,null,null,null,null,null,null,null,null,null,null,null,{"$f":"IF(LEN(B274)*LEN(D274),B274&\"?utm_source=\"&UrlEncode(D274)&\"&utm_medium=\"&UrlEncode(F274)&\"&utm_campaign=\"&UrlEncode(H274)&\"&utm_term=\"&UrlEncode(J274)&\"&utm_content=\"&UrlEncode(L274)&\"\",\"请填写目标URL与媒体平台\")","v":"请填写目标URL与媒体平台"}]
[271,null,null,null,null,null,null,null,null,null,null,null,null,null,{"$f":"IF(LEN(B275)*LEN(D275),B275&\"?utm_source=\"&UrlEncode(D275)&\"&utm_medium=\"&UrlEncode(F275)&\"&utm_campaign=\"&UrlEncode(H275)&\"&utm_term=\"&UrlEncode(J275)&\"&utm_content=\"&UrlEncode(L275)&\"\",\"请填写目标URL与媒体平台\")","v":"请填写目标URL与媒体平台"}]
[272,null,null,null,null,null,null,null,null,null,null,null,null,null,{"$f":"IF(LEN(B276)*LEN(D276),B276&\"?utm_source=\"&UrlEncode(D276)&\"&utm_medium=\"&UrlEncode(F276)&\"&utm_campaign=\"&UrlEncode(H276)&\"&utm_term=\"&UrlEncode(J276)&\"&utm_content=\"&UrlEncode(L276)&\"\",\"请填写目标URL与媒体平台\")","v":"请填写目标URL与媒体平台"}]
[273,null,null,null,null,null,null,null,null,null,null,null,null,null,{"$f":"IF(LEN(B277)*LEN(D277),B277&\"?utm_source=\"&UrlEncode(D277)&\"&utm_medium=\"&UrlEncode(F277)&\"&utm_campaign=\"&UrlEncode(H277)&\"&utm_term=\"&UrlEncode(J277)&\"&utm_content=\"&UrlEncode(L277)&\"\",\"请填写目标URL与媒体平台\")","v":"请填写目标URL与媒体平台"}]
[274,null,null,null,null,null,null,null,null,null,null,null,null,null,{"$f":"IF(LEN(B278)*LEN(D278),B278&\"?utm_source=\"&UrlEncode(D278)&\"&utm_medium=\"&UrlEncode(F278)&\"&utm_campaign=\"&UrlEncode(H278)&\"&utm_term=\"&UrlEncode(J278)&\"&utm_content=\"&UrlEncode(L278)&\"\",\"请填写目标URL与媒体平台\")","v":"请填写目标URL与媒体平台"}]
[275,null,null,null,null,null,null,null,null,null,null,null,null,null,{"$f":"IF(LEN(B279)*LEN(D279),B279&\"?utm_source=\"&UrlEncode(D279)&\"&utm_medium=\"&UrlEncode(F279)&\"&utm_campaign=\"&UrlEncode(H279)&\"&utm_term=\"&UrlEncode(J279)&\"&utm_content=\"&UrlEncode(L279)&\"\",\"请填写目标URL与媒体平台\")","v":"请填写目标URL与媒体平台"}]
[276,null,null,null,null,null,null,null,null,null,null,null,null,null,{"$f":"IF(LEN(B280)*LEN(D280),B280&\"?utm_source=\"&UrlEncode(D280)&\"&utm_medium=\"&UrlEncode(F280)&\"&utm_campaign=\"&UrlEncode(H280)&\"&utm_term=\"&UrlEncode(J280)&\"&utm_content=\"&UrlEncode(L280)&\"\",\"请填写目标URL与媒体平台\")","v":"请填写目标URL与媒体平台"}]
[277,null,null,null,null,null,null,null,null,null,null,null,null,null,{"$f":"IF(LEN(B281)*LEN(D281),B281&\"?utm_source=\"&UrlEncode(D281)&\"&utm_medium=\"&UrlEncode(F281)&\"&utm_campaign=\"&UrlEncode(H281)&\"&utm_term=\"&UrlEncode(J281)&\"&utm_content=\"&UrlEncode(L281)&\"\",\"请填写目标URL与媒体平台\")","v":"请填写目标URL与媒体平台"}]
[278,null,null,null,null,null,null,null,null,null,null,null,null,null,{"$f":"IF(LEN(B282)*LEN(D282),B282&\"?utm_source=\"&UrlEncode(D282)&\"&utm_medium=\"&UrlEncode(F282)&\"&utm_campaign=\"&UrlEncode(H282)&\"&utm_term=\"&UrlEncode(J282)&\"&utm_content=\"&UrlEncode(L282)&\"\",\"请填写目标URL与媒体平台\")","v":"请填写目标URL与媒体平台"}]
[279,null,null,null,null,null,null,null,null,null,null,null,null,null,{"$f":"IF(LEN(B283)*LEN(D283),B283&\"?utm_source=\"&UrlEncode(D283)&\"&utm_medium=\"&UrlEncode(F283)&\"&utm_campaign=\"&UrlEncode(H283)&\"&utm_term=\"&UrlEncode(J283)&\"&utm_content=\"&UrlEncode(L283)&\"\",\"请填写目标URL与媒体平台\")","v":"请填写目标URL与媒体平台"}]
[280,null,null,null,null,null,null,null,null,null,null,null,null,null,{"$f":"IF(LEN(B284)*LEN(D284),B284&\"?utm_source=\"&UrlEncode(D284)&\"&utm_medium=\"&UrlEncode(F284)&\"&utm_campaign=\"&UrlEncode(H284)&\"&utm_term=\"&UrlEncode(J284)&\"&utm_content=\"&UrlEncode(L284)&\"\",\"请填写目标URL与媒体平台\")","v":"请填写目标URL与媒体平台"}]
[281,null,null,null,null,null,null,null,null,null,null,null,null,null,{"$f":"IF(LEN(B285)*LEN(D285),B285&\"?utm_source=\"&UrlEncode(D285)&\"&utm_medium=\"&UrlEncode(F285)&\"&utm_campaign=\"&UrlEncode(H285)&\"&utm_term=\"&UrlEncode(J285)&\"&utm_content=\"&UrlEncode(L285)&\"\",\"请填写目标URL与媒体平台\")","v":"请填写目标URL与媒体平台"}]
[282,null,null,null,null,null,null,null,null,null,null,null,null,null,{"$f":"IF(LEN(B286)*LEN(D286),B286&\"?utm_source=\"&UrlEncode(D286)&\"&utm_medium=\"&UrlEncode(F286)&\"&utm_campaign=\"&UrlEncode(H286)&\"&utm_term=\"&UrlEncode(J286)&\"&utm_content=\"&UrlEncode(L286)&\"\",\"请填写目标URL与媒体平台\")","v":"请填写目标URL与媒体平台"}]
[283,null,null,null,null,null,null,null,null,null,null,null,null,null,{"$f":"IF(LEN(B287)*LEN(D287),B287&\"?utm_source=\"&UrlEncode(D287)&\"&utm_medium=\"&UrlEncode(F287)&\"&utm_campaign=\"&UrlEncode(H287)&\"&utm_term=\"&UrlEncode(J287)&\"&utm_content=\"&UrlEncode(L287)&\"\",\"请填写目标URL与媒体平台\")","v":"请填写目标URL与媒体平台"}]
[284,null,null,null,null,null,null,null,null,null,null,null,null,null,{"$f":"IF(LEN(B288)*LEN(D288),B288&\"?utm_source=\"&UrlEncode(D288)&\"&utm_medium=\"&UrlEncode(F288)&\"&utm_campaign=\"&UrlEncode(H288)&\"&utm_term=\"&UrlEncode(J288)&\"&utm_content=\"&UrlEncode(L288)&\"\",\"请填写目标URL与媒体平台\")","v":"请填写目标URL与媒体平台"}]
[285,null,null,null,null,null,null,null,null,null,null,null,null,null,{"$f":"IF(LEN(B289)*LEN(D289),B289&\"?utm_source=\"&UrlEncode(D289)&\"&utm_medium=\"&UrlEncode(F289)&\"&utm_campaign=\"&UrlEncode(H289)&\"&utm_term=\"&UrlEncode(J289)&\"&utm_content=\"&UrlEncode(L289)&\"\",\"请填写目标URL与媒体平台\")","v":"请填写目标URL与媒体平台"}]
[286,null,null,null,null,null,null,null,null,null,null,null,null,null,{"$f":"IF(LEN(B290)*LEN(D290),B290&\"?utm_source=\"&UrlEncode(D290)&\"&utm_medium=\"&UrlEncode(F290)&\"&utm_campaign=\"&UrlEncode(H290)&\"&utm_term=\"&UrlEncode(J290)&\"&utm_content=\"&UrlEncode(L290)&\"\",\"请填写目标URL与媒体平台\")","v":"请填写目标URL与媒体平台"}]
[287,null,null,null,null,null,null,null,null,null,null,null,null,null,{"$f":"IF(LEN(B291)*LEN(D291),B291&\"?utm_source=\"&UrlEncode(D291)&\"&utm_medium=\"&UrlEncode(F291)&\"&utm_campaign=\"&UrlEncode(H291)&\"&utm_term=\"&UrlEncode(J291)&\"&utm_content=\"&UrlEncode(L291)&\"\",\"请填写目标URL与媒体平台\")","v":"请填写目标URL与媒体平台"}]
[288,null,null,null,null,null,null,null,null,null,null,null,null,null,{"$f":"IF(LEN(B292)*LEN(D292),B292&\"?utm_source=\"&UrlEncode(D292)&\"&utm_medium=\"&UrlEncode(F292)&\"&utm_campaign=\"&UrlEncode(H292)&\"&utm_term=\"&UrlEncode(J292)&\"&utm_content=\"&UrlEncode(L292)&\"\",\"请填写目标URL与媒体平台\")","v":"请填写目标URL与媒体平台"}]
[289,null,null,null,null,null,null,null,null,null,null,null,null,null,{"$f":"IF(LEN(B293)*LEN(D293),B293&\"?utm_source=\"&UrlEncode(D293)&\"&utm_medium=\"&UrlEncode(F293)&\"&utm_campaign=\"&UrlEncode(H293)&\"&utm_term=\"&UrlEncode(J293)&\"&utm_content=\"&UrlEncode(L293)&\"\",\"请填写目标URL与媒体平台\")","v":"请填写目标URL与媒体平台"}]
[290,null,null,null,null,null,null,null,null,null,null,null,null,null,{"$f":"IF(LEN(B294)*LEN(D294),B294&\"?utm_source=\"&UrlEncode(D294)&\"&utm_medium=\"&UrlEncode(F294)&\"&utm_campaign=\"&UrlEncode(H294)&\"&utm_term=\"&UrlEncode(J294)&\"&utm_content=\"&UrlEncode(L294)&\"\",\"请填写目标URL与媒体平台\")","v":"请填写目标URL与媒体平台"}]
[291,null,null,null,null,null,null,null,null,null,null,null,null,null,{"$f":"IF(LEN(B295)*LEN(D295),B295&\"?utm_source=\"&UrlEncode(D295)&\"&utm_medium=\"&UrlEncode(F295)&\"&utm_campaign=\"&UrlEncode(H295)&\"&utm_term=\"&UrlEncode(J295)&\"&utm_content=\"&UrlEncode(L295)&\"\",\"请填写目标URL与媒体平台\")","v":"请填写目标URL与媒体平台"}]
[292,null,null,null,null,null,null,null,null,null,null,null,null,null,{"$f":"IF(LEN(B296)*LEN(D296),B296&\"?utm_source=\"&UrlEncode(D296)&\"&utm_medium=\"&UrlEncode(F296)&\"&utm_campaign=\"&UrlEncode(H296)&\"&utm_term=\"&UrlEncode(J296)&\"&utm_content=\"&UrlEncode(L296)&\"\",\"请填写目标URL与媒体平台\")","v":"请填写目标URL与媒体平台"}]
[293,null,null,null,null,null,null,null,null,null,null,null,null,null,{"$f":"IF(LEN(B297)*LEN(D297),B297&\"?utm_source=\"&UrlEncode(D297)&\"&utm_medium=\"&UrlEncode(F297)&\"&utm_campaign=\"&UrlEncode(H297)&\"&utm_term=\"&UrlEncode(J297)&\"&utm_content=\"&UrlEncode(L297)&\"\",\"请填写目标URL与媒体平台\")","v":"请填写目标URL与媒体平台"}]
[294,null,null,null,null,null,null,null,null,null,null,null,null,null,{"$f":"IF(LEN(B298)*LEN(D298),B298&\"?utm_source=\"&UrlEncode(D298)&\"&utm_medium=\"&UrlEncode(F298)&\"&utm_campaign=\"&UrlEncode(H298)&\"&utm_term=\"&UrlEncode(J298)&\"&utm_content=\"&UrlEncode(L298)&\"\",\"请填写目标URL与媒体平台\")","v":"请填写目标URL与媒体平台"}]
[295,null,null,null,null,null,null,null,null,null,null,null,null,null,{"$f":"IF(LEN(B299)*LEN(D299),B299&\"?utm_source=\"&UrlEncode(D299)&\"&utm_medium=\"&UrlEncode(F299)&\"&utm_campaign=\"&UrlEncode(H299)&\"&utm_term=\"&UrlEncode(J299)&\"&utm_content=\"&UrlEncode(L299)&\"\",\"请填写目标URL与媒体平台\")","v":"请填写目标URL与媒体平台"}]
[296,null,null,null,null,null,null,null,null,null,null,null,null,null,{"$f":"IF(LEN(B300)*LEN(D300),B300&\"?utm_source=\"&UrlEncode(D300)&\"&utm_medium=\"&UrlEncode(F300)&\"&utm_campaign=\"&UrlEncode(H300)&\"&utm_term=\"&UrlEncode(J300)&\"&utm_content=\"&UrlEncode(L300)&\"\",\"请填写目标URL与媒体平台\")","v":"请填写目标URL与媒体平台"}]
[297,null,null,null,null,null,null,null,null,null,null,null,null,null,{"$f":"IF(LEN(B301)*LEN(D301),B301&\"?utm_source=\"&UrlEncode(D301)&\"&utm_medium=\"&UrlEncode(F301)&\"&utm_campaign=\"&UrlEncode(H301)&\"&utm_term=\"&UrlEncode(J301)&\"&utm_content=\"&UrlEncode(L301)&\"\",\"请填写目标URL与媒体平台\")","v":"请填写目标URL与媒体平台"}]
[298,null,null,null,null,null,null,null,null,null,null,null,null,null,{"$f":"IF(LEN(B302)*LEN(D302),B302&\"?utm_source=\"&UrlEncode(D302)&\"&utm_medium=\"&UrlEncode(F302)&\"&utm_campaign=\"&UrlEncode(H302)&\"&utm_term=\"&UrlEncode(J302)&\"&utm_content=\"&UrlEncode(L302)&\"\",\"请填写目标URL与媒体平台\")","v":"请填写目标URL与媒体平台"}]
[299,null,null,null,null,null,null,null,null,null,null,null,null,null,{"$f":"IF(LEN(B303)*LEN(D303),B303&\"?utm_source=\"&UrlEncode(D303)&\"&utm_medium=\"&UrlEncode(F303)&\"&utm_campaign=\"&UrlEncode(H303)&\"&utm_term=\"&UrlEncode(J303)&\"&utm_content=\"&UrlEncode(L303)&\"\",\"请填写目标URL与媒体平台\")","v":"请填写目标URL与媒体平台"}]
[300,null,null,null,null,null,null,null,null,null,null,null,null,null,{"$f":"IF(LEN(B304)*LEN(D304),B304&\"?utm_source=\"&UrlEncode(D304)&\"&utm_medium=\"&UrlEncode(F304)&\"&utm_campaign=\"&UrlEncode(H304)&\"&utm_term=\"&UrlEncode(J304)&\"&utm_content=\"&UrlEncode(L304)&\"\",\"请填写目标URL与媒体平台\")","v":"请填写目标URL与媒体平台"}]